Workbook

Sheet Data Input Instructions (hidden)
A3: Worksheet ID | B3: Worksheet | C3: Input Data Notes
A4: 1 | B4: Data Current Rates | C4: R2 Service Charge should already be net of RRRP credit
A5: 1 | B5: Data Current Rates | C5: Demand billed RTSR should already be loss adjusted
A6: 2 | B6: Data Proposed Rates | C6: Mapped from Draft Rates file prepared for Claude
A7: 2 | B7: Data Proposed Rates | C7: Row 5 with header name TEXT is precedent to templates; changes to TEXT need to reflected in templates
A8: 2 | B8: Data Proposed Rates | C8: Templates are set up with 2-dimension vlookups so it will accommodate inserted/deleted rows and/or columns
A9: 3 | B9: Data Billing Quantities | C9: Row 4 with header name TEXT is precedent to templates; changes to TEXT need to reflected in templates
A10: 3 | B10: Data Billing Quantities | C10: Templates are set up with 2-dimension vlookups so it will accommodate inserted/deleted rows and/or columns
A11: 4 | B11: Data Pass Through | C11: Changes to Pass Through rates can be manually input on this sheet, which is precedent to the templates
A12: 4 | B12: Data Pass Through | C12: Links to templates from Column A TEXT; any changes in the TEXT of the charge names must be reflected in the templates
A13: 5 | B13: Data BI List | C13: Instruction Sheet for macro to create individual bill impact worksheets
A14: 5 | B14: Data BI List | C14: Need to MANUALLY update Test Year to appear as header on all bill impact worksheets
A15: 6 | B15: Data BI Summary | C15: This replaces the need for cell references in summary sheet, and displays value for totals so rows can be added to templates and worksheets without having to update the summary sheet
B16: Bill Impact Summary | C16: This file has 2 hidden columns needed to link to worksheets; see Col E and F

Sheet Data Current Rates (hidden)
A1: Proposed 2023 Rates
A3: 1 | B3: 2 | C3: 3 | D3: 4 | E3: 5 | F3: 6 | G3: 7 | H3: 8 | I3: 9 | J3: 10 | K3: 11 | L3: 12 | M3: 13 | N3: 14
A4: Rate Class | B4: Proposed Fixed Charge ($/month) | C4: Proposed Volumetric Charge ($/kWh or $/kW) | D4: Proposed Group 1 DVA Rider - Volumetric ($/kWh or $/kW) | E4: Porposed Group 1 DVA Rider - Volumetric Applicable to Non-WMP Only ($/kWh or $/kW) | F4: Proposed Rate Rider for Disposition of Global Adjustment (Non WMP, Non-RPP, Non-LDC, and Class B) ($/kWh) | G4: Proposed Rate Rider for CBR (Non-WMP Class B) ($/kWh or $/kW) | H4: Proposed Group 2 Rate Rider - Fixed ($/month) | I4: Proposed Group 2 Rate Rider - Volumetric ($/kWh or $/kW) | J4: Proposed Base Rate Adjustment for Past Tax Amounts - Fixed ($/month) | K4: Proposed Base Rate Adjustment for Past Tax Amounts - Volumetric ($/kWh or $/kW) | L4: Rate Rider for LRAMVA - Volumetric ($/kWh or $/kW) | M4: Proposed RTSR-NW ($/kWh or $/kW) | N4: Proposed RTSR-CONN ($/kWh or $/kW)
A5: Rate as shown on Bill Impact Sheet | B5: Service Charge | C5: Distribution Volumetric Charge | D5: Group 1 Volumetric DVA Rider (General) | E5: Group 1 Volumetric Deferral/Variance Account Rider (Sub-Account RSVA Wholesale Market Service Charge & RSVA Power) | F5: Group 1 Volumetric Deferral/Variance Account Rider (Sub-Account Global Adjustment) | G5: Group 1 Volumetric Deferral/Variance Account Rider (Sub Account CBR) | H5: Group 2 Fixed DVA Rider | I5: Group 2 Volumetric DVA Rider | J5: Fixed Base Rate Adjustment to Recover Past Tax Amounts | K5: Volumetric Base Rate Adjustment to Recover Past Tax Amounts | L5: LRAMVA Volumetric Rate Rider | M5: Retail Transmission Rate – Network Service Rate | N5: Retail Transmission Rate – Line and Transformation Connection Service Rate
A6: Rounding factor | B6: 2 | C6: 4 | D6: 4 | E6: 4 | F6: 4 | G6: 4 | H6: 2 | I6: 4 | J6: 2 | K6: 4 | L6: 4 | M6: 4 | N6: 4
A7: UR | B7: 36.88 | C7: 0 | D7: -0.0004 | E7: 0 | F7: -0.0007 | H7: -0.08 | J7: 0.8 | K7: 0 | M7: 0.0109 | N7: 0.008
A8: R1 | B8: 58.76 | C8: 0.0054 | D8: -0.0004 | E8: 0 | F8: -0.0007 | H8: -0.14 | J8: 1.44 | K8: 0 | M8: 0.0101 | N8: 0.0075
A9: R2 | B9: 59.18 | C9: 0.0083 | D9: -0.0004 | E9: 0 | F9: -0.0007 | H9: -0.29 | J9: 4 | K9: 0 | M9: 0.0093 | N9: 0.0069
A10: GSe | B10: 31.42 | C10: 0.0668 | D10: -0.0004 | E10: 0 | F10: -0.0007 | I10: -0.0002 | J10: 1.1 | K10: 0.0023 | M10: 0.008 | N10: 0.006
A11: UGe | B11: 24.47 | C11: 0.0321 | D11: -0.0004 | E11: 0 | F11: -0.0007 | I11: -0.0001 | J11: 0.82 | K11: 0.0011 | M11: 0.0086 | N11: 0.0064
A12: St Lgt | B12: 3.01 | C12: 0.1094 | D12: -0.0004 | E12: 0 | F12: -0.0007 | I12: -0.0003 | J12: 0.11 | K12: 0.0042 | M12: 0.0059 | N12: 0.0042
A13: Sen Lgt | B13: 2.78 | C13: 0.1547 | D13: -0.0004 | E13: 0 | F13: -0.0007 | I13: -0.0003 | J13: 0.16 | K13: 0.0091 | M13: 0.0059 | N13: 0.0042
A14: USL | B14: 34.45 | C14: 0.0218 | D14: -0.0004 | E14: 0 | F14: -0.0007 | I14: -0.0002 | J14: 0.87 | K14: 0.0006 | M14: 0.0068 | N14: 0.0049
A15: GSd | B15: 100.96 | C15: 18.9446 | D15: -0.0519 | E15: -0.0726 | F15: -0.0007 | I15: -0.0475 | J15: 4.43 | K15: 0.8249 | M15: 2.5967 | N15: 1.922
A16: UGd | B16: 92.31 | C16: 10.9806 | D16: -0.0641 | E16: -0.0897 | F16: -0.0007 | I16: -0.0282 | J16: 4.01 | K16: 0.4717 | M16: 3.3197 | N16: 2.4419
A17: Dgen | B17: 191.95 | C17: 10.8499 | D17: -0.0239 | E17: -0.0344 | F17: -0.0007 | I17: -0.061 | J17: 1.77 | K17: 0.0928 | M17: 1.4257 | N17: 0.8995
A18: ST | B18: 1192.8 | C18: 1.5 | D18: -0.0814 | E18: -0.1144 | F18: -0.0007 | I18: -0.0048 | J18: 32.54 | K18: 0.0504 | M18: 4.3192 | N18: 3.3968
A19: AUR | B19: 30.46 | C19: 0 | D19: -0.0004 | E19: 0 | F19: -0.0007 | M19: 0.0113 | N19: 0.0082
A20: AUGe | B20: 26.3 | C20: 0.0152 | D20: -0.0004 | E20: 0 | F20: -0.0007 | M20: 0.0087 | N20: 0.0063
A21: AUGd | B21: 159.51 | C21: 2.5877 | D21: -0.059 | E21: -0.0821 | F21: -0.0007 | M21: 3.021 | N21: 2.1978
A22: AR | B22: 36.98 | C22: 0 | D22: -0.0004 | E22: 0 | F22: -0.0007 | M22: 0.0107 | N22: 0.0079
A23: AGSe | B23: 38.74 | C23: 0.0177 | D23: -0.0004 | E23: 0 | F23: -0.0007 | M23: 0.0085 | N23: 0.0063
A24: AGSd | B24: 186.87 | C24: 4.3771 | D24: -0.0595 | E24: -0.0829 | F24: -0.0007 | M24: 2.6521 | N24: 1.9934
A25: AUR-WHSI | B25: 30.46 | C25: 0 | D25: -0.0005 | E25: 0 | F25: -0.0007 | L25: 0.0003 | M25: =M19 -> 0.0113 | N25: 0.0082
A26: AUGe-WHSI | B26: 26.3 | C26: 0.0152 | D26: -0.0005 | E26: 0 | F26: -0.0007 | L26: 0.0037 | M26: 0.0087 | N26: 0.0063
A27: AUGd-WHSI | B27: 159.51 | C27: 2.5877 | D27: -0.0394 | E27: -0.0821 | F27: -0.0007 | L27: 0.6839 | M27: 3.021 | N27: 2.1978
A28: ST-WHSI | B28: 1192.8 | C28: 1.5 | D28: -0.0648 | E28: 0 | F28: 0 | L28: 0.5521 | M28: =M18 -> 4.3192 | N28: =N18 -> 3.3968
A29: St Lgt-WHSI | B29: 3.01 | C29: 0.1094 | D29: -0.0003 | E29: 0 | F29: -0.0007 | M29: =M12 -> 0.0059 | N29: =N12 -> 0.0042
A30: USL-WHSI | B30: 34.45 | C30: 0.0218 | D30: -0.0005 | E30: 0 | F30: -0.0007 | M30: =M14 -> 0.0068 | N30: =N14 -> 0.0049
A31: AR-NPDI | B31: 36.98 | C31: 0 | D31: -0.0005 | E31: 0 | F31: -0.0007 | L31: 0.0004 | M31: =M22 -> 0.0107 | N31: 0.0079
A32: AGSe-NPDI | B32: 38.74 | C32: 0.0177 | D32: -0.0005 | E32: 0 | F32: -0.0007 | L32: 0.0081 | M32: 0.0085 | N32: 0.0063
A33: AGSd-NPDI | B33: 186.87 | C33: 4.3771 | D33: -0.0399 | E33: -0.0829 | F33: -0.0007 | L33: 0.2853 | M33: 2.6521 | N33: 1.9934
A34: St Lgt-NPDI | B34: 3.01 | C34: 0.1094 | D34: -0.0007 | E34: 0 | F34: -0.0007 | M34: =M12 -> 0.0059 | N34: =N12 -> 0.0042
A35: Sen Lgt-NPDI | B35: 2.78 | C35: 0.1547 | D35: -0.0007 | E35: 0 | F35: -0.0007 | M35: =M13 -> 0.0059 | N35: 0.0042
A36: USL-NPDI | B36: 34.45 | C36: 0.0218 | D36: -0.0009 | E36: 0 | F36: -0.0007 | M36: 0.0068 | N36: 0.0049
A37: AR-HCHI | B37: 36.98 | C37: 0 | D37: -0.0004 | E37: 0 | F37: -0.0007 | L37: 0.0003 | M37: =M22 -> 0.0107 | N37: =N22 -> 0.0079
A38: AGSe-HCHI | B38: 38.74 | C38: 0.0177 | D38: -0.0004 | E38: 0 | F38: -0.0007 | L38: -0.0002 | M38: =M23 -> 0.0085 | N38: 0.0063
A39: AGSd-HCHI | B39: 186.87 | C39: 4.3771 | D39: -0.0595 | E39: -0.0829 | F39: -0.0007 | L39: -0.0575 | M39: =M24 -> 2.6521 | N39: 1.9934
A40: St Lgt-HCHI | B40: 3.01 | C40: 0.1094 | D40: -0.0004 | E40: 0 | F40: -0.0007 | M40: =M12 -> 0.0059 | N40: =N12 -> 0.0042
A41: Sen Lgt-HCHI | B41: 2.78 | C41: 0.1547 | D41: -0.0004 | E41: 0 | F41: -0.0007 | M41: =M13 -> 0.0059 | N41: 0.0042
A42: USL-HCHI | B42: 34.45 | C42: 0.0218 | D42: -0.0004 | E42: 0 | F42: -0.0007 | M42: 0.0068 | N42: 0.0049

Sheet Data Proposed Rates (hidden)
A1: Proposed 2023 Rates
A3: 1 | B3: 2 | C3: 3 | D3: 4 | E3: 5 | F3: 6 | G3: 7 | H3: 8 | I3: 9 | J3: 10 | K3: 11 | L3: 12 | M3: 13
A4: Rate Class | B4: Proposed Fixed Charge ($/month) | C4: Proposed Volumetric Charge ($/kWh or $/kW) | D4: Proposed Group 1 DVA Rider - Volumetric ($/kWh or $/kW) | E4: Porposed Group 1 DVA Rider - Volumetric Applicable to Non-WMP Only ($/kWh or $/kW) | F4: Proposed Rate Rider for Disposition of Global Adjustment (Non WMP, Non-RPP, Non-LDC, and Class B) ($/kWh) | G4: Proposed Rate Rider for CBR (Non-WMP Class B) ($/kWh or $/kW) | H4: Proposed Group 2 Rate Rider - Fixed ($/month) | I4: Proposed Group 2 Rate Rider - Volumetric ($/kWh or $/kW) | J4: Proposed Base Rate Adjustment for Past Tax Amounts - Fixed ($/month) | K4: Proposed Base Rate Adjustment for Past Tax Amounts - Volumetric ($/kWh or $/kW) | L4: Proposed RTSR-NW ($/kWh or $/kW) | M4: Proposed RTSR-CONN ($/kWh or $/kW)
A5: Rate as shown on Bill Impact Sheet | B5: Service Charge | C5: Distribution Volumetric Charge | D5: Group 1 Volumetric DVA Rider (General) | E5: Group 1 Volumetric Deferral/Variance Account Rider (Sub-Account RSVA Wholesale Market Service Charge & RSVA Power) | F5: Group 1 Volumetric Deferral/Variance Account Rider (Sub-Account Global Adjustment) | G5: Group 1 Volumetric Deferral/Variance Account Rider (Sub Account CBR) | H5: Group 2 Fixed DVA Rider | I5: Group 2 Volumetric DVA Rider | J5: Fixed Base Rate Adjustment to Recover Past Tax Amounts | K5: Volumetric Base Rate Adjustment to Recover Past Tax Amounts | L5: Retail Transmission Rate – Network Service Rate | M5: Retail Transmission Rate – Line and Transformation Connection Service Rate
A6: Rounding Factor | B6: 2 | C6: 4 | D6: 4 | E6: 4 | F6: 4 | G6: 4 | H6: 2 | I6: 4 | J6: 2 | K6: 4 | L6: 4 | M6: 4
A7: UR | B7: 38.65 | C7: 0 | D7: -0.0004 | E7: 0 | F7: -0.0007 | H7: -0.08 | L7: 0.0109 | M7: 0.008
A8: R1 | B8: 65.91 | C8: 0 | D8: -0.0004 | E8: 0 | F8: -0.0007 | H8: -0.14 | L8: 0.0101 | M8: 0.0075
A9: R2 | B9: 73.21 | C9: 0 | D9: -0.0004 | E9: 0 | F9: -0.0007 | H9: -0.29 | L9: 0.0093 | M9: 0.0069
A10: GSe | B10: 32.64 | C10: 0.0702 | D10: -0.0004 | E10: 0 | F10: -0.0007 | I10: -0.0002 | L10: 0.008 | M10: 0.006
A11: UGe | B11: 25.45 | C11: 0.0337 | D11: -0.0004 | E11: 0 | F11: -0.0007 | I11: -0.0001 | L11: 0.0086 | M11: 0.0064
A12: St Lgt | B12: 3.11 | C12: 0.1147 | D12: -0.0004 | E12: 0 | F12: -0.0007 | I12: -0.0003 | L12: 0.0059 | M12: 0.0042
A13: Sen Lgt | B13: 2.9 | C13: 0.1625 | D13: -0.0004 | E13: 0 | F13: -0.0007 | I13: -0.0003 | L13: 0.0059 | M13: 0.0042
A14: USL | B14: 35.71 | C14: 0.0227 | D14: -0.0004 | E14: 0 | F14: -0.0007 | I14: -0.0002 | L14: 0.0068 | M14: 0.0049
A15: GSd | B15: 104.5 | C15: 19.8615 | D15: -0.0519 | E15: -0.0726 | F15: -0.0007 | I15: -0.0475 | L15: 2.5967 | M15: 1.922
A16: UGd | B16: 95.78 | C16: 11.5113 | D16: -0.0641 | E16: -0.0897 | F16: -0.0007 | I16: -0.0282 | L16: 3.3197 | M16: 2.4419
A17: Dgen | B17: 198.71 | C17: 11.5833 | D17: -0.0239 | E17: -0.0344 | F17: -0.0007 | I17: -0.061 | L17: 1.4257 | M17: 0.8995
A18: ST | B18: 1243.34 | C18: 1.5796 | D18: -0.0814 | E18: -0.1144 | F18: -0.0007 | I18: -0.0048 | L18: 4.3192 | M18: 3.3968
A19: AUR | B19: 31.92 | C19: 0 | D19: -0.0004 | E19: 0 | F19: -0.0007 | L19: 0.0113 | M19: 0.0082
A20: AUGe | B20: 27.61 | C20: 0.0159 | D20: -0.0004 | E20: 0 | F20: -0.0007 | L20: 0.0087 | M20: 0.0063
A21: AUGd | B21: 167.19 | C21: 2.706 | D21: -0.059 | E21: -0.0821 | F21: -0.0007 | L21: 3.021 | M21: 2.1978
A22: AR | B22: 38.76 | C22: 0 | D22: -0.0004 | E22: 0 | F22: -0.0007 | L22: 0.0107 | M22: 0.0079
A23: AGSe | B23: 40.46 | C23: 0.0187 | D23: -0.0004 | E23: 0 | F23: -0.0007 | L23: 0.0085 | M23: 0.0063
A24: AGSd | B24: 194.9 | C24: 4.6399 | D24: -0.0595 | E24: -0.0829 | F24: -0.0007 | L24: 2.6521 | M24: 1.9934
A25: AUR-WHSI | B25: 31.92 | C25: 0 | D25: -0.0005 | E25: 0 | F25: -0.0007 | L25: =L19 -> 0.0113 | M25: 0.0082
A26: AUGe-WHSI | B26: 27.61 | C26: 0.0159 | D26: -0.0005 | E26: 0 | F26: -0.0007 | L26: 0.0087 | M26: 0.0063
A27: AUGd-WHSI | B27: 167.19 | C27: 2.706 | D27: -0.0394 | E27: -0.0821 | F27: -0.0007 | L27: 3.021 | M27: 2.1978
A28: ST-WHSI | B28: 1243.34 | C28: 1.5796 | D28: -0.0648 | E28: 0 | F28: 0 | L28: =L18 -> 4.3192 | M28: =M18 -> 3.3968
A29: St Lgt-WHSI | B29: 3.11 | C29: 0.1147 | D29: -0.0003 | E29: 0 | F29: -0.0007 | L29: =L12 -> 0.0059 | M29: =M12 -> 0.0042
A30: USL-WHSI | B30: 35.71 | C30: 0.0227 | D30: -0.0005 | E30: 0 | F30: -0.0007 | L30: =L14 -> 0.0068 | M30: =M14 -> 0.0049
A31: AR-NPDI | B31: 38.76 | C31: 0 | D31: -0.0005 | E31: 0 | F31: -0.0007 | L31: =L22 -> 0.0107 | M31: 0.0079
A32: AGSe-NPDI | B32: 40.46 | C32: 0.0187 | D32: -0.0005 | E32: 0 | F32: -0.0007 | L32: 0.0085 | M32: 0.0063
A33: AGSd-NPDI | B33: 194.9 | C33: 4.6399 | D33: -0.0399 | E33: -0.0829 | F33: -0.0007 | L33: 2.6521 | M33: 1.9934
A34: St Lgt-NPDI | B34: 3.11 | C34: 0.1147 | D34: -0.0007 | E34: 0 | F34: -0.0007 | L34: =L12 -> 0.0059 | M34: =M12 -> 0.0042
A35: Sen Lgt-NPDI | B35: 2.9 | C35: 0.1625 | D35: -0.0007 | E35: 0 | F35: -0.0007 | L35: =L13 -> 0.0059 | M35: 0.0042
A36: USL-NPDI | B36: 35.71 | C36: 0.0227 | D36: -0.0009 | E36: 0 | F36: -0.0007 | L36: =L14 -> 0.0068 | M36: 0.0049
A37: AR-HCHI | B37: 38.76 | C37: 0 | D37: -0.0004 | E37: 0 | F37: -0.0007 | L37: =L22 -> 0.0107 | M37: 0.0079
A38: AGSe-HCHI | B38: 40.46 | C38: 0.0187 | D38: -0.0004 | E38: 0 | F38: -0.0007 | L38: 0.0085 | M38: 0.0063
A39: AGSd-HCHI | B39: 194.9 | C39: 4.6399 | D39: -0.0595 | E39: -0.0829 | F39: -0.0007 | L39: 2.6521 | M39: 1.9934
A40: St Lgt-HCHI | B40: 3.11 | C40: 0.1147 | D40: -0.0004 | E40: 0 | F40: -0.0007 | L40: =L12 -> 0.0059 | M40: =M12 -> 0.0042
A41: Sen Lgt-HCHI | B41: 2.9 | C41: 0.1625 | D41: -0.0004 | E41: 0 | F41: -0.0007 | L41: =L13 -> 0.0059 | M41: 0.0042
A42: USL-HCHI | B42: 35.71 | C42: 0.0227 | D42: -0.0004 | E42: 0 | F42: -0.0007 | L42: =L14 -> 0.0068 | M42: 0.0049

Sheet Data Billing Quantities (hidden)
A1: Rate Class-Specific Billing Quantities (Applied to Current and Proposed Bill)
E3: Consumption (kWh) | I3: Peak (kW) | M3: TOU Split
A4: Rate Class | B4: Loss Factor | C4: Charge Determinant | D4: Commodity Threshold | E4: Low kWh | F4: Typical kWh | G4: Average kWh | H4: High kWh | I4: Low kW | J4: Typical kW | K4: Average kW | L4: High kW | M4: TOU-Off Peak | N4: TOU-Mid Peak | O4: TOU-On Peak | P4: Acquired Street Light Service Charge
A5: UR | B5: 1.057 | C5: kWh | D5: 600 | E5: 340 | F5: 750 | G5: 690 | H5: 1260 | M5: 0.64 | N5: 0.18 | O5: 0.18
A6: R1 | B6: 1.076 | C6: kWh | D6: 600 | E6: 370 | F6: 750 | G6: 784 | H6: 1650 | M6: =M$5 -> 0.64 | N6: =N$5 -> 0.18 | O6: =O$5 -> 0.18
A7: R2 | B7: 1.105 | C7: kWh | D7: 600 | E7: 440 | F7: 750 | G7: 978 | H7: 2110 | M7: =M$5 -> 0.64 | N7: 0.18 | O7: 0.18
A8: Seasonal | B8: 1.104 | C8: kWh | D8: 600 | E8: 40 | G8: 369 | H8: 1040 | M8: 0.64 | N8: 0.18 | O8: 0.18
A9: GSe | B9: 1.096 | C9: kWh | D9: 750 | E9: 60 | F9: 2000 | G9: 1887 | H9: 5570 | M9: 0.64 | N9: 0.18 | O9: 0.18
A10: UGe | B10: 1.067 | C10: kWh | D10: 750 | E10: 180 | F10: 2000 | G10: 2494 | H10: 6930 | M10: 0.64 | N10: 0.18 | O10: 0.18
A11: St Lgt | B11: 1.092 | C11: kWh | D11: 750 | E11: 30 | G11: 1274 | H11: 2310
A12: Sen Lgt | B12: 1.092 | C12: kWh | D12: 750 | E12: 20 | G12: 49 | H12: 80
A13: USL | B13: 1.092 | C13: kWh | D13: 750 | E13: 100 | G13: 477 | H13: 550
A14: GSd | B14: 1.061 | C14: kW | D14: 0 | E14: 9310 | G14: 34334 | H14: 75790 | I14: 55 | K14: 110 | L14: 250
A15: UGd | B15: 1.05 | C15: kW | D15: 0 | E15: 13900 | G15: 42592 | H15: 97610 | I15: 55 | K15: 111 | L15: 280
A16: Dgen | B16: 1.061 | C16: kW | D16: 0 | E16: 10 | G16: 1709 | H16: 8490 | I16: 0.02941666667 | K16: 12 | L16: 45
A17: ST | B17: 1.034 | C17: kW | D17: 0 | E17: 88780 | G17: 1373443 | H17: 2641420 | I17: 500 | K17: 2808 | L17: 13730
A18: WHSI_RES | B18: 1.0431 | C18: kWh | D18: 600 | E18: 310 | F18: 750 | G18: 636 | H18: 1160 | M18: =M$5 -> 0.64 | N18: 0.18 | O18: 0.18
A19: WHSI_GS<50 | B19: 1.0431 | C19: kWh | D19: 750 | E19: 190 | F19: 2000 | G19: 2471 | H19: 7240 | M19: 0.64 | N19: 0.18 | O19: 0.18
A20: WHSI_GS 50>999 | B20: 1.0431 | C20: kW | E20: 9370 | G20: 47636 | H20: 137890 | I20: 50 | K20: 134 | L20: 340
A21: WHSI_GS >1,000kW | B21: 1.0326 | C21: kW | G21: 895853 | K21: 3301
A22: WHSI_St Lgt | B22: 1.0431 | C22: kW | D22: 750 | G22: 37079 | P22: 1
A23: WHSI_USL | B23: 1.0431 | C23: kWh | D23: 750 | G23: 1349 | M23: =M$5 -> 0.64 | N23: 0.18 | O23: 0.18
A24: NPDI_RES | B24: 1.0564 | C24: kWh | D24: 600 | E24: 290 | F24: 750 | G24: 692 | H24: 1230 | M24: 0.64 | N24: 0.18 | O24: 0.18
A25: NPDI_GS<50 | B25: 1.0564 | C25: kWh | D25: 750 | E25: 110 | F25: 2000 | G25: 2377 | H25: 6410 | M25: 0.64 | N25: 0.18 | O25: 0.18
A26: NPDI_GS >50 | B26: 1.0464 | C26: kW | E26: 13020 | G26: 70294 | H26: 129420 | I26: 55 | K26: 181 | L26: 300
A27: NPDI_St Lgt | B27: 1.0564 | C27: kW | D27: 750 | G27: 11389 | P27: 1
A28: NPDI_Sen Lgt | B28: 1.0564 | C28: kW | D28: 750 | G28: 108
A29: NPDI_USL | B29: 1.0564 | C29: kWh | D29: 750 | G29: 904
A30: HCHI_RES | B30: 1.0655 | C30: kWh | D30: 600 | E30: 250 | F30: 750 | G30: 742 | H30: 1410 | M30: =M$5 -> 0.64 | N30: 0.18 | O30: 0.18
A31: HCHI_GS<50 | B31: 1.0655 | C31: kWh | D31: 750 | E31: 90 | F31: 2000 | G31: 2261 | H31: 5430 | M31: 0.64 | N31: 0.18 | O31: 0.18
A32: HCHI_GS >50 | B32: 1.0548 | C32: kW | E32: 10880 | G32: 57529 | H32: 135160 | I32: 55 | K32: 175 | L32: 375
A33: HCHI_St Lgt | B33: 1.0655 | C33: kW | D33: 750 | G33: 31001 | P33: 1
A34: HCHI_Sen Lgt | B34: 1.0655 | C34: kW | D34: 750 | G34: 61
A35: HCHI_USL | B35: 1.0655 | C35: kWh | D35: 750 | G35: 471
A36: AUR | B36: 1.043 | C36: kWh | D36: 750 | E36: 310 | F36: 750 | G36: 636 | H36: 1160 | M36: =M$5 -> 0.64 | N36: 0.18 | O36: 0.18
A37: AUGe | B37: =B36 -> 1.043 | C37: kWh | D37: 750 | E37: 190 | F37: 2000 | G37: 2471 | H37: 7240 | M37: 0.64 | N37: 0.18 | O37: 0.18
A38: AUGd | B38: 1.033 | C38: kW | E38: 9370 | G38: 47636 | H38: 137890 | I38: 50 | K38: 134 | L38: 340
A39: AR | B39: 1.064 | C39: kWh | D39: 750 | F39: 750 | M39: =M$5 -> 0.64 | N39: 0.18 | O39: 0.18
A40: AGSe | B40: =B39 -> 1.064 | C40: kWh | D40: 750 | F40: 2000 | M40: 0.64 | N40: 0.18 | O40: 0.18
A41: AGSd | B41: 1.053 | C41: kW
A42: AUR-WHSI | B42: =B36 -> 1.043 | C42: kWh | D42: =D36 -> 750 | E42: 310 | F42: 750 | G42: 636 | H42: 1160 | M42: =M$5 -> 0.64 | N42: 0.18 | O42: 0.18
A43: AUGe-WHSI | B43: =B37 -> 1.043 | C43: kWh | D43: =D37 -> 750 | E43: 190 | F43: 2000 | G43: 2471 | H43: 7240 | M43: 0.64 | N43: 0.18 | O43: 0.18
A44: AUGd-WHSI | B44: =B38 -> 1.033 | C44: kW | E44: 9370 | G44: 47636 | H44: 137890 | I44: 50 | K44: 134 | L44: 340
A45: ST-WHSI | B45: =B17 -> 1.034 | C45: kW | G45: 895853 | K45: 3301
A46: St Lgt-WHSI | B46: =B11 -> 1.092 | C46: kWh | D46: =D11 -> 750 | G46: =G22 -> 37079 | K46: =K22 -> 0 | P46: =P22 -> 1
A47: USL-WHSI | B47: =B13 -> 1.092 | C47: kWh | D47: =D13 -> 750 | G47: =G23 -> 1349
A48: AR-NPDI | B48: =B39 -> 1.064 | C48: kWh | D48: =D39 -> 750 | E48: 290 | F48: 750 | G48: 692 | H48: 1230 | M48: =M$5 -> 0.64 | N48: 0.18 | O48: 0.18
A49: AGSe-NPDI | B49: =B40 -> 1.064 | C49: kWh | D49: =D40 -> 750 | E49: 110 | F49: 2000 | G49: 2377 | H49: 6410 | M49: 0.64 | N49: 0.18 | O49: 0.18
A50: AGSd-NPDI | B50: =B41 -> 1.053 | C50: kW | D50: =D41 -> 0 | E50: 13020 | G50: 70294 | H50: 129420 | I50: 55 | K50: 181 | L50: 300
A51: St Lgt-NPDI | B51: =B11 -> 1.092 | C51: kWh | D51: =D11 -> 750 | G51: =G27 -> 11389 | K51: =K27 -> 0 | P51: =P27 -> 1
A52: Sen Lgt-NPDI | B52: =B12 -> 1.092 | C52: kWh | D52: =D12 -> 750 | G52: =G28 -> 108 | K52: =K28 -> 0
A53: USL-NPDI | B53: =B13 -> 1.092 | C53: kWh | D53: =D13 -> 750 | G53: =G29 -> 904
A54: AR-HCHI | B54: =B48 -> 1.064 | C54: kWh | D54: 750 | E54: 250 | F54: 750 | G54: 742 | H54: 1410 | M54: =M$5 -> 0.64 | N54: 0.18 | O54: 0.18
A55: AGSe-HCHI | B55: 1.064 | C55: kWh | D55: 750 | E55: 90 | F55: 2000 | G55: 2261 | H55: 5430 | M55: 0.64 | N55: 0.18 | O55: 0.18
A56: AGSd-HCHI | B56: 1.053 | C56: kW | D56: 0 | E56: 10880 | G56: 57529 | H56: 135160 | I56: 55 | K56: 175 | L56: 375
A57: St Lgt-HCHI | B57: 1.092 | C57: kWh | D57: 750 | G57: =G33 -> 31001 | K57: =K33 -> 0 | P57: =P33 -> 1
A58: Sen Lgt-HCHI | B58: 1.092 | C58: kWh | D58: 750 | G58: =G34 -> 61 | K58: =K34 -> 0
A59: USL-HCHI | B59: 1.092 | C59: kWh | D59: 750 | G59: =G35 -> 471

Sheet Data Pass Through (hidden)
A1: 3. Pass Through Charges
B2: Current Bill | C2: Proposed Bill
A3: Effective Date | B3: 2022-01-01 | C3: 2023-01-01 | D3: TOU % | E3: Notes
A4: R2 Credit | B4: 60.5 | C4: =B4 -> 60.5
A5: Energy First Tier | B5: 0.098 | C5: =B5 -> 0.098 | E5: Effective May 1 2018
A6: Energy Second Tier | B6: 0.115 | C6: 0.115 | E6: Effective May 1 2018
A7: Weighted Average Hourly Spot Price | B7: 0.119 | C7: =B7 -> 0.119 | E7: Avg for May 2020 to Apr 2021 (source: Commodity prices_SPOTv2.xls file at RAinternal/Niki/Misc
A8: TOU-Off Peak | B8: 0.082 | C8: 0.082 | D8: 0.64 | E8: Effective May 1 2018
A9: TOU-Mid Peak | B9: 0.113 | C9: 0.113 | D9: 0.18 | E9: Effective May 1 2018
A10: TOU-On Peak | B10: 0.17 | C10: 0.17 | D10: 0.18 | E10: Effective May 1 2018
A11: Wholesale Market Service Rate (WMS) - not including CBR | B11: 0.003 | C11: 0.003 | E11: Effective May 1 2017, 0.0036 WMSC broken up between WMSC and CBR
A12: Capacity Based Recovery (CBR) - Applicable for Class B Customers | B12: 0.0004 | C12: 0.0004 | E12: Effective May 1 2017, 0.0036 WMSC broken up between WMSC and CBR
A13: Rural Rate Protection Charge | B13: 0.0005 | C13: 0.0005 | E13: RRRP charge reduced from $0.0021/kWh to $0.0003/kWh effective July 1, 2017.
A14: Ontario Electricity Support Program Charge | B14: 0 | C14: 0 | E14: OESP charge removed for all rate classes effective May 1, 2017. ROW HIDDEN IN BILL IMPACT FILE
A15: Standard Supply Service – Administration Charge (if applicable) | B15: 0.25 | C15: 0.25
A16: Fair Hydro Plan - Distribution Rate Protection Savings* | B16: =IF('Bill Impact Summary'!L6="TOU",0,IF('Bill Impact Summary'!L6="TOU (DRP applied)",B17,"error")) -> 0 | C16: =IF('Bill Impact Summary'!L6="TOU",0,IF('Bill Impact Summary'!L6="TOU (DRP applied)",C17,"error")) -> 0 | E16: Highlighted cells are FORMULAS; do not overwrite with hard-entered values. Input DRP limit values in row 17 below
A17: DRP limit (applied when selected from Bill Impact Summary) | B17: 36.86 | C17: 36.86 | E17: Make change to FHP DRP limit here, but to apply DRP, must do in Bill Impact Summary sheet cell L6
A18: Smart Metering Entity Charge | B18: 0.57 | C18: 0.57 | E18: Change from 0.79 to 0.57 effective March 1 2018; only for metered energy-billed (UR, R1, R2, SEA, GSE, UGE)
A19: Debt Retirement Charge (DRC) | B19: 0 | C19: 0 | E19: DRC removed from all rate classes Apr 1 2018 ROW HIDDEN IN BILL IMPACT FILE
A20: Ontario Electricity Rebate (OER) | B20: -0.189 | C20: =B20 -> -0.189
A22: Customer Attributes - Assumptions
A23: ST customers are assumed to be Non-WMP, Class A

Sheet Data BI Summary (hidden)
A2: Summary Column | B2: Current Total Bill | C2: Change in DX Bill ($) | D2: Change in DX Bill (%) | E2: Change in Total Bill ($) | F2: Change in Total Bill (%)
A3: BI Template_Energy | B3: Total Amount on TOU | C3: Sub-Total: Distribution (excluding pass through) | D3: Sub-Total: Distribution (excluding pass through) | E3: Total Amount on TOU | F3: Total Amount on TOU
A4: BI Template_EnergyUNM | B4: Total Amount on Two-Tier RPP | C4: Sub-Total: Distribution (excluding pass through) | D4: Sub-Total: Distribution (excluding pass through) | E4: Total Amount on Two-Tier RPP | F4: Total Amount on Two-Tier RPP
A5: BI Template_Demand | B5: Total Amount on WAHSP | C5: Sub-Total: Distribution | D5: Sub-Total: Distribution | E5: Total Amount on WAHSP | F5: Total Amount on WAHSP
A6: BI Template_EnergyNPDI | B6: Total Amount on TOU | C6: Sub-Total: Distribution (excluding pass through) | D6: Sub-Total: Distribution (excluding pass through) | E6: Total Amount on TOU | F6: Total Amount on TOU
A7: BI Template_UNMNPDI | B7: Total Amount on Two-Tier RPP | C7: Sub-Total: Distribution (excluding pass through) | D7: Sub-Total: Distribution (excluding pass through) | E7: Total Amount on Two-Tier RPP | F7: Total Amount on Two-Tier RPP
A8: BI Template_DemandNPDI | B8: Total Amount on WAHSP | C8: Sub-Total: Distribution | D8: Sub-Total: Distribution | E8: Total Amount on WAHSP | F8: Total Amount on WAHSP
A9: BI Template_EnergyHCHI | B9: Total Amount on TOU | C9: Sub-Total: Distribution (excluding pass through) | D9: Sub-Total: Distribution (excluding pass through) | E9: Total Amount on TOU | F9: Total Amount on TOU
A10: BI Template_UNMHCHI | B10: Total Amount on Two-Tier RPP | C10: Sub-Total: Distribution (excluding pass through) | D10: Sub-Total: Distribution (excluding pass through) | E10: Total Amount on Two-Tier RPP | F10: Total Amount on Two-Tier RPP
A11: BI Template_DemandHCHI | B11: Total Amount on WAHSP | C11: Sub-Total: Distribution | D11: Sub-Total: Distribution | E11: Total Amount on WAHSP | F11: Total Amount on WAHSP
A12: BI Template_EnergyWHSI | B12: Total Amount on TOU | C12: Sub-Total: Distribution (excluding pass through) | D12: Sub-Total: Distribution (excluding pass through) | E12: Total Amount on TOU | F12: Total Amount on TOU
A13: BI Template_UNMWHSI | B13: Total Amount on Two-Tier RPP | C13: Sub-Total: Distribution (excluding pass through) | D13: Sub-Total: Distribution (excluding pass through) | E13: Total Amount on Two-Tier RPP | F13: Total Amount on Two-Tier RPP
A14: BI Template_DemandWHSI | B14: Total Amount on WAHSP | C14: Sub-Total: Distribution | D14: Sub-Total: Distribution | E14: Total Amount on WAHSP | F14: Total Amount on WAHSP
A15: BI Template_Seasonal | B15: Total Amount on TOU | C15: Sub-Total: Distribution (excluding pass through) | D15: Sub-Total: Distribution (excluding pass through) | E15: Total Amount on TOU | F15: Total Amount on TOU

Sheet Data BI List (hidden)
A1: Template Name | B1: Bill Impact Worksheet Name | C1: Bill Impact Header
A2: BI Template_Energy | B2: BI_UR_Low | C2: 2024 Bill Impacts (Low Consumption Level) - UR
A3: BI Template_Energy | B3: BI_UR_Typical | C3: 2024 Bill Impacts (Typical Consumption Level) - UR
A4: BI Template_Energy | B4: BI_UR_Avg | C4: 2024 Bill Impacts (Average Consumption Level) - UR
A5: BI Template_Energy | B5: BI_UR_High | C5: 2024 Bill Impacts (High Consumption Level) - UR
A6: BI Template_Energy | B6: BI_R1_Low | C6: 2024 Bill Impacts (Low Consumption Level) - R1
A7: BI Template_Energy | B7: BI_R1_Typical | C7: 2024 Bill Impacts (Typical Consumption Level) - R1
A8: BI Template_Energy | B8: BI_R1_Avg | C8: 2024 Bill Impacts (Average Consumption Level) - R1
A9: BI Template_Energy | B9: BI_R1_High | C9: 2024 Bill Impacts (High Consumption Level) - R1
A10: BI Template_Energy | B10: BI_R2_Low | C10: 2024 Bill Impacts (Low Consumption Level) - R2
A11: BI Template_Energy | B11: BI_R2_Typical | C11: 2024 Bill Impacts (Typical Consumption Level) - R2
A12: BI Template_Energy | B12: BI_R2_Avg | C12: 2024 Bill Impacts (Average Consumption Level) - R2
A13: BI Template_Energy | B13: BI_R2_High | C13: 2024 Bill Impacts (High Consumption Level) - R2
A14: BI Template_Energy | B14: BI_GSe_Low | C14: 2024 Bill Impacts (Low Consumption Level) - GSe
A15: BI Template_Energy | B15: BI_GSe_Typical | C15: 2024 Bill Impacts (Typical Consumption Level) - GSe
A16: BI Template_Energy | B16: BI_GSe_Avg | C16: 2024 Bill Impacts (Average Consumption Level) - GSe
A17: BI Template_Energy | B17: BI_GSe_High | C17: 2024 Bill Impacts (High Consumption Level) - GSe
A18: BI Template_Energy | B18: BI_UGe_Low | C18: 2024 Bill Impacts (Low Consumption Level) - UGe
A19: BI Template_Energy | B19: BI_UGe_Typical | C19: 2024 Bill Impacts (Typical Consumption Level) - UGe
A20: BI Template_Energy | B20: BI_UGe_Avg | C20: 2024 Bill Impacts (Average Consumption Level) - UGe
A21: BI Template_Energy | B21: BI_UGe_High | C21: 2024 Bill Impacts (High Consumption Level) - UGe
A22: BI Template_Demand | B22: BI_GSd_Low | C22: 2024 Bill Impacts (Low Consumption Level) - GSd
A23: BI Template_Demand | B23: BI_GSd_Avg | C23: 2024 Bill Impacts (Average Consumption Level) - GSd
A24: BI Template_Demand | B24: BI_GSd_High | C24: 2024 Bill Impacts (High Consumption Level) - GSd
A25: BI Template_Demand | B25: BI_UGd_Low | C25: 2024 Bill Impacts (Low Consumption Level) - UGd
A26: BI Template_Demand | B26: BI_UGd_Avg | C26: 2024 Bill Impacts (Average Consumption Level) - UGd
A27: BI Template_Demand | B27: BI_UGd_High | C27: 2024 Bill Impacts (High Consumption Level) - UGd
A28: BI Template_EnergyUNM | B28: BI_StLgt_Low | C28: 2024 Bill Impacts (Low Consumption Level) - St Lgt
A29: BI Template_EnergyUNM | B29: BI_StLgt_Avg | C29: 2024 Bill Impacts (Average Consumption Level) - St Lgt
A30: BI Template_EnergyUNM | B30: BI_StLgt_High | C30: 2024 Bill Impacts (High Consumption Level) - St Lgt
A31: BI Template_EnergyUNM | B31: BI_SenLgt_Low | C31: 2024 Bill Impacts (Low Consumption Level) - Sen Lgt
A32: BI Template_EnergyUNM | B32: BI_SenLgt_Avg | C32: 2024 Bill Impacts (Average Consumption Level) - Sen Lgt
A33: BI Template_EnergyUNM | B33: BI_SenLgt_High | C33: 2024 Bill Impacts (High Consumption Level) - Sen Lgt
A34: BI Template_EnergyUNM | B34: BI_USL_Low | C34: 2024 Bill Impacts (Low Consumption Level) - USL
A35: BI Template_EnergyUNM | B35: BI_USL_Avg | C35: 2024 Bill Impacts (Average Consumption Level) - USL
A36: BI Template_EnergyUNM | B36: BI_USL_High | C36: 2024 Bill Impacts (High Consumption Level) - USL
A37: BI Template_Demand | B37: BI_Dgen_Low | C37: 2024 Bill Impacts (Low Consumption Level) - Dgen
A38: BI Template_Demand | B38: BI_Dgen_Avg | C38: 2024 Bill Impacts (Average Consumption Level) - Dgen
A39: BI Template_Demand | B39: BI_Dgen_High | C39: 2024 Bill Impacts (High Consumption Level) - Dgen
A40: BI Template_Demand | B40: BI_ST_Low | C40: 2024 Bill Impacts (Low Consumption Level) - ST
A41: BI Template_Demand | B41: BI_ST_Avg | C41: 2024 Bill Impacts (Average Consumption Level) - ST
A42: BI Template_Demand | B42: BI_ST_High | C42: 2024 Bill Impacts (High Consumption Level) - ST
A43: BI Template_EnergyWHSI | B43: BI_WHSI_AUR_Low | C43: 2024 Bill Impacts (Low Consumption Level) - AUR_WHSI
A44: BI Template_EnergyWHSI | B44: BI_WHSI_AUR_Typical | C44: 2024 Bill Impacts (Typical Consumption Level) - AUR_WHSI
A45: BI Template_EnergyWHSI | B45: BI_WHSI_AUR_Avg | C45: 2024 Bill Impacts (Average Consumption Level) - AUR_WHSI
A46: BI Template_EnergyWHSI | B46: BI_WHSI_AUR_High | C46: 2024 Bill Impacts (High Consumption Level) - AUR_WHSI
A47: BI Template_EnergyWHSI | B47: BI_WHSI_AUGe_Low | C47: 2024 Bill Impacts (Low Consumption Level) - AUGe_WHSI
A48: BI Template_EnergyWHSI | B48: BI_WHSI_AUGe_Typical | C48: 2024 Bill Impacts (Typical Consumption Level) - AUGe_WHSI
A49: BI Template_EnergyWHSI | B49: BI_WHSI_AUGe_Avg | C49: 2024 Bill Impacts (Average Consumption Level) - AUGe_WHSI
A50: BI Template_EnergyWHSI | B50: BI_WHSI_AUGe_High | C50: 2024 Bill Impacts (High Consumption Level) - AUGe_WHSI
A51: BI Template_DemandWHSI | B51: BI_WHSI_AUGd_Low | C51: 2024 Bill Impacts (Low Consumption Level) - AUGd_WHSI
A52: BI Template_DemandWHSI | B52: BI_WHSI_AUGd_Avg | C52: 2024 Bill Impacts (Average Consumption Level) - AUGd_WHSI
A53: BI Template_DemandWHSI | B53: BI_WHSI_AUGd_High | C53: 2024 Bill Impacts (High Consumption Level) - AUGd_WHSI
A54: BI Template_DemandWHSI | B54: BI_WHSI_ST_Avg | C54: 2024 Bill Impacts (Average Consumption Level) - ST_WHSI
A55: BI Template_EnergyNPDI | B55: BI_NPDI_AR_Low | C55: 2024 Bill Impacts (Low Consumption Level) - AR_NPDI
A56: BI Template_EnergyNPDI | B56: BI_NPDI_AR_Typical | C56: 2024 Bill Impacts (Typical Consumption Level) - AR_NPDI
A57: BI Template_EnergyNPDI | B57: BI_NPDI_AR_Avg | C57: 2024 Bill Impacts (Average Consumption Level) - AR_NPDI
A58: BI Template_EnergyNPDI | B58: BI_NPDI_AR_High | C58: 2024 Bill Impacts (High Consumption Level) - AR_NPDI
A59: BI Template_EnergyHCHI | B59: BI_HCHI_AR_Low | C59: 2024 Bill Impacts (Low Consumption Level) - AR_HCHI
A60: BI Template_EnergyHCHI | B60: BI_HCHI_AR_Typical | C60: 2024 Bill Impacts (Typical Consumption Level) - AR_HCHI
A61: BI Template_EnergyHCHI | B61: BI_HCHI_AR_Avg | C61: 2024 Bill Impacts (Average Consumption Level) - AR_HCHI
A62: BI Template_EnergyHCHI | B62: BI_HCHI_AR_High | C62: 2024 Bill Impacts (High Consumption Level) - AR_HCHI
A63: BI Template_EnergyNPDI | B63: BI_NPDI_AGSe_Low | C63: 2024 Bill Impacts (Low Consumption Level) - AGSe_NPDI
A64: BI Template_EnergyNPDI | B64: BI_NPDI_AGSe_Typical | C64: 2024 Bill Impacts (Typical Consumption Level) - AGSe_NPDI
A65: BI Template_EnergyNPDI | B65: BI_NPDI_AGSe_Avg | C65: 2024 Bill Impacts (Average Consumption Level) - AGSe_NPDI
A66: BI Template_EnergyNPDI | B66: BI_NPDI_AGSe_High | C66: 2024 Bill Impacts (High Consumption Level) - AGSe_NPDI
A67: BI Template_EnergyHCHI | B67: BI_HCHI_AGSe_Low | C67: 2024 Bill Impacts (Low Consumption Level) - AGSe_HCHI
A68: BI Template_EnergyHCHI | B68: BI_HCHI_AGSe_Typical | C68: 2024 Bill Impacts (Typical Consumption Level) - AGSe_HCHI
A69: BI Template_EnergyHCHI | B69: BI_HCHI_AGSe_Avg | C69: 2024 Bill Impacts (Average Consumption Level) - AGSe_HCHI
A70: BI Template_EnergyHCHI | B70: BI_HCHI_AGSe_High | C70: 2024 Bill Impacts (High Consumption Level) - AGSe_HCHI
A71: BI Template_DemandNPDI | B71: BI_NPDI_AGSd_Low | C71: 2024 Bill Impacts (Low Consumption Level) - AGSd_NPDI
A72: BI Template_DemandNPDI | B72: BI_NPDI_AGSd_Avg | C72: 2024 Bill Impacts (Average Consumption Level) - AGSd_NPDI
A73: BI Template_DemandNPDI | B73: BI_NPDI_AGSd_High | C73: 2024 Bill Impacts (High Consumption Level) - AGSd_NPDI
A74: BI Template_DemandHCHI | B74: BI_HCHI_AGSd_Low | C74: 2024 Bill Impacts (Low Consumption Level) - AGSd_HCHI
A75: BI Template_DemandHCHI | B75: BI_HCHI_AGSd_Avg | C75: 2024 Bill Impacts (Average Consumption Level) - AGSd_HCHI
A76: BI Template_DemandHCHI | B76: BI_HCHI_AGSd_High | C76: 2024 Bill Impacts (High Consumption Level) - AGSd_HCHI
A77: BI Template_unmWHSI | B77: BI_WHSI_USL_Avg | C77: 2024 Bill Impacts (Average Consumption Level) - USL_WHSI
A78: BI Template_unmNPDI | B78: BI_NPDI_USL_Avg | C78: 2024 Bill Impacts (Average Consumption Level) - USL_NPDI
A79: BI Template_unmHCHI | B79: BI_HCHI_USL_Avg | C79: 2024 Bill Impacts (Average Consumption Level) - USL_HCHI
A80: BI Template_unmWHSI | B80: BI_WHSI_StLgt_Avg | C80: 2024 Bill Impacts (Average Consumption Level) - St Lgt_WHSI
A81: BI Template_unmNPDI | B81: BI_NPDI_StLgt_Avg | C81: 2024 Bill Impacts (Average Consumption Level) - St Lgt_NPDI
A82: BI Template_unmHCHI | B82: BI_HCHI_StLgt_Avg | C82: 2024 Bill Impacts (Average Consumption Level) - St Lgt_HCHI
A83: BI Template_unmNPDI | B83: BI_NPDI_SenLgt_Avg | C83: 2024 Bill Impacts (Average Consumption Level) - Sen Lgt_NPDI
A84: BI Template_unmHCHI | B84: BI_HCHI_SenLgt_Avg | C84: 2024 Bill Impacts (Average Consumption Level) - Sen Lgt_HCHI

Sheet Data BI List Acq_Seas (hidden)
A1: Template Name | B1: Bill Impact Worksheet Name | C1: Bill Impact Header | D1: Current Rate Class (Acq) | E1: Proposed Rate Class
A2: BI Template_EnergyWHSI | B2: BI_AUR_Low | C2: 2024 Bill Impacts (Low Consumption Level) - AUR_WHSI | D2: AUR-WHSI | E2: AUR-WHSI
A3: BI Template_EnergyWHSI | B3: BI_AUR_Typical | C3: 2024 Bill Impacts (Typical Consumption Level) - AUR_WHSI | D3: AUR-WHSI | E3: AUR-WHSI
A4: BI Template_EnergyWHSI | B4: BI_AUR_Avg | C4: 2024 Bill Impacts (Average Consumption Level) - AUR_WHSI | D4: AUR-WHSI | E4: AUR-WHSI
A5: BI Template_EnergyWHSI | B5: BI_AUR_High | C5: 2024 Bill Impacts (High Consumption Level) - AUR_WHSI | D5: AUR-WHSI | E5: AUR-WHSI
A6: BI Template_EnergyWHSI | B6: BI_AUGe_Low | C6: 2024 Bill Impacts (Low Consumption Level) - AUGe_WHSI | D6: AUGe-WHSI | E6: AUGe-WHSI
A7: BI Template_EnergyWHSI | B7: BI_AUGe_Typical | C7: 2024 Bill Impacts (Typical Consumption Level) - AUGe_WHSI | D7: AUGe-WHSI | E7: AUGe-WHSI
A8: BI Template_EnergyWHSI | B8: BI_AUGe_Avg | C8: 2024 Bill Impacts (Average Consumption Level) - AUGe_WHSI | D8: AUGe-WHSI | E8: AUGe-WHSI
A9: BI Template_EnergyWHSI | B9: BI_AUGe_High | C9: 2024 Bill Impacts (High Consumption Level) - AUGe_WHSI | D9: AUGe-WHSI | E9: AUGe-WHSI
A10: BI Template_DemandWHSI | B10: BI_AUGd_Low | C10: 2024 Bill Impacts (Low Consumption Level) - AUGd_WHSI | D10: AUGd-WHSI | E10: AUGd-WHSI
A11: BI Template_DemandWHSI | B11: BI_AUGd_Avg | C11: 2024 Bill Impacts (Average Consumption Level) - AUGd_WHSI | D11: AUGd-WHSI | E11: AUGd-WHSI
A12: BI Template_DemandWHSI | B12: BI_AUGd_High | C12: 2024 Bill Impacts (High Consumption Level) - AUGd_WHSI | D12: AUGd-WHSI | E12: AUGd-WHSI
A13: BI Template_DemandWHSI | B13: BI_WHSI_ST_Avg | C13: 2024 Bill Impacts (Average Consumption Level) - ST_WHSI | D13: ST-WHSI | E13: ST-WHSI
A14: BI Template_EnergyNPDI | B14: BI_NPDI_AR_Low | C14: 2024 Bill Impacts (Low Consumption Level) - AR_NPDI | D14: AR-NPDI | E14: AR-NPDI
A15: BI Template_EnergyNPDI | B15: BI_NPDI_AR_Typical | C15: 2024 Bill Impacts (Typical Consumption Level) - AR_NPDI | D15: AR-NPDI | E15: AR-NPDI
A16: BI Template_EnergyNPDI | B16: BI_NPDI_AR_Avg | C16: 2024 Bill Impacts (Average Consumption Level) - AR_NPDI | D16: AR-NPDI | E16: AR-NPDI
A17: BI Template_EnergyNPDI | B17: BI_NPDI_AR_High | C17: 2024 Bill Impacts (High Consumption Level) - AR_NPDI | D17: AR-NPDI | E17: AR-NPDI
A18: BI Template_EnergyHCHI | B18: BI_HCHI_AR_Low | C18: 2024 Bill Impacts (Low Consumption Level) - AR_HCHI | D18: AR-HCHI | E18: AR-HCHI
A19: BI Template_EnergyHCHI | B19: BI_HCHI_AR_Typical | C19: 2024 Bill Impacts (Typical Consumption Level) - AR_HCHI | D19: AR-HCHI | E19: AR-HCHI
A20: BI Template_EnergyHCHI | B20: BI_HCHI_AR_Avg | C20: 2024 Bill Impacts (Average Consumption Level) - AR_HCHI | D20: AR-HCHI | E20: AR-HCHI
A21: BI Template_EnergyHCHI | B21: BI_HCHI_AR_High | C21: 2024 Bill Impacts (High Consumption Level) - AR_HCHI | D21: AR-HCHI | E21: AR-HCHI
A22: BI Template_EnergyNPDI | B22: BI_NPDI_AGSe_Low | C22: 2024 Bill Impacts (Low Consumption Level) - AGSe_NPDI | D22: AGSe-NPDI | E22: AGSe-NPDI
A23: BI Template_EnergyNPDI | B23: BI_NPDI_AGSe_Typical | C23: 2024 Bill Impacts (Typical Consumption Level) - AGSe_NPDI | D23: AGSe-NPDI | E23: AGSe-NPDI
A24: BI Template_EnergyNPDI | B24: BI_NPDI_AGSe_Avg | C24: 2024 Bill Impacts (Average Consumption Level) - AGSe_NPDI | D24: AGSe-NPDI | E24: AGSe-NPDI
A25: BI Template_EnergyNPDI | B25: BI_NPDI_AGSe_High | C25: 2024 Bill Impacts (High Consumption Level) - AGSe_NPDI | D25: AGSe-NPDI | E25: AGSe-NPDI
A26: BI Template_EnergyHCHI | B26: BI_HCHI_AGSe_Low | C26: 2024 Bill Impacts (Low Consumption Level) - AGSe_HCHI | D26: AGSe-HCHI | E26: AGSe-HCHI
A27: BI Template_EnergyHCHI | B27: BI_HCHI_AGSe_Typical | C27: 2024 Bill Impacts (Typical Consumption Level) - AGSe_HCHI | D27: AGSe-HCHI | E27: AGSe-HCHI
A28: BI Template_EnergyHCHI | B28: BI_HCHI_AGSe_Avg | C28: 2024 Bill Impacts (Average Consumption Level) - AGSe_HCHI | D28: AGSe-HCHI | E28: AGSe-HCHI
A29: BI Template_EnergyHCHI | B29: BI_HCHI_AGSe_High | C29: 2024 Bill Impacts (High Consumption Level) - AGSe_HCHI | D29: AGSe-HCHI | E29: AGSe-HCHI
A30: BI Template_DemandNPDI | B30: BI_NPDI_AGSd_Low | C30: 2024 Bill Impacts (Low Consumption Level) - AGSd_NPDI | D30: AGSd-NPDI | E30: AGSd-NPDI
A31: BI Template_DemandNPDI | B31: BI_NPDI_AGSd_Avg | C31: 2024 Bill Impacts (Average Consumption Level) - AGSd_NPDI | D31: AGSd-NPDI | E31: AGSd-NPDI
A32: BI Template_DemandNPDI | B32: BI_NPDI_AGSd_High | C32: 2024 Bill Impacts (High Consumption Level) - AGSd_NPDI | D32: AGSd-NPDI | E32: AGSd-NPDI
A33: BI Template_DemandHCHI | B33: BI_HCHI_AGSd_Low | C33: 2024 Bill Impacts (Low Consumption Level) - AGSd_HCHI | D33: AGSd-HCHI | E33: AGSd-HCHI
A34: BI Template_DemandHCHI | B34: BI_HCHI_AGSd_Avg | C34: 2024 Bill Impacts (Average Consumption Level) - AGSd_HCHI | D34: AGSd-HCHI | E34: AGSd-HCHI
A35: BI Template_DemandHCHI | B35: BI_HCHI_AGSd_High | C35: 2024 Bill Impacts (High Consumption Level) - AGSd_HCHI | D35: AGSd-HCHI | E35: AGSd-HCHI
A36: BI Template_EnergyUNM | B36: BI_WHSI_USL_Avg | C36: 2024 Bill Impacts (Average Consumption Level) - USL_WHSI | D36: USL-WHSI | E36: USL-WHSI
A37: BI Template_unmNPDI | B37: BI_NPDI_USL_Avg | C37: 2024 Bill Impacts (Average Consumption Level) - USL_NPDI | D37: USL-NPDI | E37: USL-NPDI
A38: BI Template_unmHCHI | B38: BI_HCHI_USL_Avg | C38: 2024 Bill Impacts (Average Consumption Level) - USL_HCHI | D38: USL-HCHI | E38: USL-HCHI
A39: BI Template_unmWHSI | B39: BI_WHSI_StLgt_Avg | C39: 2024 Bill Impacts (Average Consumption Level) - St Lgt_WHSI | D39: St Lgt-WHSI | E39: St Lgt-WHSI
A40: BI Template_unmNPDI | B40: BI_NPDI_StLgt_Avg | C40: 2024 Bill Impacts (Average Consumption Level) - St Lgt_NPDI | D40: St Lgt-NPDI | E40: St Lgt-NPDI
A41: BI Template_unmHCHI | B41: BI_HCHI_StLgt_Avg | C41: 2024 Bill Impacts (Average Consumption Level) - St Lgt_HCHI | D41: St Lgt-HCHI | E41: St Lgt-HCHI
A42: BI Template_unmNPDI | B42: BI_NPDI_SenLgt_Avg | C42: 2024 Bill Impacts (Average Consumption Level) - Sen Lgt_NPDI | D42: Sen Lgt-NPDI | E42: Sen Lgt-NPDI
A43: BI Template_unmHCHI | B43: BI_HCHI_SenLgt_Avg | C43: 2024 Bill Impacts (Average Consumption Level) - Sen Lgt_HCHI | D43: Sen Lgt-HCHI | E43: Sen Lgt-HCHI

Sheet Bill Impact Summary (hidden)
A1: Rate Class | B1: Consumption Level | C1: Monthly Consumption (kWh) | D1: Monthly Peak (kW) | E1: BI Worksheet | F1: Template | G1: Current Total Bill | H1: Change in DX Bill ($) | I1: Change in DX Bill (%) | J1: Change in Total Bill ($) | K1: Change in Total Bill (%) | L1: Commodity Price Used | O1: List for Data Validation of cell L6; do not remove
A2: UR | B2: Low | C2: =VLOOKUP(A$2,'Data Billing Quantities'!A:P,MATCH(B2&" kWh",'Data Billing Quantities'!$4:$4,0),FALSE) -> 340 | E2: BI_UR_Low | F2: BI Template_Energy | G2: =VLOOKUP(VLOOKUP($F2,'Data BI Summary'!$A:$F,MATCH(G$1,'Data BI Summary'!$2:$2,0),FALSE),INDIRECT("'"&$E2&"'!"&"$A:$K"),4,FALSE) -> 78.70989193 | H2: =VLOOKUP(VLOOKUP($F2,'Data BI Summary'!$A:$F,MATCH(H$1,'Data BI Summary'!$2:$2,0),FALSE),INDIRECT("'"&$E2&"'!"&"$A:$K"),8,FALSE) -> 0.97 | I2: =VLOOKUP(VLOOKUP($F2,'Data BI Summary'!$A:$F,MATCH(I$1,'Data BI Summary'!$2:$2,0),FALSE),INDIRECT("'"&$E2&"'!"&"$A:$K"),9,FALSE) -> 0.02589152253 | J2: =VLOOKUP(VLOOKUP($F2,'Data BI Summary'!$A:$F,MATCH(J$1,'Data BI Summary'!$2:$2,0),FALSE),INDIRECT("'"&$E2&"'!"&"$A:$K"),8,FALSE) -> 0.91277 | K2: =VLOOKUP(VLOOKUP($F2,'Data BI Summary'!$A:$F,MATCH(K$1,'Data BI Summary'!$2:$2,0),FALSE),INDIRECT("'"&$E2&"'!"&"$A:$K"),9,FALSE) -> 0.01159663643 | L2: TOU
B3: Typical | C3: =VLOOKUP(A$2,'Data Billing Quantities'!A:P,MATCH(B3&" kWh",'Data Billing Quantities'!$4:$4,0),FALSE) -> 750 | E3: BI_UR_Typical | F3: BI Template_Energy | G3: =VLOOKUP(VLOOKUP($F3,'Data BI Summary'!$A:$F,MATCH(G$1,'Data BI Summary'!$2:$2,0),FALSE),INDIRECT("'"&$E3&"'!"&"$A:$K"),4,FALSE) -> 130.0282316 | H3: =VLOOKUP(VLOOKUP($F3,'Data BI Summary'!$A:$F,MATCH(H$1,'Data BI Summary'!$2:$2,0),FALSE),INDIRECT("'"&$E3&"'!"&"$A:$K"),8,FALSE) -> 0.97 | I3: =VLOOKUP(VLOOKUP($F3,'Data BI Summary'!$A:$F,MATCH(I$1,'Data BI Summary'!$2:$2,0),FALSE),INDIRECT("'"&$E3&"'!"&"$A:$K"),9,FALSE) -> 0.02600536193 | J3: =VLOOKUP(VLOOKUP($F3,'Data BI Summary'!$A:$F,MATCH(J$1,'Data BI Summary'!$2:$2,0),FALSE),INDIRECT("'"&$E3&"'!"&"$A:$K"),8,FALSE) -> 0.91277 | K3: =VLOOKUP(VLOOKUP($F3,'Data BI Summary'!$A:$F,MATCH(K$1,'Data BI Summary'!$2:$2,0),FALSE),INDIRECT("'"&$E3&"'!"&"$A:$K"),9,FALSE) -> 0.007019783233
B4: Average | C4: =VLOOKUP(A$2,'Data Billing Quantities'!A:P,MATCH(B4&" kWh",'Data Billing Quantities'!$4:$4,0),FALSE) -> 690 | E4: BI_UR_Avg | F4: BI Template_Energy | G4: =VLOOKUP(VLOOKUP($F4,'Data BI Summary'!$A:$F,MATCH(G$1,'Data BI Summary'!$2:$2,0),FALSE),INDIRECT("'"&$E4&"'!"&"$A:$K"),4,FALSE) -> 122.5182307 | H4: =VLOOKUP(VLOOKUP($F4,'Data BI Summary'!$A:$F,MATCH(H$1,'Data BI Summary'!$2:$2,0),FALSE),INDIRECT("'"&$E4&"'!"&"$A:$K"),8,FALSE) -> 0.97 | I4: =VLOOKUP(VLOOKUP($F4,'Data BI Summary'!$A:$F,MATCH(I$1,'Data BI Summary'!$2:$2,0),FALSE),INDIRECT("'"&$E4&"'!"&"$A:$K"),9,FALSE) -> 0.02598864002 | J4: =VLOOKUP(VLOOKUP($F4,'Data BI Summary'!$A:$F,MATCH(J$1,'Data BI Summary'!$2:$2,0),FALSE),INDIRECT("'"&$E4&"'!"&"$A:$K"),8,FALSE) -> 0.91277 | K4: =VLOOKUP(VLOOKUP($F4,'Data BI Summary'!$A:$F,MATCH(K$1,'Data BI Summary'!$2:$2,0),FALSE),INDIRECT("'"&$E4&"'!"&"$A:$K"),9,FALSE) -> 0.00745007494
B5: High | C5: =VLOOKUP(A$2,'Data Billing Quantities'!A:P,MATCH(B5&" kWh",'Data Billing Quantities'!$4:$4,0),FALSE) -> 1260 | E5: BI_UR_High | F5: BI Template_Energy | G5: =VLOOKUP(VLOOKUP($F5,'Data BI Summary'!$A:$F,MATCH(G$1,'Data BI Summary'!$2:$2,0),FALSE),INDIRECT("'"&$E5&"'!"&"$A:$K"),4,FALSE) -> 193.8632395 | H5: =VLOOKUP(VLOOKUP($F5,'Data BI Summary'!$A:$F,MATCH(H$1,'Data BI Summary'!$2:$2,0),FALSE),INDIRECT("'"&$E5&"'!"&"$A:$K"),8,FALSE) -> 0.97 | I5: =VLOOKUP(VLOOKUP($F5,'Data BI Summary'!$A:$F,MATCH(I$1,'Data BI Summary'!$2:$2,0),FALSE),INDIRECT("'"&$E5&"'!"&"$A:$K"),9,FALSE) -> 0.02614837179 | J5: =VLOOKUP(VLOOKUP($F5,'Data BI Summary'!$A:$F,MATCH(J$1,'Data BI Summary'!$2:$2,0),FALSE),INDIRECT("'"&$E5&"'!"&"$A:$K"),8,FALSE) -> 0.91277 | K5: =VLOOKUP(VLOOKUP($F5,'Data BI Summary'!$A:$F,MATCH(K$1,'Data BI Summary'!$2:$2,0),FALSE),INDIRECT("'"&$E5&"'!"&"$A:$K"),9,FALSE) -> 0.004708319135
A6: R1 | B6: Low | C6: =VLOOKUP(A$6,'Data Billing Quantities'!A:P,MATCH(B6&" kWh",'Data Billing Quantities'!$4:$4,0),FALSE) -> 370 | E6: BI_R1_Low | F6: BI Template_Energy | G6: =VLOOKUP(VLOOKUP($F6,'Data BI Summary'!$A:$F,MATCH(G$1,'Data BI Summary'!$2:$2,0),FALSE),INDIRECT("'"&$E6&"'!"&"$A:$K"),4,FALSE) -> 105.8278245 | H6: =VLOOKUP(VLOOKUP($F6,'Data BI Summary'!$A:$F,MATCH(H$1,'Data BI Summary'!$2:$2,0),FALSE),INDIRECT("'"&$E6&"'!"&"$A:$K"),8,FALSE) -> 3.712 | I6: =VLOOKUP(VLOOKUP($F6,'Data BI Summary'!$A:$F,MATCH(I$1,'Data BI Summary'!$2:$2,0),FALSE),INDIRECT("'"&$E6&"'!"&"$A:$K"),9,FALSE) -> 0.05995800355 | J6: =VLOOKUP(VLOOKUP($F6,'Data BI Summary'!$A:$F,MATCH(J$1,'Data BI Summary'!$2:$2,0),FALSE),INDIRECT("'"&$E6&"'!"&"$A:$K"),8,FALSE) -> 3.492992 | K6: =VLOOKUP(VLOOKUP($F6,'Data BI Summary'!$A:$F,MATCH(K$1,'Data BI Summary'!$2:$2,0),FALSE),INDIRECT("'"&$E6&"'!"&"$A:$K"),9,FALSE) -> 0.03300636686 | L6: TOU | O6: TOU
B7: Typical | C7: =VLOOKUP(A$6,'Data Billing Quantities'!A:P,MATCH(B7&" kWh",'Data Billing Quantities'!$4:$4,0),FALSE) -> 750 | E7: BI_R1_Typical | F7: BI Template_Energy | G7: =VLOOKUP(VLOOKUP($F7,'Data BI Summary'!$A:$F,MATCH(G$1,'Data BI Summary'!$2:$2,0),FALSE),INDIRECT("'"&$E7&"'!"&"$A:$K"),4,FALSE) -> 155.679454 | H7: =VLOOKUP(VLOOKUP($F7,'Data BI Summary'!$A:$F,MATCH(H$1,'Data BI Summary'!$2:$2,0),FALSE),INDIRECT("'"&$E7&"'!"&"$A:$K"),8,FALSE) -> 1.66 | I7: =VLOOKUP(VLOOKUP($F7,'Data BI Summary'!$A:$F,MATCH(I$1,'Data BI Summary'!$2:$2,0),FALSE),INDIRECT("'"&$E7&"'!"&"$A:$K"),9,FALSE) -> 0.02601473123 | J7: =VLOOKUP(VLOOKUP($F7,'Data BI Summary'!$A:$F,MATCH(J$1,'Data BI Summary'!$2:$2,0),FALSE),INDIRECT("'"&$E7&"'!"&"$A:$K"),8,FALSE) -> 1.56206 | K7: =VLOOKUP(VLOOKUP($F7,'Data BI Summary'!$A:$F,MATCH(K$1,'Data BI Summary'!$2:$2,0),FALSE),INDIRECT("'"&$E7&"'!"&"$A:$K"),9,FALSE) -> 0.01003382244 | O7: TOU (DRP applied)
B8: Average | C8: =VLOOKUP(A$6,'Data Billing Quantities'!A:P,MATCH(B8&" kWh",'Data Billing Quantities'!$4:$4,0),FALSE) -> 784 | E8: BI_R1_Avg | F8: BI Template_Energy | G8: =VLOOKUP(VLOOKUP($F8,'Data BI Summary'!$A:$F,MATCH(G$1,'Data BI Summary'!$2:$2,0),FALSE),INDIRECT("'"&$E8&"'!"&"$A:$K"),4,FALSE) -> 160.139863 | H8: =VLOOKUP(VLOOKUP($F8,'Data BI Summary'!$A:$F,MATCH(H$1,'Data BI Summary'!$2:$2,0),FALSE),INDIRECT("'"&$E8&"'!"&"$A:$K"),8,FALSE) -> 1.4764 | I8: =VLOOKUP(VLOOKUP($F8,'Data BI Summary'!$A:$F,MATCH(I$1,'Data BI Summary'!$2:$2,0),FALSE),INDIRECT("'"&$E8&"'!"&"$A:$K"),9,FALSE) -> 0.02307596124 | J8: =VLOOKUP(VLOOKUP($F8,'Data BI Summary'!$A:$F,MATCH(J$1,'Data BI Summary'!$2:$2,0),FALSE),INDIRECT("'"&$E8&"'!"&"$A:$K"),8,FALSE) -> 1.3892924 | K8: =VLOOKUP(VLOOKUP($F8,'Data BI Summary'!$A:$F,MATCH(K$1,'Data BI Summary'!$2:$2,0),FALSE),INDIRECT("'"&$E8&"'!"&"$A:$K"),9,FALSE) -> 0.008675493871
B9: High | C9: =VLOOKUP(A$6,'Data Billing Quantities'!A:P,MATCH(B9&" kWh",'Data Billing Quantities'!$4:$4,0),FALSE) -> 1650 | E9: BI_R1_High | F9: BI Template_Energy | G9: =VLOOKUP(VLOOKUP($F9,'Data BI Summary'!$A:$F,MATCH(G$1,'Data BI Summary'!$2:$2,0),FALSE),INDIRECT("'"&$E9&"'!"&"$A:$K"),4,FALSE) -> 273.7491029 | H9: =VLOOKUP(VLOOKUP($F9,'Data BI Summary'!$A:$F,MATCH(H$1,'Data BI Summary'!$2:$2,0),FALSE),INDIRECT("'"&$E9&"'!"&"$A:$K"),8,FALSE) -> -3.2 | I9: =VLOOKUP(VLOOKUP($F9,'Data BI Summary'!$A:$F,MATCH(I$1,'Data BI Summary'!$2:$2,0),FALSE),INDIRECT("'"&$E9&"'!"&"$A:$K"),9,FALSE) -> -0.04684526424 | J9: =VLOOKUP(VLOOKUP($F9,'Data BI Summary'!$A:$F,MATCH(J$1,'Data BI Summary'!$2:$2,0),FALSE),INDIRECT("'"&$E9&"'!"&"$A:$K"),8,FALSE) -> -3.0112 | K9: =VLOOKUP(VLOOKUP($F9,'Data BI Summary'!$A:$F,MATCH(K$1,'Data BI Summary'!$2:$2,0),FALSE),INDIRECT("'"&$E9&"'!"&"$A:$K"),9,FALSE) -> -0.0109998534
A10: R2 | B10: Low | C10: =VLOOKUP(A$10,'Data Billing Quantities'!A:P,MATCH(B10&" kWh",'Data Billing Quantities'!$4:$4,0),FALSE) -> 440 | E10: BI_R2_Low | F10: BI Template_Energy | G10: =VLOOKUP(VLOOKUP($F10,'Data BI Summary'!$A:$F,MATCH(G$1,'Data BI Summary'!$2:$2,0),FALSE),INDIRECT("'"&$E10&"'!"&"$A:$K"),4,FALSE) -> 119.73418 | H10: =VLOOKUP(VLOOKUP($F10,'Data BI Summary'!$A:$F,MATCH(H$1,'Data BI Summary'!$2:$2,0),FALSE),INDIRECT("'"&$E10&"'!"&"$A:$K"),8,FALSE) -> 6.378 | I10: =VLOOKUP(VLOOKUP($F10,'Data BI Summary'!$A:$F,MATCH(I$1,'Data BI Summary'!$2:$2,0),FALSE),INDIRECT("'"&$E10&"'!"&"$A:$K"),9,FALSE) -> 0.09610342645 | J10: =VLOOKUP(VLOOKUP($F10,'Data BI Summary'!$A:$F,MATCH(J$1,'Data BI Summary'!$2:$2,0),FALSE),INDIRECT("'"&$E10&"'!"&"$A:$K"),8,FALSE) -> 6.001698 | K10: =VLOOKUP(VLOOKUP($F10,'Data BI Summary'!$A:$F,MATCH(K$1,'Data BI Summary'!$2:$2,0),FALSE),INDIRECT("'"&$E10&"'!"&"$A:$K"),9,FALSE) -> 0.05012518565 | L10: =L6 -> TOU
B11: Typical | C11: =VLOOKUP(A$10,'Data Billing Quantities'!A:P,MATCH(B11&" kWh",'Data Billing Quantities'!$4:$4,0),FALSE) -> 750 | E11: BI_R2_Typical | F11: BI Template_Energy | G11: =VLOOKUP(VLOOKUP($F11,'Data BI Summary'!$A:$F,MATCH(G$1,'Data BI Summary'!$2:$2,0),FALSE),INDIRECT("'"&$E11&"'!"&"$A:$K"),4,FALSE) -> 161.8540702 | H11: =VLOOKUP(VLOOKUP($F11,'Data BI Summary'!$A:$F,MATCH(H$1,'Data BI Summary'!$2:$2,0),FALSE),INDIRECT("'"&$E11&"'!"&"$A:$K"),8,FALSE) -> 3.805 | I11: =VLOOKUP(VLOOKUP($F11,'Data BI Summary'!$A:$F,MATCH(I$1,'Data BI Summary'!$2:$2,0),FALSE),INDIRECT("'"&$E11&"'!"&"$A:$K"),9,FALSE) -> 0.05529317736 | J11: =VLOOKUP(VLOOKUP($F11,'Data BI Summary'!$A:$F,MATCH(J$1,'Data BI Summary'!$2:$2,0),FALSE),INDIRECT("'"&$E11&"'!"&"$A:$K"),8,FALSE) -> 3.580505 | K11: =VLOOKUP(VLOOKUP($F11,'Data BI Summary'!$A:$F,MATCH(K$1,'Data BI Summary'!$2:$2,0),FALSE),INDIRECT("'"&$E11&"'!"&"$A:$K"),9,FALSE) -> 0.02212181007
B12: Average | C12: =VLOOKUP(A$10,'Data Billing Quantities'!A:P,MATCH(B12&" kWh",'Data Billing Quantities'!$4:$4,0),FALSE) -> 978 | E12: BI_R2_Avg | F12: BI Template_Energy | G12: =VLOOKUP(VLOOKUP($F12,'Data BI Summary'!$A:$F,MATCH(G$1,'Data BI Summary'!$2:$2,0),FALSE),INDIRECT("'"&$E12&"'!"&"$A:$K"),4,FALSE) -> 192.8325701 | H12: =VLOOKUP(VLOOKUP($F12,'Data BI Summary'!$A:$F,MATCH(H$1,'Data BI Summary'!$2:$2,0),FALSE),INDIRECT("'"&$E12&"'!"&"$A:$K"),8,FALSE) -> 1.9126 | I12: =VLOOKUP(VLOOKUP($F12,'Data BI Summary'!$A:$F,MATCH(I$1,'Data BI Summary'!$2:$2,0),FALSE),INDIRECT("'"&$E12&"'!"&"$A:$K"),9,FALSE) -> 0.02708443672 | J12: =VLOOKUP(VLOOKUP($F12,'Data BI Summary'!$A:$F,MATCH(J$1,'Data BI Summary'!$2:$2,0),FALSE),INDIRECT("'"&$E12&"'!"&"$A:$K"),8,FALSE) -> 1.7997566 | K12: =VLOOKUP(VLOOKUP($F12,'Data BI Summary'!$A:$F,MATCH(K$1,'Data BI Summary'!$2:$2,0),FALSE),INDIRECT("'"&$E12&"'!"&"$A:$K"),9,FALSE) -> 0.00933326045
B13: High | C13: =VLOOKUP(A$10,'Data Billing Quantities'!A:P,MATCH(B13&" kWh",'Data Billing Quantities'!$4:$4,0),FALSE) -> 2110 | E13: BI_R2_High | F13: BI Template_Energy | G13: =VLOOKUP(VLOOKUP($F13,'Data BI Summary'!$A:$F,MATCH(G$1,'Data BI Summary'!$2:$2,0),FALSE),INDIRECT("'"&$E13&"'!"&"$A:$K"),4,FALSE) -> 346.6381047 | H13: =VLOOKUP(VLOOKUP($F13,'Data BI Summary'!$A:$F,MATCH(H$1,'Data BI Summary'!$2:$2,0),FALSE),INDIRECT("'"&$E13&"'!"&"$A:$K"),8,FALSE) -> -7.483 | I13: =VLOOKUP(VLOOKUP($F13,'Data BI Summary'!$A:$F,MATCH(I$1,'Data BI Summary'!$2:$2,0),FALSE),INDIRECT("'"&$E13&"'!"&"$A:$K"),9,FALSE) -> -0.09405598361 | J13: =VLOOKUP(VLOOKUP($F13,'Data BI Summary'!$A:$F,MATCH(J$1,'Data BI Summary'!$2:$2,0),FALSE),INDIRECT("'"&$E13&"'!"&"$A:$K"),8,FALSE) -> -7.041503 | K13: =VLOOKUP(VLOOKUP($F13,'Data BI Summary'!$A:$F,MATCH(K$1,'Data BI Summary'!$2:$2,0),FALSE),INDIRECT("'"&$E13&"'!"&"$A:$K"),9,FALSE) -> -0.02031370154
A14: GSe | B14: Low | C14: =VLOOKUP(A$14,'Data Billing Quantities'!A:P,MATCH(B14&" kWh",'Data Billing Quantities'!$4:$4,0),FALSE) -> 60 | E14: BI_GSe_Low | F14: BI Template_Energy | G14: =VLOOKUP(VLOOKUP($F14,'Data BI Summary'!$A:$F,MATCH(G$1,'Data BI Summary'!$2:$2,0),FALSE),INDIRECT("'"&$E14&"'!"&"$A:$K"),4,FALSE) -> 42.74775101 | H14: =VLOOKUP(VLOOKUP($F14,'Data BI Summary'!$A:$F,MATCH(H$1,'Data BI Summary'!$2:$2,0),FALSE),INDIRECT("'"&$E14&"'!"&"$A:$K"),8,FALSE) -> 0.186 | I14: =VLOOKUP(VLOOKUP($F14,'Data BI Summary'!$A:$F,MATCH(I$1,'Data BI Summary'!$2:$2,0),FALSE),INDIRECT("'"&$E14&"'!"&"$A:$K"),9,FALSE) -> 0.005077805078 | J14: =VLOOKUP(VLOOKUP($F14,'Data BI Summary'!$A:$F,MATCH(J$1,'Data BI Summary'!$2:$2,0),FALSE),INDIRECT("'"&$E14&"'!"&"$A:$K"),8,FALSE) -> 0.175026 | K14: =VLOOKUP(VLOOKUP($F14,'Data BI Summary'!$A:$F,MATCH(K$1,'Data BI Summary'!$2:$2,0),FALSE),INDIRECT("'"&$E14&"'!"&"$A:$K"),9,FALSE) -> 0.004094390836 | L14: TOU
B15: Typical | C15: =VLOOKUP(A$14,'Data Billing Quantities'!A:P,MATCH(B15&" kWh",'Data Billing Quantities'!$4:$4,0),FALSE) -> 2000 | E15: BI_GSe_Typical | F15: BI Template_Energy | G15: =VLOOKUP(VLOOKUP($F15,'Data BI Summary'!$A:$F,MATCH(G$1,'Data BI Summary'!$2:$2,0),FALSE),INDIRECT("'"&$E15&"'!"&"$A:$K"),4,FALSE) -> 410.533307 | H15: =VLOOKUP(VLOOKUP($F15,'Data BI Summary'!$A:$F,MATCH(H$1,'Data BI Summary'!$2:$2,0),FALSE),INDIRECT("'"&$E15&"'!"&"$A:$K"),8,FALSE) -> 2.32 | I15: =VLOOKUP(VLOOKUP($F15,'Data BI Summary'!$A:$F,MATCH(I$1,'Data BI Summary'!$2:$2,0),FALSE),INDIRECT("'"&$E15&"'!"&"$A:$K"),9,FALSE) -> 0.0136857008 | J15: =VLOOKUP(VLOOKUP($F15,'Data BI Summary'!$A:$F,MATCH(J$1,'Data BI Summary'!$2:$2,0),FALSE),INDIRECT("'"&$E15&"'!"&"$A:$K"),8,FALSE) -> 2.18312 | K15: =VLOOKUP(VLOOKUP($F15,'Data BI Summary'!$A:$F,MATCH(K$1,'Data BI Summary'!$2:$2,0),FALSE),INDIRECT("'"&$E15&"'!"&"$A:$K"),9,FALSE) -> 0.005317765849
B16: Average | C16: =VLOOKUP(A$14,'Data Billing Quantities'!A:P,MATCH(B16&" kWh",'Data Billing Quantities'!$4:$4,0),FALSE) -> 1887 | E16: BI_GSe_Avg | F16: BI Template_Energy | G16: =VLOOKUP(VLOOKUP($F16,'Data BI Summary'!$A:$F,MATCH(G$1,'Data BI Summary'!$2:$2,0),FALSE),INDIRECT("'"&$E16&"'!"&"$A:$K"),4,FALSE) -> 389.1107463 | H16: =VLOOKUP(VLOOKUP($F16,'Data BI Summary'!$A:$F,MATCH(H$1,'Data BI Summary'!$2:$2,0),FALSE),INDIRECT("'"&$E16&"'!"&"$A:$K"),8,FALSE) -> 2.1957 | I16: =VLOOKUP(VLOOKUP($F16,'Data BI Summary'!$A:$F,MATCH(I$1,'Data BI Summary'!$2:$2,0),FALSE),INDIRECT("'"&$E16&"'!"&"$A:$K"),9,FALSE) -> 0.01357217694 | J16: =VLOOKUP(VLOOKUP($F16,'Data BI Summary'!$A:$F,MATCH(J$1,'Data BI Summary'!$2:$2,0),FALSE),INDIRECT("'"&$E16&"'!"&"$A:$K"),8,FALSE) -> 2.0661537 | K16: =VLOOKUP(VLOOKUP($F16,'Data BI Summary'!$A:$F,MATCH(K$1,'Data BI Summary'!$2:$2,0),FALSE),INDIRECT("'"&$E16&"'!"&"$A:$K"),9,FALSE) -> 0.005309937388
B17: High | C17: =VLOOKUP(A$14,'Data Billing Quantities'!A:P,MATCH(B17&" kWh",'Data Billing Quantities'!$4:$4,0),FALSE) -> 5570 | E17: BI_GSe_High | F17: BI Template_Energy | G17: =VLOOKUP(VLOOKUP($F17,'Data BI Summary'!$A:$F,MATCH(G$1,'Data BI Summary'!$2:$2,0),FALSE),INDIRECT("'"&$E17&"'!"&"$A:$K"),4,FALSE) -> 1087.334562 | H17: =VLOOKUP(VLOOKUP($F17,'Data BI Summary'!$A:$F,MATCH(H$1,'Data BI Summary'!$2:$2,0),FALSE),INDIRECT("'"&$E17&"'!"&"$A:$K"),8,FALSE) -> 6.247 | I17: =VLOOKUP(VLOOKUP($F17,'Data BI Summary'!$A:$F,MATCH(I$1,'Data BI Summary'!$2:$2,0),FALSE),INDIRECT("'"&$E17&"'!"&"$A:$K"),9,FALSE) -> 0.01508700325 | J17: =VLOOKUP(VLOOKUP($F17,'Data BI Summary'!$A:$F,MATCH(J$1,'Data BI Summary'!$2:$2,0),FALSE),INDIRECT("'"&$E17&"'!"&"$A:$K"),8,FALSE) -> 5.878427 | K17: =VLOOKUP(VLOOKUP($F17,'Data BI Summary'!$A:$F,MATCH(K$1,'Data BI Summary'!$2:$2,0),FALSE),INDIRECT("'"&$E17&"'!"&"$A:$K"),9,FALSE) -> 0.005406272553
A18: UGe | B18: Low | C18: =VLOOKUP(A$18,'Data Billing Quantities'!A:P,MATCH(B18&" kWh",'Data Billing Quantities'!$4:$4,0),FALSE) -> 180 | E18: BI_UGe_Low | F18: BI Template_Energy | G18: =VLOOKUP(VLOOKUP($F18,'Data BI Summary'!$A:$F,MATCH(G$1,'Data BI Summary'!$2:$2,0),FALSE),INDIRECT("'"&$E18&"'!"&"$A:$K"),4,FALSE) -> 52.21494123 | H18: =VLOOKUP(VLOOKUP($F18,'Data BI Summary'!$A:$F,MATCH(H$1,'Data BI Summary'!$2:$2,0),FALSE),INDIRECT("'"&$E18&"'!"&"$A:$K"),8,FALSE) -> 0.25 | I18: =VLOOKUP(VLOOKUP($F18,'Data BI Summary'!$A:$F,MATCH(I$1,'Data BI Summary'!$2:$2,0),FALSE),INDIRECT("'"&$E18&"'!"&"$A:$K"),9,FALSE) -> 0.008018988966 | J18: =VLOOKUP(VLOOKUP($F18,'Data BI Summary'!$A:$F,MATCH(J$1,'Data BI Summary'!$2:$2,0),FALSE),INDIRECT("'"&$E18&"'!"&"$A:$K"),8,FALSE) -> 0.23525 | K18: =VLOOKUP(VLOOKUP($F18,'Data BI Summary'!$A:$F,MATCH(K$1,'Data BI Summary'!$2:$2,0),FALSE),INDIRECT("'"&$E18&"'!"&"$A:$K"),9,FALSE) -> 0.004505415394 | L18: TOU
B19: Typical | C19: =VLOOKUP(A$18,'Data Billing Quantities'!A:P,MATCH(B19&" kWh",'Data Billing Quantities'!$4:$4,0),FALSE) -> 2000 | E19: BI_UGe_Typical | F19: BI Template_Energy | G19: =VLOOKUP(VLOOKUP($F19,'Data BI Summary'!$A:$F,MATCH(G$1,'Data BI Summary'!$2:$2,0),FALSE),INDIRECT("'"&$E19&"'!"&"$A:$K"),4,FALSE) -> 331.7409681 | H19: =VLOOKUP(VLOOKUP($F19,'Data BI Summary'!$A:$F,MATCH(H$1,'Data BI Summary'!$2:$2,0),FALSE),INDIRECT("'"&$E19&"'!"&"$A:$K"),8,FALSE) -> 1.16 | I19: =VLOOKUP(VLOOKUP($F19,'Data BI Summary'!$A:$F,MATCH(I$1,'Data BI Summary'!$2:$2,0),FALSE),INDIRECT("'"&$E19&"'!"&"$A:$K"),9,FALSE) -> 0.01279082589 | J19: =VLOOKUP(VLOOKUP($F19,'Data BI Summary'!$A:$F,MATCH(J$1,'Data BI Summary'!$2:$2,0),FALSE),INDIRECT("'"&$E19&"'!"&"$A:$K"),8,FALSE) -> 1.09156 | K19: =VLOOKUP(VLOOKUP($F19,'Data BI Summary'!$A:$F,MATCH(K$1,'Data BI Summary'!$2:$2,0),FALSE),INDIRECT("'"&$E19&"'!"&"$A:$K"),9,FALSE) -> 0.003290398549
B20: Average | C20: =VLOOKUP(A$18,'Data Billing Quantities'!A:P,MATCH(B20&" kWh",'Data Billing Quantities'!$4:$4,0),FALSE) -> 2494 | E20: BI_UGe_Avg | F20: BI Template_Energy | G20: =VLOOKUP(VLOOKUP($F20,'Data BI Summary'!$A:$F,MATCH(G$1,'Data BI Summary'!$2:$2,0),FALSE),INDIRECT("'"&$E20&"'!"&"$A:$K"),4,FALSE) -> 407.6123182 | H20: =VLOOKUP(VLOOKUP($F20,'Data BI Summary'!$A:$F,MATCH(H$1,'Data BI Summary'!$2:$2,0),FALSE),INDIRECT("'"&$E20&"'!"&"$A:$K"),8,FALSE) -> 1.407 | I20: =VLOOKUP(VLOOKUP($F20,'Data BI Summary'!$A:$F,MATCH(I$1,'Data BI Summary'!$2:$2,0),FALSE),INDIRECT("'"&$E20&"'!"&"$A:$K"),9,FALSE) -> 0.01316875663 | J20: =VLOOKUP(VLOOKUP($F20,'Data BI Summary'!$A:$F,MATCH(J$1,'Data BI Summary'!$2:$2,0),FALSE),INDIRECT("'"&$E20&"'!"&"$A:$K"),8,FALSE) -> 1.323987 | K20: =VLOOKUP(VLOOKUP($F20,'Data BI Summary'!$A:$F,MATCH(K$1,'Data BI Summary'!$2:$2,0),FALSE),INDIRECT("'"&$E20&"'!"&"$A:$K"),9,FALSE) -> 0.003248152572
B21: High | C21: =VLOOKUP(A$18,'Data Billing Quantities'!A:P,MATCH(B21&" kWh",'Data Billing Quantities'!$4:$4,0),FALSE) -> 6930 | E21: BI_UGe_High | F21: BI Template_Energy | G21: =VLOOKUP(VLOOKUP($F21,'Data BI Summary'!$A:$F,MATCH(G$1,'Data BI Summary'!$2:$2,0),FALSE),INDIRECT("'"&$E21&"'!"&"$A:$K"),4,FALSE) -> 1088.918612 | H21: =VLOOKUP(VLOOKUP($F21,'Data BI Summary'!$A:$F,MATCH(H$1,'Data BI Summary'!$2:$2,0),FALSE),INDIRECT("'"&$E21&"'!"&"$A:$K"),8,FALSE) -> 3.625 | I21: =VLOOKUP(VLOOKUP($F21,'Data BI Summary'!$A:$F,MATCH(I$1,'Data BI Summary'!$2:$2,0),FALSE),INDIRECT("'"&$E21&"'!"&"$A:$K"),9,FALSE) -> 0.01439057407 | J21: =VLOOKUP(VLOOKUP($F21,'Data BI Summary'!$A:$F,MATCH(J$1,'Data BI Summary'!$2:$2,0),FALSE),INDIRECT("'"&$E21&"'!"&"$A:$K"),8,FALSE) -> 3.411125 | K21: =VLOOKUP(VLOOKUP($F21,'Data BI Summary'!$A:$F,MATCH(K$1,'Data BI Summary'!$2:$2,0),FALSE),INDIRECT("'"&$E21&"'!"&"$A:$K"),9,FALSE) -> 0.003132580306
A22: GSd | B22: Low | C22: =VLOOKUP(A$22,'Data Billing Quantities'!A:P,MATCH(B22&" kWh",'Data Billing Quantities'!$4:$4,0),FALSE) -> 9310 | D22: =VLOOKUP(A$22,'Data Billing Quantities'!A:P,MATCH(B22&" kW",'Data Billing Quantities'!$4:$4,0),FALSE) -> 55 | E22: BI_GSd_Low | F22: BI Template_Demand | G22: =VLOOKUP(VLOOKUP($F22,'Data BI Summary'!$A:$F,MATCH(G$1,'Data BI Summary'!$2:$2,0),FALSE),INDIRECT("'"&$E22&"'!"&"$A:$K"),4,FALSE) -> 2982.645327 | H22: =VLOOKUP(VLOOKUP($F22,'Data BI Summary'!$A:$F,MATCH(H$1,'Data BI Summary'!$2:$2,0),FALSE),INDIRECT("'"&$E22&"'!"&"$A:$K"),8,FALSE) -> 4.17 | I22: =VLOOKUP(VLOOKUP($F22,'Data BI Summary'!$A:$F,MATCH(I$1,'Data BI Summary'!$2:$2,0),FALSE),INDIRECT("'"&$E22&"'!"&"$A:$K"),9,FALSE) -> 0.003543702047 | J22: =VLOOKUP(VLOOKUP($F22,'Data BI Summary'!$A:$F,MATCH(J$1,'Data BI Summary'!$2:$2,0),FALSE),INDIRECT("'"&$E22&"'!"&"$A:$K"),8,FALSE) -> 4.7121 | K22: =VLOOKUP(VLOOKUP($F22,'Data BI Summary'!$A:$F,MATCH(K$1,'Data BI Summary'!$2:$2,0),FALSE),INDIRECT("'"&$E22&"'!"&"$A:$K"),9,FALSE) -> 0.001579839198 | L22: WAHSP
B23: Average | C23: =VLOOKUP(A$22,'Data Billing Quantities'!A:P,MATCH(B23&" kWh",'Data Billing Quantities'!$4:$4,0),FALSE) -> 34334 | D23: =VLOOKUP(A$22,'Data Billing Quantities'!A:P,MATCH(B23&" kW",'Data Billing Quantities'!$4:$4,0),FALSE) -> 110 | E23: BI_GSd_Avg | F23: BI Template_Demand | G23: =VLOOKUP(VLOOKUP($F23,'Data BI Summary'!$A:$F,MATCH(G$1,'Data BI Summary'!$2:$2,0),FALSE),INDIRECT("'"&$E23&"'!"&"$A:$K"),4,FALSE) -> 8148.921962 | H23: =VLOOKUP(VLOOKUP($F23,'Data BI Summary'!$A:$F,MATCH(H$1,'Data BI Summary'!$2:$2,0),FALSE),INDIRECT("'"&$E23&"'!"&"$A:$K"),8,FALSE) -> 9.23 | I23: =VLOOKUP(VLOOKUP($F23,'Data BI Summary'!$A:$F,MATCH(I$1,'Data BI Summary'!$2:$2,0),FALSE),INDIRECT("'"&$E23&"'!"&"$A:$K"),9,FALSE) -> 0.004125911925 | J23: =VLOOKUP(VLOOKUP($F23,'Data BI Summary'!$A:$F,MATCH(J$1,'Data BI Summary'!$2:$2,0),FALSE),INDIRECT("'"&$E23&"'!"&"$A:$K"),8,FALSE) -> 10.4299 | K23: =VLOOKUP(VLOOKUP($F23,'Data BI Summary'!$A:$F,MATCH(K$1,'Data BI Summary'!$2:$2,0),FALSE),INDIRECT("'"&$E23&"'!"&"$A:$K"),9,FALSE) -> 0.001279911631
B24: High | C24: =VLOOKUP(A$22,'Data Billing Quantities'!A:P,MATCH(B24&" kWh",'Data Billing Quantities'!$4:$4,0),FALSE) -> 75790 | D24: =VLOOKUP(A$22,'Data Billing Quantities'!A:P,MATCH(B24&" kW",'Data Billing Quantities'!$4:$4,0),FALSE) -> 250 | E24: BI_GSd_High | F24: BI Template_Demand | G24: =VLOOKUP(VLOOKUP($F24,'Data BI Summary'!$A:$F,MATCH(G$1,'Data BI Summary'!$2:$2,0),FALSE),INDIRECT("'"&$E24&"'!"&"$A:$K"),4,FALSE) -> 18039.7924 | H24: =VLOOKUP(VLOOKUP($F24,'Data BI Summary'!$A:$F,MATCH(H$1,'Data BI Summary'!$2:$2,0),FALSE),INDIRECT("'"&$E24&"'!"&"$A:$K"),8,FALSE) -> 22.11 | I24: =VLOOKUP(VLOOKUP($F24,'Data BI Summary'!$A:$F,MATCH(I$1,'Data BI Summary'!$2:$2,0),FALSE),INDIRECT("'"&$E24&"'!"&"$A:$K"),9,FALSE) -> 0.004465122366 | J24: =VLOOKUP(VLOOKUP($F24,'Data BI Summary'!$A:$F,MATCH(J$1,'Data BI Summary'!$2:$2,0),FALSE),INDIRECT("'"&$E24&"'!"&"$A:$K"),8,FALSE) -> 24.9843 | K24: =VLOOKUP(VLOOKUP($F24,'Data BI Summary'!$A:$F,MATCH(K$1,'Data BI Summary'!$2:$2,0),FALSE),INDIRECT("'"&$E24&"'!"&"$A:$K"),9,FALSE) -> 0.001384954962
A25: UGd | B25: Low | C25: =VLOOKUP(A$25,'Data Billing Quantities'!A:P,MATCH(B25&" kWh",'Data Billing Quantities'!$4:$4,0),FALSE) -> 13900 | D25: =VLOOKUP(A$25,'Data Billing Quantities'!A:P,MATCH(B25&" kW",'Data Billing Quantities'!$4:$4,0),FALSE) -> 55 | E25: BI_UGd_Low | F25: BI Template_Demand | G25: =VLOOKUP(VLOOKUP($F25,'Data BI Summary'!$A:$F,MATCH(G$1,'Data BI Summary'!$2:$2,0),FALSE),INDIRECT("'"&$E25&"'!"&"$A:$K"),4,FALSE) -> 3183.5716 | H25: =VLOOKUP(VLOOKUP($F25,'Data BI Summary'!$A:$F,MATCH(H$1,'Data BI Summary'!$2:$2,0),FALSE),INDIRECT("'"&$E25&"'!"&"$A:$K"),8,FALSE) -> 2.705 | I25: =VLOOKUP(VLOOKUP($F25,'Data BI Summary'!$A:$F,MATCH(I$1,'Data BI Summary'!$2:$2,0),FALSE),INDIRECT("'"&$E25&"'!"&"$A:$K"),9,FALSE) -> 0.003828968946 | J25: =VLOOKUP(VLOOKUP($F25,'Data BI Summary'!$A:$F,MATCH(J$1,'Data BI Summary'!$2:$2,0),FALSE),INDIRECT("'"&$E25&"'!"&"$A:$K"),8,FALSE) -> 3.05665 | K25: =VLOOKUP(VLOOKUP($F25,'Data BI Summary'!$A:$F,MATCH(K$1,'Data BI Summary'!$2:$2,0),FALSE),INDIRECT("'"&$E25&"'!"&"$A:$K"),9,FALSE) -> 0.0009601323243 | L25: WAHSP
B26: Average | C26: =VLOOKUP(A$25,'Data Billing Quantities'!A:P,MATCH(B26&" kWh",'Data Billing Quantities'!$4:$4,0),FALSE) -> 42592 | D26: =VLOOKUP(A$25,'Data Billing Quantities'!A:P,MATCH(B26&" kW",'Data Billing Quantities'!$4:$4,0),FALSE) -> 111 | E26: BI_UGd_Avg | F26: BI Template_Demand | G26: =VLOOKUP(VLOOKUP($F26,'Data BI Summary'!$A:$F,MATCH(G$1,'Data BI Summary'!$2:$2,0),FALSE),INDIRECT("'"&$E26&"'!"&"$A:$K"),4,FALSE) -> 8422.546688 | H26: =VLOOKUP(VLOOKUP($F26,'Data BI Summary'!$A:$F,MATCH(H$1,'Data BI Summary'!$2:$2,0),FALSE),INDIRECT("'"&$E26&"'!"&"$A:$K"),8,FALSE) -> 6.009 | I26: =VLOOKUP(VLOOKUP($F26,'Data BI Summary'!$A:$F,MATCH(I$1,'Data BI Summary'!$2:$2,0),FALSE),INDIRECT("'"&$E26&"'!"&"$A:$K"),9,FALSE) -> 0.004560880006 | J26: =VLOOKUP(VLOOKUP($F26,'Data BI Summary'!$A:$F,MATCH(J$1,'Data BI Summary'!$2:$2,0),FALSE),INDIRECT("'"&$E26&"'!"&"$A:$K"),8,FALSE) -> 6.79017 | K26: =VLOOKUP(VLOOKUP($F26,'Data BI Summary'!$A:$F,MATCH(K$1,'Data BI Summary'!$2:$2,0),FALSE),INDIRECT("'"&$E26&"'!"&"$A:$K"),9,FALSE) -> 0.000806189654
B27: High | C27: =VLOOKUP(A$25,'Data Billing Quantities'!A:P,MATCH(B27&" kWh",'Data Billing Quantities'!$4:$4,0),FALSE) -> 97610 | D27: =VLOOKUP(A$25,'Data Billing Quantities'!A:P,MATCH(B27&" kW",'Data Billing Quantities'!$4:$4,0),FALSE) -> 280 | E27: BI_UGd_High | F27: BI Template_Demand | G27: =VLOOKUP(VLOOKUP($F27,'Data BI Summary'!$A:$F,MATCH(G$1,'Data BI Summary'!$2:$2,0),FALSE),INDIRECT("'"&$E27&"'!"&"$A:$K"),4,FALSE) -> 19654.38092 | H27: =VLOOKUP(VLOOKUP($F27,'Data BI Summary'!$A:$F,MATCH(H$1,'Data BI Summary'!$2:$2,0),FALSE),INDIRECT("'"&$E27&"'!"&"$A:$K"),8,FALSE) -> 15.98 | I27: =VLOOKUP(VLOOKUP($F27,'Data BI Summary'!$A:$F,MATCH(I$1,'Data BI Summary'!$2:$2,0),FALSE),INDIRECT("'"&$E27&"'!"&"$A:$K"),9,FALSE) -> 0.005019353408 | J27: =VLOOKUP(VLOOKUP($F27,'Data BI Summary'!$A:$F,MATCH(J$1,'Data BI Summary'!$2:$2,0),FALSE),INDIRECT("'"&$E27&"'!"&"$A:$K"),8,FALSE) -> 18.0574 | K27: =VLOOKUP(VLOOKUP($F27,'Data BI Summary'!$A:$F,MATCH(K$1,'Data BI Summary'!$2:$2,0),FALSE),INDIRECT("'"&$E27&"'!"&"$A:$K"),9,FALSE) -> 0.0009187468216
A28: St Lgt | B28: Low | C28: =VLOOKUP(A$28,'Data Billing Quantities'!A:P,MATCH(B28&" kWh",'Data Billing Quantities'!$4:$4,0),FALSE) -> 30 | E28: BI_StLgt_Low | F28: BI Template_EnergyUNM | G28: =VLOOKUP(VLOOKUP($F28,'Data BI Summary'!$A:$F,MATCH(G$1,'Data BI Summary'!$2:$2,0),FALSE),INDIRECT("'"&$E28&"'!"&"$A:$K"),4,FALSE) -> 9.81097892 | H28: =VLOOKUP(VLOOKUP($F28,'Data BI Summary'!$A:$F,MATCH(H$1,'Data BI Summary'!$2:$2,0),FALSE),INDIRECT("'"&$E28&"'!"&"$A:$K"),8,FALSE) -> 0.023 | I28: =VLOOKUP(VLOOKUP($F28,'Data BI Summary'!$A:$F,MATCH(I$1,'Data BI Summary'!$2:$2,0),FALSE),INDIRECT("'"&$E28&"'!"&"$A:$K"),9,FALSE) -> 0.003534654987 | J28: =VLOOKUP(VLOOKUP($F28,'Data BI Summary'!$A:$F,MATCH(J$1,'Data BI Summary'!$2:$2,0),FALSE),INDIRECT("'"&$E28&"'!"&"$A:$K"),8,FALSE) -> 0.021643 | K28: =VLOOKUP(VLOOKUP($F28,'Data BI Summary'!$A:$F,MATCH(K$1,'Data BI Summary'!$2:$2,0),FALSE),INDIRECT("'"&$E28&"'!"&"$A:$K"),9,FALSE) -> 0.002205998013 | L28: Two-tier RPP
B29: Average | C29: =VLOOKUP(A$28,'Data Billing Quantities'!A:P,MATCH(B29&" kWh",'Data Billing Quantities'!$4:$4,0),FALSE) -> 1274 | E29: BI_StLgt_Avg | F29: BI Template_EnergyUNM | G29: =VLOOKUP(VLOOKUP($F29,'Data BI Summary'!$A:$F,MATCH(G$1,'Data BI Summary'!$2:$2,0),FALSE),INDIRECT("'"&$E29&"'!"&"$A:$K"),4,FALSE) -> 295.3991265 | H29: =VLOOKUP(VLOOKUP($F29,'Data BI Summary'!$A:$F,MATCH(H$1,'Data BI Summary'!$2:$2,0),FALSE),INDIRECT("'"&$E29&"'!"&"$A:$K"),8,FALSE) -> 1.3914 | I29: =VLOOKUP(VLOOKUP($F29,'Data BI Summary'!$A:$F,MATCH(I$1,'Data BI Summary'!$2:$2,0),FALSE),INDIRECT("'"&$E29&"'!"&"$A:$K"),9,FALSE) -> 0.009468230324 | J29: =VLOOKUP(VLOOKUP($F29,'Data BI Summary'!$A:$F,MATCH(J$1,'Data BI Summary'!$2:$2,0),FALSE),INDIRECT("'"&$E29&"'!"&"$A:$K"),8,FALSE) -> 1.3093074 | K29: =VLOOKUP(VLOOKUP($F29,'Data BI Summary'!$A:$F,MATCH(K$1,'Data BI Summary'!$2:$2,0),FALSE),INDIRECT("'"&$E29&"'!"&"$A:$K"),9,FALSE) -> 0.00443233335
B30: High | C30: =VLOOKUP(A$28,'Data Billing Quantities'!A:P,MATCH(B30&" kWh",'Data Billing Quantities'!$4:$4,0),FALSE) -> 2310 | E30: BI_StLgt_High | F30: BI Template_EnergyUNM | G30: =VLOOKUP(VLOOKUP($F30,'Data BI Summary'!$A:$F,MATCH(G$1,'Data BI Summary'!$2:$2,0),FALSE),INDIRECT("'"&$E30&"'!"&"$A:$K"),4,FALSE) -> 542.7914593 | H30: =VLOOKUP(VLOOKUP($F30,'Data BI Summary'!$A:$F,MATCH(H$1,'Data BI Summary'!$2:$2,0),FALSE),INDIRECT("'"&$E30&"'!"&"$A:$K"),8,FALSE) -> 2.531 | I30: =VLOOKUP(VLOOKUP($F30,'Data BI Summary'!$A:$F,MATCH(I$1,'Data BI Summary'!$2:$2,0),FALSE),INDIRECT("'"&$E30&"'!"&"$A:$K"),9,FALSE) -> 0.009590063618 | J30: =VLOOKUP(VLOOKUP($F30,'Data BI Summary'!$A:$F,MATCH(J$1,'Data BI Summary'!$2:$2,0),FALSE),INDIRECT("'"&$E30&"'!"&"$A:$K"),8,FALSE) -> 2.381671 | K30: =VLOOKUP(VLOOKUP($F30,'Data BI Summary'!$A:$F,MATCH(K$1,'Data BI Summary'!$2:$2,0),FALSE),INDIRECT("'"&$E30&"'!"&"$A:$K"),9,FALSE) -> 0.004387819593
A31: Sen Lgt | B31: Low | C31: =VLOOKUP(A$31,'Data Billing Quantities'!A:P,MATCH(B31&" kWh",'Data Billing Quantities'!$4:$4,0),FALSE) -> 20 | E31: BI_SenLgt_Low | F31: BI Template_EnergyUNM | G31: =VLOOKUP(VLOOKUP($F31,'Data BI Summary'!$A:$F,MATCH(G$1,'Data BI Summary'!$2:$2,0),FALSE),INDIRECT("'"&$E31&"'!"&"$A:$K"),4,FALSE) -> 8.37309328 | H31: =VLOOKUP(VLOOKUP($F31,'Data BI Summary'!$A:$F,MATCH(H$1,'Data BI Summary'!$2:$2,0),FALSE),INDIRECT("'"&$E31&"'!"&"$A:$K"),8,FALSE) -> -0.066 | I31: =VLOOKUP(VLOOKUP($F31,'Data BI Summary'!$A:$F,MATCH(I$1,'Data BI Summary'!$2:$2,0),FALSE),INDIRECT("'"&$E31&"'!"&"$A:$K"),9,FALSE) -> -0.01064172847 | J31: =VLOOKUP(VLOOKUP($F31,'Data BI Summary'!$A:$F,MATCH(J$1,'Data BI Summary'!$2:$2,0),FALSE),INDIRECT("'"&$E31&"'!"&"$A:$K"),8,FALSE) -> -0.062106 | K31: =VLOOKUP(VLOOKUP($F31,'Data BI Summary'!$A:$F,MATCH(K$1,'Data BI Summary'!$2:$2,0),FALSE),INDIRECT("'"&$E31&"'!"&"$A:$K"),9,FALSE) -> -0.00741733048 | L31: Two-tier RPP
B32: Average | C32: =VLOOKUP(A$31,'Data Billing Quantities'!A:P,MATCH(B32&" kWh",'Data Billing Quantities'!$4:$4,0),FALSE) -> 49 | E32: BI_SenLgt_Avg | F32: BI Template_EnergyUNM | G32: =VLOOKUP(VLOOKUP($F32,'Data BI Summary'!$A:$F,MATCH(G$1,'Data BI Summary'!$2:$2,0),FALSE),INDIRECT("'"&$E32&"'!"&"$A:$K"),4,FALSE) -> 16.16148304 | H32: =VLOOKUP(VLOOKUP($F32,'Data BI Summary'!$A:$F,MATCH(H$1,'Data BI Summary'!$2:$2,0),FALSE),INDIRECT("'"&$E32&"'!"&"$A:$K"),8,FALSE) -> -0.1037 | I32: =VLOOKUP(VLOOKUP($F32,'Data BI Summary'!$A:$F,MATCH(I$1,'Data BI Summary'!$2:$2,0),FALSE),INDIRECT("'"&$E32&"'!"&"$A:$K"),9,FALSE) -> -0.009485999689 | J32: =VLOOKUP(VLOOKUP($F32,'Data BI Summary'!$A:$F,MATCH(J$1,'Data BI Summary'!$2:$2,0),FALSE),INDIRECT("'"&$E32&"'!"&"$A:$K"),8,FALSE) -> -0.0975817 | K32: =VLOOKUP(VLOOKUP($F32,'Data BI Summary'!$A:$F,MATCH(K$1,'Data BI Summary'!$2:$2,0),FALSE),INDIRECT("'"&$E32&"'!"&"$A:$K"),9,FALSE) -> -0.006037917423
B33: High | C33: =VLOOKUP(A$31,'Data Billing Quantities'!A:P,MATCH(B33&" kWh",'Data Billing Quantities'!$4:$4,0),FALSE) -> 80 | E33: BI_SenLgt_High | F33: BI Template_EnergyUNM | G33: =VLOOKUP(VLOOKUP($F33,'Data BI Summary'!$A:$F,MATCH(G$1,'Data BI Summary'!$2:$2,0),FALSE),INDIRECT("'"&$E33&"'!"&"$A:$K"),4,FALSE) -> 24.48700312 | H33: =VLOOKUP(VLOOKUP($F33,'Data BI Summary'!$A:$F,MATCH(H$1,'Data BI Summary'!$2:$2,0),FALSE),INDIRECT("'"&$E33&"'!"&"$A:$K"),8,FALSE) -> -0.144 | I33: =VLOOKUP(VLOOKUP($F33,'Data BI Summary'!$A:$F,MATCH(I$1,'Data BI Summary'!$2:$2,0),FALSE),INDIRECT("'"&$E33&"'!"&"$A:$K"),9,FALSE) -> -0.009006755066 | J33: =VLOOKUP(VLOOKUP($F33,'Data BI Summary'!$A:$F,MATCH(J$1,'Data BI Summary'!$2:$2,0),FALSE),INDIRECT("'"&$E33&"'!"&"$A:$K"),8,FALSE) -> -0.135504 | K33: =VLOOKUP(VLOOKUP($F33,'Data BI Summary'!$A:$F,MATCH(K$1,'Data BI Summary'!$2:$2,0),FALSE),INDIRECT("'"&$E33&"'!"&"$A:$K"),9,FALSE) -> -0.00553371106
A34: USL | B34: Low | C34: =VLOOKUP(A$34,'Data Billing Quantities'!A:P,MATCH(B34&" kWh",'Data Billing Quantities'!$4:$4,0),FALSE) -> 100 | E34: BI_USL_Low | F34: BI Template_EnergyUNM | G34: =VLOOKUP(VLOOKUP($F34,'Data BI Summary'!$A:$F,MATCH(G$1,'Data BI Summary'!$2:$2,0),FALSE),INDIRECT("'"&$E34&"'!"&"$A:$K"),4,FALSE) -> 47.19596792 | H34: =VLOOKUP(VLOOKUP($F34,'Data BI Summary'!$A:$F,MATCH(H$1,'Data BI Summary'!$2:$2,0),FALSE),INDIRECT("'"&$E34&"'!"&"$A:$K"),8,FALSE) -> 0.42 | I34: =VLOOKUP(VLOOKUP($F34,'Data BI Summary'!$A:$F,MATCH(I$1,'Data BI Summary'!$2:$2,0),FALSE),INDIRECT("'"&$E34&"'!"&"$A:$K"),9,FALSE) -> 0.0112 | J34: =VLOOKUP(VLOOKUP($F34,'Data BI Summary'!$A:$F,MATCH(J$1,'Data BI Summary'!$2:$2,0),FALSE),INDIRECT("'"&$E34&"'!"&"$A:$K"),8,FALSE) -> 0.39522 | K34: =VLOOKUP(VLOOKUP($F34,'Data BI Summary'!$A:$F,MATCH(K$1,'Data BI Summary'!$2:$2,0),FALSE),INDIRECT("'"&$E34&"'!"&"$A:$K"),9,FALSE) -> 0.008374020439 | L34: Two-tier RPP
B35: Average | C35: =VLOOKUP(A$34,'Data Billing Quantities'!A:P,MATCH(B35&" kWh",'Data Billing Quantities'!$4:$4,0),FALSE) -> 477 | E35: BI_USL_Avg | F35: BI Template_EnergyUNM | G35: =VLOOKUP(VLOOKUP($F35,'Data BI Summary'!$A:$F,MATCH(G$1,'Data BI Summary'!$2:$2,0),FALSE),INDIRECT("'"&$E35&"'!"&"$A:$K"),4,FALSE) -> 98.93770208 | H35: =VLOOKUP(VLOOKUP($F35,'Data BI Summary'!$A:$F,MATCH(H$1,'Data BI Summary'!$2:$2,0),FALSE),INDIRECT("'"&$E35&"'!"&"$A:$K"),8,FALSE) -> 0.5331 | I35: =VLOOKUP(VLOOKUP($F35,'Data BI Summary'!$A:$F,MATCH(I$1,'Data BI Summary'!$2:$2,0),FALSE),INDIRECT("'"&$E35&"'!"&"$A:$K"),9,FALSE) -> 0.01166046204 | J35: =VLOOKUP(VLOOKUP($F35,'Data BI Summary'!$A:$F,MATCH(J$1,'Data BI Summary'!$2:$2,0),FALSE),INDIRECT("'"&$E35&"'!"&"$A:$K"),8,FALSE) -> 0.5016471 | K35: =VLOOKUP(VLOOKUP($F35,'Data BI Summary'!$A:$F,MATCH(K$1,'Data BI Summary'!$2:$2,0),FALSE),INDIRECT("'"&$E35&"'!"&"$A:$K"),9,FALSE) -> 0.005070333043
B36: High | C36: =VLOOKUP(A$34,'Data Billing Quantities'!A:P,MATCH(B36&" kWh",'Data Billing Quantities'!$4:$4,0),FALSE) -> 550 | E36: BI_USL_High | F36: BI Template_EnergyUNM | G36: =VLOOKUP(VLOOKUP($F36,'Data BI Summary'!$A:$F,MATCH(G$1,'Data BI Summary'!$2:$2,0),FALSE),INDIRECT("'"&$E36&"'!"&"$A:$K"),4,FALSE) -> 108.9566586 | H36: =VLOOKUP(VLOOKUP($F36,'Data BI Summary'!$A:$F,MATCH(H$1,'Data BI Summary'!$2:$2,0),FALSE),INDIRECT("'"&$E36&"'!"&"$A:$K"),8,FALSE) -> 0.555 | I36: =VLOOKUP(VLOOKUP($F36,'Data BI Summary'!$A:$F,MATCH(I$1,'Data BI Summary'!$2:$2,0),FALSE),INDIRECT("'"&$E36&"'!"&"$A:$K"),9,FALSE) -> 0.01173113507 | J36: =VLOOKUP(VLOOKUP($F36,'Data BI Summary'!$A:$F,MATCH(J$1,'Data BI Summary'!$2:$2,0),FALSE),INDIRECT("'"&$E36&"'!"&"$A:$K"),8,FALSE) -> 0.522255 | K36: =VLOOKUP(VLOOKUP($F36,'Data BI Summary'!$A:$F,MATCH(K$1,'Data BI Summary'!$2:$2,0),FALSE),INDIRECT("'"&$E36&"'!"&"$A:$K"),9,FALSE) -> 0.0047932362
A37: DGen | B37: Low | C37: =VLOOKUP(A$37,'Data Billing Quantities'!A:P,MATCH($B37&" kWh",'Data Billing Quantities'!$4:$4,0),FALSE) -> 10 | D37: =VLOOKUP(A$37,'Data Billing Quantities'!A:P,MATCH($B37&" kW",'Data Billing Quantities'!$4:$4,0),FALSE) -> 0.02941666667 | E37: BI_Dgen_Low | F37: BI Template_Demand | G37: =VLOOKUP(VLOOKUP($F37,'Data BI Summary'!$A:$F,MATCH(G$1,'Data BI Summary'!$2:$2,0),FALSE),INDIRECT("'"&$E37&"'!"&"$A:$K"),4,FALSE) -> 221.0887454 | H37: =VLOOKUP(VLOOKUP($F37,'Data BI Summary'!$A:$F,MATCH(H$1,'Data BI Summary'!$2:$2,0),FALSE),INDIRECT("'"&$E37&"'!"&"$A:$K"),8,FALSE) -> 5.008844317 | I37: =VLOOKUP(VLOOKUP($F37,'Data BI Summary'!$A:$F,MATCH(I$1,'Data BI Summary'!$2:$2,0),FALSE),INDIRECT("'"&$E37&"'!"&"$A:$K"),9,FALSE) -> 0.02581460845 | J37: =VLOOKUP(VLOOKUP($F37,'Data BI Summary'!$A:$F,MATCH(J$1,'Data BI Summary'!$2:$2,0),FALSE),INDIRECT("'"&$E37&"'!"&"$A:$K"),8,FALSE) -> 5.659994078 | K37: =VLOOKUP(VLOOKUP($F37,'Data BI Summary'!$A:$F,MATCH(K$1,'Data BI Summary'!$2:$2,0),FALSE),INDIRECT("'"&$E37&"'!"&"$A:$K"),9,FALSE) -> 0.0256005527 | L37: WAHSP
B38: Average | C38: =VLOOKUP(A$37,'Data Billing Quantities'!A:P,MATCH($B38&" kWh",'Data Billing Quantities'!$4:$4,0),FALSE) -> 1709 | D38: =VLOOKUP(A$37,'Data Billing Quantities'!A:P,MATCH($B38&" kW",'Data Billing Quantities'!$4:$4,0),FALSE) -> 12 | E38: BI_Dgen_Avg | F38: BI Template_Demand | G38: =VLOOKUP(VLOOKUP($F38,'Data BI Summary'!$A:$F,MATCH(G$1,'Data BI Summary'!$2:$2,0),FALSE),INDIRECT("'"&$E38&"'!"&"$A:$K"),4,FALSE) -> 647.9478784 | H38: =VLOOKUP(VLOOKUP($F38,'Data BI Summary'!$A:$F,MATCH(H$1,'Data BI Summary'!$2:$2,0),FALSE),INDIRECT("'"&$E38&"'!"&"$A:$K"),8,FALSE) -> 12.6772 | I38: =VLOOKUP(VLOOKUP($F38,'Data BI Summary'!$A:$F,MATCH(I$1,'Data BI Summary'!$2:$2,0),FALSE),INDIRECT("'"&$E38&"'!"&"$A:$K"),9,FALSE) -> 0.03932079112 | J38: =VLOOKUP(VLOOKUP($F38,'Data BI Summary'!$A:$F,MATCH(J$1,'Data BI Summary'!$2:$2,0),FALSE),INDIRECT("'"&$E38&"'!"&"$A:$K"),8,FALSE) -> 14.325236 | K38: =VLOOKUP(VLOOKUP($F38,'Data BI Summary'!$A:$F,MATCH(K$1,'Data BI Summary'!$2:$2,0),FALSE),INDIRECT("'"&$E38&"'!"&"$A:$K"),9,FALSE) -> 0.02210862398
B39: High | C39: =VLOOKUP(A$37,'Data Billing Quantities'!A:P,MATCH($B39&" kWh",'Data Billing Quantities'!$4:$4,0),FALSE) -> 8490 | D39: =VLOOKUP(A$37,'Data Billing Quantities'!A:P,MATCH($B39&" kW",'Data Billing Quantities'!$4:$4,0),FALSE) -> 45 | E39: BI_Dgen_High | F39: BI Template_Demand | G39: =VLOOKUP(VLOOKUP($F39,'Data BI Summary'!$A:$F,MATCH(G$1,'Data BI Summary'!$2:$2,0),FALSE),INDIRECT("'"&$E39&"'!"&"$A:$K"),4,FALSE) -> 2132.06556 | H39: =VLOOKUP(VLOOKUP($F39,'Data BI Summary'!$A:$F,MATCH(H$1,'Data BI Summary'!$2:$2,0),FALSE),INDIRECT("'"&$E39&"'!"&"$A:$K"),8,FALSE) -> 33.817 | I39: =VLOOKUP(VLOOKUP($F39,'Data BI Summary'!$A:$F,MATCH(I$1,'Data BI Summary'!$2:$2,0),FALSE),INDIRECT("'"&$E39&"'!"&"$A:$K"),9,FALSE) -> 0.05011188003 | J39: =VLOOKUP(VLOOKUP($F39,'Data BI Summary'!$A:$F,MATCH(J$1,'Data BI Summary'!$2:$2,0),FALSE),INDIRECT("'"&$E39&"'!"&"$A:$K"),8,FALSE) -> 38.21321 | K39: =VLOOKUP(VLOOKUP($F39,'Data BI Summary'!$A:$F,MATCH(K$1,'Data BI Summary'!$2:$2,0),FALSE),INDIRECT("'"&$E39&"'!"&"$A:$K"),9,FALSE) -> 0.01792309333
A40: ST | B40: Low | C40: =VLOOKUP(A$40,'Data Billing Quantities'!A:P,MATCH($B40&" kWh",'Data Billing Quantities'!$4:$4,0),FALSE) -> 88780 | D40: =VLOOKUP(A$40,'Data Billing Quantities'!A:P,MATCH($B40&" kW",'Data Billing Quantities'!$4:$4,0),FALSE) -> 500 | E40: BI_ST_Low | F40: BI Template_Demand | G40: =VLOOKUP(VLOOKUP($F40,'Data BI Summary'!$A:$F,MATCH(G$1,'Data BI Summary'!$2:$2,0),FALSE),INDIRECT("'"&$E40&"'!"&"$A:$K"),4,FALSE) -> 19185.57178 | H40: =VLOOKUP(VLOOKUP($F40,'Data BI Summary'!$A:$F,MATCH(H$1,'Data BI Summary'!$2:$2,0),FALSE),INDIRECT("'"&$E40&"'!"&"$A:$K"),8,FALSE) -> 32.6 | I40: =VLOOKUP(VLOOKUP($F40,'Data BI Summary'!$A:$F,MATCH(I$1,'Data BI Summary'!$2:$2,0),FALSE),INDIRECT("'"&$E40&"'!"&"$A:$K"),9,FALSE) -> 0.01773576324 | J40: =VLOOKUP(VLOOKUP($F40,'Data BI Summary'!$A:$F,MATCH(J$1,'Data BI Summary'!$2:$2,0),FALSE),INDIRECT("'"&$E40&"'!"&"$A:$K"),8,FALSE) -> 36.838 | K40: =VLOOKUP(VLOOKUP($F40,'Data BI Summary'!$A:$F,MATCH(K$1,'Data BI Summary'!$2:$2,0),FALSE),INDIRECT("'"&$E40&"'!"&"$A:$K"),9,FALSE) -> 0.001920088722 | L40: WAHSP
B41: Average | C41: =VLOOKUP(A$40,'Data Billing Quantities'!A:P,MATCH($B41&" kWh",'Data Billing Quantities'!$4:$4,0),FALSE) -> 1373443 | D41: =VLOOKUP(A$40,'Data Billing Quantities'!A:P,MATCH($B41&" kW",'Data Billing Quantities'!$4:$4,0),FALSE) -> 2808 | E41: BI_ST_Avg | F41: BI Template_Demand | G41: =VLOOKUP(VLOOKUP($F41,'Data BI Summary'!$A:$F,MATCH(G$1,'Data BI Summary'!$2:$2,0),FALSE),INDIRECT("'"&$E41&"'!"&"$A:$K"),4,FALSE) -> 226289.4607 | H41: =VLOOKUP(VLOOKUP($F41,'Data BI Summary'!$A:$F,MATCH(H$1,'Data BI Summary'!$2:$2,0),FALSE),INDIRECT("'"&$E41&"'!"&"$A:$K"),8,FALSE) -> 99.9936 | I41: =VLOOKUP(VLOOKUP($F41,'Data BI Summary'!$A:$F,MATCH(I$1,'Data BI Summary'!$2:$2,0),FALSE),INDIRECT("'"&$E41&"'!"&"$A:$K"),9,FALSE) -> 0.02466439294 | J41: =VLOOKUP(VLOOKUP($F41,'Data BI Summary'!$A:$F,MATCH(J$1,'Data BI Summary'!$2:$2,0),FALSE),INDIRECT("'"&$E41&"'!"&"$A:$K"),8,FALSE) -> 112.992768 | K41: =VLOOKUP(VLOOKUP($F41,'Data BI Summary'!$A:$F,MATCH(K$1,'Data BI Summary'!$2:$2,0),FALSE),INDIRECT("'"&$E41&"'!"&"$A:$K"),9,FALSE) -> 0.0004993284603
B42: High | C42: =VLOOKUP(A$40,'Data Billing Quantities'!A:P,MATCH($B42&" kWh",'Data Billing Quantities'!$4:$4,0),FALSE) -> 2641420 | D42: =VLOOKUP(A$40,'Data Billing Quantities'!A:P,MATCH($B42&" kW",'Data Billing Quantities'!$4:$4,0),FALSE) -> 13730 | E42: BI_ST_High | F42: BI Template_Demand | G42: =VLOOKUP(VLOOKUP($F42,'Data BI Summary'!$A:$F,MATCH(G$1,'Data BI Summary'!$2:$2,0),FALSE),INDIRECT("'"&$E42&"'!"&"$A:$K"),4,FALSE) -> 519255.3237 | H42: =VLOOKUP(VLOOKUP($F42,'Data BI Summary'!$A:$F,MATCH(H$1,'Data BI Summary'!$2:$2,0),FALSE),INDIRECT("'"&$E42&"'!"&"$A:$K"),8,FALSE) -> 418.916 | I42: =VLOOKUP(VLOOKUP($F42,'Data BI Summary'!$A:$F,MATCH(I$1,'Data BI Summary'!$2:$2,0),FALSE),INDIRECT("'"&$E42&"'!"&"$A:$K"),9,FALSE) -> 0.02339123686 | J42: =VLOOKUP(VLOOKUP($F42,'Data BI Summary'!$A:$F,MATCH(J$1,'Data BI Summary'!$2:$2,0),FALSE),INDIRECT("'"&$E42&"'!"&"$A:$K"),8,FALSE) -> 473.37508 | K42: =VLOOKUP(VLOOKUP($F42,'Data BI Summary'!$A:$F,MATCH(K$1,'Data BI Summary'!$2:$2,0),FALSE),INDIRECT("'"&$E42&"'!"&"$A:$K"),9,FALSE) -> 0.0009116422275

Sheet Bill Impact Summary_Acq (hidden)
A1: Rate Class | B1: Consumption Level | C1: Monthly Consumption (kWh) | D1: Monthly Peak (kW) | E1: BI Worksheet | F1: Template | G1: Current Total Bill | H1: Change in DX Bill ($) | I1: Change in DX Bill (%) | J1: Change in Total Bill ($) | K1: Change in Total Bill (%) | L1: Commodity Price Used
A2: WHSI to HONI
A3: AUR-WHSI | B3: Low | C3: =VLOOKUP(A$3,'Data Billing Quantities'!A:P,MATCH($B3&" kWh",'Data Billing Quantities'!$4:$4,0),FALSE) -> 310 | E3: BI_WHSI_AUR_Low | F3: BI Template_EnergyWHSI | G3: =VLOOKUP(VLOOKUP($F3,'Data BI Summary'!$A:$F,MATCH(G$1,'Data BI Summary'!$2:$2,0),FALSE),INDIRECT("'"&$E3&"'!"&"$A:$K"),4,FALSE) -> 67.96157067 | H3: =VLOOKUP(VLOOKUP($F3,'Data BI Summary'!$A:$F,MATCH(H$1,'Data BI Summary'!$2:$2,0),FALSE),INDIRECT("'"&$E3&"'!"&"$A:$K"),8,FALSE) -> 1.367 | I3: =VLOOKUP(VLOOKUP($F3,'Data BI Summary'!$A:$F,MATCH(I$1,'Data BI Summary'!$2:$2,0),FALSE),INDIRECT("'"&$E3&"'!"&"$A:$K"),9,FALSE) -> 0.04497006382 | J3: =VLOOKUP(VLOOKUP($F3,'Data BI Summary'!$A:$F,MATCH(J$1,'Data BI Summary'!$2:$2,0),FALSE),INDIRECT("'"&$E3&"'!"&"$A:$K"),8,FALSE) -> 1.286347 | K3: =VLOOKUP(VLOOKUP($F3,'Data BI Summary'!$A:$F,MATCH(K$1,'Data BI Summary'!$2:$2,0),FALSE),INDIRECT("'"&$E3&"'!"&"$A:$K"),9,FALSE) -> 0.01892756432 | L3: TOU
B4: Typical | C4: =VLOOKUP(A$3,'Data Billing Quantities'!A:P,MATCH($B4&" kWh",'Data Billing Quantities'!$4:$4,0),FALSE) -> 750 | E4: BI_WHSI_AUR_Typical | F4: BI Template_EnergyWHSI | G4: =VLOOKUP(VLOOKUP($F4,'Data BI Summary'!$A:$F,MATCH(G$1,'Data BI Summary'!$2:$2,0),FALSE),INDIRECT("'"&$E4&"'!"&"$A:$K"),4,FALSE) -> 122.6451832 | H4: =VLOOKUP(VLOOKUP($F4,'Data BI Summary'!$A:$F,MATCH(H$1,'Data BI Summary'!$2:$2,0),FALSE),INDIRECT("'"&$E4&"'!"&"$A:$K"),8,FALSE) -> 1.235 | I4: =VLOOKUP(VLOOKUP($F4,'Data BI Summary'!$A:$F,MATCH(I$1,'Data BI Summary'!$2:$2,0),FALSE),INDIRECT("'"&$E4&"'!"&"$A:$K"),9,FALSE) -> 0.04074562851 | J4: =VLOOKUP(VLOOKUP($F4,'Data BI Summary'!$A:$F,MATCH(J$1,'Data BI Summary'!$2:$2,0),FALSE),INDIRECT("'"&$E4&"'!"&"$A:$K"),8,FALSE) -> 1.162135 | K4: =VLOOKUP(VLOOKUP($F4,'Data BI Summary'!$A:$F,MATCH(K$1,'Data BI Summary'!$2:$2,0),FALSE),INDIRECT("'"&$E4&"'!"&"$A:$K"),9,FALSE) -> 0.009475586152
B5: Average | C5: =VLOOKUP(A$3,'Data Billing Quantities'!A:P,MATCH($B5&" kWh",'Data Billing Quantities'!$4:$4,0),FALSE) -> 636 | E5: BI_WHSI_AUR_Avg | F5: BI Template_EnergyWHSI | G5: =VLOOKUP(VLOOKUP($F5,'Data BI Summary'!$A:$F,MATCH(G$1,'Data BI Summary'!$2:$2,0),FALSE),INDIRECT("'"&$E5&"'!"&"$A:$K"),4,FALSE) -> 108.4771564 | H5: =VLOOKUP(VLOOKUP($F5,'Data BI Summary'!$A:$F,MATCH(H$1,'Data BI Summary'!$2:$2,0),FALSE),INDIRECT("'"&$E5&"'!"&"$A:$K"),8,FALSE) -> 1.2692 | I5: =VLOOKUP(VLOOKUP($F5,'Data BI Summary'!$A:$F,MATCH(I$1,'Data BI Summary'!$2:$2,0),FALSE),INDIRECT("'"&$E5&"'!"&"$A:$K"),9,FALSE) -> 0.04184249393 | J5: =VLOOKUP(VLOOKUP($F5,'Data BI Summary'!$A:$F,MATCH(J$1,'Data BI Summary'!$2:$2,0),FALSE),INDIRECT("'"&$E5&"'!"&"$A:$K"),8,FALSE) -> 1.1943172 | K5: =VLOOKUP(VLOOKUP($F5,'Data BI Summary'!$A:$F,MATCH(K$1,'Data BI Summary'!$2:$2,0),FALSE),INDIRECT("'"&$E5&"'!"&"$A:$K"),9,FALSE) -> 0.01100984982
B6: High | C6: =VLOOKUP(A$3,'Data Billing Quantities'!A:P,MATCH($B6&" kWh",'Data Billing Quantities'!$4:$4,0),FALSE) -> 1160 | E6: BI_WHSI_AUR_High | F6: BI Template_EnergyWHSI | G6: =VLOOKUP(VLOOKUP($F6,'Data BI Summary'!$A:$F,MATCH(G$1,'Data BI Summary'!$2:$2,0),FALSE),INDIRECT("'"&$E6&"'!"&"$A:$K"),4,FALSE) -> 173.6003677 | H6: =VLOOKUP(VLOOKUP($F6,'Data BI Summary'!$A:$F,MATCH(H$1,'Data BI Summary'!$2:$2,0),FALSE),INDIRECT("'"&$E6&"'!"&"$A:$K"),8,FALSE) -> 1.112 | I6: =VLOOKUP(VLOOKUP($F6,'Data BI Summary'!$A:$F,MATCH(I$1,'Data BI Summary'!$2:$2,0),FALSE),INDIRECT("'"&$E6&"'!"&"$A:$K"),9,FALSE) -> 0.03678708482 | J6: =VLOOKUP(VLOOKUP($F6,'Data BI Summary'!$A:$F,MATCH(J$1,'Data BI Summary'!$2:$2,0),FALSE),INDIRECT("'"&$E6&"'!"&"$A:$K"),8,FALSE) -> 1.046392 | K6: =VLOOKUP(VLOOKUP($F6,'Data BI Summary'!$A:$F,MATCH(K$1,'Data BI Summary'!$2:$2,0),FALSE),INDIRECT("'"&$E6&"'!"&"$A:$K"),9,FALSE) -> 0.00602759092
A7: AUGe-WHSI | B7: Low | C7: =VLOOKUP(A$7,'Data Billing Quantities'!A:P,MATCH($B7&" kWh",'Data Billing Quantities'!$4:$4,0),FALSE) -> 190 | E7: BI_WHSI_AUGe_Low | F7: BI Template_EnergyWHSI | G7: =VLOOKUP(VLOOKUP($F7,'Data BI Summary'!$A:$F,MATCH(G$1,'Data BI Summary'!$2:$2,0),FALSE),INDIRECT("'"&$E7&"'!"&"$A:$K"),4,FALSE) -> 51.61964129 | H7: =VLOOKUP(VLOOKUP($F7,'Data BI Summary'!$A:$F,MATCH(H$1,'Data BI Summary'!$2:$2,0),FALSE),INDIRECT("'"&$E7&"'!"&"$A:$K"),8,FALSE) -> 0.74 | I7: =VLOOKUP(VLOOKUP($F7,'Data BI Summary'!$A:$F,MATCH(I$1,'Data BI Summary'!$2:$2,0),FALSE),INDIRECT("'"&$E7&"'!"&"$A:$K"),9,FALSE) -> 0.0248355484 | J7: =VLOOKUP(VLOOKUP($F7,'Data BI Summary'!$A:$F,MATCH(J$1,'Data BI Summary'!$2:$2,0),FALSE),INDIRECT("'"&$E7&"'!"&"$A:$K"),8,FALSE) -> 0.69634 | K7: =VLOOKUP(VLOOKUP($F7,'Data BI Summary'!$A:$F,MATCH(K$1,'Data BI Summary'!$2:$2,0),FALSE),INDIRECT("'"&$E7&"'!"&"$A:$K"),9,FALSE) -> 0.0134898264 | L7: TOU
B8: Typical | C8: =VLOOKUP(A$7,'Data Billing Quantities'!A:P,MATCH($B8&" kWh",'Data Billing Quantities'!$4:$4,0),FALSE) -> 2000 | E8: BI_WHSI_AUGe_Typical | F8: BI Template_EnergyWHSI | G8: =VLOOKUP(VLOOKUP($F8,'Data BI Summary'!$A:$F,MATCH(G$1,'Data BI Summary'!$2:$2,0),FALSE),INDIRECT("'"&$E8&"'!"&"$A:$K"),4,FALSE) -> 300.2538283 | H8: =VLOOKUP(VLOOKUP($F8,'Data BI Summary'!$A:$F,MATCH(H$1,'Data BI Summary'!$2:$2,0),FALSE),INDIRECT("'"&$E8&"'!"&"$A:$K"),8,FALSE) -> -4.69 | I8: =VLOOKUP(VLOOKUP($F8,'Data BI Summary'!$A:$F,MATCH(I$1,'Data BI Summary'!$2:$2,0),FALSE),INDIRECT("'"&$E8&"'!"&"$A:$K"),9,FALSE) -> -0.07432646593 | J8: =VLOOKUP(VLOOKUP($F8,'Data BI Summary'!$A:$F,MATCH(J$1,'Data BI Summary'!$2:$2,0),FALSE),INDIRECT("'"&$E8&"'!"&"$A:$K"),8,FALSE) -> -4.41329 | K8: =VLOOKUP(VLOOKUP($F8,'Data BI Summary'!$A:$F,MATCH(K$1,'Data BI Summary'!$2:$2,0),FALSE),INDIRECT("'"&$E8&"'!"&"$A:$K"),9,FALSE) -> -0.01469853032
B9: Average | C9: =VLOOKUP(A$7,'Data Billing Quantities'!A:P,MATCH($B9&" kWh",'Data Billing Quantities'!$4:$4,0),FALSE) -> 2471 | E9: BI_WHSI_AUGe_Avg | F9: BI Template_EnergyWHSI | G9: =VLOOKUP(VLOOKUP($F9,'Data BI Summary'!$A:$F,MATCH(G$1,'Data BI Summary'!$2:$2,0),FALSE),INDIRECT("'"&$E9&"'!"&"$A:$K"),4,FALSE) -> 364.9536637 | H9: =VLOOKUP(VLOOKUP($F9,'Data BI Summary'!$A:$F,MATCH(H$1,'Data BI Summary'!$2:$2,0),FALSE),INDIRECT("'"&$E9&"'!"&"$A:$K"),8,FALSE) -> -6.103 | I9: =VLOOKUP(VLOOKUP($F9,'Data BI Summary'!$A:$F,MATCH(I$1,'Data BI Summary'!$2:$2,0),FALSE),INDIRECT("'"&$E9&"'!"&"$A:$K"),9,FALSE) -> -0.08503979578 | J9: =VLOOKUP(VLOOKUP($F9,'Data BI Summary'!$A:$F,MATCH(J$1,'Data BI Summary'!$2:$2,0),FALSE),INDIRECT("'"&$E9&"'!"&"$A:$K"),8,FALSE) -> -5.742923 | K9: =VLOOKUP(VLOOKUP($F9,'Data BI Summary'!$A:$F,MATCH(K$1,'Data BI Summary'!$2:$2,0),FALSE),INDIRECT("'"&$E9&"'!"&"$A:$K"),9,FALSE) -> -0.01573603329
B10: High | C10: =VLOOKUP(A$7,'Data Billing Quantities'!A:P,MATCH($B10&" kWh",'Data Billing Quantities'!$4:$4,0),FALSE) -> 7240 | E10: BI_WHSI_AUGe_High | F10: BI Template_EnergyWHSI | G10: =VLOOKUP(VLOOKUP($F10,'Data BI Summary'!$A:$F,MATCH(G$1,'Data BI Summary'!$2:$2,0),FALSE),INDIRECT("'"&$E10&"'!"&"$A:$K"),4,FALSE) -> 1020.056668 | H10: =VLOOKUP(VLOOKUP($F10,'Data BI Summary'!$A:$F,MATCH(H$1,'Data BI Summary'!$2:$2,0),FALSE),INDIRECT("'"&$E10&"'!"&"$A:$K"),8,FALSE) -> -20.41 | I10: =VLOOKUP(VLOOKUP($F10,'Data BI Summary'!$A:$F,MATCH(I$1,'Data BI Summary'!$2:$2,0),FALSE),INDIRECT("'"&$E10&"'!"&"$A:$K"),9,FALSE) -> -0.1279495474 | J10: =VLOOKUP(VLOOKUP($F10,'Data BI Summary'!$A:$F,MATCH(J$1,'Data BI Summary'!$2:$2,0),FALSE),INDIRECT("'"&$E10&"'!"&"$A:$K"),8,FALSE) -> -19.20581 | K10: =VLOOKUP(VLOOKUP($F10,'Data BI Summary'!$A:$F,MATCH(K$1,'Data BI Summary'!$2:$2,0),FALSE),INDIRECT("'"&$E10&"'!"&"$A:$K"),9,FALSE) -> -0.01882817945
A11: AUGd-WHSI | B11: Low | C11: =VLOOKUP(A$11,'Data Billing Quantities'!A:P,MATCH($B11&" kWh",'Data Billing Quantities'!$4:$4,0),FALSE) -> 9370 | D11: =VLOOKUP(A$11,'Data Billing Quantities'!A:P,MATCH(B11&" kW",'Data Billing Quantities'!$4:$4,0),FALSE) -> 50 | E11: BI_WHSI_AUGd_Low | F11: BI Template_DemandWHSI | G11: =VLOOKUP(VLOOKUP($F11,'Data BI Summary'!$A:$F,MATCH(G$1,'Data BI Summary'!$2:$2,0),FALSE),INDIRECT("'"&$E11&"'!"&"$A:$K"),4,FALSE) -> 1990.179627 | H11: =VLOOKUP(VLOOKUP($F11,'Data BI Summary'!$A:$F,MATCH(H$1,'Data BI Summary'!$2:$2,0),FALSE),INDIRECT("'"&$E11&"'!"&"$A:$K"),8,FALSE) -> -20.6 | I11: =VLOOKUP(VLOOKUP($F11,'Data BI Summary'!$A:$F,MATCH(I$1,'Data BI Summary'!$2:$2,0),FALSE),INDIRECT("'"&$E11&"'!"&"$A:$K"),9,FALSE) -> -0.0663540083 | J11: =VLOOKUP(VLOOKUP($F11,'Data BI Summary'!$A:$F,MATCH(J$1,'Data BI Summary'!$2:$2,0),FALSE),INDIRECT("'"&$E11&"'!"&"$A:$K"),8,FALSE) -> -23.278 | K11: =VLOOKUP(VLOOKUP($F11,'Data BI Summary'!$A:$F,MATCH(K$1,'Data BI Summary'!$2:$2,0),FALSE),INDIRECT("'"&$E11&"'!"&"$A:$K"),9,FALSE) -> -0.01169643166 | L11: WAHSP
B12: Average | C12: =VLOOKUP(A$11,'Data Billing Quantities'!A:P,MATCH($B12&" kWh",'Data Billing Quantities'!$4:$4,0),FALSE) -> 47636 | D12: =VLOOKUP(A$11,'Data Billing Quantities'!A:P,MATCH(B12&" kW",'Data Billing Quantities'!$4:$4,0),FALSE) -> 134 | E12: BI_WHSI_AUGd_Avg | F12: BI Template_DemandWHSI | G12: =VLOOKUP(VLOOKUP($F12,'Data BI Summary'!$A:$F,MATCH(G$1,'Data BI Summary'!$2:$2,0),FALSE),INDIRECT("'"&$E12&"'!"&"$A:$K"),4,FALSE) -> 8243.925311 | H12: =VLOOKUP(VLOOKUP($F12,'Data BI Summary'!$A:$F,MATCH(H$1,'Data BI Summary'!$2:$2,0),FALSE),INDIRECT("'"&$E12&"'!"&"$A:$K"),8,FALSE) -> -68.1104 | I12: =VLOOKUP(VLOOKUP($F12,'Data BI Summary'!$A:$F,MATCH(I$1,'Data BI Summary'!$2:$2,0),FALSE),INDIRECT("'"&$E12&"'!"&"$A:$K"),9,FALSE) -> -0.124225986 | J12: =VLOOKUP(VLOOKUP($F12,'Data BI Summary'!$A:$F,MATCH(J$1,'Data BI Summary'!$2:$2,0),FALSE),INDIRECT("'"&$E12&"'!"&"$A:$K"),8,FALSE) -> -76.964752 | K12: =VLOOKUP(VLOOKUP($F12,'Data BI Summary'!$A:$F,MATCH(K$1,'Data BI Summary'!$2:$2,0),FALSE),INDIRECT("'"&$E12&"'!"&"$A:$K"),9,FALSE) -> -0.009335935139
B13: High | C13: =VLOOKUP(A$11,'Data Billing Quantities'!A:P,MATCH($B13&" kWh",'Data Billing Quantities'!$4:$4,0),FALSE) -> 137890 | D13: =VLOOKUP(A$11,'Data Billing Quantities'!A:P,MATCH(B13&" kW",'Data Billing Quantities'!$4:$4,0),FALSE) -> 340 | E13: BI_WHSI_AUGd_High | F13: BI Template_DemandWHSI | G13: =VLOOKUP(VLOOKUP($F13,'Data BI Summary'!$A:$F,MATCH(G$1,'Data BI Summary'!$2:$2,0),FALSE),INDIRECT("'"&$E13&"'!"&"$A:$K"),4,FALSE) -> 23068.48045 | H13: =VLOOKUP(VLOOKUP($F13,'Data BI Summary'!$A:$F,MATCH(H$1,'Data BI Summary'!$2:$2,0),FALSE),INDIRECT("'"&$E13&"'!"&"$A:$K"),8,FALSE) -> -184.624 | I13: =VLOOKUP(VLOOKUP($F13,'Data BI Summary'!$A:$F,MATCH(I$1,'Data BI Summary'!$2:$2,0),FALSE),INDIRECT("'"&$E13&"'!"&"$A:$K"),9,FALSE) -> -0.1628047452 | J13: =VLOOKUP(VLOOKUP($F13,'Data BI Summary'!$A:$F,MATCH(J$1,'Data BI Summary'!$2:$2,0),FALSE),INDIRECT("'"&$E13&"'!"&"$A:$K"),8,FALSE) -> -208.62512 | K13: =VLOOKUP(VLOOKUP($F13,'Data BI Summary'!$A:$F,MATCH(K$1,'Data BI Summary'!$2:$2,0),FALSE),INDIRECT("'"&$E13&"'!"&"$A:$K"),9,FALSE) -> -0.009043730488
A14: St Lgt-WHSI | B14: Average | C14: =VLOOKUP(A14,'Data Billing Quantities'!A:P,MATCH($B14&" kWh",'Data Billing Quantities'!$4:$4,0),FALSE) -> 37079 | E14: BI_WHSI_StLgt_Avg | F14: BI Template_unmWHSI | G14: =VLOOKUP(VLOOKUP($F14,'Data BI Summary'!$A:$F,MATCH(G$1,'Data BI Summary'!$2:$2,0),FALSE),INDIRECT("'"&$E14&"'!"&"$A:$K"),4,FALSE) -> 10462.75302 | H14: =VLOOKUP(VLOOKUP($F14,'Data BI Summary'!$A:$F,MATCH(H$1,'Data BI Summary'!$2:$2,0),FALSE),INDIRECT("'"&$E14&"'!"&"$A:$K"),8,FALSE) -> 196.6187 | I14: =VLOOKUP(VLOOKUP($F14,'Data BI Summary'!$A:$F,MATCH(I$1,'Data BI Summary'!$2:$2,0),FALSE),INDIRECT("'"&$E14&"'!"&"$A:$K"),9,FALSE) -> 0.0485678671 | J14: =VLOOKUP(VLOOKUP($F14,'Data BI Summary'!$A:$F,MATCH(J$1,'Data BI Summary'!$2:$2,0),FALSE),INDIRECT("'"&$E14&"'!"&"$A:$K"),8,FALSE) -> 222.179131 | K14: =VLOOKUP(VLOOKUP($F14,'Data BI Summary'!$A:$F,MATCH(K$1,'Data BI Summary'!$2:$2,0),FALSE),INDIRECT("'"&$E14&"'!"&"$A:$K"),9,FALSE) -> 0.02123524569 | L14: Two-tier RPP
A15: USL-WHSI | B15: Average | C15: =VLOOKUP(A15,'Data Billing Quantities'!A:P,MATCH($B15&" kWh",'Data Billing Quantities'!$4:$4,0),FALSE) -> 1349 | E15: BI_WHSI_USL_Avg | F15: BI Template_unmWHSI | G15: =VLOOKUP(VLOOKUP($F15,'Data BI Summary'!$A:$F,MATCH(G$1,'Data BI Summary'!$2:$2,0),FALSE),INDIRECT("'"&$E15&"'!"&"$A:$K"),4,FALSE) -> 228.7303801 | H15: =VLOOKUP(VLOOKUP($F15,'Data BI Summary'!$A:$F,MATCH(H$1,'Data BI Summary'!$2:$2,0),FALSE),INDIRECT("'"&$E15&"'!"&"$A:$K"),8,FALSE) -> 2.4741 | I15: =VLOOKUP(VLOOKUP($F15,'Data BI Summary'!$A:$F,MATCH(I$1,'Data BI Summary'!$2:$2,0),FALSE),INDIRECT("'"&$E15&"'!"&"$A:$K"),9,FALSE) -> 0.039157251 | J15: =VLOOKUP(VLOOKUP($F15,'Data BI Summary'!$A:$F,MATCH(J$1,'Data BI Summary'!$2:$2,0),FALSE),INDIRECT("'"&$E15&"'!"&"$A:$K"),8,FALSE) -> 2.3281281 | K15: =VLOOKUP(VLOOKUP($F15,'Data BI Summary'!$A:$F,MATCH(K$1,'Data BI Summary'!$2:$2,0),FALSE),INDIRECT("'"&$E15&"'!"&"$A:$K"),9,FALSE) -> 0.01017848219 | L15: Two-tier RPP
A16: ST-WHSI | B16: Average | C16: =VLOOKUP(A16,'Data Billing Quantities'!A:P,MATCH($B16&" kWh",'Data Billing Quantities'!$4:$4,0),FALSE) -> 895853 | D16: =VLOOKUP(A$16,'Data Billing Quantities'!A:P,MATCH(B16&" kW",'Data Billing Quantities'!$4:$4,0),FALSE) -> 3301 | E16: BI_WHSI_ST_Avg | F16: BI Template_DemandWHSI | G16: =VLOOKUP(VLOOKUP($F16,'Data BI Summary'!$A:$F,MATCH(G$1,'Data BI Summary'!$2:$2,0),FALSE),INDIRECT("'"&$E16&"'!"&"$A:$K"),4,FALSE) -> 166186.1488 | H16: =VLOOKUP(VLOOKUP($F16,'Data BI Summary'!$A:$F,MATCH(H$1,'Data BI Summary'!$2:$2,0),FALSE),INDIRECT("'"&$E16&"'!"&"$A:$K"),8,FALSE) -> -1509.1825 | I16: =VLOOKUP(VLOOKUP($F16,'Data BI Summary'!$A:$F,MATCH(I$1,'Data BI Summary'!$2:$2,0),FALSE),INDIRECT("'"&$E16&"'!"&"$A:$K"),9,FALSE) -> -0.1946609551 | J16: =VLOOKUP(VLOOKUP($F16,'Data BI Summary'!$A:$F,MATCH(J$1,'Data BI Summary'!$2:$2,0),FALSE),INDIRECT("'"&$E16&"'!"&"$A:$K"),8,FALSE) -> -1705.376225 | K16: =VLOOKUP(VLOOKUP($F16,'Data BI Summary'!$A:$F,MATCH(K$1,'Data BI Summary'!$2:$2,0),FALSE),INDIRECT("'"&$E16&"'!"&"$A:$K"),9,FALSE) -> -0.01026184334 | L16: WAHSP
A17: NPDI to HONI
A18: AR-NPDI | B18: Low | C18: =VLOOKUP(A$18,'Data Billing Quantities'!A:P,MATCH($B18&" kWh",'Data Billing Quantities'!$4:$4,0),FALSE) -> 290 | E18: BI_NPDI_AR_Low | F18: BI Template_EnergyNPDI | G18: =VLOOKUP(VLOOKUP($F18,'Data BI Summary'!$A:$F,MATCH(G$1,'Data BI Summary'!$2:$2,0),FALSE),INDIRECT("'"&$E18&"'!"&"$A:$K"),4,FALSE) -> 72.10400756 | H18: =VLOOKUP(VLOOKUP($F18,'Data BI Summary'!$A:$F,MATCH(H$1,'Data BI Summary'!$2:$2,0),FALSE),INDIRECT("'"&$E18&"'!"&"$A:$K"),8,FALSE) -> 1.664 | I18: =VLOOKUP(VLOOKUP($F18,'Data BI Summary'!$A:$F,MATCH(I$1,'Data BI Summary'!$2:$2,0),FALSE),INDIRECT("'"&$E18&"'!"&"$A:$K"),9,FALSE) -> 0.04503261075 | J18: =VLOOKUP(VLOOKUP($F18,'Data BI Summary'!$A:$F,MATCH(J$1,'Data BI Summary'!$2:$2,0),FALSE),INDIRECT("'"&$E18&"'!"&"$A:$K"),8,FALSE) -> 1.565824 | K18: =VLOOKUP(VLOOKUP($F18,'Data BI Summary'!$A:$F,MATCH(K$1,'Data BI Summary'!$2:$2,0),FALSE),INDIRECT("'"&$E18&"'!"&"$A:$K"),9,FALSE) -> 0.02171618545 | L18: TOU
B19: Typical | C19: =VLOOKUP(A$18,'Data Billing Quantities'!A:P,MATCH($B19&" kWh",'Data Billing Quantities'!$4:$4,0),FALSE) -> 750 | E19: BI_NPDI_AR_Typical | F19: BI Template_EnergyNPDI | G19: =VLOOKUP(VLOOKUP($F19,'Data BI Summary'!$A:$F,MATCH(G$1,'Data BI Summary'!$2:$2,0),FALSE),INDIRECT("'"&$E19&"'!"&"$A:$K"),4,FALSE) -> 130.0548196 | H19: =VLOOKUP(VLOOKUP($F19,'Data BI Summary'!$A:$F,MATCH(H$1,'Data BI Summary'!$2:$2,0),FALSE),INDIRECT("'"&$E19&"'!"&"$A:$K"),8,FALSE) -> 1.48 | I19: =VLOOKUP(VLOOKUP($F19,'Data BI Summary'!$A:$F,MATCH(I$1,'Data BI Summary'!$2:$2,0),FALSE),INDIRECT("'"&$E19&"'!"&"$A:$K"),9,FALSE) -> 0.04010296708 | J19: =VLOOKUP(VLOOKUP($F19,'Data BI Summary'!$A:$F,MATCH(J$1,'Data BI Summary'!$2:$2,0),FALSE),INDIRECT("'"&$E19&"'!"&"$A:$K"),8,FALSE) -> 1.39268 | K19: =VLOOKUP(VLOOKUP($F19,'Data BI Summary'!$A:$F,MATCH(K$1,'Data BI Summary'!$2:$2,0),FALSE),INDIRECT("'"&$E19&"'!"&"$A:$K"),9,FALSE) -> 0.01070840746
B20: Average | C20: =VLOOKUP(A$18,'Data Billing Quantities'!A:P,MATCH($B20&" kWh",'Data Billing Quantities'!$4:$4,0),FALSE) -> 692 | E20: BI_NPDI_AR_Avg | F20: BI Template_EnergyNPDI | G20: =VLOOKUP(VLOOKUP($F20,'Data BI Summary'!$A:$F,MATCH(G$1,'Data BI Summary'!$2:$2,0),FALSE),INDIRECT("'"&$E20&"'!"&"$A:$K"),4,FALSE) -> 122.747978 | H20: =VLOOKUP(VLOOKUP($F20,'Data BI Summary'!$A:$F,MATCH(H$1,'Data BI Summary'!$2:$2,0),FALSE),INDIRECT("'"&$E20&"'!"&"$A:$K"),8,FALSE) -> 1.5032 | I20: =VLOOKUP(VLOOKUP($F20,'Data BI Summary'!$A:$F,MATCH(I$1,'Data BI Summary'!$2:$2,0),FALSE),INDIRECT("'"&$E20&"'!"&"$A:$K"),9,FALSE) -> 0.0407252078 | J20: =VLOOKUP(VLOOKUP($F20,'Data BI Summary'!$A:$F,MATCH(J$1,'Data BI Summary'!$2:$2,0),FALSE),INDIRECT("'"&$E20&"'!"&"$A:$K"),8,FALSE) -> 1.4145112 | K20: =VLOOKUP(VLOOKUP($F20,'Data BI Summary'!$A:$F,MATCH(K$1,'Data BI Summary'!$2:$2,0),FALSE),INDIRECT("'"&$E20&"'!"&"$A:$K"),9,FALSE) -> 0.01152370265
B21: High | C21: =VLOOKUP(A$18,'Data Billing Quantities'!A:P,MATCH($B21&" kWh",'Data Billing Quantities'!$4:$4,0),FALSE) -> 1230 | E21: BI_NPDI_AR_High | F21: BI Template_EnergyNPDI | G21: =VLOOKUP(VLOOKUP($F21,'Data BI Summary'!$A:$F,MATCH(G$1,'Data BI Summary'!$2:$2,0),FALSE),INDIRECT("'"&$E21&"'!"&"$A:$K"),4,FALSE) -> 190.5252321 | H21: =VLOOKUP(VLOOKUP($F21,'Data BI Summary'!$A:$F,MATCH(H$1,'Data BI Summary'!$2:$2,0),FALSE),INDIRECT("'"&$E21&"'!"&"$A:$K"),8,FALSE) -> 1.288 | I21: =VLOOKUP(VLOOKUP($F21,'Data BI Summary'!$A:$F,MATCH(I$1,'Data BI Summary'!$2:$2,0),FALSE),INDIRECT("'"&$E21&"'!"&"$A:$K"),9,FALSE) -> 0.03494587188 | J21: =VLOOKUP(VLOOKUP($F21,'Data BI Summary'!$A:$F,MATCH(J$1,'Data BI Summary'!$2:$2,0),FALSE),INDIRECT("'"&$E21&"'!"&"$A:$K"),8,FALSE) -> 1.212008 | K21: =VLOOKUP(VLOOKUP($F21,'Data BI Summary'!$A:$F,MATCH(K$1,'Data BI Summary'!$2:$2,0),FALSE),INDIRECT("'"&$E21&"'!"&"$A:$K"),9,FALSE) -> 0.006361404139
A22: AGSe-NPDI | B22: Low | C22: =VLOOKUP(A$22,'Data Billing Quantities'!A:P,MATCH($B22&" kWh",'Data Billing Quantities'!$4:$4,0),FALSE) -> 110 | E22: BI_NPDI_AGSe_Low | F22: BI Template_EnergyNPDI | G22: =VLOOKUP(VLOOKUP($F22,'Data BI Summary'!$A:$F,MATCH(G$1,'Data BI Summary'!$2:$2,0),FALSE),INDIRECT("'"&$E22&"'!"&"$A:$K"),4,FALSE) -> 53.29440524 | H22: =VLOOKUP(VLOOKUP($F22,'Data BI Summary'!$A:$F,MATCH(H$1,'Data BI Summary'!$2:$2,0),FALSE),INDIRECT("'"&$E22&"'!"&"$A:$K"),8,FALSE) -> 0.939 | I22: =VLOOKUP(VLOOKUP($F22,'Data BI Summary'!$A:$F,MATCH(I$1,'Data BI Summary'!$2:$2,0),FALSE),INDIRECT("'"&$E22&"'!"&"$A:$K"),9,FALSE) -> 0.02261397298 | J22: =VLOOKUP(VLOOKUP($F22,'Data BI Summary'!$A:$F,MATCH(J$1,'Data BI Summary'!$2:$2,0),FALSE),INDIRECT("'"&$E22&"'!"&"$A:$K"),8,FALSE) -> 0.883599 | K22: =VLOOKUP(VLOOKUP($F22,'Data BI Summary'!$A:$F,MATCH(K$1,'Data BI Summary'!$2:$2,0),FALSE),INDIRECT("'"&$E22&"'!"&"$A:$K"),9,FALSE) -> 0.01657958272 | L22: TOU
B23: Typical | C23: =VLOOKUP(A$22,'Data Billing Quantities'!A:P,MATCH($B23&" kWh",'Data Billing Quantities'!$4:$4,0),FALSE) -> 2000 | E23: BI_NPDI_AGSe_Typical | F23: BI Template_EnergyNPDI | G23: =VLOOKUP(VLOOKUP($F23,'Data BI Summary'!$A:$F,MATCH(G$1,'Data BI Summary'!$2:$2,0),FALSE),INDIRECT("'"&$E23&"'!"&"$A:$K"),4,FALSE) -> 329.3795098 | H23: =VLOOKUP(VLOOKUP($F23,'Data BI Summary'!$A:$F,MATCH(H$1,'Data BI Summary'!$2:$2,0),FALSE),INDIRECT("'"&$E23&"'!"&"$A:$K"),8,FALSE) -> -12.48 | I23: =VLOOKUP(VLOOKUP($F23,'Data BI Summary'!$A:$F,MATCH(I$1,'Data BI Summary'!$2:$2,0),FALSE),INDIRECT("'"&$E23&"'!"&"$A:$K"),9,FALSE) -> -0.1396910678 | J23: =VLOOKUP(VLOOKUP($F23,'Data BI Summary'!$A:$F,MATCH(J$1,'Data BI Summary'!$2:$2,0),FALSE),INDIRECT("'"&$E23&"'!"&"$A:$K"),8,FALSE) -> -11.74368 | K23: =VLOOKUP(VLOOKUP($F23,'Data BI Summary'!$A:$F,MATCH(K$1,'Data BI Summary'!$2:$2,0),FALSE),INDIRECT("'"&$E23&"'!"&"$A:$K"),9,FALSE) -> -0.03565394826
B24: Average | C24: =VLOOKUP(A$22,'Data Billing Quantities'!A:P,MATCH($B24&" kWh",'Data Billing Quantities'!$4:$4,0),FALSE) -> 2377 | E24: BI_NPDI_AGSe_Avg | F24: BI Template_EnergyNPDI | G24: =VLOOKUP(VLOOKUP($F24,'Data BI Summary'!$A:$F,MATCH(G$1,'Data BI Summary'!$2:$2,0),FALSE),INDIRECT("'"&$E24&"'!"&"$A:$K"),4,FALSE) -> 384.4504539 | H24: =VLOOKUP(VLOOKUP($F24,'Data BI Summary'!$A:$F,MATCH(H$1,'Data BI Summary'!$2:$2,0),FALSE),INDIRECT("'"&$E24&"'!"&"$A:$K"),8,FALSE) -> -15.1567 | I24: =VLOOKUP(VLOOKUP($F24,'Data BI Summary'!$A:$F,MATCH(I$1,'Data BI Summary'!$2:$2,0),FALSE),INDIRECT("'"&$E24&"'!"&"$A:$K"),9,FALSE) -> -0.1532867238 | J24: =VLOOKUP(VLOOKUP($F24,'Data BI Summary'!$A:$F,MATCH(J$1,'Data BI Summary'!$2:$2,0),FALSE),INDIRECT("'"&$E24&"'!"&"$A:$K"),8,FALSE) -> -14.2624547 | K24: =VLOOKUP(VLOOKUP($F24,'Data BI Summary'!$A:$F,MATCH(K$1,'Data BI Summary'!$2:$2,0),FALSE),INDIRECT("'"&$E24&"'!"&"$A:$K"),9,FALSE) -> -0.0370982907
B25: High | C25: =VLOOKUP(A$22,'Data Billing Quantities'!A:P,MATCH($B25&" kWh",'Data Billing Quantities'!$4:$4,0),FALSE) -> 6410 | E25: BI_NPDI_AGSe_High | F25: BI Template_EnergyNPDI | G25: =VLOOKUP(VLOOKUP($F25,'Data BI Summary'!$A:$F,MATCH(G$1,'Data BI Summary'!$2:$2,0),FALSE),INDIRECT("'"&$E25&"'!"&"$A:$K"),4,FALSE) -> 973.578087 | H25: =VLOOKUP(VLOOKUP($F25,'Data BI Summary'!$A:$F,MATCH(H$1,'Data BI Summary'!$2:$2,0),FALSE),INDIRECT("'"&$E25&"'!"&"$A:$K"),8,FALSE) -> -43.791 | I25: =VLOOKUP(VLOOKUP($F25,'Data BI Summary'!$A:$F,MATCH(I$1,'Data BI Summary'!$2:$2,0),FALSE),INDIRECT("'"&$E25&"'!"&"$A:$K"),9,FALSE) -> -0.2179600125 | J25: =VLOOKUP(VLOOKUP($F25,'Data BI Summary'!$A:$F,MATCH(J$1,'Data BI Summary'!$2:$2,0),FALSE),INDIRECT("'"&$E25&"'!"&"$A:$K"),8,FALSE) -> -41.207331 | K25: =VLOOKUP(VLOOKUP($F25,'Data BI Summary'!$A:$F,MATCH(K$1,'Data BI Summary'!$2:$2,0),FALSE),INDIRECT("'"&$E25&"'!"&"$A:$K"),9,FALSE) -> -0.0423256558
A26: AGSd-NPDI | B26: Low | C26: =VLOOKUP(A$26,'Data Billing Quantities'!A:P,MATCH($B26&" kWh",'Data Billing Quantities'!$4:$4,0),FALSE) -> 13020 | D26: =VLOOKUP(A$26,'Data Billing Quantities'!A:P,MATCH(B26&" kW",'Data Billing Quantities'!$4:$4,0),FALSE) -> 55 | E26: BI_NPDI_AGSd_Low | F26: BI Template_DemandNPDI | G26: =VLOOKUP(VLOOKUP($F26,'Data BI Summary'!$A:$F,MATCH(G$1,'Data BI Summary'!$2:$2,0),FALSE),INDIRECT("'"&$E26&"'!"&"$A:$K"),4,FALSE) -> 2676.012748 | H26: =VLOOKUP(VLOOKUP($F26,'Data BI Summary'!$A:$F,MATCH(H$1,'Data BI Summary'!$2:$2,0),FALSE),INDIRECT("'"&$E26&"'!"&"$A:$K"),8,FALSE) -> 6.7925 | I26: =VLOOKUP(VLOOKUP($F26,'Data BI Summary'!$A:$F,MATCH(I$1,'Data BI Summary'!$2:$2,0),FALSE),INDIRECT("'"&$E26&"'!"&"$A:$K"),9,FALSE) -> 0.01589134229 | J26: =VLOOKUP(VLOOKUP($F26,'Data BI Summary'!$A:$F,MATCH(J$1,'Data BI Summary'!$2:$2,0),FALSE),INDIRECT("'"&$E26&"'!"&"$A:$K"),8,FALSE) -> 7.675525 | K26: =VLOOKUP(VLOOKUP($F26,'Data BI Summary'!$A:$F,MATCH(K$1,'Data BI Summary'!$2:$2,0),FALSE),INDIRECT("'"&$E26&"'!"&"$A:$K"),9,FALSE) -> 0.002868269221 | L26: WAHSP
B27: Average | C27: =VLOOKUP(A$26,'Data Billing Quantities'!A:P,MATCH($B27&" kWh",'Data Billing Quantities'!$4:$4,0),FALSE) -> 70294 | D27: =VLOOKUP(A$26,'Data Billing Quantities'!A:P,MATCH(B27&" kW",'Data Billing Quantities'!$4:$4,0),FALSE) -> 181 | E27: BI_NPDI_AGSd_Avg | F27: BI Template_DemandNPDI | G27: =VLOOKUP(VLOOKUP($F27,'Data BI Summary'!$A:$F,MATCH(G$1,'Data BI Summary'!$2:$2,0),FALSE),INDIRECT("'"&$E27&"'!"&"$A:$K"),4,FALSE) -> 12314.08904 | H27: =VLOOKUP(VLOOKUP($F27,'Data BI Summary'!$A:$F,MATCH(H$1,'Data BI Summary'!$2:$2,0),FALSE),INDIRECT("'"&$E27&"'!"&"$A:$K"),8,FALSE) -> 3.9575 | I27: =VLOOKUP(VLOOKUP($F27,'Data BI Summary'!$A:$F,MATCH(I$1,'Data BI Summary'!$2:$2,0),FALSE),INDIRECT("'"&$E27&"'!"&"$A:$K"),9,FALSE) -> 0.004125267191 | J27: =VLOOKUP(VLOOKUP($F27,'Data BI Summary'!$A:$F,MATCH(J$1,'Data BI Summary'!$2:$2,0),FALSE),INDIRECT("'"&$E27&"'!"&"$A:$K"),8,FALSE) -> 4.471975 | K27: =VLOOKUP(VLOOKUP($F27,'Data BI Summary'!$A:$F,MATCH(K$1,'Data BI Summary'!$2:$2,0),FALSE),INDIRECT("'"&$E27&"'!"&"$A:$K"),9,FALSE) -> 0.0003631592224
B28: High | C28: =VLOOKUP(A$26,'Data Billing Quantities'!A:P,MATCH($B28&" kWh",'Data Billing Quantities'!$4:$4,0),FALSE) -> 129420 | D28: =VLOOKUP(A$26,'Data Billing Quantities'!A:P,MATCH(B28&" kW",'Data Billing Quantities'!$4:$4,0),FALSE) -> 300 | E28: BI_NPDI_AGSd_High | F28: BI Template_DemandNPDI | G28: =VLOOKUP(VLOOKUP($F28,'Data BI Summary'!$A:$F,MATCH(G$1,'Data BI Summary'!$2:$2,0),FALSE),INDIRECT("'"&$E28&"'!"&"$A:$K"),4,FALSE) -> 22148.87807 | H28: =VLOOKUP(VLOOKUP($F28,'Data BI Summary'!$A:$F,MATCH(H$1,'Data BI Summary'!$2:$2,0),FALSE),INDIRECT("'"&$E28&"'!"&"$A:$K"),8,FALSE) -> 1.28 | I28: =VLOOKUP(VLOOKUP($F28,'Data BI Summary'!$A:$F,MATCH(I$1,'Data BI Summary'!$2:$2,0),FALSE),INDIRECT("'"&$E28&"'!"&"$A:$K"),9,FALSE) -> 0.0008778210288 | J28: =VLOOKUP(VLOOKUP($F28,'Data BI Summary'!$A:$F,MATCH(J$1,'Data BI Summary'!$2:$2,0),FALSE),INDIRECT("'"&$E28&"'!"&"$A:$K"),8,FALSE) -> 1.4464 | K28: =VLOOKUP(VLOOKUP($F28,'Data BI Summary'!$A:$F,MATCH(K$1,'Data BI Summary'!$2:$2,0),FALSE),INDIRECT("'"&$E28&"'!"&"$A:$K"),9,FALSE) -> 6.530353345e-05
A29: St Lgt-NPDI | B29: Average | C29: =VLOOKUP(A$29,'Data Billing Quantities'!A:P,MATCH($B29&" kWh",'Data Billing Quantities'!$4:$4,0),FALSE) -> 11389 | E29: BI_NPDI_StLgt_Avg | F29: BI Template_unmNPDI | G29: =VLOOKUP(VLOOKUP($F29,'Data BI Summary'!$A:$F,MATCH(G$1,'Data BI Summary'!$2:$2,0),FALSE),INDIRECT("'"&$E29&"'!"&"$A:$K"),4,FALSE) -> 2665.702395 | H29: =VLOOKUP(VLOOKUP($F29,'Data BI Summary'!$A:$F,MATCH(H$1,'Data BI Summary'!$2:$2,0),FALSE),INDIRECT("'"&$E29&"'!"&"$A:$K"),8,FALSE) -> 60.4617 | I29: =VLOOKUP(VLOOKUP($F29,'Data BI Summary'!$A:$F,MATCH(I$1,'Data BI Summary'!$2:$2,0),FALSE),INDIRECT("'"&$E29&"'!"&"$A:$K"),9,FALSE) -> 0.04872036882 | J29: =VLOOKUP(VLOOKUP($F29,'Data BI Summary'!$A:$F,MATCH(J$1,'Data BI Summary'!$2:$2,0),FALSE),INDIRECT("'"&$E29&"'!"&"$A:$K"),8,FALSE) -> 56.8944597 | K29: =VLOOKUP(VLOOKUP($F29,'Data BI Summary'!$A:$F,MATCH(K$1,'Data BI Summary'!$2:$2,0),FALSE),INDIRECT("'"&$E29&"'!"&"$A:$K"),9,FALSE) -> 0.02134314011 | L29: Two-tier RPP
A30: Sen Lgt-NPDI | B30: Average | C30: =VLOOKUP(A$30,'Data Billing Quantities'!A:P,MATCH($B30&" kWh",'Data Billing Quantities'!$4:$4,0),FALSE) -> 108 | E30: BI_NPDI_SenLgt_Avg | F30: BI Template_unmNPDI | G30: =VLOOKUP(VLOOKUP($F30,'Data BI Summary'!$A:$F,MATCH(G$1,'Data BI Summary'!$2:$2,0),FALSE),INDIRECT("'"&$E30&"'!"&"$A:$K"),4,FALSE) -> 30.93145291 | H30: =VLOOKUP(VLOOKUP($F30,'Data BI Summary'!$A:$F,MATCH(H$1,'Data BI Summary'!$2:$2,0),FALSE),INDIRECT("'"&$E30&"'!"&"$A:$K"),8,FALSE) -> 0.9624 | I30: =VLOOKUP(VLOOKUP($F30,'Data BI Summary'!$A:$F,MATCH(I$1,'Data BI Summary'!$2:$2,0),FALSE),INDIRECT("'"&$E30&"'!"&"$A:$K"),9,FALSE) -> 0.04957758088 | J30: =VLOOKUP(VLOOKUP($F30,'Data BI Summary'!$A:$F,MATCH(J$1,'Data BI Summary'!$2:$2,0),FALSE),INDIRECT("'"&$E30&"'!"&"$A:$K"),8,FALSE) -> 0.9056184 | K30: =VLOOKUP(VLOOKUP($F30,'Data BI Summary'!$A:$F,MATCH(K$1,'Data BI Summary'!$2:$2,0),FALSE),INDIRECT("'"&$E30&"'!"&"$A:$K"),9,FALSE) -> 0.02927823671 | L30: Two-tier RPP
A31: USL-NPDI | B31: Average | C31: =VLOOKUP(A$31,'Data Billing Quantities'!A:P,MATCH($B31&" kWh",'Data Billing Quantities'!$4:$4,0),FALSE) -> 904 | E31: BI_NPDI_USL_Avg | F31: BI Template_unmNPDI | G31: =VLOOKUP(VLOOKUP($F31,'Data BI Summary'!$A:$F,MATCH(G$1,'Data BI Summary'!$2:$2,0),FALSE),INDIRECT("'"&$E31&"'!"&"$A:$K"),4,FALSE) -> 159.7514441 | H31: =VLOOKUP(VLOOKUP($F31,'Data BI Summary'!$A:$F,MATCH(H$1,'Data BI Summary'!$2:$2,0),FALSE),INDIRECT("'"&$E31&"'!"&"$A:$K"),8,FALSE) -> 2.0736 | I31: =VLOOKUP(VLOOKUP($F31,'Data BI Summary'!$A:$F,MATCH(I$1,'Data BI Summary'!$2:$2,0),FALSE),INDIRECT("'"&$E31&"'!"&"$A:$K"),9,FALSE) -> 0.03887251704 | J31: =VLOOKUP(VLOOKUP($F31,'Data BI Summary'!$A:$F,MATCH(J$1,'Data BI Summary'!$2:$2,0),FALSE),INDIRECT("'"&$E31&"'!"&"$A:$K"),8,FALSE) -> 1.9512576 | K31: =VLOOKUP(VLOOKUP($F31,'Data BI Summary'!$A:$F,MATCH(K$1,'Data BI Summary'!$2:$2,0),FALSE),INDIRECT("'"&$E31&"'!"&"$A:$K"),9,FALSE) -> 0.01221433466 | L31: Two-tier RPP
A32: HCHI to HONI
A33: AR-HCHI | B33: Low | C33: =VLOOKUP(A$33,'Data Billing Quantities'!A:P,MATCH($B33&" kWh",'Data Billing Quantities'!$4:$4,0),FALSE) -> 250 | E33: BI_HCHI_AR_Low | F33: BI Template_EnergyHCHI | G33: =VLOOKUP(VLOOKUP($F33,'Data BI Summary'!$A:$F,MATCH(G$1,'Data BI Summary'!$2:$2,0),FALSE),INDIRECT("'"&$E33&"'!"&"$A:$K"),4,FALSE) -> 67.06480652 | H33: =VLOOKUP(VLOOKUP($F33,'Data BI Summary'!$A:$F,MATCH(H$1,'Data BI Summary'!$2:$2,0),FALSE),INDIRECT("'"&$E33&"'!"&"$A:$K"),8,FALSE) -> 1.705 | I33: =VLOOKUP(VLOOKUP($F33,'Data BI Summary'!$A:$F,MATCH(I$1,'Data BI Summary'!$2:$2,0),FALSE),INDIRECT("'"&$E33&"'!"&"$A:$K"),9,FALSE) -> 0.04613719388 | J33: =VLOOKUP(VLOOKUP($F33,'Data BI Summary'!$A:$F,MATCH(J$1,'Data BI Summary'!$2:$2,0),FALSE),INDIRECT("'"&$E33&"'!"&"$A:$K"),8,FALSE) -> 1.604405 | K33: =VLOOKUP(VLOOKUP($F33,'Data BI Summary'!$A:$F,MATCH(K$1,'Data BI Summary'!$2:$2,0),FALSE),INDIRECT("'"&$E33&"'!"&"$A:$K"),9,FALSE) -> 0.02392320329 | L33: TOU
B34: Typical | C34: =VLOOKUP(A$33,'Data Billing Quantities'!A:P,MATCH($B34&" kWh",'Data Billing Quantities'!$4:$4,0),FALSE) -> 750 | E34: BI_HCHI_AR_Typical | F34: BI Template_EnergyHCHI | G34: =VLOOKUP(VLOOKUP($F34,'Data BI Summary'!$A:$F,MATCH(G$1,'Data BI Summary'!$2:$2,0),FALSE),INDIRECT("'"&$E34&"'!"&"$A:$K"),4,FALSE) -> 130.0548196 | H34: =VLOOKUP(VLOOKUP($F34,'Data BI Summary'!$A:$F,MATCH(H$1,'Data BI Summary'!$2:$2,0),FALSE),INDIRECT("'"&$E34&"'!"&"$A:$K"),8,FALSE) -> 1.555 | I34: =VLOOKUP(VLOOKUP($F34,'Data BI Summary'!$A:$F,MATCH(I$1,'Data BI Summary'!$2:$2,0),FALSE),INDIRECT("'"&$E34&"'!"&"$A:$K"),9,FALSE) -> 0.04213521203 | J34: =VLOOKUP(VLOOKUP($F34,'Data BI Summary'!$A:$F,MATCH(J$1,'Data BI Summary'!$2:$2,0),FALSE),INDIRECT("'"&$E34&"'!"&"$A:$K"),8,FALSE) -> 1.463255 | K34: =VLOOKUP(VLOOKUP($F34,'Data BI Summary'!$A:$F,MATCH(K$1,'Data BI Summary'!$2:$2,0),FALSE),INDIRECT("'"&$E34&"'!"&"$A:$K"),9,FALSE) -> 0.01125106324
B35: Average | C35: =VLOOKUP(A$33,'Data Billing Quantities'!A:P,MATCH($B35&" kWh",'Data Billing Quantities'!$4:$4,0),FALSE) -> 742 | E35: BI_HCHI_AR_Avg | F35: BI Template_EnergyHCHI | G35: =VLOOKUP(VLOOKUP($F35,'Data BI Summary'!$A:$F,MATCH(G$1,'Data BI Summary'!$2:$2,0),FALSE),INDIRECT("'"&$E35&"'!"&"$A:$K"),4,FALSE) -> 129.0469794 | H35: =VLOOKUP(VLOOKUP($F35,'Data BI Summary'!$A:$F,MATCH(H$1,'Data BI Summary'!$2:$2,0),FALSE),INDIRECT("'"&$E35&"'!"&"$A:$K"),8,FALSE) -> 1.5574 | I35: =VLOOKUP(VLOOKUP($F35,'Data BI Summary'!$A:$F,MATCH(I$1,'Data BI Summary'!$2:$2,0),FALSE),INDIRECT("'"&$E35&"'!"&"$A:$K"),9,FALSE) -> 0.0421993291 | J35: =VLOOKUP(VLOOKUP($F35,'Data BI Summary'!$A:$F,MATCH(J$1,'Data BI Summary'!$2:$2,0),FALSE),INDIRECT("'"&$E35&"'!"&"$A:$K"),8,FALSE) -> 1.4655134 | K35: =VLOOKUP(VLOOKUP($F35,'Data BI Summary'!$A:$F,MATCH(K$1,'Data BI Summary'!$2:$2,0),FALSE),INDIRECT("'"&$E35&"'!"&"$A:$K"),9,FALSE) -> 0.01135643319
B36: High | C36: =VLOOKUP(A$33,'Data Billing Quantities'!A:P,MATCH($B36&" kWh",'Data Billing Quantities'!$4:$4,0),FALSE) -> 1410 | E36: BI_HCHI_AR_High | F36: BI Template_EnergyHCHI | G36: =VLOOKUP(VLOOKUP($F36,'Data BI Summary'!$A:$F,MATCH(G$1,'Data BI Summary'!$2:$2,0),FALSE),INDIRECT("'"&$E36&"'!"&"$A:$K"),4,FALSE) -> 213.2016368 | H36: =VLOOKUP(VLOOKUP($F36,'Data BI Summary'!$A:$F,MATCH(H$1,'Data BI Summary'!$2:$2,0),FALSE),INDIRECT("'"&$E36&"'!"&"$A:$K"),8,FALSE) -> 1.357 | I36: =VLOOKUP(VLOOKUP($F36,'Data BI Summary'!$A:$F,MATCH(I$1,'Data BI Summary'!$2:$2,0),FALSE),INDIRECT("'"&$E36&"'!"&"$A:$K"),9,FALSE) -> 0.03683596189 | J36: =VLOOKUP(VLOOKUP($F36,'Data BI Summary'!$A:$F,MATCH(J$1,'Data BI Summary'!$2:$2,0),FALSE),INDIRECT("'"&$E36&"'!"&"$A:$K"),8,FALSE) -> 1.276937 | K36: =VLOOKUP(VLOOKUP($F36,'Data BI Summary'!$A:$F,MATCH(K$1,'Data BI Summary'!$2:$2,0),FALSE),INDIRECT("'"&$E36&"'!"&"$A:$K"),9,FALSE) -> 0.005989339572
A37: AGSe-HCHI | B37: Low | C37: =VLOOKUP(A$37,'Data Billing Quantities'!A:P,MATCH($B37&" kWh",'Data Billing Quantities'!$4:$4,0),FALSE) -> 90 | E37: BI_HCHI_AGSe_Low | F37: BI Template_EnergyHCHI | G37: =VLOOKUP(VLOOKUP($F37,'Data BI Summary'!$A:$F,MATCH(G$1,'Data BI Summary'!$2:$2,0),FALSE),INDIRECT("'"&$E37&"'!"&"$A:$K"),4,FALSE) -> 49.67841174 | H37: =VLOOKUP(VLOOKUP($F37,'Data BI Summary'!$A:$F,MATCH(H$1,'Data BI Summary'!$2:$2,0),FALSE),INDIRECT("'"&$E37&"'!"&"$A:$K"),8,FALSE) -> 1.828 | I37: =VLOOKUP(VLOOKUP($F37,'Data BI Summary'!$A:$F,MATCH(I$1,'Data BI Summary'!$2:$2,0),FALSE),INDIRECT("'"&$E37&"'!"&"$A:$K"),9,FALSE) -> 0.04538345043 | J37: =VLOOKUP(VLOOKUP($F37,'Data BI Summary'!$A:$F,MATCH(J$1,'Data BI Summary'!$2:$2,0),FALSE),INDIRECT("'"&$E37&"'!"&"$A:$K"),8,FALSE) -> 1.720148 | K37: =VLOOKUP(VLOOKUP($F37,'Data BI Summary'!$A:$F,MATCH(K$1,'Data BI Summary'!$2:$2,0),FALSE),INDIRECT("'"&$E37&"'!"&"$A:$K"),9,FALSE) -> 0.03462566414 | L37: TOU
B38: Typical | C38: =VLOOKUP(A$37,'Data Billing Quantities'!A:P,MATCH($B38&" kWh",'Data Billing Quantities'!$4:$4,0),FALSE) -> 2000 | E38: BI_HCHI_AGSe_Typical | F38: BI Template_EnergyHCHI | G38: =VLOOKUP(VLOOKUP($F38,'Data BI Summary'!$A:$F,MATCH(G$1,'Data BI Summary'!$2:$2,0),FALSE),INDIRECT("'"&$E38&"'!"&"$A:$K"),4,FALSE) -> 313.9471098 | H38: =VLOOKUP(VLOOKUP($F38,'Data BI Summary'!$A:$F,MATCH(H$1,'Data BI Summary'!$2:$2,0),FALSE),INDIRECT("'"&$E38&"'!"&"$A:$K"),8,FALSE) -> 4.12 | I38: =VLOOKUP(VLOOKUP($F38,'Data BI Summary'!$A:$F,MATCH(I$1,'Data BI Summary'!$2:$2,0),FALSE),INDIRECT("'"&$E38&"'!"&"$A:$K"),9,FALSE) -> 0.05648478201 | J38: =VLOOKUP(VLOOKUP($F38,'Data BI Summary'!$A:$F,MATCH(J$1,'Data BI Summary'!$2:$2,0),FALSE),INDIRECT("'"&$E38&"'!"&"$A:$K"),8,FALSE) -> 3.87692 | K38: =VLOOKUP(VLOOKUP($F38,'Data BI Summary'!$A:$F,MATCH(K$1,'Data BI Summary'!$2:$2,0),FALSE),INDIRECT("'"&$E38&"'!"&"$A:$K"),9,FALSE) -> 0.01234895904
B39: Average | C39: =VLOOKUP(A$37,'Data Billing Quantities'!A:P,MATCH($B39&" kWh",'Data Billing Quantities'!$4:$4,0),FALSE) -> 2261 | E39: BI_HCHI_AGSe_Avg | F39: BI Template_EnergyHCHI | G39: =VLOOKUP(VLOOKUP($F39,'Data BI Summary'!$A:$F,MATCH(G$1,'Data BI Summary'!$2:$2,0),FALSE),INDIRECT("'"&$E39&"'!"&"$A:$K"),4,FALSE) -> 350.0592198 | H39: =VLOOKUP(VLOOKUP($F39,'Data BI Summary'!$A:$F,MATCH(H$1,'Data BI Summary'!$2:$2,0),FALSE),INDIRECT("'"&$E39&"'!"&"$A:$K"),8,FALSE) -> 4.4332 | I39: =VLOOKUP(VLOOKUP($F39,'Data BI Summary'!$A:$F,MATCH(I$1,'Data BI Summary'!$2:$2,0),FALSE),INDIRECT("'"&$E39&"'!"&"$A:$K"),9,FALSE) -> 0.05727419186 | J39: =VLOOKUP(VLOOKUP($F39,'Data BI Summary'!$A:$F,MATCH(J$1,'Data BI Summary'!$2:$2,0),FALSE),INDIRECT("'"&$E39&"'!"&"$A:$K"),8,FALSE) -> 4.1716412 | K39: =VLOOKUP(VLOOKUP($F39,'Data BI Summary'!$A:$F,MATCH(K$1,'Data BI Summary'!$2:$2,0),FALSE),INDIRECT("'"&$E39&"'!"&"$A:$K"),9,FALSE) -> 0.01191695851
B40: High | C40: =VLOOKUP(A$37,'Data Billing Quantities'!A:P,MATCH($B40&" kWh",'Data Billing Quantities'!$4:$4,0),FALSE) -> 5430 | E40: BI_HCHI_AGSe_High | F40: BI Template_EnergyHCHI | G40: =VLOOKUP(VLOOKUP($F40,'Data BI Summary'!$A:$F,MATCH(G$1,'Data BI Summary'!$2:$2,0),FALSE),INDIRECT("'"&$E40&"'!"&"$A:$K"),4,FALSE) -> 788.5238816 | H40: =VLOOKUP(VLOOKUP($F40,'Data BI Summary'!$A:$F,MATCH(H$1,'Data BI Summary'!$2:$2,0),FALSE),INDIRECT("'"&$E40&"'!"&"$A:$K"),8,FALSE) -> 8.236 | I40: =VLOOKUP(VLOOKUP($F40,'Data BI Summary'!$A:$F,MATCH(I$1,'Data BI Summary'!$2:$2,0),FALSE),INDIRECT("'"&$E40&"'!"&"$A:$K"),9,FALSE) -> 0.06258691572 | J40: =VLOOKUP(VLOOKUP($F40,'Data BI Summary'!$A:$F,MATCH(J$1,'Data BI Summary'!$2:$2,0),FALSE),INDIRECT("'"&$E40&"'!"&"$A:$K"),8,FALSE) -> 7.750076 | K40: =VLOOKUP(VLOOKUP($F40,'Data BI Summary'!$A:$F,MATCH(K$1,'Data BI Summary'!$2:$2,0),FALSE),INDIRECT("'"&$E40&"'!"&"$A:$K"),9,FALSE) -> 0.009828587543
A41: AGSd-HCHI | B41: Low | C41: =VLOOKUP(A$41,'Data Billing Quantities'!A:P,MATCH($B41&" kWh",'Data Billing Quantities'!$4:$4,0),FALSE) -> 10880 | D41: =VLOOKUP(A$41,'Data Billing Quantities'!A:P,MATCH(B41&" kW",'Data Billing Quantities'!$4:$4,0),FALSE) -> 55 | E41: BI_HCHI_AGSd_Low | F41: BI Template_DemandHCHI | G41: =VLOOKUP(VLOOKUP($F41,'Data BI Summary'!$A:$F,MATCH(G$1,'Data BI Summary'!$2:$2,0),FALSE),INDIRECT("'"&$E41&"'!"&"$A:$K"),4,FALSE) -> 2342.234118 | H41: =VLOOKUP(VLOOKUP($F41,'Data BI Summary'!$A:$F,MATCH(H$1,'Data BI Summary'!$2:$2,0),FALSE),INDIRECT("'"&$E41&"'!"&"$A:$K"),8,FALSE) -> 25.6465 | I41: =VLOOKUP(VLOOKUP($F41,'Data BI Summary'!$A:$F,MATCH(I$1,'Data BI Summary'!$2:$2,0),FALSE),INDIRECT("'"&$E41&"'!"&"$A:$K"),9,FALSE) -> 0.06270537897 | J41: =VLOOKUP(VLOOKUP($F41,'Data BI Summary'!$A:$F,MATCH(J$1,'Data BI Summary'!$2:$2,0),FALSE),INDIRECT("'"&$E41&"'!"&"$A:$K"),8,FALSE) -> 28.980545 | K41: =VLOOKUP(VLOOKUP($F41,'Data BI Summary'!$A:$F,MATCH(K$1,'Data BI Summary'!$2:$2,0),FALSE),INDIRECT("'"&$E41&"'!"&"$A:$K"),9,FALSE) -> 0.01237303512 | L41: WAHSP
B42: Average | C42: =VLOOKUP(A$41,'Data Billing Quantities'!A:P,MATCH($B42&" kWh",'Data Billing Quantities'!$4:$4,0),FALSE) -> 57529 | D42: =VLOOKUP(A$41,'Data Billing Quantities'!A:P,MATCH(B42&" kW",'Data Billing Quantities'!$4:$4,0),FALSE) -> 175 | E42: BI_HCHI_AGSd_Avg | F42: BI Template_DemandHCHI | G42: =VLOOKUP(VLOOKUP($F42,'Data BI Summary'!$A:$F,MATCH(G$1,'Data BI Summary'!$2:$2,0),FALSE),INDIRECT("'"&$E42&"'!"&"$A:$K"),4,FALSE) -> 10323.52513 | H42: =VLOOKUP(VLOOKUP($F42,'Data BI Summary'!$A:$F,MATCH(H$1,'Data BI Summary'!$2:$2,0),FALSE),INDIRECT("'"&$E42&"'!"&"$A:$K"),8,FALSE) -> 64.0825 | I42: =VLOOKUP(VLOOKUP($F42,'Data BI Summary'!$A:$F,MATCH(I$1,'Data BI Summary'!$2:$2,0),FALSE),INDIRECT("'"&$E42&"'!"&"$A:$K"),9,FALSE) -> 0.07301936157 | J42: =VLOOKUP(VLOOKUP($F42,'Data BI Summary'!$A:$F,MATCH(J$1,'Data BI Summary'!$2:$2,0),FALSE),INDIRECT("'"&$E42&"'!"&"$A:$K"),8,FALSE) -> 72.413225 | K42: =VLOOKUP(VLOOKUP($F42,'Data BI Summary'!$A:$F,MATCH(K$1,'Data BI Summary'!$2:$2,0),FALSE),INDIRECT("'"&$E42&"'!"&"$A:$K"),9,FALSE) -> 0.007014389376
B43: High | C43: =VLOOKUP(A$41,'Data Billing Quantities'!A:P,MATCH($B43&" kWh",'Data Billing Quantities'!$4:$4,0),FALSE) -> 135160 | D43: =VLOOKUP(A$41,'Data Billing Quantities'!A:P,MATCH(B43&" kW",'Data Billing Quantities'!$4:$4,0),FALSE) -> 375 | E43: BI_HCHI_AGSd_High | F43: BI Template_DemandHCHI | G43: =VLOOKUP(VLOOKUP($F43,'Data BI Summary'!$A:$F,MATCH(G$1,'Data BI Summary'!$2:$2,0),FALSE),INDIRECT("'"&$E43&"'!"&"$A:$K"),4,FALSE) -> 23608.6111 | H43: =VLOOKUP(VLOOKUP($F43,'Data BI Summary'!$A:$F,MATCH(H$1,'Data BI Summary'!$2:$2,0),FALSE),INDIRECT("'"&$E43&"'!"&"$A:$K"),8,FALSE) -> 128.1425 | I43: =VLOOKUP(VLOOKUP($F43,'Data BI Summary'!$A:$F,MATCH(I$1,'Data BI Summary'!$2:$2,0),FALSE),INDIRECT("'"&$E43&"'!"&"$A:$K"),9,FALSE) -> 0.07725440524 | J43: =VLOOKUP(VLOOKUP($F43,'Data BI Summary'!$A:$F,MATCH(J$1,'Data BI Summary'!$2:$2,0),FALSE),INDIRECT("'"&$E43&"'!"&"$A:$K"),8,FALSE) -> 144.801025 | K43: =VLOOKUP(VLOOKUP($F43,'Data BI Summary'!$A:$F,MATCH(K$1,'Data BI Summary'!$2:$2,0),FALSE),INDIRECT("'"&$E43&"'!"&"$A:$K"),9,FALSE) -> 0.006133398716
A44: St Lgt-HCHI | B44: Average | C44: =VLOOKUP(A$44,'Data Billing Quantities'!A:P,MATCH($B44&" kWh",'Data Billing Quantities'!$4:$4,0),FALSE) -> 31001 | E44: BI_HCHI_StLgt_Avg | F44: BI Template_unmHCHI | G44: =VLOOKUP(VLOOKUP($F44,'Data BI Summary'!$A:$F,MATCH(G$1,'Data BI Summary'!$2:$2,0),FALSE),INDIRECT("'"&$E44&"'!"&"$A:$K"),4,FALSE) -> 8742.434691 | H44: =VLOOKUP(VLOOKUP($F44,'Data BI Summary'!$A:$F,MATCH(H$1,'Data BI Summary'!$2:$2,0),FALSE),INDIRECT("'"&$E44&"'!"&"$A:$K"),8,FALSE) -> 164.4053 | I44: =VLOOKUP(VLOOKUP($F44,'Data BI Summary'!$A:$F,MATCH(I$1,'Data BI Summary'!$2:$2,0),FALSE),INDIRECT("'"&$E44&"'!"&"$A:$K"),9,FALSE) -> 0.04861014648 | J44: =VLOOKUP(VLOOKUP($F44,'Data BI Summary'!$A:$F,MATCH(J$1,'Data BI Summary'!$2:$2,0),FALSE),INDIRECT("'"&$E44&"'!"&"$A:$K"),8,FALSE) -> 185.777989 | K44: =VLOOKUP(VLOOKUP($F44,'Data BI Summary'!$A:$F,MATCH(K$1,'Data BI Summary'!$2:$2,0),FALSE),INDIRECT("'"&$E44&"'!"&"$A:$K"),9,FALSE) -> 0.02125014319 | L44: Two-tier RPP
A45: Sen Lgt-HCHI | B45: Average | C45: =VLOOKUP(A$45,'Data Billing Quantities'!A:P,MATCH($B45&" kWh",'Data Billing Quantities'!$4:$4,0),FALSE) -> 61 | E45: BI_HCHI_SenLgt_Avg | F45: BI Template_unmHCHI | G45: =VLOOKUP(VLOOKUP($F45,'Data BI Summary'!$A:$F,MATCH(G$1,'Data BI Summary'!$2:$2,0),FALSE),INDIRECT("'"&$E45&"'!"&"$A:$K"),4,FALSE) -> 18.7285762 | H45: =VLOOKUP(VLOOKUP($F45,'Data BI Summary'!$A:$F,MATCH(H$1,'Data BI Summary'!$2:$2,0),FALSE),INDIRECT("'"&$E45&"'!"&"$A:$K"),8,FALSE) -> 0.5958 | I45: =VLOOKUP(VLOOKUP($F45,'Data BI Summary'!$A:$F,MATCH(I$1,'Data BI Summary'!$2:$2,0),FALSE),INDIRECT("'"&$E45&"'!"&"$A:$K"),9,FALSE) -> 0.0488669078 | J45: =VLOOKUP(VLOOKUP($F45,'Data BI Summary'!$A:$F,MATCH(J$1,'Data BI Summary'!$2:$2,0),FALSE),INDIRECT("'"&$E45&"'!"&"$A:$K"),8,FALSE) -> 0.5606478 | K45: =VLOOKUP(VLOOKUP($F45,'Data BI Summary'!$A:$F,MATCH(K$1,'Data BI Summary'!$2:$2,0),FALSE),INDIRECT("'"&$E45&"'!"&"$A:$K"),9,FALSE) -> 0.02993542028 | L45: Two-tier RPP
A46: USL-HCHI | B46: Average | C46: =VLOOKUP(A$46,'Data Billing Quantities'!A:P,MATCH($B46&" kWh",'Data Billing Quantities'!$4:$4,0),FALSE) -> 471 | E46: BI_HCHI_USL_Avg | F46: BI Template_unmHCHI | G46: =VLOOKUP(VLOOKUP($F46,'Data BI Summary'!$A:$F,MATCH(G$1,'Data BI Summary'!$2:$2,0),FALSE),INDIRECT("'"&$E46&"'!"&"$A:$K"),4,FALSE) -> 97.1182718 | H46: =VLOOKUP(VLOOKUP($F46,'Data BI Summary'!$A:$F,MATCH(H$1,'Data BI Summary'!$2:$2,0),FALSE),INDIRECT("'"&$E46&"'!"&"$A:$K"),8,FALSE) -> 1.6839 | I46: =VLOOKUP(VLOOKUP($F46,'Data BI Summary'!$A:$F,MATCH(I$1,'Data BI Summary'!$2:$2,0),FALSE),INDIRECT("'"&$E46&"'!"&"$A:$K"),9,FALSE) -> 0.03781546574 | J46: =VLOOKUP(VLOOKUP($F46,'Data BI Summary'!$A:$F,MATCH(J$1,'Data BI Summary'!$2:$2,0),FALSE),INDIRECT("'"&$E46&"'!"&"$A:$K"),8,FALSE) -> 1.5845499 | K46: =VLOOKUP(VLOOKUP($F46,'Data BI Summary'!$A:$F,MATCH(K$1,'Data BI Summary'!$2:$2,0),FALSE),INDIRECT("'"&$E46&"'!"&"$A:$K"),9,FALSE) -> 0.01631567233 | L46: Two-tier RPP

Sheet BI Template_Energy (hidden)
A1: 2024 Bill Impacts (Low Consumption Level) - R1
A3: Rate Class | B3: =RIGHT(A1,LEN(A1)-FIND("- ",A1,1)-1) -> R1
A4: Monthly Consumption (kWh) | B4: =IF(COUNTIF(A1,"*Low*")>0,VLOOKUP(B3,'Data Billing Quantities'!$A:$Z,MATCH("Low kWh",'Data Billing Quantities'!4:4,0),FALSE),IF(COUNTIF(A1,"*Typical*")>0,VLOOKUP(B3,'Data Billing Quantities'!$A:$Z,MATCH("Typical kWh",'Data Billing Quantities'!4:4,0),FALSE),IF(COUNTIF(A1,"*Average*")>0,VLOOKUP(B3,'Data Billing Quantities'!$A:$Z,MATCH("Average kWh",'Data Billing Quantities'!4:4,0),FALSE),IF(COUNTIF(A1,"*High*")>0,VLOOKUP(B3,'Data Billing Quantities'!$A:$Z,MATCH("High kWh",'Data Billing Quantities'!4:4,0),FALSE),"error")))) -> 370
A5: Peak (kW) | B5: =IF(COUNTIF(A1,"*Low*")>0,VLOOKUP(B3,'Data Billing Quantities'!$A:$Z,MATCH("Low kW",'Data Billing Quantities'!4:4,0),FALSE),IF(COUNTIF(A1,"*Typical*")>0,VLOOKUP(B3,'Data Billing Quantities'!$A:$Z,MATCH("Typical kW",'Data Billing Quantities'!4:4,0),FALSE),IF(COUNTIF(A1,"*Average*")>0,VLOOKUP(B3,'Data Billing Quantities'!$A:$Z,MATCH("Average kW",'Data Billing Quantities'!4:4,0),FALSE),IF(COUNTIF(A1,"*High*")>0,VLOOKUP(B3,'Data Billing Quantities'!$A:$Z,MATCH("High kW",'Data Billing Quantities'!4:4,0),FALSE),"error")))) -> 0
A6: Loss factor | B6: =VLOOKUP(B3,'Data Billing Quantities'!A:D,MATCH(A6,'Data Billing Quantities'!4:4,0),FALSE) -> 1.076
A7: Commodity Threshold | B7: =VLOOKUP(B3,'Data Billing Quantities'!A:D,MATCH(A7,'Data Billing Quantities'!4:4,0),FALSE) -> 600
A8: Monthly Consumption (kWh) - Uplifted | B8: =B4*B6 -> 398.12
A9: Charge determinant | B9: =VLOOKUP(B3,'Data Billing Quantities'!A:D,MATCH(A9,'Data Billing Quantities'!4:4,0),FALSE) -> kWh
B11: Volume | C11: Current Rate ($) | D11: Current Charge ($) | E11: Volume | F11: Proposed Rate ($) | G11: Proposed Charge ($) | H11: Change ($) | I11: Change (%) | J11: % of Total Bill on RPP | K11: % of Total Bill
A12: Energy First Tier | B12: =IF(B4>B7,B7,B4) -> 370 | C12: =VLOOKUP($A12,'Data Pass Through'!$A:$D,2,FALSE) -> 0.098 | D12: =B12*C12 -> 36.26 | E12: =B12 -> 370 | F12: =VLOOKUP($A12,'Data Pass Through'!$A:$D,3,FALSE) -> 0.098 | G12: =E12*F12 -> 36.26 | H12: =G12-D12 -> 0 | I12: =IF(ISERROR(H12/ABS(D12)),"N/A",(H12/ABS(D12))) -> 0 | J12: =G12/$G$47 -> 0.3379615331
A13: Energy Second Tier | B13: =IF(B4>B7,(B4)-B7,0) -> 0 | C13: =VLOOKUP($A13,'Data Pass Through'!$A:$D,2,FALSE) -> 0.115 | D13: =B13*C13 -> 0 | E13: =B13 -> 0 | F13: =VLOOKUP($A13,'Data Pass Through'!$A:$D,3,FALSE) -> 0.115 | G13: =E13*F13 -> 0 | H13: 0 | I13: N/A | J13: =G13/$G$47 -> 0
A14: Sub-Total: Energy (RPP Tiered) | D14: =SUM(D12:D13) -> 36.26 | G14: =SUM(G12:G13) -> 36.26 | H14: 0 | I14: 0 | J14: =G14/$G$47 -> 0.3379615331
A15: TOU-Off Peak | B15: =B$4*VLOOKUP($B$3,'Data Billing Quantities'!$A:$O,MATCH('BI Template_Energy'!$A15,'Data Billing Quantities'!$4:$4,0),FALSE) -> 236.8 | C15: =VLOOKUP($A15,'Data Pass Through'!$A:$D,2,FALSE) -> 0.082 | D15: =B15*C15 -> 19.4176 | E15: 236.8 | F15: =VLOOKUP($A15,'Data Pass Through'!$A:$D,3,FALSE) -> 0.082 | G15: =E15*F15 -> 19.4176 | H15: 0 | I15: 0 | K15: =G15/$G$52 -> 0.1776203345
A16: TOU-Mid Peak | B16: =B$4*VLOOKUP($B$3,'Data Billing Quantities'!$A:$O,MATCH('BI Template_Energy'!$A16,'Data Billing Quantities'!$4:$4,0),FALSE) -> 66.6 | C16: =VLOOKUP($A16,'Data Pass Through'!$A:$D,2,FALSE) -> 0.113 | D16: =B16*C16 -> 7.5258 | E16: 66.6 | F16: =VLOOKUP($A16,'Data Pass Through'!$A:$D,3,FALSE) -> 0.113 | G16: =E16*F16 -> 7.5258 | H16: 0 | I16: 0 | K16: 0.06884141776
A17: TOU-On Peak | B17: =B$4*VLOOKUP($B$3,'Data Billing Quantities'!$A:$O,MATCH('BI Template_Energy'!$A17,'Data Billing Quantities'!$4:$4,0),FALSE) -> 66.6 | C17: =VLOOKUP($A17,'Data Pass Through'!$A:$D,2,FALSE) -> 0.17 | D17: =B17*C17 -> 11.322 | E17: 66.6 | F17: =VLOOKUP($A17,'Data Pass Through'!$A:$D,3,FALSE) -> 0.17 | G17: =E17*F17 -> 11.322 | H17: 0 | I17: 0 | K17: 0.1035667347
A18: Sub-Total: Energy (RPP TOU) | D18: =SUM(D15:D17) -> 38.2654 | G18: =SUM(G15:G17) -> 38.2654 | H18: 0 | I18: 0 | J18: =G18/$G$47 -> 0.356652875 | K18: 0.3500284869
A19: Service Charge | B19: 1 | C19: =VLOOKUP($B$3,'Data Current Rates'!$A:$AO,MATCH('BI Template_Energy'!$A19,CurrentHeader,0),FALSE) -> 58.76 | D19: =B19*C19 -> 58.76 | E19: 1 | F19: =VLOOKUP($B$3,'Data Proposed Rates'!$A:$AZ,MATCH('BI Template_Energy'!$A19,ProposedHeader,0),FALSE) -> 65.91 | G19: =E19*F19 -> 65.91 | H19: 7.15 | I19: 0.1216814159 | J19: 0.6143145242 | K19: 0.6029043882
A20: Fixed Base Rate Adjustment to Recover Past Tax Amounts | B20: 1 | C20: =VLOOKUP($B$3,'Data Current Rates'!$A:$AO,MATCH('BI Template_Energy'!$A20,CurrentHeader,0),FALSE) -> 1.44 | D20: =B20*C20 -> 1.44 | E20: 1 | F20: =VLOOKUP($B$3,'Data Proposed Rates'!$A:$AZ,MATCH('BI Template_Energy'!$A20,ProposedHeader,0),FALSE) -> 0 | G20: 0 | H20: -1.44 | I20: -1 | J20: 0 | K20: 0
A21: Group 2 Fixed DVA Rider | B21: 1 | C21: =VLOOKUP($B$3,'Data Current Rates'!$A:$AO,MATCH('BI Template_Energy'!$A21,CurrentHeader,0),FALSE) -> -0.14 | D21: =B21*C21 -> -0.14 | E21: 1 | F21: =VLOOKUP($B$3,'Data Proposed Rates'!$A:$AZ,MATCH('BI Template_Energy'!$A21,ProposedHeader,0),FALSE) -> -0.14 | G21: -0.14 | H21: 0 | I21: 0 | J21: -0.001304870784 | K21: -0.001280634416
A22: Distribution Volumetric Charge | B22: =IF($B$9="kWh",$B$4,$B$5) -> 370 | C22: =VLOOKUP($B$3,'Data Current Rates'!$A:$AO,MATCH('BI Template_Energy'!$A22,CurrentHeader,0),FALSE) -> 0.0054 | D22: 1.998 | E22: 370 | F22: =VLOOKUP($B$3,'Data Proposed Rates'!$A:$AZ,MATCH('BI Template_Energy'!$A22,ProposedHeader,0),FALSE) -> 0 | G22: 0 | H22: -1.998 | I22: -1 | J22: 0 | K22: 0
A23: Volumetric Base Rate Adjustment to Recover Past Tax Amounts | B23: =IF($B$9="kWh",$B$4,$B$5) -> 370 | C23: =VLOOKUP($B$3,'Data Current Rates'!$A:$AO,MATCH('BI Template_Energy'!$A23,CurrentHeader,0),FALSE) -> 0 | D23: 0 | E23: 370 | F23: =VLOOKUP($B$3,'Data Proposed Rates'!$A:$AZ,MATCH('BI Template_Energy'!$A23,ProposedHeader,0),FALSE) -> 0 | G23: 0 | H23: 0 | I23: N/A | J23: 0 | K23: 0
A24: Group 1 Volumetric DVA Rider (General) | B24: 370 | C24: =VLOOKUP($B$3,'Data Current Rates'!$A:$AO,MATCH('BI Template_Energy'!$A24,CurrentHeader,0),FALSE) -> -0.0004 | D24: =B24*C24 -> -0.148 | E24: =B4 -> 370 | F24: =VLOOKUP($B$3,'Data Proposed Rates'!$A:$AZ,MATCH('BI Template_Energy'!$A24,ProposedHeader,0),FALSE) -> -0.0004 | G24: =E24*F24 -> -0.148 | H24: =G24-D24 -> 0 | I24: =IF(ISERROR(H24/ABS(D24)),"N/A",(H24/ABS(D24))) -> 0 | J24: -0.001379434829 | K24: -0.001353813525
A25: Group 2 Volumetric DVA Rider | B25: 370 | C25: =VLOOKUP($B$3,'Data Current Rates'!$A:$AO,MATCH('BI Template_Energy'!$A25,CurrentHeader,0),FALSE) -> 0 | D25: 0 | E25: =B4 -> 370 | F25: =VLOOKUP($B$3,'Data Proposed Rates'!$A:$AZ,MATCH('BI Template_Energy'!$A25,ProposedHeader,0),FALSE) -> 0 | G25: 0 | H25: 0 | I25: N/A | J25: 0 | K25: 0
A26: Fair Hydro Plan - Distribution Rate Protection Savings* | D26: =IF(AND(B3<>"R1",B3<>"R2"),0,IF(VLOOKUP($A26,'Data Pass Through'!$A:$D,2,FALSE)=0,0,IF(SUM(D19:D20,D22:D23)<VLOOKUP($A26,'Data Pass Through'!$A:$D,2,FALSE),0,VLOOKUP($A26,'Data Pass Through'!$A:$D,2,FALSE)-SUM(D19:D20,D22:D23)))) -> 0 | G26: =IF(AND(B3<>"R1",B3<>"R2"),0,IF(VLOOKUP($A26,'Data Pass Through'!$A:$D,2,FALSE)=0,0,IF(SUM(G19:G20,G22:G23)<VLOOKUP($A26,'Data Pass Through'!$A:$D,2,FALSE),0,VLOOKUP($A26,'Data Pass Through'!$A:$D,2,FALSE)-SUM(G19:G20,G22:G23)))) -> 0 | H26: 0 | I26: N/A | J26: 0 | K26: 0
A27: Sub-Total: Distribution (excluding pass through) | D27: =SUM(INDIRECT("D19:D"&ROW()-1)) -> 61.91 | G27: =SUM(INDIRECT("g19:g"&ROW()-1)) -> 65.622 | H27: =G27-D27 -> 3.712 | I27: =IF(ISERROR(H27/ABS(D27)),"N/A",(H27/ABS(D27))) -> 0.05995800355 | J27: 0.6116302186 | K27: 0.6002699402
A28: Smart Metering Entity Charge | B28: 1 | C28: =VLOOKUP($A28,'Data Pass Through'!$A:$D,2,FALSE) -> 0.57 | D28: =B28*C28 -> 0.57 | E28: 1 | F28: =VLOOKUP($A28,'Data Pass Through'!$A:$D,3,FALSE) -> 0.57 | G28: =E28*F28 -> 0.57 | H28: 0 | I28: 0 | J28: 0.005312688193 | K28: 0.00521401155
A29: Line Losses on Cost of Power (based on two-tier RPP prices) | B29: =B8-B4 -> 28.12 | C29: =IF(B4>B7,C13,C12) -> 0.098 | D29: =B29*C29 -> 2.75576 | E29: 28.12 | F29: =IF(B4>B7,F13,F12) -> 0.098 | G29: =E29*F29 -> 2.75576 | H29: 0 | I29: 0 | J29: 0.02568507652 | K29: 0.02520800784
A30: Line Losses on Cost of Power (based on TOU prices) | B30: =B8-B4 -> 28.12 | C30: =VLOOKUP($B$3,'Data Billing Quantities'!$A:$O,MATCH('BI Template_Energy'!$A15,'Data Billing Quantities'!$4:$4,0),FALSE)*C15+VLOOKUP($B$3,'Data Billing Quantities'!$A:$O,MATCH('BI Template_Energy'!$A16,'Data Billing Quantities'!$4:$4,0),FALSE)*C16+VLOOKUP($B$3,'Data Billing Quantities'!$A:$O,MATCH('BI Template_Energy'!$A17,'Data Billing Quantities'!$4:$4,0),FALSE)*C17 -> 0.10342 | D30: =B30*C30 -> 2.9081704 | E30: 28.12 | F30: =VLOOKUP($B$3,'Data Billing Quantities'!$A:$O,MATCH('BI Template_Energy'!$A15,'Data Billing Quantities'!$4:$4,0),FALSE)*F15+VLOOKUP($B$3,'Data Billing Quantities'!$A:$O,MATCH('BI Template_Energy'!$A16,'Data Billing Quantities'!$4:$4,0),FALSE)*F16+VLOOKUP($B$3,'Data Billing Quantities'!$A:$O,MATCH('BI Template_Energy'!$A17,'Data Billing Quantities'!$4:$4,0),FALSE)*F17 -> 0.10342 | G30: =E30*F30 -> 2.9081704 | H30: 0 | I30: 0 | J30: 0.0271056185 | K30: 0.02660216501
A31: Sub-Total: Distribution (based on two-tier RPP prices) | D31: =SUM(D27,D28:D29) -> 65.23576 | G31: =SUM(G27,G28:G29) -> 68.94776 | H31: 3.712 | I31: 0.05690130689 | J31: 0.6426279833 | K31: 0.6306919596
A32: Sub-Total: Distribution (based on TOU prices) | D32: =SUM(D27,D28,D30) -> 65.3881704 | G32: =SUM(G27,G28,G30) -> 69.1001704 | H32: 3.712 | I32: 0.05676867815 | J32: 0.6440485253 | K32: 0.6320861168
A33: Retail Transmission Rate – Network Service Rate | B33: =B8 -> 398.12 | C33: =VLOOKUP($B$3,'Data Current Rates'!$A:$AO,MATCH('BI Template_Energy'!$A33,CurrentHeader,0),FALSE) -> 0.0101 | D33: =B33*C33 -> 4.021012 | E33: 398.12 | F33: =VLOOKUP($B$3,'Data Proposed Rates'!$A:$AZ,MATCH('BI Template_Energy'!$A33,ProposedHeader,0),FALSE) -> 0.0101 | G33: =E33*F33 -> 4.021012 | H33: =G33-D33 -> 0 | I33: 0 | J33: 0.03747786487 | K33: 0.03678175967
A34: Retail Transmission Rate – Line and Transformation Connection Service Rate | B34: =B8 -> 398.12 | C34: =VLOOKUP($B$3,'Data Current Rates'!$A:$AO,MATCH('BI Template_Energy'!$A34,CurrentHeader,0),FALSE) -> 0.0075 | D34: =B34*C34 -> 2.9859 | E34: 398.12 | F34: =VLOOKUP($B$3,'Data Proposed Rates'!$A:$AZ,MATCH('BI Template_Energy'!$A34,ProposedHeader,0),FALSE) -> 0.0075 | G34: =E34*F34 -> 2.9859 | H34: =G34-D34 -> 0 | I34: 0 | J34: 0.02783009767 | K34: 0.02731318787
A35: Sub-Total: Retail Transmission | D35: =SUM(D33:D34) -> 7.006912 | G35: =SUM(G33:G34) -> 7.006912 | H35: =G35-D35 -> 0 | I35: 0 | J35: 0.06530796254 | K35: 0.06409494754
A36: Sub-Total: Delivery (based on two-tier RPP prices) | D36: =D31+D35 -> 72.242672 | G36: =G31+G35 -> 75.954672 | H36: =G36-D36 -> 3.712 | I36: 0.05138237412 | J36: 0.7079359458 | K36: 0.6947869071
A37: Sub-Total: Delivery (based on TOU prices) | D37: =D32+D35 -> 72.3950824 | G37: =G32+G35 -> 76.1070824 | H37: =G37-D37 -> 3.712 | I37: 0.05127420091 | J37: 0.7093564878 | K37: 0.6961810643
A38: Wholesale Market Service Rate (WMS) - not including CBR | B38: =B8 -> 398.12 | C38: =VLOOKUP($A38,'Data Pass Through'!$A:$D,2,FALSE) -> 0.003 | D38: =B38*C38 -> 1.19436 | E38: =$B$8 -> 398.12 | F38: =VLOOKUP($A38,'Data Pass Through'!$A:$D,3,FALSE) -> 0.003 | G38: =E38*F38 -> 1.19436 | H38: 0 | I38: 0 | J38: 0.01113203907 | K38: 0.01092527515
A39: Capacity Based Recovery (CBR) - Applicable for Class B Customers | B39: =B8 -> 398.12 | C39: =VLOOKUP($A39,'Data Pass Through'!$A:$D,2,FALSE) -> 0.0004 | D39: =B39*C39 -> 0.159248 | E39: =$B$8 -> 398.12 | F39: =VLOOKUP($A39,'Data Pass Through'!$A:$D,3,FALSE) -> 0.0004 | G39: =E39*F39 -> 0.159248 | H39: =G39-D39 -> 0 | I39: =IF(ISERROR(H39/ABS(D39)),"N/A",(H39/ABS(D39))) -> 0 | J39: 0.001484271876 | K39: 0.001456703353
A40: Rural Rate Protection Charge | B40: =B8 -> 398.12 | C40: =VLOOKUP($A40,'Data Pass Through'!$A:$D,2,FALSE) -> 0.0005 | D40: 0.19906 | E40: 398.12 | F40: =VLOOKUP($A40,'Data Pass Through'!$A:$D,3,FALSE) -> 0.0005 | G40: 0.19906 | H40: 0 | I40: 0 | J40: 0.001855339845 | K40: 0.001820879191
A41: Standard Supply Service – Administration Charge (if applicable) | B41: 1 | C41: =VLOOKUP($A41,'Data Pass Through'!$A:$D,2,FALSE) -> 0.25 | D41: =B41*C41 -> 0.25 | E41: 1 | F41: =VLOOKUP($A41,'Data Pass Through'!$A:$D,3,FALSE) -> 0.25 | G41: 0.25 | H41: 0 | I41: 0 | J41: 0.0023301264 | K41: 0.002286847171
A42: Sub-Total: Regulatory | D42: =SUM(D38:D41) -> 1.802668 | G42: =SUM(G38:G41) -> 1.802668 | H42: 0 | I42: 0 | J42: 0.01680177719 | K42: 0.01648970486
A43: Total Electricty Charge on Two-Tier RPP | D43: =SUM(D14,D27,D28,D29,D35,D42) -> 110.30534 | G43: =SUM(G14,G27,G28,G29,G35,G42) -> 114.01734 | H43: 3.712 | I43: 0.03365204259 | J43: 1.062699256
A44: HST | C44: 0.13 | D44: =D43*C44 -> 14.3396942 | F44: =C44 -> 0.13 | G44: =G43*F44 -> 14.8222542 | H44: 0.48256 | I44: 0.03365204259 | J44: 0.1381509033
A45: Total Electricity Charge on Two-Tier RPP (including HST) | D45: =SUM(D43:D44) -> 124.6450342 | G45: =SUM(G43:G44) -> 128.8395942 | H45: 4.19456 | I45: 0.03365204259 | J45: 1.200850159
A46: Ontario Electricity Rebate (OER) | C46: =IF(($B$4*12)<250000,VLOOKUP(A46,'Data Pass Through'!$A$4:$C$20,2,0),0) -> -0.189 | D46: =D43*C46 -> -20.84770926 | F46: =C46 -> -0.189 | G46: =G43*F46 -> -21.54927726 | H46: -0.701568 | I46: -0.03365204259 | J46: -0.2008501594
A47: Total Amount on Two-Tier RPP | D47: =SUM(D45:D46) -> 103.7973249 | G47: =SUM(G45:G46) -> 107.2903169 | H47: 3.492992 | I47: 0.03365204259 | J47: 1
A48: Total Electricty Charge on TOU (before HST) | D48: =SUM(D18,D27,D28,D30,D35,D42) -> 112.4631504 | G48: =SUM(G18,G27,G28,G30,G35,G42) -> 116.1751504 | H48: 3.712 | I48: 0.03300636686 | K48: =G48/$G$52 -> 1.062699256
A49: HST | C49: 0.13 | D49: =D48*C49 -> 14.62020955 | F49: =C49 -> 0.13 | G49: =G48*F49 -> 15.10276955 | H49: 0.48256 | I49: 0.03300636686 | K49: =G49/$G$52 -> 0.1381509033
A50: Total Electricity Charge on TOU (including HST) | D50: =SUM(D48:D49) -> 127.08336 | G50: =SUM(G48:G49) -> 131.27792 | H50: 4.19456 | I50: 0.03300636686 | K50: =G50/$G$52 -> 1.200850159
A51: Ontario Electricity Rebate (OER) | C51: =IF(($B$4*12)<250000,VLOOKUP(A51,'Data Pass Through'!$A$4:$C$20,2,0),0) -> -0.189 | D51: =D48*C51 -> -21.25553543 | F51: =C51 -> -0.189 | G51: =G48*F51 -> -21.95710343 | H51: -0.701568 | I51: -0.03300636686 | K51: =G51/$G$52 -> -0.2008501594
A52: Total Amount on TOU | D52: =SUM(D50:D51) -> 105.8278245 | G52: =SUM(G50:G51) -> 109.3208165 | H52: 3.492992 | I52: 0.03300636686 | K52: =G52/$G$52 -> 1
A53: * Distribution rate protection applies to R1 and R2 customers

Sheet BI Template_EnergyNPDI (hidden)
A1: 2024 Bill Impacts (Low Consumption Level) - AR_NPDI
A3: Rate Class | B3: =VLOOKUP(A1,'Data BI List Acq_Seas'!C:E,2,FALSE) -> AR-NPDI | C3: =VLOOKUP(A1,'Data BI List Acq_Seas'!C:E,3,FALSE) -> AR-NPDI
A4: Monthly Consumption (kWh) | B4: =IF(COUNTIF(A1,"*Low*")>0,VLOOKUP(B3,'Data Billing Quantities'!$A:$Z,MATCH("Low kWh",'Data Billing Quantities'!4:4,0),FALSE),IF(COUNTIF(A1,"*Typical*")>0,VLOOKUP(B3,'Data Billing Quantities'!$A:$Z,MATCH("Typical kWh",'Data Billing Quantities'!4:4,0),FALSE),IF(COUNTIF(A1,"*Average*")>0,VLOOKUP(B3,'Data Billing Quantities'!$A:$Z,MATCH("Average kWh",'Data Billing Quantities'!4:4,0),FALSE),IF(COUNTIF(A1,"*High*")>0,VLOOKUP(B3,'Data Billing Quantities'!$A:$Z,MATCH("High kWh",'Data Billing Quantities'!4:4,0),FALSE),"error")))) -> 290 | C4: =B4 -> 290
A5: Peak (kW) | B5: =IF(COUNTIF(A1,"*Low*")>0,VLOOKUP(B3,'Data Billing Quantities'!$A:$Z,MATCH("Low kW",'Data Billing Quantities'!4:4,0),FALSE),IF(COUNTIF(A1,"*Typical*")>0,VLOOKUP(B3,'Data Billing Quantities'!$A:$Z,MATCH("Typical kW",'Data Billing Quantities'!4:4,0),FALSE),IF(COUNTIF(A1,"*Average*")>0,VLOOKUP(B3,'Data Billing Quantities'!$A:$Z,MATCH("Average kW",'Data Billing Quantities'!4:4,0),FALSE),IF(COUNTIF(A1,"*High*")>0,VLOOKUP(B3,'Data Billing Quantities'!$A:$Z,MATCH("High kW",'Data Billing Quantities'!4:4,0),FALSE),"error")))) -> 0 | C5: =B5 -> 0
A6: Loss factor | B6: =VLOOKUP(B3,'Data Billing Quantities'!A:D,MATCH(A6,'Data Billing Quantities'!4:4,0),FALSE) -> 1.064 | C6: =VLOOKUP(C3,'Data Billing Quantities'!A:D,MATCH(A6,'Data Billing Quantities'!4:4,0),FALSE) -> 1.064
A7: Commodity Threshold | B7: =VLOOKUP(B3,'Data Billing Quantities'!A:D,MATCH(A7,'Data Billing Quantities'!4:4,0),FALSE) -> 750 | C7: =B7 -> 750
A8: Monthly Consumption (kWh) - Uplifted | B8: =B4*B6 -> 308.56 | C8: =C4*C6 -> 308.56
A9: Charge determinant | B9: =VLOOKUP(B3,'Data Billing Quantities'!A:D,MATCH(A9,'Data Billing Quantities'!4:4,0),FALSE) -> kWh | C9: =VLOOKUP(C3,'Data Billing Quantities'!A:D,MATCH(A9,'Data Billing Quantities'!4:4,0),FALSE) -> kWh
B11: Volume | C11: Current Rate ($) | D11: Current Charge ($) | E11: Volume | F11: Proposed Rate ($) | G11: Proposed Charge ($) | H11: Change ($) | I11: Change (%) | J11: % of Total Bill on RPP | K11: % of Total Bill
A12: Energy First Tier | B12: =IF(B4>B7,B7,B4) -> 290 | C12: =VLOOKUP($A12,'Data Pass Through'!$A:$D,2,FALSE) -> 0.098 | D12: =B12*C12 -> 28.42 | E12: =B12 -> 290 | F12: =VLOOKUP($A12,'Data Pass Through'!$A:$D,3,FALSE) -> 0.098 | G12: =E12*F12 -> 28.42 | H12: =G12-D12 -> 0 | I12: =IF(ISERROR(H12/ABS(D12)),"N/A",(H12/ABS(D12))) -> 0 | J12: =G12/$G$43 -> 0.394196038
A13: Energy Second Tier | B13: =IF(B4>B7,(B4)-B7,0) -> 0 | C13: =VLOOKUP($A13,'Data Pass Through'!$A:$D,2,FALSE) -> 0.115 | D13: =B13*C13 -> 0 | E13: =B13 -> 0 | F13: =VLOOKUP($A13,'Data Pass Through'!$A:$D,3,FALSE) -> 0.115 | G13: =E13*F13 -> 0 | H13: 0 | I13: N/A | J13: =G13/$G$43 -> 0
A14: Sub-Total: Energy (RPP Tiered) | D14: =SUM(D12:D13) -> 28.42 | G14: =SUM(G12:G13) -> 28.42 | H14: 0 | I14: 0 | J14: =G14/$G$43 -> 0.394196038
A15: TOU-Off Peak | B15: =B$4*VLOOKUP($B$3,'Data Billing Quantities'!$A:$O,MATCH('BI Template_EnergyNPDI'!$A15,'Data Billing Quantities'!$4:$4,0),FALSE) -> 185.6 | C15: =VLOOKUP($A15,'Data Pass Through'!$A:$D,2,FALSE) -> 0.082 | D15: =B15*C15 -> 15.2192 | E15: 185.6 | F15: =VLOOKUP($A15,'Data Pass Through'!$A:$D,3,FALSE) -> 0.082 | G15: =E15*F15 -> 15.2192 | H15: 0 | I15: 0 | K15: =G15/$G$48 -> 0.2065865997
A16: TOU-Mid Peak | B16: =B$4*VLOOKUP($B$3,'Data Billing Quantities'!$A:$O,MATCH('BI Template_EnergyNPDI'!$A16,'Data Billing Quantities'!$4:$4,0),FALSE) -> 52.2 | C16: =VLOOKUP($A16,'Data Pass Through'!$A:$D,2,FALSE) -> 0.113 | D16: =B16*C16 -> 5.8986 | E16: 52.2 | F16: =VLOOKUP($A16,'Data Pass Through'!$A:$D,3,FALSE) -> 0.113 | G16: =E16*F16 -> 5.8986 | H16: 0 | I16: 0 | K16: 0.0800680533
A17: TOU-On Peak | B17: =B$4*VLOOKUP($B$3,'Data Billing Quantities'!$A:$O,MATCH('BI Template_EnergyNPDI'!$A17,'Data Billing Quantities'!$4:$4,0),FALSE) -> 52.2 | C17: =VLOOKUP($A17,'Data Pass Through'!$A:$D,2,FALSE) -> 0.17 | D17: =B17*C17 -> 8.874 | E17: 52.2 | F17: =VLOOKUP($A17,'Data Pass Through'!$A:$D,3,FALSE) -> 0.17 | G17: =E17*F17 -> 8.874 | H17: 0 | I17: 0 | K17: 0.1204563634
A18: Sub-Total: Energy (RPP TOU) | D18: =SUM(D15:D17) -> 29.9918 | G18: =SUM(G15:G17) -> 29.9918 | H18: 0 | I18: 0 | J18: =G18/$G$43 -> 0.4159974923 | K18: 0.4071110163
A19: Service Charge | B19: 1 | C19: =VLOOKUP($B$3,'Data Current Rates'!$A:$AO,MATCH('BI Template_EnergyNPDI'!$A19,CurrentHeader,0),FALSE) -> 36.98 | D19: =B19*C19 -> 36.98 | E19: 1 | F19: =VLOOKUP($C$3,'Data Proposed Rates'!$A:$AZ,MATCH('BI Template_EnergyNPDI'!$A19,ProposedHeader,0),FALSE) -> 38.76 | G19: =E19*F19 -> 38.76 | H19: 1.78 | I19: 0.04813412655 | J19: =G19/$G$43 -> 0.5376157084 | K19: 0.5261312423
A20: Distribution Volumetric Charge | B20: =IF($B$9="kWh",$B$4,$B$5) -> 290 | C20: =VLOOKUP($B$3,'Data Current Rates'!$A:$AO,MATCH('BI Template_EnergyNPDI'!$A20,CurrentHeader,0),FALSE) -> 0 | D20: =B20*C20 -> 0 | E20: =IF($C$9="kWh",$C$4,$C$5) -> 290 | F20: =VLOOKUP($C$3,'Data Proposed Rates'!$A:$AZ,MATCH('BI Template_EnergyNPDI'!$A20,ProposedHeader,0),FALSE) -> 0 | G20: 0 | H20: 0 | I20: N/A | J20: =G20/$G$43 -> 0 | K20: 0
A21: Group 1 Volumetric DVA Rider (General) | B21: =IF($B$9="kWh",$B$4,$B$5) -> 290 | C21: =VLOOKUP($B$3,'Data Current Rates'!$A:$AO,MATCH('BI Template_EnergyNPDI'!$A21,CurrentHeader,0),FALSE) -> -0.0005 | D21: =B21*C21 -> -0.145 | E21: =IF($C$9="kWh",$C$4,$C$5) -> 290 | F21: =VLOOKUP($C$3,'Data Proposed Rates'!$A:$AZ,MATCH('BI Template_EnergyNPDI'!$A21,ProposedHeader,0),FALSE) -> -0.0005 | G21: -0.145 | H21: 0 | I21: 0 | J21: =G21/$G$43 -> -0.002011204275 | K21: -0.001968241231
A22: LRAMVA Volumetric Rate Rider | B22: =IF($B$9="kWh",$B$4,$B$5) -> 290 | C22: =VLOOKUP($B$3,'Data Current Rates'!$A:$AO,MATCH('BI Template_EnergyNPDI'!$A22,CurrentHeader,0),FALSE) -> 0.0004 | D22: =B22*C22 -> 0.116 | H22: =G22-D22 -> -0.116 | I22: =IF(ISERROR(H22/ABS(D22)),"N/A",(H22/ABS(D22))) -> -1 | J22: =G22/$G$43 -> 0 | K22: =G22/$G$48 -> 0
A23: Sub-Total: Distribution (excluding pass through) | D23: =SUM(INDIRECT("D19:D"&ROW()-1)) -> 36.951 | G23: =SUM(INDIRECT("g19:g"&ROW()-1)) -> 38.615 | H23: =G23-D23 -> 1.664 | I23: 0.04503261075 | J23: =G23/$G$43 -> 0.5356045041 | K23: =G23/$G$48 -> 0.5241630011
A24: Smart Metering Entity Charge | B24: =B19 -> 1 | C24: =VLOOKUP($A24,'Data Pass Through'!$A:$D,2,FALSE) -> 0.57 | D24: =B24*C24 -> 0.57 | E24: =E19 -> 1 | F24: =VLOOKUP($A24,'Data Pass Through'!$A:$D,3,FALSE) -> 0.57 | G24: =E24*F24 -> 0.57 | H24: 0 | I24: 0 | J24: 0.007906113358 | K24: 0.007737224151
A25: Line Losses on Cost of Power (based on two-tier RPP prices) | B25: =B8-B4 -> 18.56 | C25: =IF(B4>B7,C13,C12) -> 0.098 | D25: =B25*C25 -> 1.81888 | E25: =C8-C4 -> 18.56 | F25: =IF(C4>C7,F13,F12) -> 0.098 | G25: =E25*F25 -> 1.81888 | H25: 0 | I25: 0 | J25: 0.02522854643 | K25: 0.02468961801
A26: Line Losses on Cost of Power (based on TOU prices) | B26: =B8-B4 -> 18.56 | C26: =VLOOKUP($B$3,'Data Billing Quantities'!$A:$O,MATCH('BI Template_EnergyNPDI'!$A15,'Data Billing Quantities'!$4:$4,0),FALSE)*C15+VLOOKUP($B$3,'Data Billing Quantities'!$A:$O,MATCH('BI Template_EnergyNPDI'!$A16,'Data Billing Quantities'!$4:$4,0),FALSE)*C16+VLOOKUP($B$3,'Data Billing Quantities'!$A:$O,MATCH('BI Template_EnergyNPDI'!$A17,'Data Billing Quantities'!$4:$4,0),FALSE)*C17 -> 0.10342 | D26: =B26*C26 -> 1.9194752 | E26: =C8-C4 -> 18.56 | F26: =VLOOKUP($C$3,'Data Billing Quantities'!$A:$O,MATCH('BI Template_EnergyNPDI'!$A15,'Data Billing Quantities'!$4:$4,0),FALSE)*F15+VLOOKUP($C$3,'Data Billing Quantities'!$A:$O,MATCH('BI Template_EnergyNPDI'!$A16,'Data Billing Quantities'!$4:$4,0),FALSE)*F16+VLOOKUP($C$3,'Data Billing Quantities'!$A:$O,MATCH('BI Template_EnergyNPDI'!$A17,'Data Billing Quantities'!$4:$4,0),FALSE)*F17 -> 0.10342 | G26: =E26*F26 -> 1.9194752 | H26: 0 | I26: 0 | J26: 0.02662383951 | K26: 0.02605510504
A27: Sub-Total: Distribution (based on two-tier RPP prices) | D27: =SUM(D23,D24:D25) -> 39.33988 | G27: =SUM(G23,G24:G25) -> 41.00388 | H27: 1.664 | I27: 0.04229804463 | J27: 0.5687391639 | K27: 0.5565898432
A28: Sub-Total: Distribution (based on TOU prices) | D28: =SUM(D23,D24,D26) -> 39.4404752 | G28: =SUM(G23,G24,G26) -> 41.1044752 | H28: 1.664 | I28: 0.04219016104 | J28: 0.5701344569 | K28: 0.5579553303
A29: Retail Transmission Rate – Network Service Rate | B29: =IF($B$9="kWh",$B$8,$B$5) -> 308.56 | C29: =VLOOKUP($B$3,'Data Current Rates'!$A:$AO,MATCH('BI Template_EnergyNPDI'!$A29,CurrentHeader,0),FALSE) -> 0.0107 | D29: =B29*C29 -> 3.301592 | E29: =IF($C$9="kWh",$C$8,$C$5) -> 308.56 | F29: =VLOOKUP($C$3,'Data Proposed Rates'!$A:$AZ,MATCH('BI Template_EnergyNPDI'!$A29,ProposedHeader,0),FALSE) -> 0.0107 | G29: =E29*F29 -> 3.301592 | H29: =G29-D29 -> 0 | I29: 0 | J29: 0.04579431687 | K29: 0.04481606554
A30: Retail Transmission Rate – Line and Transformation Connection Service Rate | B30: =IF($B$9="kWh",$B$8,$B$5) -> 308.56 | C30: =VLOOKUP($B$3,'Data Current Rates'!$A:$AO,MATCH('BI Template_EnergyNPDI'!$A30,CurrentHeader,0),FALSE) -> 0.0079 | D30: =B30*C30 -> 2.437624 | E30: =IF($C$9="kWh",$C$8,$C$5) -> 308.56 | F30: =VLOOKUP($C$3,'Data Proposed Rates'!$A:$AZ,MATCH('BI Template_EnergyNPDI'!$A30,ProposedHeader,0),FALSE) -> 0.0079 | G30: =E30*F30 -> 2.437624 | H30: =G30-D30 -> 0 | I30: 0 | J30: 0.03381075731 | K30: 0.03308849699
A31: Sub-Total: Retail Transmission | D31: =SUM(D29:D30) -> 5.739216 | G31: =SUM(G29:G30) -> 5.739216 | H31: =G31-D31 -> 0 | I31: 0 | J31: 0.07960507418 | K31: 0.07790456254
A32: Sub-Total: Delivery (based on two-tier RPP prices) | D32: =D27+D31 -> 45.079096 | G32: =G27+G31 -> 46.743096 | H32: =G32-D32 -> 1.664 | I32: 0.03691289639 | J32: 0.648344238 | K32: 0.6344944058
A33: Sub-Total: Delivery (based on TOU prices) | D33: =D28+D31 -> 45.1796912 | G33: =G28+G31 -> 46.8436912 | H33: =G33-D33 -> 1.664 | I33: 0.03683070769 | J33: 0.6497395311 | K33: 0.6358598928
A34: Wholesale Market Service Rate (WMS) - not including CBR | B34: =B8 -> 308.56 | C34: =VLOOKUP($A34,'Data Pass Through'!$A:$D,2,FALSE) -> 0.003 | D34: =B34*C34 -> 0.92568 | E34: =$C$8 -> 308.56 | F34: =VLOOKUP($A34,'Data Pass Through'!$A:$D,3,FALSE) -> 0.003 | G34: =E34*F34 -> 0.92568 | H34: 0 | I34: 0 | J34: 0.01283952809 | K34: 0.01256525202
A35: Capacity Based Recovery (CBR) - Applicable for Class B Customers | B35: =B8 -> 308.56 | C35: =VLOOKUP($A35,'Data Pass Through'!$A:$D,2,FALSE) -> 0.0004 | D35: =B35*C35 -> 0.123424 | E35: =$C$8 -> 308.56 | F35: =VLOOKUP($A35,'Data Pass Through'!$A:$D,3,FALSE) -> 0.0004 | G35: =E35*F35 -> 0.123424 | H35: 0 | I35: 0 | J35: 0.001711937079 | K35: 0.001675366936
A36: Rural Rate Protection Charge | B36: =B8 -> 308.56 | C36: =VLOOKUP($A36,'Data Pass Through'!$A:$D,2,FALSE) -> 0.0005 | D36: 0.15428 | E36: 308.56 | F36: =VLOOKUP($A36,'Data Pass Through'!$A:$D,3,FALSE) -> 0.0005 | G36: 0.15428 | H36: 0 | I36: 0 | J36: 0.002139921349 | K36: 0.00209420867
A37: Standard Supply Service – Administration Charge (if applicable) | B37: 1 | C37: =VLOOKUP($A37,'Data Pass Through'!$A:$D,2,FALSE) -> 0.25 | D37: =B37*C37 -> 0.25 | E37: 1 | F37: =VLOOKUP($A37,'Data Pass Through'!$A:$D,3,FALSE) -> 0.25 | G37: 0.25 | H37: 0 | I37: 0 | J37: 0.003467593578 | K37: 0.003393519365
A38: Sub-Total: Regulatory | D38: =SUM(D34:D37) -> 1.453384 | G38: =SUM(G34:G37) -> 1.453384 | H38: 0 | I38: 0 | J38: 0.0201589801 | K38: 0.01972834699
A39: Total Electricty Charge on Two-Tier RPP | D39: =SUM(D14,D23,D24,D25,D31,D38) -> 74.95248 | G39: =SUM(G14,G23,G24,G25,G31,G38) -> 76.61648 | H39: 1.664 | I39: 0.02220073305 | J39: 1.062699256
A40: HST | C40: 0.13 | D40: =D39*C40 -> 9.7438224 | F40: =C40 -> 0.13 | G40: =G39*F40 -> 9.9601424 | H40: 0.21632 | I40: 0.02220073305 | J40: 0.1381509033
A41: Total Electricity Charge on Two-Tier RPP (including HST) | D41: =SUM(D39:D40) -> 84.6963024 | G41: =SUM(G39:G40) -> 86.5766224 | H41: 1.88032 | I41: 0.02220073305 | J41: 1.200850159
A42: Ontario Electricity Rebate (OER) | C42: =IF(($B$4*12)<250000,VLOOKUP(A42,'Data Pass Through'!$A$4:$C$20,2,0),0) -> -0.189 | D42: =D39*C42 -> -14.16601872 | F42: =C42 -> -0.189 | G42: =G39*F42 -> -14.48051472 | H42: -0.314496 | I42: -0.02220073305 | J42: -0.2008501594
A43: Total Amount on Two-Tier RPP | D43: =SUM(D41:D42) -> 70.53028368 | G43: =SUM(G41:G42) -> 72.09610768 | H43: 1.565824 | I43: 0.02220073305 | J43: 1
A44: Total Electricty Charge on TOU (before HST) | D44: =SUM(D18,D23,D24,D26,D31,D38) -> 76.6248752 | G44: =SUM(G18,G23,G24,G26,G31,G38) -> 78.2888752 | H44: 1.664 | I44: 0.02171618545 | K44: =G44/$G$48 -> 1.062699256
A45: HST | C45: 0.13 | D45: =D44*C45 -> 9.961233776 | F45: =C45 -> 0.13 | G45: =G44*F45 -> 10.17755378 | H45: 0.21632 | I45: 0.02171618545 | K45: =G45/$G$48 -> 0.1381509033
A46: Total Electricity Charge on TOU (including HST) | D46: =SUM(D44:D45) -> 86.58610898 | G46: =SUM(G44:G45) -> 88.46642898 | H46: 1.88032 | I46: 0.02171618545 | K46: =G46/$G$48 -> 1.200850159
A47: Ontario Electricity Rebate (OER) | C47: =IF(($B$4*12)<250000,VLOOKUP(A47,'Data Pass Through'!$A$4:$C$20,2,0),0) -> -0.189 | D47: =D44*C47 -> -14.48210141 | F47: =C47 -> -0.189 | G47: =G44*F47 -> -14.79659741 | H47: -0.314496 | I47: -0.02171618545 | K47: =G47/$G$48 -> -0.2008501594
A48: Total Amount on TOU | D48: =SUM(D46:D47) -> 72.10400756 | G48: =SUM(G46:G47) -> 73.66983156 | H48: 1.565824 | I48: 0.02171618545 | K48: =G48/$G$48 -> 1

Sheet BI Template_DemandNPDI (hidden)
A1: 2024 Bill Impacts (Low Consumption Level) - AGSd_NPDI
A3: Rate Class | B3: =VLOOKUP(A1,'Data BI List Acq_Seas'!C:E,2,FALSE) -> AGSd-NPDI | C3: =VLOOKUP(A1,'Data BI List Acq_Seas'!C:E,3,FALSE) -> AGSd-NPDI
A4: Monthly Consumption (kWh) | B4: =IF(COUNTIF(A1,"*Low*")>0,VLOOKUP(B3,'Data Billing Quantities'!$A:$Z,MATCH("Low kWh",'Data Billing Quantities'!4:4,0),FALSE),IF(COUNTIF(A1,"*Typical*")>0,VLOOKUP(B3,'Data Billing Quantities'!$A:$Z,MATCH("Typical kWh",'Data Billing Quantities'!4:4,0),FALSE),IF(COUNTIF(A1,"*Average*")>0,VLOOKUP(B3,'Data Billing Quantities'!$A:$Z,MATCH("Average kWh",'Data Billing Quantities'!4:4,0),FALSE),IF(COUNTIF(A1,"*High*")>0,VLOOKUP(B3,'Data Billing Quantities'!$A:$Z,MATCH("High kWh",'Data Billing Quantities'!4:4,0),FALSE),"error")))) -> 13020 | C4: =B4 -> 13020
A5: Peak (kW) | B5: =IF(COUNTIF(A1,"*Low*")>0,VLOOKUP(B3,'Data Billing Quantities'!$A:$Z,MATCH("Low kW",'Data Billing Quantities'!4:4,0),FALSE),IF(COUNTIF(A1,"*Typical*")>0,VLOOKUP(B3,'Data Billing Quantities'!$A:$Z,MATCH("Typical kW",'Data Billing Quantities'!4:4,0),FALSE),IF(COUNTIF(A1,"*Average*")>0,VLOOKUP(B3,'Data Billing Quantities'!$A:$Z,MATCH("Average kW",'Data Billing Quantities'!4:4,0),FALSE),IF(COUNTIF(A1,"*High*")>0,VLOOKUP(B3,'Data Billing Quantities'!$A:$Z,MATCH("High kW",'Data Billing Quantities'!4:4,0),FALSE),"error")))) -> 55 | C5: =B5 -> 55
A6: Loss factor | B6: =VLOOKUP(B3,'Data Billing Quantities'!A:D,MATCH(A6,'Data Billing Quantities'!4:4,0),FALSE) -> 1.053 | C6: =VLOOKUP(C3,'Data Billing Quantities'!A:D,MATCH(A6,'Data Billing Quantities'!4:4,0),FALSE) -> 1.053
A7: Commodity Threshold | B7: =VLOOKUP(B3,'Data Billing Quantities'!A:D,MATCH(A7,'Data Billing Quantities'!4:4,0),FALSE) -> 0 | C7: =B7 -> 0
A8: Monthly Consumption (kWh) - Uplifted | B8: =B4*B6 -> 13710.06 | C8: =C4*C6 -> 13710.06
A9: Charge determinant | B9: =VLOOKUP(B3,'Data Billing Quantities'!A:D,MATCH(A9,'Data Billing Quantities'!4:4,0),FALSE) -> kW | C9: =VLOOKUP(C3,'Data Billing Quantities'!A:D,MATCH(A9,'Data Billing Quantities'!4:4,0),FALSE) -> kW
B11: Volume | C11: Current Rate ($) | D11: Current Charge ($) | E11: Volume | F11: Proposed Rate ($) | G11: Proposed Charge ($) | H11: Change ($) | I11: Change (%) | J11: % of Total Bill
A12: Weighted Average Hourly Spot Price | B12: =B8 -> 13710.06 | C12: =VLOOKUP($A12,'Data Pass Through'!$A:$D,2,FALSE) -> 0.119 | D12: =B12*C12 -> 1631.49714 | E12: =C8 -> 13710.06 | F12: =VLOOKUP($A12,'Data Pass Through'!$A:$D,3,FALSE) -> 0.119 | G12: =E12*F12 -> 1631.49714 | H12: =G12-D12 -> 0 | I12: =IF(ISERROR(H12/ABS(D12)),"N/A",(H12/ABS(D12))) -> 0 | J12: =G12/G$32 -> 0.6079309421
A13: Sub-Total: Energy (WASHP) | D13: =SUM(D12:D12) -> 1631.49714 | G13: =SUM(G12:G12) -> 1631.49714 | H13: 0 | I13: 0 | J13: 0.6079309421
A14: Service Charge | B14: 1 | C14: =VLOOKUP($B$3,'Data Current Rates'!$A:$AO,MATCH('BI Template_DemandNPDI'!$A14,CurrentHeader,0),FALSE) -> 186.87 | D14: =B14*C14 -> 186.87 | E14: 1 | F14: =VLOOKUP($C$3,'Data Proposed Rates'!$A:$AZ,MATCH('BI Template_DemandNPDI'!$A14,ProposedHeader,0),FALSE) -> 194.9 | G14: =E14*F14 -> 194.9 | H14: 8.03 | I14: 0.04297104939 | J14: 0.072623934
A15: Distribution Volumetric Charge | B15: =IF($B$9="kWh",$B$4,$B$5) -> 55 | C15: =VLOOKUP($B$3,'Data Current Rates'!$A:$AO,MATCH('BI Template_DemandNPDI'!$A15,CurrentHeader,0),FALSE) -> 4.3771 | D15: =B15*C15 -> 240.7405 | E15: =IF($C$9="kWh",$C$4,$C$5) -> 55 | F15: =VLOOKUP($C$3,'Data Proposed Rates'!$A:$AZ,MATCH('BI Template_DemandNPDI'!$A15,ProposedHeader,0),FALSE) -> 4.6399 | G15: 255.1945 | H15: 14.454 | I15: 0.06003975235 | J15: 0.09509096217
A16: Group 1 Volumetric DVA Rider (General) | B16: =IF($B$9="kWh",$B$4,$B$5) -> 55 | C16: =VLOOKUP($B$3,'Data Current Rates'!$A:$AO,MATCH('BI Template_DemandNPDI'!$A16,CurrentHeader,0),FALSE) -> -0.0399 | D16: =B16*C16 -> -2.1945 | E16: =IF($C$9="kWh",$C$4,$C$5) -> 55 | F16: =VLOOKUP($C$3,'Data Proposed Rates'!$A:$AZ,MATCH('BI Template_DemandNPDI'!$A16,ProposedHeader,0),FALSE) -> -0.0399 | G16: -2.1945 | H16: 0 | I16: 0 | J16: -0.0008177179229
A17: Group 1 Volumetric Deferral/Variance Account Rider (Sub-Account RSVA Wholesale Market Service Charge & RSVA Power) | B17: 55 | C17: =VLOOKUP($B$3,'Data Current Rates'!$A:$AO,MATCH('BI Template_DemandNPDI'!$A17,CurrentHeader,0),FALSE) -> -0.0829 | D17: -4.5595 | E17: 55 | F17: =VLOOKUP($C$3,'Data Proposed Rates'!$A:$AZ,MATCH('BI Template_DemandNPDI'!$A17,ProposedHeader,0),FALSE) -> -0.0829 | G17: -4.5595 | H17: 0 | I17: 0 | J17: -0.001698967815
A18: Group 1 Volumetric Deferral/Variance Account Rider (Sub-Account Global Adjustment) | B18: =B4 -> 13020 | C18: =VLOOKUP($B$3,'Data Current Rates'!$A:$AO,MATCH('BI Template_DemandNPDI'!$A18,CurrentHeader,0),FALSE) -> -0.0007 | D18: -9.114 | E18: =C4 -> 13020 | F18: =VLOOKUP($C$3,'Data Proposed Rates'!$A:$AZ,MATCH('BI Template_DemandNPDI'!$A18,ProposedHeader,0),FALSE) -> -0.0007 | G18: -9.114 | H18: 0 | I18: 0 | J18: -0.003396072522
A19: LRAMVA Volumetric Rate Rider | B19: 55 | C19: =VLOOKUP($B$3,'Data Current Rates'!$A:$AO,MATCH('BI Template_DemandNPDI'!$A19,CurrentHeader,0),FALSE) -> 0.2853 | D19: =B19*C19 -> 15.6915 | H19: =G19-D19 -> -15.6915 | I19: =IF(ISERROR(H19/ABS(D19)),"N/A",(H19/ABS(D19))) -> -1 | J19: =G19/G$32 -> 0
A20: Sub-Total: Distribution | D20: =SUM(INDIRECT("D14:D"&ROW()-1)) -> 427.434 | G20: =SUM(INDIRECT("g14:g"&ROW()-1)) -> 434.2265 | H20: =G20-D20 -> 6.7925 | I20: 0.01589134229 | J20: 0.1618021379
A21: Retail Transmission Rate – Network Service Rate | B21: =IF($B$9="kWh",$B$4,$B$5) -> 55 | C21: =VLOOKUP($B$3,'Data Current Rates'!$A:$AO,MATCH('BI Template_DemandNPDI'!$A21,CurrentHeader,0),FALSE) -> 2.6521 | D21: =B21*C21 -> 145.8655 | E21: =IF($C$9="kWh",$C$4,$C$5) -> 55 | F21: =VLOOKUP($C$3,'Data Proposed Rates'!$A:$AZ,MATCH('BI Template_DemandNPDI'!$A21,ProposedHeader,0),FALSE) -> 2.6521 | G21: =E21*F21 -> 145.8655 | H21: =G21-D21 -> 0 | I21: 0 | J21: 0.05435262414
A22: Retail Transmission Rate – Line and Transformation Connection Service Rate | B22: =IF($B$9="kWh",$B$4,$B$5) -> 55 | C22: =VLOOKUP($B$3,'Data Current Rates'!$A:$AO,MATCH('BI Template_DemandNPDI'!$A22,CurrentHeader,0),FALSE) -> 1.9934 | D22: =B22*C22 -> 109.637 | E22: =IF($C$9="kWh",$C$4,$C$5) -> 55 | F22: =VLOOKUP($C$3,'Data Proposed Rates'!$A:$AZ,MATCH('BI Template_DemandNPDI'!$A22,ProposedHeader,0),FALSE) -> 1.9934 | G22: =E22*F22 -> 109.637 | H22: =G22-D22 -> 0 | I22: 0 | J22: 0.04085310545
A23: Sub-Total: Retail Transmission | D23: =SUM(D21:D22) -> 255.5025 | G23: =SUM(G21:G22) -> 255.5025 | H23: =G23-D23 -> 0 | I23: 0 | J23: 0.09520572959
A24: Sub-Total: Delivery (based on two-tier RPP prices) | D24: =SUM(D20,D23) -> 682.9365 | G24: =SUM(G20,G23) -> 689.729 | H24: =G24-D24 -> 6.7925 | I24: 0.009946019872 | J24: 0.2570078675
A25: Wholesale Market Service Rate (WMS) - not including CBR | B25: =B8 -> 13710.06 | C25: =VLOOKUP($A25,'Data Pass Through'!$A:$D,2,FALSE) -> 0.003 | D25: =B25*C25 -> 41.13018 | E25: =$C$8 -> 13710.06 | F25: =VLOOKUP($A25,'Data Pass Through'!$A:$D,3,FALSE) -> 0.003 | G25: =E25*F25 -> 41.13018 | H25: =G25-D25 -> 0 | I25: 0 | J25: 0.01532599014
A26: Capacity Based Recovery (CBR) - Applicable for Class B Customers | B26: =B8 -> 13710.06 | C26: =VLOOKUP($A26,'Data Pass Through'!$A:$D,2,FALSE) -> 0.0004 | D26: =B26*C26 -> 5.484024 | E26: =$C$8 -> 13710.06 | F26: =VLOOKUP($A26,'Data Pass Through'!$A:$D,3,FALSE) -> 0.0004 | G26: =E26*F26 -> 5.484024 | H26: 0 | I26: 0 | J26: 0.002043465352
A27: Rural Rate Protection Charge | B27: =B8 -> 13710.06 | C27: =VLOOKUP($A27,'Data Pass Through'!$A:$D,2,FALSE) -> 0.0005 | D27: 6.85503 | E27: 13710.06 | F27: =VLOOKUP($A27,'Data Pass Through'!$A:$D,3,FALSE) -> 0.0005 | G27: 6.85503 | H27: 0 | I27: 0 | J27: 0.00255433169
A28: Standard Supply Service – Administration Charge (if applicable) | B28: 1 | C28: =VLOOKUP($A28,'Data Pass Through'!$A:$D,2,FALSE) -> 0.25 | D28: =B28*C28 -> 0.25 | E28: =B28 -> 1 | F28: =VLOOKUP($A28,'Data Pass Through'!$A:$D,3,FALSE) -> 0.25 | G28: 0.25 | H28: 0 | I28: 0 | J28: 9.315537969e-05
A29: Sub-Total: Regulatory | D29: =SUM(D25:D28) -> 53.719234 | G29: =SUM(G25:G28) -> 53.719234 | H29: 0 | I29: 0 | J29: 0.02001694256
A30: Total Electricity Charge on WAHSP | D30: =SUM(D13,D24,D29) -> 2368.152874 | G30: =SUM(G13,G24,G29) -> 2374.945374 | H30: 6.7925 | I30: 0.002868269221 | J30: 0.8849557522
A31: HST | C31: 0.13 | D31: =D30*C31 -> 307.8598736 | F31: =C31 -> 0.13 | G31: =G30*F31 -> 308.7428986 | H31: 0.883025 | I31: 0.002868269221 | J31: 0.1150442478
A32: Total Amount on WAHSP | D32: =SUM(D30:D31) -> 2676.012748 | G32: =SUM(G30:G31) -> 2683.688273 | H32: 7.675525 | I32: 0.002868269221 | J32: 1

Sheet BI Template_unmNPDI (hidden)
A1: 2024 Bill Impacts (Average Consumption Level) - St Lgt_NPDI
A3: Rate Class | B3: =VLOOKUP(A1,'Data BI List Acq_Seas'!C:E,2,FALSE) -> St Lgt-NPDI | C3: =VLOOKUP(A1,'Data BI List Acq_Seas'!C:E,3,FALSE) -> St Lgt-NPDI
A4: Monthly Consumption (kWh) | B4: =IF(COUNTIF(A1,"*Low*")>0,VLOOKUP(B3,'Data Billing Quantities'!$A:$Z,MATCH("Low kWh",'Data Billing Quantities'!4:4,0),FALSE),IF(COUNTIF(A1,"*Typical*")>0,VLOOKUP(B3,'Data Billing Quantities'!$A:$Z,MATCH("Typical kWh",'Data Billing Quantities'!4:4,0),FALSE),IF(COUNTIF(A1,"*Average*")>0,VLOOKUP(B3,'Data Billing Quantities'!$A:$Z,MATCH("Average kWh",'Data Billing Quantities'!4:4,0),FALSE),IF(COUNTIF(A1,"*High*")>0,VLOOKUP(B3,'Data Billing Quantities'!$A:$Z,MATCH("High kWh",'Data Billing Quantities'!4:4,0),FALSE),"error")))) -> 11389 | C4: =B4 -> 11389
A5: Peak (kW) | B5: =IF(COUNTIF(A1,"*Low*")>0,VLOOKUP(B3,'Data Billing Quantities'!$A:$Z,MATCH("Low kW",'Data Billing Quantities'!4:4,0),FALSE),IF(COUNTIF(A1,"*Typical*")>0,VLOOKUP(B3,'Data Billing Quantities'!$A:$Z,MATCH("Typical kW",'Data Billing Quantities'!4:4,0),FALSE),IF(COUNTIF(A1,"*Average*")>0,VLOOKUP(B3,'Data Billing Quantities'!$A:$Z,MATCH("Average kW",'Data Billing Quantities'!4:4,0),FALSE),IF(COUNTIF(A1,"*High*")>0,VLOOKUP(B3,'Data Billing Quantities'!$A:$Z,MATCH("High kW",'Data Billing Quantities'!4:4,0),FALSE),"error")))) -> 0 | C5: =B5 -> 0
A6: Loss factor | B6: =VLOOKUP(B3,'Data Billing Quantities'!A:D,MATCH(A6,'Data Billing Quantities'!4:4,0),FALSE) -> 1.092 | C6: =VLOOKUP(C3,'Data Billing Quantities'!A:D,MATCH(A6,'Data Billing Quantities'!4:4,0),FALSE) -> 1.092
A7: Commodity Threshold | B7: =VLOOKUP(B3,'Data Billing Quantities'!A:D,MATCH(A7,'Data Billing Quantities'!4:4,0),FALSE) -> 750 | C7: =B7 -> 750
A8: Monthly Consumption (kWh) - Uplifted | B8: =B4*B6 -> 12436.788 | C8: =C4*C6 -> 12436.788
A9: Charge determinant | B9: =VLOOKUP(B3,'Data Billing Quantities'!A:D,MATCH(A9,'Data Billing Quantities'!4:4,0),FALSE) -> kWh | C9: =VLOOKUP(C3,'Data Billing Quantities'!A:D,MATCH(A9,'Data Billing Quantities'!4:4,0),FALSE) -> kWh
B11: Volume | C11: Current Rate ($) | D11: Current Charge ($) | E11: Volume | F11: Proposed Rate ($) | G11: Proposed Charge ($) | H11: Change ($) | I11: Change (%) | J11: % of Total Bill
A12: Energy First Tier | B12: =IF(B4>B7,B7,B4) -> 750 | C12: =VLOOKUP($A12,'Data Pass Through'!$A:$D,2,FALSE) -> 0.098 | D12: =B12*C12 -> 73.5 | E12: =B12 -> 750 | F12: =VLOOKUP($A12,'Data Pass Through'!$A:$D,3,FALSE) -> 0.098 | G12: =E12*F12 -> 73.5 | H12: =G12-D12 -> 0 | I12: =IF(ISERROR(H12/ABS(D12)),"N/A",(H12/ABS(D12))) -> 0 | J12: =G12/$G$34 -> 0.02699628477
A13: Energy Second Tier | B13: =IF(B4>B7,(B4)-B7,0) -> 10639 | C13: =VLOOKUP($A13,'Data Pass Through'!$A:$D,2,FALSE) -> 0.115 | D13: =B13*C13 -> 1223.485 | E13: =B13 -> 10639 | F13: =VLOOKUP($A13,'Data Pass Through'!$A:$D,3,FALSE) -> 0.115 | G13: =E13*F13 -> 1223.485 | H13: 0 | I13: 0 | J13: 0.4493816255
A14: Sub-Total: Energy (RPP Tiered) | D14: =SUM(D12:D13) -> 1296.985 | G14: =SUM(G12:G13) -> 1296.985 | H14: 0 | I14: 0 | J14: 0.4763779102
A15: Service Charge | B15: =IF(VLOOKUP(B$3,'Data Billing Quantities'!A:P,MATCH("Acquired Street Light Service Charge",'Data Billing Quantities'!$4:$4,0),FALSE)>0,VLOOKUP(B$3,'Data Billing Quantities'!A:P,MATCH("Acquired Street Light Service Charge",'Data Billing Quantities'!$4:$4,0),FALSE),1) -> 1 | C15: =VLOOKUP($B$3,'Data Current Rates'!$A:$AO,MATCH('BI Template_unmNPDI'!$A15,CurrentHeader,0),FALSE) -> 3.01 | D15: =B15*C15 -> 3.01 | E15: 1 | F15: =VLOOKUP($C$3,'Data Proposed Rates'!$A:$AZ,MATCH('BI Template_unmNPDI'!$A15,ProposedHeader,0),FALSE) -> 3.11 | G15: =E15*F15 -> 3.11 | H15: 0.1 | I15: 0.03322259136 | J15: 0.001142291777
A16: Distribution Volumetric Charge | B16: =IF($B$9="kWh",$B$4,$B$5) -> 11389 | C16: =VLOOKUP($B$3,'Data Current Rates'!$A:$AO,MATCH('BI Template_unmNPDI'!$A16,CurrentHeader,0),FALSE) -> 0.1094 | D16: =B16*C16 -> 1245.9566 | E16: =IF($C$9="kWh",$C$4,$C$5) -> 11389 | F16: =VLOOKUP($C$3,'Data Proposed Rates'!$A:$AZ,MATCH('BI Template_unmNPDI'!$A16,ProposedHeader,0),FALSE) -> 0.1147 | G16: 1306.3183 | H16: 60.3617 | I16: 0.04844606947 | J16: 0.4798059977
A17: Group 1 Volumetric DVA Rider (General) | B17: =IF($B$9="kWh",$B$4,$B$5) -> 11389 | C17: =VLOOKUP($B$3,'Data Current Rates'!$A:$AO,MATCH('BI Template_unmNPDI'!$A17,CurrentHeader,0),FALSE) -> -0.0007 | D17: =B17*C17 -> -7.9723 | E17: =IF($C$9="kWh",$C$4,$C$5) -> 11389 | F17: =VLOOKUP($C$3,'Data Proposed Rates'!$A:$AZ,MATCH('BI Template_unmNPDI'!$A17,ProposedHeader,0),FALSE) -> -0.0007 | G17: -7.9723 | H17: 0 | I17: 0 | J17: -0.002928197021
A18: Sub-Total: Distribution (excluding pass through) | D18: =SUM(INDIRECT("D15:D"&ROW()-1)) -> 1240.9943 | G18: =SUM(INDIRECT("g15:g"&ROW()-1)) -> 1301.456 | H18: =G18-D18 -> 60.4617 | I18: 0.04872036882 | J18: 0.4780200924
A19: Line Losses on Cost of Power (based on two-tier RPP prices) | B19: =B8-B4 -> 1047.788 | C19: =IF(B4>B7,C13,C12) -> 0.115 | D19: =B19*C19 -> 120.49562 | E19: =C8-C4 -> 1047.788 | F19: =IF(C4>C7,F13,F12) -> 0.115 | G19: =E19*F19 -> 120.49562 | H19: 0 | I19: 0 | J19: 0.04425760641
A20: Sub-Total: Distribution (based on two-tier RPP prices) | D20: =SUM(D18,D19:D19) -> 1361.48992 | G20: =SUM(G18,G19:G19) -> 1421.95162 | H20: 60.4617 | I20: 0.04440848156 | J20: 0.5222776988
A21: Retail Transmission Rate – Network Service Rate | B21: =IF($B$9="kWh",$B$8,$B$5) -> 12436.788 | C21: =VLOOKUP($B$3,'Data Current Rates'!$A:$AO,MATCH('BI Template_unmNPDI'!$A21,CurrentHeader,0),FALSE) -> 0.0059 | D21: =B21*C21 -> 73.3770492 | E21: =IF($C$9="kWh",$C$8,$C$5) -> 12436.788 | F21: =VLOOKUP($C$3,'Data Proposed Rates'!$A:$AZ,MATCH('BI Template_unmNPDI'!$A21,ProposedHeader,0),FALSE) -> 0.0059 | G21: =E21*F21 -> 73.3770492 | H21: =G21-D21 -> 0 | I21: 0 | J21: 0.02695112539
A22: Retail Transmission Rate – Line and Transformation Connection Service Rate | B22: =IF($B$9="kWh",$B$8,$B$5) -> 12436.788 | C22: =VLOOKUP($B$3,'Data Current Rates'!$A:$AO,MATCH('BI Template_unmNPDI'!$A22,CurrentHeader,0),FALSE) -> 0.0042 | D22: =B22*C22 -> 52.2345096 | E22: =IF($C$9="kWh",$C$8,$C$5) -> 12436.788 | F22: =VLOOKUP($C$3,'Data Proposed Rates'!$A:$AZ,MATCH('BI Template_unmNPDI'!$A22,ProposedHeader,0),FALSE) -> 0.0042 | G22: =E22*F22 -> 52.2345096 | H22: =G22-D22 -> 0 | I22: 0 | J22: 0.01918554688
A23: Sub-Total: Retail Transmission | D23: =SUM(D21:D22) -> 125.6115588 | G23: =SUM(G21:G22) -> 125.6115588 | H23: =G23-D23 -> 0 | I23: 0 | J23: 0.04613667227
A24: Sub-Total: Delivery (based on two-tier RPP prices) | D24: =D20+D23 -> 1487.101479 | G24: =G20+G23 -> 1547.563179 | H24: =G24-D24 -> 60.4617 | I24: 0.04065741367 | J24: 0.5684143711
A25: Wholesale Market Service Rate (WMS) - not including CBR | B25: =B8 -> 12436.788 | C25: =VLOOKUP($A25,'Data Pass Through'!$A:$D,2,FALSE) -> 0.003 | D25: =B25*C25 -> 37.310364 | E25: =$C$8 -> 12436.788 | F25: =VLOOKUP($A25,'Data Pass Through'!$A:$D,3,FALSE) -> 0.003 | G25: =E25*F25 -> 37.310364 | H25: =G25-D25 -> 0 | I25: 0 | J25: 0.01370396206
A26: Capacity Based Recovery (CBR) - Applicable for Class B Customers | B26: =B8 -> 12436.788 | C26: =VLOOKUP($A26,'Data Pass Through'!$A:$D,2,FALSE) -> 0.0004 | D26: =B26*C26 -> 4.9747152 | E26: =$C$8 -> 12436.788 | F26: =VLOOKUP($A26,'Data Pass Through'!$A:$D,3,FALSE) -> 0.0004 | G26: =E26*F26 -> 4.9747152 | H26: 0 | I26: 0 | J26: 0.001827194941
A27: Rural Rate Protection Charge | B27: =B8 -> 12436.788 | C27: =VLOOKUP($A27,'Data Pass Through'!$A:$D,2,FALSE) -> 0.0005 | D27: 6.218394 | E27: 12436.788 | F27: =VLOOKUP($A27,'Data Pass Through'!$A:$D,3,FALSE) -> 0.0005 | G27: 6.218394 | H27: 0 | I27: 0 | J27: 0.002283993677
A28: Standard Supply Service – Administration Charge (if applicable) | B28: 1 | C28: =VLOOKUP($A28,'Data Pass Through'!$A:$D,2,FALSE) -> 0.25 | D28: =B28*C28 -> 0.25 | E28: 1 | F28: =VLOOKUP($A28,'Data Pass Through'!$A:$D,3,FALSE) -> 0.25 | G28: 0.25 | H28: 0 | I28: 0 | J28: 9.182409786e-05
A29: Sub-Total: Regulatory | D29: =SUM(D25:D28) -> 48.7534732 | G29: =SUM(G25:G28) -> 48.7534732 | H29: 0 | I29: 0 | J29: 0.01790697478
A30: Total Electricty Charge on Two-Tier RPP | D30: =SUM(D24,D29,D14) -> 2832.839952 | G30: =SUM(G24,G29,G14) -> 2893.301652 | H30: 60.4617 | I30: 0.02134314011 | J30: 1.062699256
A31: HST | C31: 0.13 | D31: =D30*C31 -> 368.2691938 | F31: =C31 -> 0.13 | G31: =G30*F31 -> 376.1292148 | H31: 7.860021 | I31: 0.02134314011 | J31: 0.1381509033
A32: Total Electricity Charge on Two-Tier RPP (including HST) | D32: =SUM(D30:D31) -> 3201.109146 | G32: =SUM(G30:G31) -> 3269.430867 | H32: 68.321721 | I32: 0.02134314011 | J32: 1.200850159
A33: Ontario Electricity Rebate (OER) | C33: =IF(($B$4*12)<250000,VLOOKUP(A33,'Data Pass Through'!$A$4:$C$20,2,0),0) -> -0.189 | D33: =D30*C33 -> -535.4067509 | F33: =C33 -> -0.189 | G33: =G30*F33 -> -546.8340122 | H33: -11.4272613 | I33: -0.02134314011 | J33: -0.2008501594
A34: Total Amount on Two-Tier RPP | D34: =SUM(D32:D33) -> 2665.702395 | G34: =SUM(G32:G33) -> 2722.596855 | H34: 56.8944597 | I34: 0.02134314011 | J34: 1

Sheet BI Template_EnergyHCHI (hidden)
A1: 2024 Bill Impacts (Low Consumption Level) - AR_HCHI
A3: Rate Class | B3: =VLOOKUP(A1,'Data BI List Acq_Seas'!C:E,2,FALSE) -> AR-HCHI | C3: =VLOOKUP(A1,'Data BI List Acq_Seas'!C:E,3,FALSE) -> AR-HCHI
A4: Monthly Consumption (kWh) | B4: =IF(COUNTIF(A1,"*Low*")>0,VLOOKUP(B3,'Data Billing Quantities'!$A:$Z,MATCH("Low kWh",'Data Billing Quantities'!4:4,0),FALSE),IF(COUNTIF(A1,"*Typical*")>0,VLOOKUP(B3,'Data Billing Quantities'!$A:$Z,MATCH("Typical kWh",'Data Billing Quantities'!4:4,0),FALSE),IF(COUNTIF(A1,"*Average*")>0,VLOOKUP(B3,'Data Billing Quantities'!$A:$Z,MATCH("Average kWh",'Data Billing Quantities'!4:4,0),FALSE),IF(COUNTIF(A1,"*High*")>0,VLOOKUP(B3,'Data Billing Quantities'!$A:$Z,MATCH("High kWh",'Data Billing Quantities'!4:4,0),FALSE),"error")))) -> 250 | C4: =B4 -> 250
A5: Peak (kW) | B5: =IF(COUNTIF(A1,"*Low*")>0,VLOOKUP(B3,'Data Billing Quantities'!$A:$Z,MATCH("Low kW",'Data Billing Quantities'!4:4,0),FALSE),IF(COUNTIF(A1,"*Typical*")>0,VLOOKUP(B3,'Data Billing Quantities'!$A:$Z,MATCH("Typical kW",'Data Billing Quantities'!4:4,0),FALSE),IF(COUNTIF(A1,"*Average*")>0,VLOOKUP(B3,'Data Billing Quantities'!$A:$Z,MATCH("Average kW",'Data Billing Quantities'!4:4,0),FALSE),IF(COUNTIF(A1,"*High*")>0,VLOOKUP(B3,'Data Billing Quantities'!$A:$Z,MATCH("High kW",'Data Billing Quantities'!4:4,0),FALSE),"error")))) -> 0 | C5: =B5 -> 0
A6: Loss factor | B6: =VLOOKUP(B3,'Data Billing Quantities'!A:D,MATCH(A6,'Data Billing Quantities'!4:4,0),FALSE) -> 1.064 | C6: =VLOOKUP(C3,'Data Billing Quantities'!A:D,MATCH(A6,'Data Billing Quantities'!4:4,0),FALSE) -> 1.064
A7: Commodity Threshold | B7: =VLOOKUP(B3,'Data Billing Quantities'!A:D,MATCH(A7,'Data Billing Quantities'!4:4,0),FALSE) -> 750 | C7: =B7 -> 750
A8: Monthly Consumption (kWh) - Uplifted | B8: =B4*B6 -> 266 | C8: =C4*C6 -> 266
A9: Charge determinant | B9: =VLOOKUP(B3,'Data Billing Quantities'!A:D,MATCH(A9,'Data Billing Quantities'!4:4,0),FALSE) -> kWh | C9: =VLOOKUP(C3,'Data Billing Quantities'!A:D,MATCH(A9,'Data Billing Quantities'!4:4,0),FALSE) -> kWh
B11: Volume | C11: Current Rate ($) | D11: Current Charge ($) | E11: Volume | F11: Proposed Rate ($) | G11: Proposed Charge ($) | H11: Change ($) | I11: Change (%) | J11: % of Total Bill on RPP | K11: % of Total Bill
A12: Energy First Tier | B12: =IF(B4>B7,B7,B4) -> 250 | C12: =VLOOKUP($A12,'Data Pass Through'!$A:$D,2,FALSE) -> 0.098 | D12: =B12*C12 -> 24.5 | E12: =B12 -> 250 | F12: =VLOOKUP($A12,'Data Pass Through'!$A:$D,3,FALSE) -> 0.098 | G12: =E12*F12 -> 24.5 | H12: =G12-D12 -> 0 | I12: =IF(ISERROR(H12/ABS(D12)),"N/A",(H12/ABS(D12))) -> 0 | J12: =G12/$G$43 -> 0.3639737153
A13: Energy Second Tier | B13: =IF(B4>B7,(B4)-B7,0) -> 0 | C13: =VLOOKUP($A13,'Data Pass Through'!$A:$D,2,FALSE) -> 0.115 | D13: =B13*C13 -> 0 | E13: =B13 -> 0 | F13: =VLOOKUP($A13,'Data Pass Through'!$A:$D,3,FALSE) -> 0.115 | G13: =E13*F13 -> 0 | H13: 0 | I13: N/A | J13: =G13/$G$43 -> 0
A14: Sub-Total: Energy (RPP Tiered) | D14: =SUM(D12:D13) -> 24.5 | G14: =SUM(G12:G13) -> 24.5 | H14: 0 | I14: 0 | J14: =G14/$G$43 -> 0.3639737153
A15: TOU-Off Peak | B15: =B$4*VLOOKUP($B$3,'Data Billing Quantities'!$A:$O,MATCH('BI Template_EnergyHCHI'!$A15,'Data Billing Quantities'!$4:$4,0),FALSE) -> 160 | C15: =VLOOKUP($A15,'Data Pass Through'!$A:$D,2,FALSE) -> 0.082 | D15: =B15*C15 -> 13.12 | E15: 160 | F15: =VLOOKUP($A15,'Data Pass Through'!$A:$D,3,FALSE) -> 0.082 | G15: =E15*F15 -> 13.12 | H15: 0 | I15: 0 | K15: =G15/$G$48 -> 0.1910608803
A16: TOU-Mid Peak | B16: =B$4*VLOOKUP($B$3,'Data Billing Quantities'!$A:$O,MATCH('BI Template_EnergyHCHI'!$A16,'Data Billing Quantities'!$4:$4,0),FALSE) -> 45 | C16: =VLOOKUP($A16,'Data Pass Through'!$A:$D,2,FALSE) -> 0.113 | D16: =B16*C16 -> 5.085 | E16: 45 | F16: =VLOOKUP($A16,'Data Pass Through'!$A:$D,3,FALSE) -> 0.113 | G16: =E16*F16 -> 5.085 | H16: 0 | I16: 0 | K16: 0.07405065367
A17: TOU-On Peak | B17: =B$4*VLOOKUP($B$3,'Data Billing Quantities'!$A:$O,MATCH('BI Template_EnergyHCHI'!$A17,'Data Billing Quantities'!$4:$4,0),FALSE) -> 45 | C17: =VLOOKUP($A17,'Data Pass Through'!$A:$D,2,FALSE) -> 0.17 | D17: =B17*C17 -> 7.65 | E17: 45 | F17: =VLOOKUP($A17,'Data Pass Through'!$A:$D,3,FALSE) -> 0.17 | G17: =E17*F17 -> 7.65 | H17: 0 | I17: 0 | K17: 0.1114036383
A18: Sub-Total: Energy (RPP TOU) | D18: =SUM(D15:D17) -> 25.855 | G18: =SUM(G15:G17) -> 25.855 | H18: 0 | I18: 0 | J18: =G18/$G$43 -> 0.3841036901 | K18: 0.3765151722
A19: Service Charge | B19: 1 | C19: =VLOOKUP($B$3,'Data Current Rates'!$A:$AO,MATCH('BI Template_EnergyHCHI'!$A19,CurrentHeader,0),FALSE) -> 36.98 | D19: =B19*C19 -> 36.98 | E19: 1 | F19: =VLOOKUP($C$3,'Data Proposed Rates'!$A:$AZ,MATCH('BI Template_EnergyHCHI'!$A19,ProposedHeader,0),FALSE) -> 38.76 | G19: =E19*F19 -> 38.76 | H19: 1.78 | I19: 0.04813412655 | J19: 0.5758212736 | K19: 0.5644451005
A20: Distribution Volumetric Charge | B20: =IF($B$9="kWh",$B$4,$B$5) -> 250 | C20: =VLOOKUP($B$3,'Data Current Rates'!$A:$AO,MATCH('BI Template_EnergyHCHI'!$A20,CurrentHeader,0),FALSE) -> 0 | D20: =B20*C20 -> 0 | E20: =IF($C$9="kWh",$C$4,$C$5) -> 250 | F20: =VLOOKUP($C$3,'Data Proposed Rates'!$A:$AZ,MATCH('BI Template_EnergyHCHI'!$A20,ProposedHeader,0),FALSE) -> 0 | G20: 0 | H20: 0 | I20: N/A | J20: 0 | K20: 0
A21: Group 1 Volumetric DVA Rider (General) | B21: =IF($B$9="kWh",$B$4,$B$5) -> 250 | C21: =VLOOKUP($B$3,'Data Current Rates'!$A:$AO,MATCH('BI Template_EnergyHCHI'!$A21,CurrentHeader,0),FALSE) -> -0.0004 | D21: =B21*C21 -> -0.1 | E21: =IF($C$9="kWh",$C$4,$C$5) -> 250 | F21: =VLOOKUP($C$3,'Data Proposed Rates'!$A:$AZ,MATCH('BI Template_EnergyHCHI'!$A21,ProposedHeader,0),FALSE) -> -0.0004 | G21: -0.1 | H21: 0 | I21: 0 | J21: -0.001485607001 | K21: -0.001456256709
A22: LRAMVA Volumetric Rate Rider | B22: =IF($B$9="kWh",$B$4,$B$5) -> 250 | C22: =VLOOKUP($B$3,'Data Current Rates'!$A:$AO,MATCH('BI Template_EnergyHCHI'!$A22,CurrentHeader,0),FALSE) -> 0.0003 | D22: =B22*C22 -> 0.075 | H22: =G22-D22 -> -0.075 | I22: =IF(ISERROR(H22/ABS(D22)),"N/A",(H22/ABS(D22))) -> -1 | J22: =G22/$G$43 -> 0 | K22: =G22/$G$48 -> 0
A23: Sub-Total: Distribution (excluding pass through) | D23: =SUM(INDIRECT("D19:D"&ROW()-1)) -> 36.955 | G23: =SUM(INDIRECT("g19:g"&ROW()-1)) -> 38.66 | H23: =G23-D23 -> 1.705 | I23: 0.04613719388 | J23: 0.5743356666 | K23: 0.5629888438
A24: Smart Metering Entity Charge | B24: =B19 -> 1 | C24: =VLOOKUP($A24,'Data Pass Through'!$A:$D,2,FALSE) -> 0.57 | D24: =B24*C24 -> 0.57 | E24: =E19 -> 1 | F24: =VLOOKUP($A24,'Data Pass Through'!$A:$D,3,FALSE) -> 0.57 | G24: =E24*F24 -> 0.57 | H24: 0 | I24: 0 | J24: 0.008467959906 | K24: 0.008300663243
A25: Line Losses on Cost of Power (based on two-tier RPP prices) | B25: =B8-B4 -> 16 | C25: =IF(B4>B7,C13,C12) -> 0.098 | D25: =B25*C25 -> 1.568 | E25: =C8-C4 -> 16 | F25: =IF(C4>C7,F13,F12) -> 0.098 | G25: =E25*F25 -> 1.568 | H25: 0 | I25: 0 | J25: 0.02329431778 | K25: 0.0228341052
A26: Line Losses on Cost of Power (based on TOU prices) | B26: =B8-B4 -> 16 | C26: =VLOOKUP($B$3,'Data Billing Quantities'!$A:$O,MATCH('BI Template_EnergyHCHI'!$A15,'Data Billing Quantities'!$4:$4,0),FALSE)*C15+VLOOKUP($B$3,'Data Billing Quantities'!$A:$O,MATCH('BI Template_EnergyHCHI'!$A16,'Data Billing Quantities'!$4:$4,0),FALSE)*C16+VLOOKUP($B$3,'Data Billing Quantities'!$A:$O,MATCH('BI Template_EnergyHCHI'!$A17,'Data Billing Quantities'!$4:$4,0),FALSE)*C17 -> 0.10342 | D26: =B26*C26 -> 1.65472 | E26: =C8-C4 -> 16 | F26: =VLOOKUP($C$3,'Data Billing Quantities'!$A:$O,MATCH('BI Template_EnergyHCHI'!$A15,'Data Billing Quantities'!$4:$4,0),FALSE)*F15+VLOOKUP($C$3,'Data Billing Quantities'!$A:$O,MATCH('BI Template_EnergyHCHI'!$A16,'Data Billing Quantities'!$4:$4,0),FALSE)*F16+VLOOKUP($C$3,'Data Billing Quantities'!$A:$O,MATCH('BI Template_EnergyHCHI'!$A17,'Data Billing Quantities'!$4:$4,0),FALSE)*F17 -> 0.10342 | G26: =E26*F26 -> 1.65472 | H26: 0 | I26: 0 | J26: 0.02458263617 | K26: 0.02409697102
A27: Sub-Total: Distribution (based on two-tier RPP prices) | D27: =SUM(D23,D24:D25) -> 39.093 | G27: =SUM(G23,G24:G25) -> 40.798 | H27: 1.705 | I27: 0.04361394623 | J27: 0.6060979443 | K27: 0.5941236123
A28: Sub-Total: Distribution (based on TOU prices) | D28: =SUM(D23,D24,D26) -> 39.17972 | G28: =SUM(G23,G24,G26) -> 40.88472 | H28: 1.705 | I28: 0.04351741156 | J28: 0.6073862627 | K28: 0.5953864781
A29: Retail Transmission Rate – Network Service Rate | B29: =IF($B$9="kWh",$B$8,$B$5) -> 266 | C29: =VLOOKUP($B$3,'Data Current Rates'!$A:$AO,MATCH('BI Template_EnergyHCHI'!$A29,CurrentHeader,0),FALSE) -> 0.0107 | D29: =B29*C29 -> 2.8462 | E29: =IF($C$9="kWh",$C$8,$C$5) -> 266 | F29: =VLOOKUP($C$3,'Data Proposed Rates'!$A:$AZ,MATCH('BI Template_EnergyHCHI'!$A29,ProposedHeader,0),FALSE) -> 0.0107 | G29: =E29*F29 -> 2.8462 | H29: =G29-D29 -> 0 | I29: 0 | J29: 0.04228334647 | K29: 0.04144797846
A30: Retail Transmission Rate – Line and Transformation Connection Service Rate | B30: =IF($B$9="kWh",$B$8,$B$5) -> 266 | C30: =VLOOKUP($B$3,'Data Current Rates'!$A:$AO,MATCH('BI Template_EnergyHCHI'!$A30,CurrentHeader,0),FALSE) -> 0.0079 | D30: =B30*C30 -> 2.1014 | E30: =IF($C$9="kWh",$C$8,$C$5) -> 266 | F30: =VLOOKUP($C$3,'Data Proposed Rates'!$A:$AZ,MATCH('BI Template_EnergyHCHI'!$A30,ProposedHeader,0),FALSE) -> 0.0079 | G30: =E30*F30 -> 2.1014 | H30: =G30-D30 -> 0 | I30: 0 | J30: 0.03121854552 | K30: 0.03060177849
A31: Sub-Total: Retail Transmission | D31: =SUM(D29:D30) -> 4.9476 | G31: =SUM(G29:G30) -> 4.9476 | H31: =G31-D31 -> 0 | I31: 0 | J31: 0.07350189199 | K31: 0.07204975695
A32: Sub-Total: Delivery (based on two-tier RPP prices) | D32: =D27+D31 -> 44.0406 | G32: =G27+G31 -> 45.7456 | H32: =G32-D32 -> 1.705 | I32: 0.03871427728 | J32: 0.6795998363 | K32: 0.6661733692
A33: Sub-Total: Delivery (based on TOU prices) | D33: =D28+D31 -> 44.12732 | G33: =G28+G31 -> 45.83232 | H33: =G33-D33 -> 1.705 | I33: 0.03863819511 | J33: 0.6808881547 | K33: 0.667436235
A34: Wholesale Market Service Rate (WMS) - not including CBR | B34: =B8 -> 266 | C34: =VLOOKUP($A34,'Data Pass Through'!$A:$D,2,FALSE) -> 0.003 | D34: =B34*C34 -> 0.798 | E34: =$C$8 -> 266 | F34: =VLOOKUP($A34,'Data Pass Through'!$A:$D,3,FALSE) -> 0.003 | G34: =E34*F34 -> 0.798 | H34: 0 | I34: 0 | J34: 0.01185514387 | K34: 0.01162092854
A35: Capacity Based Recovery (CBR) - Applicable for Class B Customers | B35: =B8 -> 266 | C35: =VLOOKUP($A35,'Data Pass Through'!$A:$D,2,FALSE) -> 0.0004 | D35: =B35*C35 -> 0.1064 | E35: =$C$8 -> 266 | F35: =VLOOKUP($A35,'Data Pass Through'!$A:$D,3,FALSE) -> 0.0004 | G35: =E35*F35 -> 0.1064 | H35: 0 | I35: 0 | J35: 0.001580685849 | K35: 0.001549457139
A36: Rural Rate Protection Charge | B36: =B8 -> 266 | C36: =VLOOKUP($A36,'Data Pass Through'!$A:$D,2,FALSE) -> 0.0005 | D36: 0.133 | E36: 266 | F36: =VLOOKUP($A36,'Data Pass Through'!$A:$D,3,FALSE) -> 0.0005 | G36: 0.133 | H36: 0 | I36: 0 | J36: 0.001975857311 | K36: 0.001936821423
A37: Standard Supply Service – Administration Charge (if applicable) | B37: 1 | C37: =VLOOKUP($A37,'Data Pass Through'!$A:$D,2,FALSE) -> 0.25 | D37: =B37*C37 -> 0.25 | E37: 1 | F37: =VLOOKUP($A37,'Data Pass Through'!$A:$D,3,FALSE) -> 0.25 | G37: 0.25 | H37: 0 | I37: 0 | J37: 0.003714017503 | K37: 0.003640641773
A38: Sub-Total: Regulatory | D38: =SUM(D34:D37) -> 1.2874 | G38: =SUM(G34:G37) -> 1.2874 | H38: 0 | I38: 0 | J38: 0.01912570453 | K38: 0.01874784888
A39: Total Electricty Charge on Two-Tier RPP | D39: =SUM(D14,D23,D24,D25,D31,D38) -> 69.828 | G39: =SUM(G14,G23,G24,G25,G31,G38) -> 71.533 | H39: 1.705 | I39: 0.02441713926 | J39: 1.062699256
A40: HST | C40: 0.13 | D40: =D39*C40 -> 9.07764 | F40: =C40 -> 0.13 | G40: =G39*F40 -> 9.29929 | H40: 0.22165 | I40: 0.02441713926 | J40: 0.1381509033
A41: Total Electricity Charge on Two-Tier RPP (including HST) | D41: =SUM(D39:D40) -> 78.90564 | G41: =SUM(G39:G40) -> 80.83229 | H41: 1.92665 | I41: 0.02441713926 | J41: 1.200850159
A42: Ontario Electricity Rebate (OER) | C42: =IF(($B$4*12)<250000,VLOOKUP(A42,'Data Pass Through'!$A$4:$C$20,2,0),0) -> -0.189 | D42: =D39*C42 -> -13.197492 | F42: =C42 -> -0.189 | G42: =G39*F42 -> -13.519737 | H42: -0.322245 | I42: -0.02441713926 | J42: -0.2008501594
A43: Total Amount on Two-Tier RPP | D43: =SUM(D41:D42) -> 65.708148 | G43: =SUM(G41:G42) -> 67.312553 | H43: 1.604405 | I43: 0.02441713926 | J43: 1
A44: Total Electricty Charge on TOU (before HST) | D44: =SUM(D18,D23,D24,D26,D31,D38) -> 71.26972 | G44: =SUM(G18,G23,G24,G26,G31,G38) -> 72.97472 | H44: 1.705 | I44: 0.02392320329 | K44: =G44/$G$48 -> 1.062699256
A45: HST | C45: 0.13 | D45: =D44*C45 -> 9.2650636 | F45: =C45 -> 0.13 | G45: =G44*F45 -> 9.4867136 | H45: 0.22165 | I45: 0.02392320329 | K45: =G45/$G$48 -> 0.1381509033
A46: Total Electricity Charge on TOU (including HST) | D46: =SUM(D44:D45) -> 80.5347836 | G46: =SUM(G44:G45) -> 82.4614336 | H46: 1.92665 | I46: 0.02392320329 | K46: =G46/$G$48 -> 1.200850159
A47: Ontario Electricity Rebate (OER) | C47: =IF(($B$4*12)<250000,VLOOKUP(A47,'Data Pass Through'!$A$4:$C$20,2,0),0) -> -0.189 | D47: =D44*C47 -> -13.46997708 | F47: =C47 -> -0.189 | G47: =G44*F47 -> -13.79222208 | H47: -0.322245 | I47: -0.02392320329 | K47: =G47/$G$48 -> -0.2008501594
A48: Total Amount on TOU | D48: =SUM(D46:D47) -> 67.06480652 | G48: =SUM(G46:G47) -> 68.66921152 | H48: 1.604405 | I48: 0.02392320329 | K48: =G48/$G$48 -> 1

Sheet BI Template_DemandHCHI (hidden)
A1: 2024 Bill Impacts (Low Consumption Level) - AGSd_HCHI
A3: Rate Class | B3: =VLOOKUP(A1,'Data BI List Acq_Seas'!C:E,2,FALSE) -> AGSd-HCHI | C3: =VLOOKUP(A1,'Data BI List Acq_Seas'!C:E,3,FALSE) -> AGSd-HCHI
A4: Monthly Consumption (kWh) | B4: =IF(COUNTIF(A1,"*Low*")>0,VLOOKUP(B3,'Data Billing Quantities'!$A:$Z,MATCH("Low kWh",'Data Billing Quantities'!4:4,0),FALSE),IF(COUNTIF(A1,"*Typical*")>0,VLOOKUP(B3,'Data Billing Quantities'!$A:$Z,MATCH("Typical kWh",'Data Billing Quantities'!4:4,0),FALSE),IF(COUNTIF(A1,"*Average*")>0,VLOOKUP(B3,'Data Billing Quantities'!$A:$Z,MATCH("Average kWh",'Data Billing Quantities'!4:4,0),FALSE),IF(COUNTIF(A1,"*High*")>0,VLOOKUP(B3,'Data Billing Quantities'!$A:$Z,MATCH("High kWh",'Data Billing Quantities'!4:4,0),FALSE),"error")))) -> 10880 | C4: =B4 -> 10880
A5: Peak (kW) | B5: =IF(COUNTIF(A1,"*Low*")>0,VLOOKUP(B3,'Data Billing Quantities'!$A:$Z,MATCH("Low kW",'Data Billing Quantities'!4:4,0),FALSE),IF(COUNTIF(A1,"*Typical*")>0,VLOOKUP(B3,'Data Billing Quantities'!$A:$Z,MATCH("Typical kW",'Data Billing Quantities'!4:4,0),FALSE),IF(COUNTIF(A1,"*Average*")>0,VLOOKUP(B3,'Data Billing Quantities'!$A:$Z,MATCH("Average kW",'Data Billing Quantities'!4:4,0),FALSE),IF(COUNTIF(A1,"*High*")>0,VLOOKUP(B3,'Data Billing Quantities'!$A:$Z,MATCH("High kW",'Data Billing Quantities'!4:4,0),FALSE),"error")))) -> 55 | C5: =B5 -> 55
A6: Loss factor | B6: =VLOOKUP(B3,'Data Billing Quantities'!A:D,MATCH(A6,'Data Billing Quantities'!4:4,0),FALSE) -> 1.053 | C6: =VLOOKUP(C3,'Data Billing Quantities'!A:D,MATCH(A6,'Data Billing Quantities'!4:4,0),FALSE) -> 1.053
A7: Commodity Threshold | B7: =VLOOKUP(B3,'Data Billing Quantities'!A:D,MATCH(A7,'Data Billing Quantities'!4:4,0),FALSE) -> 0 | C7: =B7 -> 0
A8: Monthly Consumption (kWh) - Uplifted | B8: =B4*B6 -> 11456.64 | C8: =C4*C6 -> 11456.64
A9: Charge determinant | B9: =VLOOKUP(B3,'Data Billing Quantities'!A:D,MATCH(A9,'Data Billing Quantities'!4:4,0),FALSE) -> kW | C9: =VLOOKUP(C3,'Data Billing Quantities'!A:D,MATCH(A9,'Data Billing Quantities'!4:4,0),FALSE) -> kW
B11: Volume | C11: Current Rate ($) | D11: Current Charge ($) | E11: Volume | F11: Proposed Rate ($) | G11: Proposed Charge ($) | H11: Change ($) | I11: Change (%) | J11: % of Total Bill
A12: Weighted Average Hourly Spot Price | B12: =B8 -> 11456.64 | C12: =VLOOKUP($A12,'Data Pass Through'!$A:$D,2,FALSE) -> 0.119 | D12: =B12*C12 -> 1363.34016 | E12: =C8 -> 11456.64 | F12: =VLOOKUP($A12,'Data Pass Through'!$A:$D,3,FALSE) -> 0.119 | G12: =E12*F12 -> 1363.34016 | H12: =G12-D12 -> 0 | I12: =IF(ISERROR(H12/ABS(D12)),"N/A",(H12/ABS(D12))) -> 0 | J12: =G12/G$32 -> 0.5749543393
A13: Sub-Total: Energy (WAHSP) | D13: =SUM(D12:D12) -> 1363.34016 | G13: =SUM(G12:G12) -> 1363.34016 | H13: 0 | I13: 0 | J13: 0.5749543393
A14: Service Charge | B14: 1 | C14: =VLOOKUP($B$3,'Data Current Rates'!$A:$AO,MATCH('BI Template_DemandHCHI'!$A14,CurrentHeader,0),FALSE) -> 186.87 | D14: =B14*C14 -> 186.87 | E14: 1 | F14: =VLOOKUP($C$3,'Data Proposed Rates'!$A:$AZ,MATCH('BI Template_DemandHCHI'!$A14,ProposedHeader,0),FALSE) -> 194.9 | G14: =E14*F14 -> 194.9 | H14: 8.03 | I14: 0.04297104939 | J14: 0.08219416108
A15: Distribution Volumetric Charge | B15: =IF($B$9="kWh",$B$4,$B$5) -> 55 | C15: =VLOOKUP($B$3,'Data Current Rates'!$A:$AO,MATCH('BI Template_DemandHCHI'!$A15,CurrentHeader,0),FALSE) -> 4.3771 | D15: =B15*C15 -> 240.7405 | E15: =IF($C$9="kWh",$C$4,$C$5) -> 55 | F15: =VLOOKUP($C$3,'Data Proposed Rates'!$A:$AZ,MATCH('BI Template_DemandHCHI'!$A15,ProposedHeader,0),FALSE) -> 4.6399 | G15: 255.1945 | H15: 14.454 | I15: 0.06003975235 | J15: 0.1076218463
A16: Group 1 Volumetric DVA Rider (General) | B16: =IF($B$9="kWh",$B$4,$B$5) -> 55 | C16: =VLOOKUP($B$3,'Data Current Rates'!$A:$AO,MATCH('BI Template_DemandHCHI'!$A16,CurrentHeader,0),FALSE) -> -0.0595 | D16: =B16*C16 -> -3.2725 | E16: =IF($C$9="kWh",$C$4,$C$5) -> 55 | F16: =VLOOKUP($C$3,'Data Proposed Rates'!$A:$AZ,MATCH('BI Template_DemandHCHI'!$A16,ProposedHeader,0),FALSE) -> -0.0595 | G16: -3.2725 | H16: 0 | I16: 0 | J16: -0.001380094367
A17: Group 1 Volumetric Deferral/Variance Account Rider (Sub-Account RSVA Wholesale Market Service Charge & RSVA Power) | B17: 55 | C17: =VLOOKUP($B$3,'Data Current Rates'!$A:$AO,MATCH('BI Template_DemandHCHI'!$A17,CurrentHeader,0),FALSE) -> -0.0829 | D17: -4.5595 | E17: 55 | F17: =VLOOKUP($C$3,'Data Proposed Rates'!$A:$AZ,MATCH('BI Template_DemandHCHI'!$A17,ProposedHeader,0),FALSE) -> -0.0829 | G17: -4.5595 | H17: 0 | I17: 0 | J17: -0.001922854169
A18: Group 1 Volumetric Deferral/Variance Account Rider (Sub-Account Global Adjustment) | B18: =B4 -> 10880 | C18: =VLOOKUP($B$3,'Data Current Rates'!$A:$AO,MATCH('BI Template_DemandHCHI'!$A18,CurrentHeader,0),FALSE) -> -0.0007 | D18: -7.616 | E18: =C4 -> 10880 | F18: =VLOOKUP($C$3,'Data Proposed Rates'!$A:$AZ,MATCH('BI Template_DemandHCHI'!$A18,ProposedHeader,0),FALSE) -> -0.0007 | G18: -7.616 | H18: 0 | I18: 0 | J18: -0.003211855982
A19: LRAMVA Volumetric Rate Rider | B19: 55 | C19: =VLOOKUP($B$3,'Data Current Rates'!$A:$AO,MATCH('BI Template_DemandHCHI'!$A19,CurrentHeader,0),FALSE) -> -0.0575 | D19: =B19*C19 -> -3.1625 | H19: =G19-D19 -> 3.1625 | I19: =IF(ISERROR(H19/ABS(D19)),"N/A",(H19/ABS(D19))) -> 1 | J19: =G19/G$32 -> 0
A20: Sub-Total: Distribution | D20: =SUM(INDIRECT("D14:D"&ROW()-1)) -> 409 | G20: =SUM(INDIRECT("g14:g"&ROW()-1)) -> 434.6465 | H20: =G20-D20 -> 25.6465 | I20: 0.06270537897 | J20: 0.1833012029
A21: Retail Transmission Rate – Network Service Rate | B21: =IF($B$9="kWh",$B$4,$B$5) -> 55 | C21: =VLOOKUP($B$3,'Data Current Rates'!$A:$AO,MATCH('BI Template_DemandHCHI'!$A21,CurrentHeader,0),FALSE) -> 2.6521 | D21: =B21*C21 -> 145.8655 | E21: =IF($C$9="kWh",$C$4,$C$5) -> 55 | F21: =VLOOKUP($C$3,'Data Proposed Rates'!$A:$AZ,MATCH('BI Template_DemandHCHI'!$A21,ProposedHeader,0),FALSE) -> 2.6521 | G21: =E21*F21 -> 145.8655 | H21: =G21-D21 -> 0 | I21: 0 | J21: 0.06151509699
A22: Retail Transmission Rate – Line and Transformation Connection Service Rate | B22: =IF($B$9="kWh",$B$4,$B$5) -> 55 | C22: =VLOOKUP($B$3,'Data Current Rates'!$A:$AO,MATCH('BI Template_DemandHCHI'!$A22,CurrentHeader,0),FALSE) -> 1.9934 | D22: =B22*C22 -> 109.637 | E22: =IF($C$9="kWh",$C$4,$C$5) -> 55 | F22: =VLOOKUP($C$3,'Data Proposed Rates'!$A:$AZ,MATCH('BI Template_DemandHCHI'!$A22,ProposedHeader,0),FALSE) -> 1.9934 | G22: =E22*F22 -> 109.637 | H22: =G22-D22 -> 0 | I22: 0 | J22: 0.04623664053
A23: Sub-Total: Retail Transmission | D23: =SUM(D21:D22) -> 255.5025 | G23: =SUM(G21:G22) -> 255.5025 | H23: =G23-D23 -> 0 | I23: 0 | J23: 0.1077517375
A24: Sub-Total: Delivery (based on two-tier RPP prices) | D24: =SUM(D20,D23) -> 664.5025 | G24: =SUM(G20,G23) -> 690.149 | H24: =G24-D24 -> 25.6465 | I24: 0.03859503915 | J24: 0.2910529404
A25: Wholesale Market Service Rate (WMS) - not including CBR | B25: =B8 -> 11456.64 | C25: =VLOOKUP($A25,'Data Pass Through'!$A:$D,2,FALSE) -> 0.003 | D25: =B25*C25 -> 34.36992 | E25: =$C$8 -> 11456.64 | F25: =VLOOKUP($A25,'Data Pass Through'!$A:$D,3,FALSE) -> 0.003 | G25: =E25*F25 -> 34.36992 | H25: =G25-D25 -> 0 | I25: 0 | J25: 0.01449464721
A26: Capacity Based Recovery (CBR) - Applicable for Class B Customers | B26: =B8 -> 11456.64 | C26: =VLOOKUP($A26,'Data Pass Through'!$A:$D,2,FALSE) -> 0.0004 | D26: =B26*C26 -> 4.582656 | E26: =$C$8 -> 11456.64 | F26: =VLOOKUP($A26,'Data Pass Through'!$A:$D,3,FALSE) -> 0.0004 | G26: =E26*F26 -> 4.582656 | H26: 0 | I26: 0 | J26: 0.001932619628
A27: Rural Rate Protection Charge | B27: =B8 -> 11456.64 | C27: =VLOOKUP($A27,'Data Pass Through'!$A:$D,2,FALSE) -> 0.0005 | D27: 5.72832 | E27: 11456.64 | F27: =VLOOKUP($A27,'Data Pass Through'!$A:$D,3,FALSE) -> 0.0005 | G27: 5.72832 | H27: 0 | I27: 0 | J27: 0.002415774535
A28: Standard Supply Service – Administration Charge (if applicable) | B28: 1 | C28: =VLOOKUP($A28,'Data Pass Through'!$A:$D,2,FALSE) -> 0.25 | D28: =B28*C28 -> 0.25 | E28: =B28 -> 1 | F28: =VLOOKUP($A28,'Data Pass Through'!$A:$D,3,FALSE) -> 0.25 | G28: 0.25 | H28: 0 | I28: 0 | J28: 0.0001054311969
A29: Sub-Total: Regulatory | D29: =SUM(D25:D28) -> 44.930896 | G29: =SUM(G25:G28) -> 44.930896 | H29: 0 | I29: 0 | J29: 0.01894847257
A30: Total Electricty Charge on WAHSP | D30: =SUM(D13,D24,D29) -> 2072.773556 | G30: =SUM(G13,G24,G29) -> 2098.420056 | H30: 25.6465 | I30: 0.01237303512 | J30: 0.8849557522
A31: HST | C31: 0.13 | D31: =D30*C31 -> 269.4605623 | F31: =C31 -> 0.13 | G31: =G30*F31 -> 272.7946073 | H31: 3.334045 | I31: 0.01237303512 | J31: 0.1150442478
A32: Total Amount on WAHSP | D32: =SUM(D30:D31) -> 2342.234118 | G32: =SUM(G30:G31) -> 2371.214663 | H32: 28.980545 | I32: 0.01237303512 | J32: 1

Sheet BI Template_unmHCHI (hidden)
A1: 2024 Bill Impacts (Average Consumption Level) - St Lgt_HCHI
A3: Rate Class | B3: =VLOOKUP(A1,'Data BI List Acq_Seas'!C:E,2,FALSE) -> St Lgt-HCHI | C3: =VLOOKUP(A1,'Data BI List Acq_Seas'!C:E,3,FALSE) -> St Lgt-HCHI
A4: Monthly Consumption (kWh) | B4: =IF(COUNTIF(A1,"*Low*")>0,VLOOKUP(B3,'Data Billing Quantities'!$A:$Z,MATCH("Low kWh",'Data Billing Quantities'!4:4,0),FALSE),IF(COUNTIF(A1,"*Typical*")>0,VLOOKUP(B3,'Data Billing Quantities'!$A:$Z,MATCH("Typical kWh",'Data Billing Quantities'!4:4,0),FALSE),IF(COUNTIF(A1,"*Average*")>0,VLOOKUP(B3,'Data Billing Quantities'!$A:$Z,MATCH("Average kWh",'Data Billing Quantities'!4:4,0),FALSE),IF(COUNTIF(A1,"*High*")>0,VLOOKUP(B3,'Data Billing Quantities'!$A:$Z,MATCH("High kWh",'Data Billing Quantities'!4:4,0),FALSE),"error")))) -> 31001 | C4: =B4 -> 31001
A5: Peak (kW) | B5: =IF(COUNTIF(A1,"*Low*")>0,VLOOKUP(B3,'Data Billing Quantities'!$A:$Z,MATCH("Low kW",'Data Billing Quantities'!4:4,0),FALSE),IF(COUNTIF(A1,"*Typical*")>0,VLOOKUP(B3,'Data Billing Quantities'!$A:$Z,MATCH("Typical kW",'Data Billing Quantities'!4:4,0),FALSE),IF(COUNTIF(A1,"*Average*")>0,VLOOKUP(B3,'Data Billing Quantities'!$A:$Z,MATCH("Average kW",'Data Billing Quantities'!4:4,0),FALSE),IF(COUNTIF(A1,"*High*")>0,VLOOKUP(B3,'Data Billing Quantities'!$A:$Z,MATCH("High kW",'Data Billing Quantities'!4:4,0),FALSE),"error")))) -> 0 | C5: =B5 -> 0
A6: Loss factor | B6: =VLOOKUP(B3,'Data Billing Quantities'!A:D,MATCH(A6,'Data Billing Quantities'!4:4,0),FALSE) -> 1.092 | C6: =VLOOKUP(C3,'Data Billing Quantities'!A:D,MATCH(A6,'Data Billing Quantities'!4:4,0),FALSE) -> 1.092
A7: Commodity Threshold | B7: =VLOOKUP(B3,'Data Billing Quantities'!A:D,MATCH(A7,'Data Billing Quantities'!4:4,0),FALSE) -> 750 | C7: =B7 -> 750
A8: Monthly Consumption (kWh) - Uplifted | B8: =B4*B6 -> 33853.092 | C8: =C4*C6 -> 33853.092
A9: Charge determinant | B9: =VLOOKUP(B3,'Data Billing Quantities'!A:D,MATCH(A9,'Data Billing Quantities'!4:4,0),FALSE) -> kWh | C9: =VLOOKUP(C3,'Data Billing Quantities'!A:D,MATCH(A9,'Data Billing Quantities'!4:4,0),FALSE) -> kWh
B11: Volume | C11: Current Rate ($) | D11: Current Charge ($) | E11: Volume | F11: Proposed Rate ($) | G11: Proposed Charge ($) | H11: Change ($) | I11: Change (%) | J11: % of Total Bill
A12: Energy First Tier | B12: =IF(B4>B7,B7,B4) -> 750 | C12: =VLOOKUP($A12,'Data Pass Through'!$A:$D,2,FALSE) -> 0.098 | D12: =B12*C12 -> 73.5 | E12: =B12 -> 750 | F12: =VLOOKUP($A12,'Data Pass Through'!$A:$D,3,FALSE) -> 0.098 | G12: =E12*F12 -> 73.5 | H12: =G12-D12 -> 0 | I12: =IF(ISERROR(H12/ABS(D12)),"N/A",(H12/ABS(D12))) -> 0 | J12: =G12/$G$34 -> 0.008232330774
A13: Energy Second Tier | B13: =IF(B4>B7,(B4)-B7,0) -> 30251 | C13: =VLOOKUP($A13,'Data Pass Through'!$A:$D,2,FALSE) -> 0.115 | D13: =B13*C13 -> 3478.865 | E13: =B13 -> 30251 | F13: =VLOOKUP($A13,'Data Pass Through'!$A:$D,3,FALSE) -> 0.115 | G13: =E13*F13 -> 3478.865 | H13: 0 | I13: 0 | J13: 0.389648536
A14: Sub-Total: Energy (RPP Tiered) | D14: =SUM(D12:D13) -> 3552.365 | G14: =SUM(G12:G13) -> 3552.365 | H14: 0 | I14: 0 | J14: 0.3978808668
A15: Service Charge | B15: =IF(VLOOKUP(B$3,'Data Billing Quantities'!A:P,MATCH("Acquired Street Light Service Charge",'Data Billing Quantities'!$4:$4,0),FALSE)>0,VLOOKUP(B$3,'Data Billing Quantities'!A:P,MATCH("Acquired Street Light Service Charge",'Data Billing Quantities'!$4:$4,0),FALSE),1) -> 1 | C15: =VLOOKUP($B$3,'Data Current Rates'!$A:$AO,MATCH('BI Template_unmHCHI'!$A15,CurrentHeader,0),FALSE) -> 3.01 | D15: =B15*C15 -> 3.01 | E15: 1 | F15: =VLOOKUP($C$3,'Data Proposed Rates'!$A:$AZ,MATCH('BI Template_unmHCHI'!$A15,ProposedHeader,0),FALSE) -> 3.11 | G15: =E15*F15 -> 3.11 | H15: 0.1 | I15: 0.03322259136 | J15: 0.000348333996
A16: Distribution Volumetric Charge | B16: =IF($B$9="kWh",$B$4,$B$5) -> 31001 | C16: =VLOOKUP($B$3,'Data Current Rates'!$A:$AO,MATCH('BI Template_unmHCHI'!$A16,CurrentHeader,0),FALSE) -> 0.1094 | D16: =B16*C16 -> 3391.5094 | E16: =IF($C$9="kWh",$C$4,$C$5) -> 31001 | F16: =VLOOKUP($C$3,'Data Proposed Rates'!$A:$AZ,MATCH('BI Template_unmHCHI'!$A16,ProposedHeader,0),FALSE) -> 0.1147 | G16: 3555.8147 | H16: 164.3053 | I16: 0.04844606947 | J16: 0.3982672487
A17: Group 1 Volumetric DVA Rider (General) | B17: =IF($B$9="kWh",$B$4,$B$5) -> 31001 | C17: =VLOOKUP($B$3,'Data Current Rates'!$A:$AO,MATCH('BI Template_unmHCHI'!$A17,CurrentHeader,0),FALSE) -> -0.0004 | D17: =B17*C17 -> -12.4004 | E17: =IF($C$9="kWh",$C$4,$C$5) -> 31001 | F17: =VLOOKUP($C$3,'Data Proposed Rates'!$A:$AZ,MATCH('BI Template_unmHCHI'!$A17,ProposedHeader,0),FALSE) -> -0.0004 | G17: -12.4004 | H17: 0 | I17: 0 | J17: -0.001388900606
A18: Sub-Total: Distribution (excluding pass through) | D18: =SUM(INDIRECT("D15:D"&ROW()-1)) -> 3382.119 | G18: =SUM(INDIRECT("g15:g"&ROW()-1)) -> 3546.5243 | H18: =G18-D18 -> 164.4053 | I18: 0.04861014648 | J18: 0.3972266821
A19: Line Losses on Cost of Power (based on two-tier RPP prices) | B19: =B8-B4 -> 2852.092 | C19: =IF(B4>B7,C13,C12) -> 0.115 | D19: =B19*C19 -> 327.99058 | E19: =C8-C4 -> 2852.092 | F19: =IF(C4>C7,F13,F12) -> 0.115 | G19: =E19*F19 -> 327.99058 | H19: 0 | I19: 0 | J19: 0.03673642102
A20: Sub-Total: Distribution (based on two-tier RPP prices) | D20: =SUM(D18,D19:D19) -> 3710.10958 | G20: =SUM(G18,G19:G19) -> 3874.51488 | H20: 164.4053 | I20: 0.0443127882 | J20: 0.4339631031
A21: Retail Transmission Rate – Network Service Rate | B21: =IF($B$9="kWh",$B$8,$B$5) -> 33853.092 | C21: =VLOOKUP($B$3,'Data Current Rates'!$A:$AO,MATCH('BI Template_unmHCHI'!$A21,CurrentHeader,0),FALSE) -> 0.0059 | D21: =B21*C21 -> 199.7332428 | E21: =IF($C$9="kWh",$C$8,$C$5) -> 33853.092 | F21: =VLOOKUP($C$3,'Data Proposed Rates'!$A:$AZ,MATCH('BI Template_unmHCHI'!$A21,ProposedHeader,0),FALSE) -> 0.0059 | G21: =E21*F21 -> 199.7332428 | H21: =G21-D21 -> 0 | I21: 0 | J21: 0.02237102206
A22: Retail Transmission Rate – Line and Transformation Connection Service Rate | B22: =IF($B$9="kWh",$B$8,$B$5) -> 33853.092 | C22: =VLOOKUP($B$3,'Data Current Rates'!$A:$AO,MATCH('BI Template_unmHCHI'!$A22,CurrentHeader,0),FALSE) -> 0.0042 | D22: =B22*C22 -> 142.1829864 | E22: =IF($C$9="kWh",$C$8,$C$5) -> 33853.092 | F22: =VLOOKUP($C$3,'Data Proposed Rates'!$A:$AZ,MATCH('BI Template_unmHCHI'!$A22,ProposedHeader,0),FALSE) -> 0.0042 | G22: =E22*F22 -> 142.1829864 | H22: =G22-D22 -> 0 | I22: 0 | J22: 0.01592513435
A23: Sub-Total: Retail Transmission | D23: =SUM(D21:D22) -> 341.9162292 | G23: =SUM(G21:G22) -> 341.9162292 | H23: =G23-D23 -> 0 | I23: 0 | J23: 0.0382961564
A24: Sub-Total: Delivery (based on two-tier RPP prices) | D24: =D20+D23 -> 4052.025809 | G24: =G20+G23 -> 4216.431109 | H24: =G24-D24 -> 164.4053 | I24: 0.04057360632 | J24: 0.4722592595
A25: Wholesale Market Service Rate (WMS) - not including CBR | B25: =B8 -> 33853.092 | C25: =VLOOKUP($A25,'Data Pass Through'!$A:$D,2,FALSE) -> 0.003 | D25: =B25*C25 -> 101.559276 | E25: =$C$8 -> 33853.092 | F25: =VLOOKUP($A25,'Data Pass Through'!$A:$D,3,FALSE) -> 0.003 | G25: =E25*F25 -> 101.559276 | H25: =G25-D25 -> 0 | I25: 0 | J25: 0.01137509596
A26: Capacity Based Recovery (CBR) - Applicable for Class B Customers | B26: =B8 -> 33853.092 | C26: =VLOOKUP($A26,'Data Pass Through'!$A:$D,2,FALSE) -> 0.0004 | D26: =B26*C26 -> 13.5412368 | E26: =$C$8 -> 33853.092 | F26: =VLOOKUP($A26,'Data Pass Through'!$A:$D,3,FALSE) -> 0.0004 | G26: =E26*F26 -> 13.5412368 | H26: 0 | I26: 0 | J26: 0.001516679462
A27: Rural Rate Protection Charge | B27: =B8 -> 33853.092 | C27: =VLOOKUP($A27,'Data Pass Through'!$A:$D,2,FALSE) -> 0.0005 | D27: 16.926546 | E27: 33853.092 | F27: =VLOOKUP($A27,'Data Pass Through'!$A:$D,3,FALSE) -> 0.0005 | G27: 16.926546 | H27: 0 | I27: 0 | J27: 0.001895849327
A28: Standard Supply Service – Administration Charge (if applicable) | B28: 1 | C28: =VLOOKUP($A28,'Data Pass Through'!$A:$D,2,FALSE) -> 0.25 | D28: =B28*C28 -> 0.25 | E28: 1 | F28: =VLOOKUP($A28,'Data Pass Through'!$A:$D,3,FALSE) -> 0.25 | G28: 0.25 | H28: 0 | I28: 0 | J28: 2.800112508e-05
A29: Sub-Total: Regulatory | D29: =SUM(D25:D28) -> 132.2770588 | G29: =SUM(G25:G28) -> 132.2770588 | H29: 0 | I29: 0 | J29: 0.01481562588
A30: Total Electricty Charge on Two-Tier RPP | D30: =SUM(D24,D29,D14) -> 7736.667868 | G30: =SUM(G24,G29,G14) -> 7901.073168 | H30: 164.4053 | I30: 0.02125014319 | J30: 0.8849557522
A31: HST | C31: 0.13 | D31: =D30*C31 -> 1005.766823 | F31: =C31 -> 0.13 | G31: =G30*F31 -> 1027.139512 | H31: 21.372689 | I31: 0.02125014319 | J31: 0.1150442478
A32: Total Electricity Charge on Two-Tier RPP (including HST) | D32: =SUM(D30:D31) -> 8742.434691 | G32: =SUM(G30:G31) -> 8928.21268 | H32: 185.777989 | I32: 0.02125014319 | J32: 1
A33: Ontario Electricity Rebate (OER) | C33: =IF(($B$4*12)<250000,VLOOKUP(A33,'Data Pass Through'!$A$4:$C$20,2,0),0) -> 0 | D33: =D30*C33 -> 0 | F33: =C33 -> 0 | G33: =G30*F33 -> 0 | H33: 0 | I33: N/A | J33: 0
A34: Total Amount on Two-Tier RPP | D34: =SUM(D32:D33) -> 8742.434691 | G34: =SUM(G32:G33) -> 8928.21268 | H34: 185.777989 | I34: 0.02125014319 | J34: 1

Sheet BI Template_EnergyWHSI (hidden)
A1: 2024 Bill Impacts (Low Consumption Level) - AUR_WHSI
A3: Rate Class | B3: =VLOOKUP(A1,'Data BI List Acq_Seas'!C:E,2,FALSE) -> AUR-WHSI | C3: =VLOOKUP(A1,'Data BI List Acq_Seas'!C:E,3,FALSE) -> AUR-WHSI
A4: Monthly Consumption (kWh) | B4: =IF(COUNTIF(A1,"*Low*")>0,VLOOKUP(B3,'Data Billing Quantities'!$A:$Z,MATCH("Low kWh",'Data Billing Quantities'!4:4,0),FALSE),IF(COUNTIF(A1,"*Typical*")>0,VLOOKUP(B3,'Data Billing Quantities'!$A:$Z,MATCH("Typical kWh",'Data Billing Quantities'!4:4,0),FALSE),IF(COUNTIF(A1,"*Average*")>0,VLOOKUP(B3,'Data Billing Quantities'!$A:$Z,MATCH("Average kWh",'Data Billing Quantities'!4:4,0),FALSE),IF(COUNTIF(A1,"*High*")>0,VLOOKUP(B3,'Data Billing Quantities'!$A:$Z,MATCH("High kWh",'Data Billing Quantities'!4:4,0),FALSE),"error")))) -> 310 | C4: =B4 -> 310
A5: Peak (kW) | B5: =IF(COUNTIF(A1,"*Low*")>0,VLOOKUP(B3,'Data Billing Quantities'!$A:$Z,MATCH("Low kW",'Data Billing Quantities'!4:4,0),FALSE),IF(COUNTIF(A1,"*Typical*")>0,VLOOKUP(B3,'Data Billing Quantities'!$A:$Z,MATCH("Typical kW",'Data Billing Quantities'!4:4,0),FALSE),IF(COUNTIF(A1,"*Average*")>0,VLOOKUP(B3,'Data Billing Quantities'!$A:$Z,MATCH("Average kW",'Data Billing Quantities'!4:4,0),FALSE),IF(COUNTIF(A1,"*High*")>0,VLOOKUP(B3,'Data Billing Quantities'!$A:$Z,MATCH("High kW",'Data Billing Quantities'!4:4,0),FALSE),"error")))) -> 0 | C5: =B5 -> 0
A6: Loss factor | B6: =VLOOKUP(B3,'Data Billing Quantities'!A:D,MATCH(A6,'Data Billing Quantities'!4:4,0),FALSE) -> 1.043 | C6: =VLOOKUP(C3,'Data Billing Quantities'!A:D,MATCH(A6,'Data Billing Quantities'!4:4,0),FALSE) -> 1.043
A7: Commodity Threshold | B7: =VLOOKUP(B3,'Data Billing Quantities'!A:D,MATCH(A7,'Data Billing Quantities'!4:4,0),FALSE) -> 750 | C7: =B7 -> 750
A8: Monthly Consumption (kWh) - Uplifted | B8: =B4*B6 -> 323.33 | C8: =C4*C6 -> 323.33
A9: Charge determinant | B9: =VLOOKUP(B3,'Data Billing Quantities'!A:D,MATCH(A9,'Data Billing Quantities'!4:4,0),FALSE) -> kWh | C9: =VLOOKUP(C3,'Data Billing Quantities'!A:D,MATCH(A9,'Data Billing Quantities'!4:4,0),FALSE) -> kWh
B11: Volume | C11: Current Rate ($) | D11: Current Charge ($) | E11: Volume | F11: Proposed Rate ($) | G11: Proposed Charge ($) | H11: Change ($) | I11: Change (%) | J11: % of Total Bill on RPP | K11: % of Total Bill
A12: Energy First Tier | B12: =IF(B4>B7,B7,B4) -> 310 | C12: =VLOOKUP($A12,'Data Pass Through'!$A:$D,2,FALSE) -> 0.098 | D12: =B12*C12 -> 30.38 | E12: =B12 -> 310 | F12: =VLOOKUP($A12,'Data Pass Through'!$A:$D,3,FALSE) -> 0.098 | G12: =E12*F12 -> 30.38 | H12: =G12-D12 -> 0 | I12: =IF(ISERROR(H12/ABS(D12)),"N/A",(H12/ABS(D12))) -> 0 | J12: =G12/$G$43 -> 0.4494158394
A13: Energy Second Tier | B13: =IF(B4>B7,(B4)-B7,0) -> 0 | C13: =VLOOKUP($A13,'Data Pass Through'!$A:$D,2,FALSE) -> 0.115 | D13: =B13*C13 -> 0 | E13: =B13 -> 0 | F13: =VLOOKUP($A13,'Data Pass Through'!$A:$D,3,FALSE) -> 0.115 | G13: =E13*F13 -> 0 | H13: 0 | I13: N/A | J13: =G13/$G$43 -> 0
A14: Sub-Total: Energy (RPP Tiered) | D14: =SUM(D12:D13) -> 30.38 | G14: =SUM(G12:G13) -> 30.38 | H14: 0 | I14: 0 | J14: =G14/$G$43 -> 0.4494158394
A15: TOU-Off Peak | B15: =B$4*VLOOKUP($B$3,'Data Billing Quantities'!$A:$O,MATCH('BI Template_EnergyWHSI'!$A15,'Data Billing Quantities'!$4:$4,0),FALSE) -> 198.4 | C15: =VLOOKUP($A15,'Data Pass Through'!$A:$D,2,FALSE) -> 0.082 | D15: =B15*C15 -> 16.2688 | E15: 198.4 | F15: =VLOOKUP($A15,'Data Pass Through'!$A:$D,3,FALSE) -> 0.082 | G15: =E15*F15 -> 16.2688 | H15: 0 | I15: 0 | K15: =G15/$G$48 -> 0.2349355843
A16: TOU-Mid Peak | B16: =B$4*VLOOKUP($B$3,'Data Billing Quantities'!$A:$O,MATCH('BI Template_EnergyWHSI'!$A16,'Data Billing Quantities'!$4:$4,0),FALSE) -> 55.8 | C16: =VLOOKUP($A16,'Data Pass Through'!$A:$D,2,FALSE) -> 0.113 | D16: =B16*C16 -> 6.3054 | E16: 55.8 | F16: =VLOOKUP($A16,'Data Pass Through'!$A:$D,3,FALSE) -> 0.113 | G16: =E16*F16 -> 6.3054 | H16: 0 | I16: 0 | K16: 0.09105544559
A17: TOU-On Peak | B17: =B$4*VLOOKUP($B$3,'Data Billing Quantities'!$A:$O,MATCH('BI Template_EnergyWHSI'!$A17,'Data Billing Quantities'!$4:$4,0),FALSE) -> 55.8 | C17: =VLOOKUP($A17,'Data Pass Through'!$A:$D,2,FALSE) -> 0.17 | D17: =B17*C17 -> 9.486 | E17: 55.8 | F17: =VLOOKUP($A17,'Data Pass Through'!$A:$D,3,FALSE) -> 0.17 | G17: =E17*F17 -> 9.486 | H17: 0 | I17: 0 | K17: 0.1369860686
A18: Sub-Total: Energy (RPP TOU) | D18: =SUM(D15:D17) -> 32.0602 | G18: =SUM(G15:G17) -> 32.0602 | H18: 0 | I18: 0 | J18: =G18/$G$43 -> 0.4742712868 | K18: 0.4629770985
A19: Service Charge | B19: 1 | C19: =VLOOKUP($B$3,'Data Current Rates'!$A:$AO,MATCH('BI Template_EnergyWHSI'!$A19,CurrentHeader,0),FALSE) -> 30.46 | D19: =B19*C19 -> 30.46 | E19: 1 | F19: =VLOOKUP($C$3,'Data Proposed Rates'!$A:$AZ,MATCH('BI Template_EnergyWHSI'!$A19,ProposedHeader,0),FALSE) -> 31.92 | G19: =E19*F19 -> 31.92 | H19: 1.46 | I19: 0.04793171372 | J19: 0.4721972875 | K19: 0.4609524889
A20: Distribution Volumetric Charge | B20: =IF($B$9="kWh",$B$4,$B$5) -> 310 | C20: =VLOOKUP($B$3,'Data Current Rates'!$A:$AO,MATCH('BI Template_EnergyWHSI'!$A20,CurrentHeader,0),FALSE) -> 0 | D20: =B20*C20 -> 0 | E20: =IF($C$9="kWh",$C$4,$C$5) -> 310 | F20: =VLOOKUP($C$3,'Data Proposed Rates'!$A:$AZ,MATCH('BI Template_EnergyWHSI'!$A20,ProposedHeader,0),FALSE) -> 0 | G20: 0 | H20: 0 | I20: N/A | J20: 0 | K20: 0
A21: Group 1 Volumetric DVA Rider (General) | B21: =IF($B$9="kWh",$B$4,$B$5) -> 310 | C21: =VLOOKUP($B$3,'Data Current Rates'!$A:$AO,MATCH('BI Template_EnergyWHSI'!$A21,CurrentHeader,0),FALSE) -> -0.0005 | D21: =B21*C21 -> -0.155 | E21: =IF($C$9="kWh",$C$4,$C$5) -> 310 | F21: =VLOOKUP($C$3,'Data Proposed Rates'!$A:$AZ,MATCH('BI Template_EnergyWHSI'!$A21,ProposedHeader,0),FALSE) -> -0.0005 | G21: -0.155 | H21: 0 | I21: 0 | J21: -0.002292937956 | K21: -0.002238334454
A22: LRAMVA Volumetric Rate Rider | B22: =IF($B$9="kWh",$B$4,$B$5) -> 310 | C22: =VLOOKUP($B$3,'Data Current Rates'!$A:$AO,MATCH('BI Template_EnergyWHSI'!$A22,CurrentHeader,0),FALSE) -> 0.0003 | D22: =B22*C22 -> 0.093 | H22: =G22-D22 -> -0.093 | I22: =IF(ISERROR(H22/ABS(D22)),"N/A",(H22/ABS(D22))) -> -1 | J22: =G22/$G$43 -> 0 | K22: =G22/$G$48 -> 0
A23: Sub-Total: Distribution (excluding pass through) | D23: =SUM(INDIRECT("D19:D"&ROW()-1)) -> 30.398 | G23: =SUM(INDIRECT("g19:g"&ROW()-1)) -> 31.765 | H23: =G23-D23 -> 1.367 | I23: 0.04497006382 | J23: 0.4699043495 | K23: 0.4587141544
A24: Smart Metering Entity Charge | B24: =B19 -> 1 | C24: =VLOOKUP($A24,'Data Pass Through'!$A:$D,2,FALSE) -> 0.57 | D24: =B24*C24 -> 0.57 | E24: =E19 -> 1 | F24: =VLOOKUP($A24,'Data Pass Through'!$A:$D,3,FALSE) -> 0.57 | G24: =E24*F24 -> 0.57 | H24: 0 | I24: 0 | J24: 0.008432094419 | K24: 0.008231294444
A25: Line Losses on Cost of Power (based on two-tier RPP prices) | B25: =B8-B4 -> 13.33 | C25: =IF(B4>B7,C13,C12) -> 0.098 | D25: =B25*C25 -> 1.30634 | E25: =C8-C4 -> 13.33 | F25: =IF(C4>C7,F13,F12) -> 0.098 | G25: =E25*F25 -> 1.30634 | H25: 0 | I25: 0 | J25: 0.01932488109 | K25: 0.01886468278
A26: Line Losses on Cost of Power (based on TOU prices) | B26: =B8-B4 -> 13.33 | C26: =VLOOKUP($B$3,'Data Billing Quantities'!$A:$O,MATCH('BI Template_EnergyWHSI'!$A15,'Data Billing Quantities'!$4:$4,0),FALSE)*C15+VLOOKUP($B$3,'Data Billing Quantities'!$A:$O,MATCH('BI Template_EnergyWHSI'!$A16,'Data Billing Quantities'!$4:$4,0),FALSE)*C16+VLOOKUP($B$3,'Data Billing Quantities'!$A:$O,MATCH('BI Template_EnergyWHSI'!$A17,'Data Billing Quantities'!$4:$4,0),FALSE)*C17 -> 0.10342 | D26: =B26*C26 -> 1.3785886 | E26: =C8-C4 -> 13.33 | F26: =VLOOKUP($C$3,'Data Billing Quantities'!$A:$O,MATCH('BI Template_EnergyWHSI'!$A15,'Data Billing Quantities'!$4:$4,0),FALSE)*F15+VLOOKUP($C$3,'Data Billing Quantities'!$A:$O,MATCH('BI Template_EnergyWHSI'!$A16,'Data Billing Quantities'!$4:$4,0),FALSE)*F16+VLOOKUP($C$3,'Data Billing Quantities'!$A:$O,MATCH('BI Template_EnergyWHSI'!$A17,'Data Billing Quantities'!$4:$4,0),FALSE)*F17 -> 0.10342 | G26: =E26*F26 -> 1.3785886 | H26: 0 | I26: 0 | J26: 0.02039366533 | K26: 0.01990801523
A27: Sub-Total: Distribution (based on two-tier RPP prices) | D27: =SUM(D23,D24:D25) -> 32.27434 | G27: =SUM(G23,G24:G25) -> 33.64134 | H27: 1.367 | I27: 0.04235562989 | J27: 0.497661325 | K27: 0.4858101316
A28: Sub-Total: Distribution (based on TOU prices) | D28: =SUM(D23,D24,D26) -> 32.3465886 | G28: =SUM(G23,G24,G26) -> 33.7135886 | H28: 1.367 | I28: 0.04226102532 | J28: 0.4987301093 | K28: 0.4868534641
A29: Retail Transmission Rate – Network Service Rate | B29: =IF($B$9="kWh",$B$8,$B$5) -> 323.33 | C29: =VLOOKUP($B$3,'Data Current Rates'!$A:$AO,MATCH('BI Template_EnergyWHSI'!$A29,CurrentHeader,0),FALSE) -> 0.0113 | D29: =B29*C29 -> 3.653629 | E29: =IF($C$9="kWh",$C$8,$C$5) -> 323.33 | F29: =VLOOKUP($C$3,'Data Proposed Rates'!$A:$AZ,MATCH('BI Template_EnergyWHSI'!$A29,ProposedHeader,0),FALSE) -> 0.0113 | G29: =E29*F29 -> 3.653629 | H29: =G29-D29 -> 0 | I29: 0 | J29: 0.05404867491 | K29: 0.05276157208
A30: Retail Transmission Rate – Line and Transformation Connection Service Rate | B30: =IF($B$9="kWh",$B$8,$B$5) -> 323.33 | C30: =VLOOKUP($B$3,'Data Current Rates'!$A:$AO,MATCH('BI Template_EnergyWHSI'!$A30,CurrentHeader,0),FALSE) -> 0.0082 | D30: =B30*C30 -> 2.651306 | E30: =IF($C$9="kWh",$C$8,$C$5) -> 323.33 | F30: =VLOOKUP($C$3,'Data Proposed Rates'!$A:$AZ,MATCH('BI Template_EnergyWHSI'!$A30,ProposedHeader,0),FALSE) -> 0.0082 | G30: =E30*F30 -> 2.651306 | H30: =G30-D30 -> 0 | I30: 0 | J30: 0.03922116233 | K30: 0.0382871585
A31: Sub-Total: Retail Transmission | D31: =SUM(D29:D30) -> 6.304935 | G31: =SUM(G29:G30) -> 6.304935 | H31: =G31-D31 -> 0 | I31: 0 | J31: 0.09326983724 | K31: 0.09104873059
A32: Sub-Total: Delivery (based on two-tier RPP prices) | D32: =D27+D31 -> 38.579275 | G32: =G27+G31 -> 39.946275 | H32: =G32-D32 -> 1.367 | I32: 0.03543353264 | J32: 0.5909311623 | K32: 0.5768588622
A33: Sub-Total: Delivery (based on TOU prices) | D33: =D28+D31 -> 38.6515236 | G33: =G28+G31 -> 40.0185236 | H33: =G33-D33 -> 1.367 | I33: 0.03536729921 | J33: 0.5919999465 | K33: 0.5779021947
A34: Wholesale Market Service Rate (WMS) - not including CBR | B34: =B8 -> 323.33 | C34: =VLOOKUP($A34,'Data Pass Through'!$A:$D,2,FALSE) -> 0.003 | D34: =B34*C34 -> 0.96999 | E34: =$C$8 -> 323.33 | F34: =VLOOKUP($A34,'Data Pass Through'!$A:$D,3,FALSE) -> 0.003 | G34: =E34*F34 -> 0.96999 | H34: 0 | I34: 0 | J34: 0.01434920573 | K34: 0.01400749701
A35: Capacity Based Recovery (CBR) - Applicable for Class B Customers | B35: =B8 -> 323.33 | C35: =VLOOKUP($A35,'Data Pass Through'!$A:$D,2,FALSE) -> 0.0004 | D35: =B35*C35 -> 0.129332 | E35: =$C$8 -> 323.33 | F35: =VLOOKUP($A35,'Data Pass Through'!$A:$D,3,FALSE) -> 0.0004 | G35: =E35*F35 -> 0.129332 | H35: 0 | I35: 0 | J35: 0.001913227431 | K35: 0.001867666268
A36: Rural Rate Protection Charge | B36: =B8 -> 323.33 | C36: =VLOOKUP($A36,'Data Pass Through'!$A:$D,2,FALSE) -> 0.0005 | D36: 0.161665 | E36: 323.33 | F36: =VLOOKUP($A36,'Data Pass Through'!$A:$D,3,FALSE) -> 0.0005 | G36: 0.161665 | H36: 0 | I36: 0 | J36: 0.002391534288 | K36: 0.002334582836
A37: Standard Supply Service – Administration Charge (if applicable) | B37: 1 | C37: =VLOOKUP($A37,'Data Pass Through'!$A:$D,2,FALSE) -> 0.25 | D37: =B37*C37 -> 0.25 | E37: 1 | F37: =VLOOKUP($A37,'Data Pass Through'!$A:$D,3,FALSE) -> 0.25 | G37: 0.25 | H37: 0 | I37: 0 | J37: 0.003698287026 | K37: 0.003610216861
A38: Sub-Total: Regulatory | D38: =SUM(D34:D37) -> 1.510987 | G38: =SUM(G34:G37) -> 1.510987 | H38: 0 | I38: 0 | J38: 0.02235225447 | K38: 0.02181996298
A39: Total Electricty Charge on Two-Tier RPP | D39: =SUM(D14,D23,D24,D25,D31,D38) -> 70.470262 | G39: =SUM(G14,G23,G24,G25,G31,G38) -> 71.837262 | H39: 1.367 | I39: 0.01939825341 | J39: 1.062699256
A40: HST | C40: 0.13 | D40: =D39*C40 -> 9.16113406 | F40: =C40 -> 0.13 | G40: =G39*F40 -> 9.33884406 | H40: 0.17771 | I40: 0.01939825341 | J40: 0.1381509033
A41: Total Electricity Charge on Two-Tier RPP (including HST) | D41: =SUM(D39:D40) -> 79.63139606 | G41: =SUM(G39:G40) -> 81.17610606 | H41: 1.54471 | I41: 0.01939825341 | J41: 1.200850159
A42: Ontario Electricity Rebate (OER) | C42: =IF(($B$4*12)<250000,VLOOKUP(A42,'Data Pass Through'!$A$4:$C$20,2,0),0) -> -0.189 | D42: =D39*C42 -> -13.31887952 | F42: =C42 -> -0.189 | G42: =G39*F42 -> -13.57724252 | H42: -0.258363 | I42: -0.01939825341 | J42: -0.2008501594
A43: Total Amount on Two-Tier RPP | D43: =SUM(D41:D42) -> 66.31251654 | G43: =SUM(G41:G42) -> 67.59886354 | H43: 1.286347 | I43: 0.01939825341 | J43: 1
A44: Total Electricty Charge on TOU (before HST) | D44: =SUM(D18,D23,D24,D26,D31,D38) -> 72.2227106 | G44: =SUM(G18,G23,G24,G26,G31,G38) -> 73.5897106 | H44: 1.367 | I44: 0.01892756432 | K44: =G44/$G$48 -> 1.062699256
A45: HST | C45: 0.13 | D45: =D44*C45 -> 9.388952378 | F45: =C45 -> 0.13 | G45: =G44*F45 -> 9.566662378 | H45: 0.17771 | I45: 0.01892756432 | K45: =G45/$G$48 -> 0.1381509033
A46: Total Electricity Charge on TOU (including HST) | D46: =SUM(D44:D45) -> 81.61166298 | G46: =SUM(G44:G45) -> 83.15637298 | H46: 1.54471 | I46: 0.01892756432 | K46: =G46/$G$48 -> 1.200850159
A47: Ontario Electricity Rebate (OER) | C47: =IF(($B$4*12)<250000,VLOOKUP(A47,'Data Pass Through'!$A$4:$C$20,2,0),0) -> -0.189 | D47: =D44*C47 -> -13.6500923 | F47: =C47 -> -0.189 | G47: =G44*F47 -> -13.9084553 | H47: -0.258363 | I47: -0.01892756432 | K47: =G47/$G$48 -> -0.2008501594
A48: Total Amount on TOU | D48: =SUM(D46:D47) -> 67.96157067 | G48: =SUM(G46:G47) -> 69.24791767 | H48: 1.286347 | I48: 0.01892756432 | K48: =G48/$G$48 -> 1

Sheet BI Template_DemandWHSI (hidden)
A1: 2024 Bill Impacts (Low Consumption Level) - AUGd_WHSI
A3: Rate Class | B3: =VLOOKUP(A1,'Data BI List Acq_Seas'!C:E,2,FALSE) -> AUGd-WHSI | C3: =VLOOKUP(A1,'Data BI List Acq_Seas'!C:E,3,FALSE) -> AUGd-WHSI
A4: Monthly Consumption (kWh) | B4: =IF(COUNTIF(A1,"*Low*")>0,VLOOKUP(B3,'Data Billing Quantities'!$A:$Z,MATCH("Low kWh",'Data Billing Quantities'!4:4,0),FALSE),IF(COUNTIF(A1,"*Typical*")>0,VLOOKUP(B3,'Data Billing Quantities'!$A:$Z,MATCH("Typical kWh",'Data Billing Quantities'!4:4,0),FALSE),IF(COUNTIF(A1,"*Average*")>0,VLOOKUP(B3,'Data Billing Quantities'!$A:$Z,MATCH("Average kWh",'Data Billing Quantities'!4:4,0),FALSE),IF(COUNTIF(A1,"*High*")>0,VLOOKUP(B3,'Data Billing Quantities'!$A:$Z,MATCH("High kWh",'Data Billing Quantities'!4:4,0),FALSE),"error")))) -> 9370 | C4: =B4 -> 9370
A5: Peak (kW) | B5: =IF(COUNTIF(A1,"*Low*")>0,VLOOKUP(B3,'Data Billing Quantities'!$A:$Z,MATCH("Low kW",'Data Billing Quantities'!4:4,0),FALSE),IF(COUNTIF(A1,"*Typical*")>0,VLOOKUP(B3,'Data Billing Quantities'!$A:$Z,MATCH("Typical kW",'Data Billing Quantities'!4:4,0),FALSE),IF(COUNTIF(A1,"*Average*")>0,VLOOKUP(B3,'Data Billing Quantities'!$A:$Z,MATCH("Average kW",'Data Billing Quantities'!4:4,0),FALSE),IF(COUNTIF(A1,"*High*")>0,VLOOKUP(B3,'Data Billing Quantities'!$A:$Z,MATCH("High kW",'Data Billing Quantities'!4:4,0),FALSE),"error")))) -> 50 | C5: =B5 -> 50
A6: Loss factor | B6: =VLOOKUP(B3,'Data Billing Quantities'!A:D,MATCH(A6,'Data Billing Quantities'!4:4,0),FALSE) -> 1.033 | C6: =VLOOKUP(C3,'Data Billing Quantities'!A:D,MATCH(A6,'Data Billing Quantities'!4:4,0),FALSE) -> 1.033
A7: Commodity Threshold | B7: =VLOOKUP(B3,'Data Billing Quantities'!A:D,MATCH(A7,'Data Billing Quantities'!4:4,0),FALSE) -> 0 | C7: =B7 -> 0
A8: Monthly Consumption (kWh) - Uplifted | B8: =B4*B6 -> 9679.21 | C8: =C4*C6 -> 9679.21
A9: Charge determinant | B9: =VLOOKUP(B3,'Data Billing Quantities'!A:D,MATCH(A9,'Data Billing Quantities'!4:4,0),FALSE) -> kW | C9: =VLOOKUP(C3,'Data Billing Quantities'!A:D,MATCH(A9,'Data Billing Quantities'!4:4,0),FALSE) -> kW
B11: Volume | C11: Current Rate ($) | D11: Current Charge ($) | E11: Volume | F11: Proposed Rate ($) | G11: Proposed Charge ($) | H11: Change ($) | I11: Change (%) | J11: % of Total Bill
A12: Weighted Average Hourly Spot Price | B12: =B8 -> 9679.21 | C12: =VLOOKUP($A12,'Data Pass Through'!$A:$D,2,FALSE) -> 0.119 | D12: =B12*C12 -> 1151.82599 | E12: =C8 -> 9679.21 | F12: =VLOOKUP($A12,'Data Pass Through'!$A:$D,3,FALSE) -> 0.119 | G12: =E12*F12 -> 1151.82599 | H12: =G12-D12 -> 0 | I12: =IF(ISERROR(H12/ABS(D12)),"N/A",(H12/ABS(D12))) -> 0 | J12: =G12/G$32 -> 0.5856042692
A13: Sub-Total: Energy (WAHSP) | D13: =SUM(D12:D12) -> 1151.82599 | G13: =SUM(G12:G12) -> 1151.82599 | H13: 0 | I13: 0 | J13: 0.5856042692
A14: Service Charge | B14: 1 | C14: =VLOOKUP($B$3,'Data Current Rates'!$A:$AO,MATCH('BI Template_DemandWHSI'!$A14,CurrentHeader,0),FALSE) -> 159.51 | D14: =B14*C14 -> 159.51 | E14: 1 | F14: =VLOOKUP($C$3,'Data Proposed Rates'!$A:$AZ,MATCH('BI Template_DemandWHSI'!$A14,ProposedHeader,0),FALSE) -> 167.19 | G14: =E14*F14 -> 167.19 | H14: 7.68 | I14: 0.04814745157 | J14: 0.08500170913
A15: Distribution Volumetric Charge | B15: =IF($B$9="kWh",$B$4,$B$5) -> 50 | C15: =VLOOKUP($B$3,'Data Current Rates'!$A:$AO,MATCH('BI Template_DemandWHSI'!$A15,CurrentHeader,0),FALSE) -> 2.5877 | D15: =B15*C15 -> 129.385 | E15: =IF($C$9="kWh",$C$4,$C$5) -> 50 | F15: =VLOOKUP($C$3,'Data Proposed Rates'!$A:$AZ,MATCH('BI Template_DemandWHSI'!$A15,ProposedHeader,0),FALSE) -> 2.706 | G15: 135.3 | H15: 5.915 | I15: 0.04571627314 | J15: 0.06878839192
A16: Group 1 Volumetric DVA Rider (General) | B16: =IF($B$9="kWh",$B$4,$B$5) -> 50 | C16: =VLOOKUP($B$3,'Data Current Rates'!$A:$AO,MATCH('BI Template_DemandWHSI'!$A16,CurrentHeader,0),FALSE) -> -0.0394 | D16: =B16*C16 -> -1.97 | E16: =IF($C$9="kWh",$C$4,$C$5) -> 50 | F16: =VLOOKUP($C$3,'Data Proposed Rates'!$A:$AZ,MATCH('BI Template_DemandWHSI'!$A16,ProposedHeader,0),FALSE) -> -0.0394 | G16: -1.97 | H16: 0 | I16: 0 | J16: -0.001001575256
A17: Group 1 Volumetric Deferral/Variance Account Rider (Sub-Account RSVA Wholesale Market Service Charge & RSVA Power) | B17: 50 | C17: =VLOOKUP($B$3,'Data Current Rates'!$A:$AO,MATCH('BI Template_DemandWHSI'!$A17,CurrentHeader,0),FALSE) -> -0.0821 | D17: -4.105 | E17: 50 | F17: =VLOOKUP($C$3,'Data Proposed Rates'!$A:$AZ,MATCH('BI Template_DemandWHSI'!$A17,ProposedHeader,0),FALSE) -> -0.0821 | G17: -4.105 | H17: 0 | I17: 0 | J17: -0.002087038794
A18: Group 1 Volumetric Deferral/Variance Account Rider (Sub-Account Global Adjustment) | B18: =B4 -> 9370 | C18: =VLOOKUP($B$3,'Data Current Rates'!$A:$AO,MATCH('BI Template_DemandWHSI'!$A18,CurrentHeader,0),FALSE) -> -0.0007 | D18: -6.559 | E18: =C4 -> 9370 | F18: =VLOOKUP($C$3,'Data Proposed Rates'!$A:$AZ,MATCH('BI Template_DemandWHSI'!$A18,ProposedHeader,0),FALSE) -> -0.0007 | G18: -6.559 | H18: 0 | I18: 0 | J18: -0.003334686346
A19: LRAMVA Volumetric Rate Rider | B19: 50 | C19: =VLOOKUP($B$3,'Data Current Rates'!$A:$AO,MATCH('BI Template_DemandWHSI'!$A19,CurrentHeader,0),FALSE) -> 0.6839 | D19: =B19*C19 -> 34.195 | H19: =G19-D19 -> -34.195 | I19: =IF(ISERROR(H19/ABS(D19)),"N/A",(H19/ABS(D19))) -> -1 | J19: =G19/G$32 -> 0
A20: Sub-Total: Distribution | D20: =SUM(INDIRECT("D14:D"&ROW()-1)) -> 310.456 | G20: =SUM(INDIRECT("g14:g"&ROW()-1)) -> 289.856 | H20: =G20-D20 -> -20.6 | I20: -0.0663540083 | J20: 0.1473668007
A21: Retail Transmission Rate – Network Service Rate | B21: =IF($B$9="kWh",$B$4,$B$5) -> 50 | C21: =VLOOKUP($B$3,'Data Current Rates'!$A:$AO,MATCH('BI Template_DemandWHSI'!$A21,CurrentHeader,0),FALSE) -> 3.021 | D21: =B21*C21 -> 151.05 | E21: =IF($C$9="kWh",$C$4,$C$5) -> 50 | F21: =VLOOKUP($C$3,'Data Proposed Rates'!$A:$AZ,MATCH('BI Template_DemandWHSI'!$A21,ProposedHeader,0),FALSE) -> 3.021 | G21: =E21*F21 -> 151.05 | H21: =G21-D21 -> 0 | I21: 0 | J21: 0.07679590983
A22: Retail Transmission Rate – Line and Transformation Connection Service Rate | B22: =IF($B$9="kWh",$B$4,$B$5) -> 50 | C22: =VLOOKUP($B$3,'Data Current Rates'!$A:$AO,MATCH('BI Template_DemandWHSI'!$A22,CurrentHeader,0),FALSE) -> 2.1978 | D22: =B22*C22 -> 109.89 | E22: =IF($C$9="kWh",$C$4,$C$5) -> 50 | F22: =VLOOKUP($C$3,'Data Proposed Rates'!$A:$AZ,MATCH('BI Template_DemandWHSI'!$A22,ProposedHeader,0),FALSE) -> 2.1978 | G22: =E22*F22 -> 109.89 | H22: =G22-D22 -> 0 | I22: 0 | J22: 0.05586959637
A23: Sub-Total: Retail Transmission | D23: =SUM(D21:D22) -> 260.94 | G23: =SUM(G21:G22) -> 260.94 | H23: =G23-D23 -> 0 | I23: 0 | J23: 0.1326655062
A24: Sub-Total: Delivery (based on two-tier RPP prices) | D24: =SUM(D20,D23) -> 571.396 | G24: =SUM(G20,G23) -> 550.796 | H24: =G24-D24 -> -20.6 | I24: -0.03605205497 | J24: 0.2800323068
A25: Wholesale Market Service Rate (WMS) - not including CBR | B25: =B8 -> 9679.21 | C25: =VLOOKUP($A25,'Data Pass Through'!$A:$D,2,FALSE) -> 0.003 | D25: =B25*C25 -> 29.03763 | E25: =$C$8 -> 9679.21 | F25: =VLOOKUP($A25,'Data Pass Through'!$A:$D,3,FALSE) -> 0.003 | G25: =E25*F25 -> 29.03763 | H25: =G25-D25 -> 0 | I25: 0 | J25: 0.01476313284
A26: Capacity Based Recovery (CBR) - Applicable for Class B Customers | B26: =B8 -> 9679.21 | C26: =VLOOKUP($A26,'Data Pass Through'!$A:$D,2,FALSE) -> 0.0004 | D26: =B26*C26 -> 3.871684 | E26: =$C$8 -> 9679.21 | F26: =VLOOKUP($A26,'Data Pass Through'!$A:$D,3,FALSE) -> 0.0004 | G26: =E26*F26 -> 3.871684 | H26: 0 | I26: 0 | J26: 0.001968417712
A27: Rural Rate Protection Charge | B27: =B8 -> 9679.21 | C27: =VLOOKUP($A27,'Data Pass Through'!$A:$D,2,FALSE) -> 0.0005 | D27: 4.839605 | E27: 9679.21 | F27: =VLOOKUP($A27,'Data Pass Through'!$A:$D,3,FALSE) -> 0.0005 | G27: 4.839605 | H27: 0 | I27: 0 | J27: 0.00246052214
A28: Standard Supply Service – Administration Charge (if applicable) | B28: 1 | C28: =VLOOKUP($A28,'Data Pass Through'!$A:$D,2,FALSE) -> 0.25 | D28: =B28*C28 -> 0.25 | E28: =B28 -> 1 | F28: =VLOOKUP($A28,'Data Pass Through'!$A:$D,3,FALSE) -> 0.25 | G28: 0.25 | H28: 0 | I28: 0 | J28: 0.0001271034588
A29: Sub-Total: Regulatory | D29: =SUM(D25:D28) -> 37.998919 | G29: =SUM(G25:G28) -> 37.998919 | H29: 0 | I29: 0 | J29: 0.01931917615
A30: Total Electricty Charge on WAHSP | D30: =SUM(D13,D24,D29) -> 1761.220909 | G30: =SUM(G13,G24,G29) -> 1740.620909 | H30: -20.6 | I30: -0.01169643166 | J30: 0.8849557522
A31: HST | C31: 0.13 | D31: =D30*C31 -> 228.9587182 | F31: =C31 -> 0.13 | G31: =G30*F31 -> 226.2807182 | H31: -2.678 | I31: -0.01169643166 | J31: 0.1150442478
A32: Total Amount on WAHSP | D32: =SUM(D30:D31) -> 1990.179627 | G32: =SUM(G30:G31) -> 1966.901627 | H32: -23.278 | I32: -0.01169643166 | J32: 1

Sheet BI Template_unmWHSI (hidden)
A1: 2024 Bill Impacts (Average Consumption Level) - St Lgt_WHSI
A3: Rate Class | B3: =VLOOKUP(A1,'Data BI List Acq_Seas'!C:E,2,FALSE) -> St Lgt-WHSI | C3: =VLOOKUP(A1,'Data BI List Acq_Seas'!C:E,3,FALSE) -> St Lgt-WHSI
A4: Monthly Consumption (kWh) | B4: =IF(COUNTIF(A1,"*Low*")>0,VLOOKUP(B3,'Data Billing Quantities'!$A:$Z,MATCH("Low kWh",'Data Billing Quantities'!4:4,0),FALSE),IF(COUNTIF(A1,"*Typical*")>0,VLOOKUP(B3,'Data Billing Quantities'!$A:$Z,MATCH("Typical kWh",'Data Billing Quantities'!4:4,0),FALSE),IF(COUNTIF(A1,"*Average*")>0,VLOOKUP(B3,'Data Billing Quantities'!$A:$Z,MATCH("Average kWh",'Data Billing Quantities'!4:4,0),FALSE),IF(COUNTIF(A1,"*High*")>0,VLOOKUP(B3,'Data Billing Quantities'!$A:$Z,MATCH("High kWh",'Data Billing Quantities'!4:4,0),FALSE),"error")))) -> 37079 | C4: =B4 -> 37079
A5: Peak (kW) | B5: =IF(COUNTIF(A1,"*Low*")>0,VLOOKUP(B3,'Data Billing Quantities'!$A:$Z,MATCH("Low kW",'Data Billing Quantities'!4:4,0),FALSE),IF(COUNTIF(A1,"*Typical*")>0,VLOOKUP(B3,'Data Billing Quantities'!$A:$Z,MATCH("Typical kW",'Data Billing Quantities'!4:4,0),FALSE),IF(COUNTIF(A1,"*Average*")>0,VLOOKUP(B3,'Data Billing Quantities'!$A:$Z,MATCH("Average kW",'Data Billing Quantities'!4:4,0),FALSE),IF(COUNTIF(A1,"*High*")>0,VLOOKUP(B3,'Data Billing Quantities'!$A:$Z,MATCH("High kW",'Data Billing Quantities'!4:4,0),FALSE),"error")))) -> 0 | C5: =B5 -> 0
A6: Loss factor | B6: =VLOOKUP(B3,'Data Billing Quantities'!A:D,MATCH(A6,'Data Billing Quantities'!4:4,0),FALSE) -> 1.092 | C6: =VLOOKUP(C3,'Data Billing Quantities'!A:D,MATCH(A6,'Data Billing Quantities'!4:4,0),FALSE) -> 1.092
A7: Commodity Threshold | B7: =VLOOKUP(B3,'Data Billing Quantities'!A:D,MATCH(A7,'Data Billing Quantities'!4:4,0),FALSE) -> 750 | C7: =B7 -> 750
A8: Monthly Consumption (kWh) - Uplifted | B8: =B4*B6 -> 40490.268 | C8: =C4*C6 -> 40490.268
A9: Charge determinant | B9: =VLOOKUP(B3,'Data Billing Quantities'!A:D,MATCH(A9,'Data Billing Quantities'!4:4,0),FALSE) -> kWh | C9: =VLOOKUP(C3,'Data Billing Quantities'!A:D,MATCH(A9,'Data Billing Quantities'!4:4,0),FALSE) -> kWh
B11: Volume | C11: Current Rate ($) | D11: Current Charge ($) | E11: Volume | F11: Proposed Rate ($) | G11: Proposed Charge ($) | H11: Change ($) | I11: Change (%) | J11: % of Total Bill
A12: Energy First Tier | B12: =IF(B4>B7,B7,B4) -> 750 | C12: =VLOOKUP($A12,'Data Pass Through'!$A:$D,2,FALSE) -> 0.098 | D12: =B12*C12 -> 73.5 | E12: =B12 -> 750 | F12: =VLOOKUP($A12,'Data Pass Through'!$A:$D,3,FALSE) -> 0.098 | G12: =E12*F12 -> 73.5 | H12: =G12-D12 -> 0 | I12: =IF(ISERROR(H12/ABS(D12)),"N/A",(H12/ABS(D12))) -> 0 | J12: =G12/$G$34 -> 0.006878845737
A13: Energy Second Tier | B13: =IF(B4>B7,(B4)-B7,0) -> 36329 | C13: =VLOOKUP($A13,'Data Pass Through'!$A:$D,2,FALSE) -> 0.115 | D13: =B13*C13 -> 4177.835 | E13: =B13 -> 36329 | F13: =VLOOKUP($A13,'Data Pass Through'!$A:$D,3,FALSE) -> 0.115 | G13: =E13*F13 -> 4177.835 | H13: 0 | I13: 0 | J13: 0.3910024827
A14: Sub-Total: Energy (RPP Tiered) | D14: =SUM(D12:D13) -> 4251.335 | G14: =SUM(G12:G13) -> 4251.335 | H14: 0 | I14: 0 | J14: 0.3978813285
A15: Service Charge | B15: =IF(VLOOKUP(B$3,'Data Billing Quantities'!A:P,MATCH("Acquired Street Light Service Charge",'Data Billing Quantities'!$4:$4,0),FALSE)>0,VLOOKUP(B$3,'Data Billing Quantities'!A:P,MATCH("Acquired Street Light Service Charge",'Data Billing Quantities'!$4:$4,0),FALSE),1) -> 1 | C15: =VLOOKUP($B$3,'Data Current Rates'!$A:$AO,MATCH('BI Template_unmWHSI'!$A15,CurrentHeader,0),FALSE) -> 3.01 | D15: =B15*C15 -> 3.01 | E15: 1 | F15: =VLOOKUP($C$3,'Data Proposed Rates'!$A:$AZ,MATCH('BI Template_unmWHSI'!$A15,ProposedHeader,0),FALSE) -> 3.11 | G15: =E15*F15 -> 3.11 | H15: 0.1 | I15: 0.03322259136 | J15: 0.0002910640849
A16: Distribution Volumetric Charge | B16: =IF($B$9="kWh",$B$4,$B$5) -> 37079 | C16: =VLOOKUP($B$3,'Data Current Rates'!$A:$AO,MATCH('BI Template_unmWHSI'!$A16,CurrentHeader,0),FALSE) -> 0.1094 | D16: =B16*C16 -> 4056.4426 | E16: =IF($C$9="kWh",$C$4,$C$5) -> 37079 | F16: =VLOOKUP($C$3,'Data Proposed Rates'!$A:$AZ,MATCH('BI Template_unmWHSI'!$A16,ProposedHeader,0),FALSE) -> 0.1147 | G16: 4252.9613 | H16: 196.5187 | I16: 0.04844606947 | J16: 0.3980335334
A17: Group 1 Volumetric DVA Rider (General) | B17: =IF($B$9="kWh",$B$4,$B$5) -> 37079 | C17: =VLOOKUP($B$3,'Data Current Rates'!$A:$AO,MATCH('BI Template_unmWHSI'!$A17,CurrentHeader,0),FALSE) -> -0.0003 | D17: =B17*C17 -> -11.1237 | E17: =IF($C$9="kWh",$C$4,$C$5) -> 37079 | F17: =VLOOKUP($C$3,'Data Proposed Rates'!$A:$AZ,MATCH('BI Template_unmWHSI'!$A17,ProposedHeader,0),FALSE) -> -0.0003 | G17: -11.1237 | H17: 0 | I17: 0 | J17: -0.001041064168
A18: Sub-Total: Distribution (excluding pass through) | D18: =SUM(INDIRECT("D15:D"&ROW()-1)) -> 4048.3289 | G18: =SUM(INDIRECT("g15:g"&ROW()-1)) -> 4244.9476 | H18: =G18-D18 -> 196.6187 | I18: 0.0485678671 | J18: 0.3972835334
A19: Line Losses on Cost of Power (based on two-tier RPP prices) | B19: =B8-B4 -> 3411.268 | C19: =IF(B4>B7,C13,C12) -> 0.115 | D19: =B19*C19 -> 392.29582 | E19: =C8-C4 -> 3411.268 | F19: =IF(C4>C7,F13,F12) -> 0.115 | G19: =E19*F19 -> 392.29582 | H19: 0 | I19: 0 | J19: 0.03671486298
A20: Sub-Total: Distribution (based on two-tier RPP prices) | D20: =SUM(D18,D19:D19) -> 4440.62472 | G20: =SUM(G18,G19:G19) -> 4637.24342 | H20: 196.6187 | I20: 0.04427726106 | J20: 0.4339983963
A21: Retail Transmission Rate – Network Service Rate | B21: =IF($B$9="kWh",$B$8,$B$5) -> 40490.268 | C21: =VLOOKUP($B$3,'Data Current Rates'!$A:$AO,MATCH('BI Template_unmWHSI'!$A21,CurrentHeader,0),FALSE) -> 0.0059 | D21: =B21*C21 -> 238.8925812 | E21: =IF($C$9="kWh",$C$8,$C$5) -> 40490.268 | F21: =VLOOKUP($C$3,'Data Proposed Rates'!$A:$AZ,MATCH('BI Template_unmWHSI'!$A21,ProposedHeader,0),FALSE) -> 0.0059 | G21: =E21*F21 -> 238.8925812 | H21: =G21-D21 -> 0 | I21: 0 | J21: 0.02235789407
A22: Retail Transmission Rate – Line and Transformation Connection Service Rate | B22: =IF($B$9="kWh",$B$8,$B$5) -> 40490.268 | C22: =VLOOKUP($B$3,'Data Current Rates'!$A:$AO,MATCH('BI Template_unmWHSI'!$A22,CurrentHeader,0),FALSE) -> 0.0042 | D22: =B22*C22 -> 170.0591256 | E22: =IF($C$9="kWh",$C$8,$C$5) -> 40490.268 | F22: =VLOOKUP($C$3,'Data Proposed Rates'!$A:$AZ,MATCH('BI Template_unmWHSI'!$A22,ProposedHeader,0),FALSE) -> 0.0042 | G22: =E22*F22 -> 170.0591256 | H22: =G22-D22 -> 0 | I22: 0 | J22: 0.015915789
A23: Sub-Total: Retail Transmission | D23: =SUM(D21:D22) -> 408.9517068 | G23: =SUM(G21:G22) -> 408.9517068 | H23: =G23-D23 -> 0 | I23: 0 | J23: 0.03827368306
A24: Sub-Total: Delivery (based on two-tier RPP prices) | D24: =D20+D23 -> 4849.576427 | G24: =G20+G23 -> 5046.195127 | H24: =G24-D24 -> 196.6187 | I24: 0.040543479 | J24: 0.4722720794
A25: Wholesale Market Service Rate (WMS) - not including CBR | B25: =B8 -> 40490.268 | C25: =VLOOKUP($A25,'Data Pass Through'!$A:$D,2,FALSE) -> 0.003 | D25: =B25*C25 -> 121.470804 | E25: =$C$8 -> 40490.268 | F25: =VLOOKUP($A25,'Data Pass Through'!$A:$D,3,FALSE) -> 0.003 | G25: =E25*F25 -> 121.470804 | H25: =G25-D25 -> 0 | I25: 0 | J25: 0.01136842071
A26: Capacity Based Recovery (CBR) - Applicable for Class B Customers | B26: =B8 -> 40490.268 | C26: =VLOOKUP($A26,'Data Pass Through'!$A:$D,2,FALSE) -> 0.0004 | D26: =B26*C26 -> 16.1961072 | E26: =$C$8 -> 40490.268 | F26: =VLOOKUP($A26,'Data Pass Through'!$A:$D,3,FALSE) -> 0.0004 | G26: =E26*F26 -> 16.1961072 | H26: 0 | I26: 0 | J26: 0.001515789428
A27: Rural Rate Protection Charge | B27: =B8 -> 40490.268 | C27: =VLOOKUP($A27,'Data Pass Through'!$A:$D,2,FALSE) -> 0.0005 | D27: 20.245134 | E27: 40490.268 | F27: =VLOOKUP($A27,'Data Pass Through'!$A:$D,3,FALSE) -> 0.0005 | G27: 20.245134 | H27: 0 | I27: 0 | J27: 0.001894736785
A28: Standard Supply Service – Administration Charge (if applicable) | B28: 1 | C28: =VLOOKUP($A28,'Data Pass Through'!$A:$D,2,FALSE) -> 0.25 | D28: =B28*C28 -> 0.25 | E28: 1 | F28: =VLOOKUP($A28,'Data Pass Through'!$A:$D,3,FALSE) -> 0.25 | G28: 0.25 | H28: 0 | I28: 0 | J28: 2.339743448e-05
A29: Sub-Total: Regulatory | D29: =SUM(D25:D28) -> 158.1620452 | G29: =SUM(G25:G28) -> 158.1620452 | H29: 0 | I29: 0 | J29: 0.01480234436
A30: Total Electricty Charge on Two-Tier RPP | D30: =SUM(D24,D29,D14) -> 9259.073472 | G30: =SUM(G24,G29,G14) -> 9455.692172 | H30: 196.6187 | I30: 0.02123524569 | J30: 0.8849557522
A31: HST | C31: 0.13 | D31: =D30*C31 -> 1203.679551 | F31: =C31 -> 0.13 | G31: =G30*F31 -> 1229.239982 | H31: 25.560431 | I31: 0.02123524569 | J31: 0.1150442478
A32: Total Electricity Charge on Two-Tier RPP (including HST) | D32: =SUM(D30:D31) -> 10462.75302 | G32: =SUM(G30:G31) -> 10684.93215 | H32: 222.179131 | I32: 0.02123524569 | J32: 1
A33: Ontario Electricity Rebate (OER) | C33: =IF(($B$4*12)<250000,VLOOKUP(A33,'Data Pass Through'!$A$4:$C$20,2,0),0) -> 0 | D33: =D30*C33 -> 0 | F33: =C33 -> 0 | G33: =G30*F33 -> 0 | H33: 0 | I33: N/A | J33: 0
A34: Total Amount on Two-Tier RPP | D34: =SUM(D32:D33) -> 10462.75302 | G34: =SUM(G32:G33) -> 10684.93215 | H34: 222.179131 | I34: 0.02123524569 | J34: 1

Sheet BI Template_EnergyUNM (hidden)
A1: 2024 Bill Impacts (Average Consumption Level) - USL
A3: Rate Class | B3: =RIGHT(A1,LEN(A1)-FIND("- ",A1,1)-1) -> USL
A4: Monthly Consumption (kWh) | B4: =IF(COUNTIF(A1,"*Low*")>0,VLOOKUP(B3,'Data Billing Quantities'!$A:$Z,MATCH("Low kWh",'Data Billing Quantities'!4:4,0),FALSE),IF(COUNTIF(A1,"*Typical*")>0,VLOOKUP(B3,'Data Billing Quantities'!$A:$Z,MATCH("Typical kWh",'Data Billing Quantities'!4:4,0),FALSE),IF(COUNTIF(A1,"*Average*")>0,VLOOKUP(B3,'Data Billing Quantities'!$A:$Z,MATCH("Average kWh",'Data Billing Quantities'!4:4,0),FALSE),IF(COUNTIF(A1,"*High*")>0,VLOOKUP(B3,'Data Billing Quantities'!$A:$Z,MATCH("High kWh",'Data Billing Quantities'!4:4,0),FALSE),"error")))) -> 477
A5: Peak (kW) | B5: =IF(COUNTIF(A1,"*Low*")>0,VLOOKUP(B3,'Data Billing Quantities'!$A:$Z,MATCH("Low kW",'Data Billing Quantities'!4:4,0),FALSE),IF(COUNTIF(A1,"*Typical*")>0,VLOOKUP(B3,'Data Billing Quantities'!$A:$Z,MATCH("Typical kW",'Data Billing Quantities'!4:4,0),FALSE),IF(COUNTIF(A1,"*Average*")>0,VLOOKUP(B3,'Data Billing Quantities'!$A:$Z,MATCH("Average kW",'Data Billing Quantities'!4:4,0),FALSE),IF(COUNTIF(A1,"*High*")>0,VLOOKUP(B3,'Data Billing Quantities'!$A:$Z,MATCH("High kW",'Data Billing Quantities'!4:4,0),FALSE),"error")))) -> 0
A6: Loss factor | B6: =VLOOKUP(B3,'Data Billing Quantities'!A:D,MATCH(A6,'Data Billing Quantities'!4:4,0),FALSE) -> 1.092
A7: Commodity Threshold | B7: =VLOOKUP(B3,'Data Billing Quantities'!A:D,MATCH(A7,'Data Billing Quantities'!4:4,0),FALSE) -> 750
A8: Monthly Consumption (kWh) - Uplifted | B8: =B4*B6 -> 520.884
A9: Charge determinant | B9: =VLOOKUP(B3,'Data Billing Quantities'!A:D,MATCH(A9,'Data Billing Quantities'!4:4,0),FALSE) -> kWh
B11: Volume | C11: Current Rate ($) | D11: Current Charge ($) | E11: Volume | F11: Proposed Rate ($) | G11: Proposed Charge ($) | H11: Change ($) | I11: Change (%) | J11: % of Total Bill
A12: Energy First Tier | B12: =IF(B4>B7,B7,B4) -> 477 | C12: =VLOOKUP($A12,'Data Pass Through'!$A:$D,2,FALSE) -> 0.098 | D12: =B12*C12 -> 46.746 | E12: =B12 -> 477 | F12: =VLOOKUP($A12,'Data Pass Through'!$A:$D,3,FALSE) -> 0.098 | G12: =E12*F12 -> 46.746 | H12: =G12-D12 -> 0 | I12: =IF(ISERROR(H12/ABS(D12)),"N/A",(H12/ABS(D12))) -> 0 | J12: =G12/$G$37 -> 0.4700955948
A13: Energy Second Tier | B13: =IF(B4>B7,(B4)-B7,0) -> 0 | C13: =VLOOKUP($A13,'Data Pass Through'!$A:$D,2,FALSE) -> 0.115 | D13: =B13*C13 -> 0 | E13: =B13 -> 0 | F13: =VLOOKUP($A13,'Data Pass Through'!$A:$D,3,FALSE) -> 0.115 | G13: =E13*F13 -> 0 | H13: 0 | I13: N/A | J13: =G13/$G$37 -> 0
A14: Sub-Total: Energy (RPP Tiered) | D14: =SUM(D12:D13) -> 46.746 | G14: =SUM(G12:G13) -> 46.746 | H14: 0 | I14: 0 | J14: =G14/$G$37 -> 0.4700955948
A15: Service Charge | B15: 1 | C15: =VLOOKUP($B$3,'Data Current Rates'!$A:$AO,MATCH('BI Template_EnergyUNM'!$A15,CurrentHeader,0),FALSE) -> 34.45 | D15: =B15*C15 -> 34.45 | E15: 1 | F15: =VLOOKUP($B$3,'Data Proposed Rates'!$A:$AZ,MATCH('BI Template_EnergyUNM'!$A15,ProposedHeader,0),FALSE) -> 35.71 | G15: =E15*F15 -> 35.71 | H15: 1.26 | I15: 0.03657474601 | J15: =G15/$G$37 -> 0.3591133721
A16: Fixed Base Rate Adjustment to Recover Past Tax Amounts | B16: 1 | C16: =VLOOKUP($B$3,'Data Current Rates'!$A:$AO,MATCH('BI Template_EnergyUNM'!$A16,CurrentHeader,0),FALSE) -> 0.87 | D16: =B16*C16 -> 0.87 | E16: 1 | F16: =VLOOKUP($B$3,'Data Proposed Rates'!$A:$AZ,MATCH('BI Template_EnergyUNM'!$A16,ProposedHeader,0),FALSE) -> 0 | G16: =E16*F16 -> 0 | H16: =G16-D16 -> -0.87 | I16: =IF(ISERROR(H16/ABS(D16)),"N/A",(H16/ABS(D16))) -> -1
A17: Distribution Volumetric Charge | B17: =IF($B$9="kWh",$B$4,$B$5) -> 477 | C17: =VLOOKUP($B$3,'Data Current Rates'!$A:$AO,MATCH('BI Template_EnergyUNM'!$A17,CurrentHeader,0),FALSE) -> 0.0218 | D17: 10.3986 | E17: 477 | F17: =VLOOKUP($B$3,'Data Proposed Rates'!$A:$AZ,MATCH('BI Template_EnergyUNM'!$A17,ProposedHeader,0),FALSE) -> 0.0227 | G17: 10.8279 | H17: 0.4293 | I17: 0.04128440367 | J17: =G17/$G$37 -> 0.1088894898
A18: Volumetric Base Rate Adjustment to Recover Past Tax Amounts | B18: =IF($B$9="kWh",$B$4,$B$5) -> 477 | C18: =VLOOKUP($B$3,'Data Current Rates'!$A:$AO,MATCH('BI Template_EnergyUNM'!$A18,CurrentHeader,0),FALSE) -> 0.0006 | D18: =B18*C18 -> 0.2862 | E18: =B18 -> 477 | F18: =VLOOKUP($B$3,'Data Proposed Rates'!$A:$AZ,MATCH('BI Template_EnergyUNM'!$A18,ProposedHeader,0),FALSE) -> 0 | G18: =E18*F18 -> 0 | H18: =G18-D18 -> -0.2862 | I18: =IF(ISERROR(H18/ABS(D18)),"N/A",(H18/ABS(D18))) -> -1 | J18: 0
A19: Group 1 Volumetric DVA Rider (General) | B19: =IF($B$9="kWh",$B$4,$B$5) -> 477 | C19: =VLOOKUP($B$3,'Data Current Rates'!$A:$AO,MATCH('BI Template_EnergyUNM'!$A19,CurrentHeader,0),FALSE) -> -0.0004 | D19: =B19*C19 -> -0.1908 | E19: =B4 -> 477 | F19: =VLOOKUP($B$3,'Data Proposed Rates'!$A:$AZ,MATCH('BI Template_EnergyUNM'!$A19,ProposedHeader,0),FALSE) -> -0.0004 | G19: =E19*F19 -> -0.1908 | H19: =G19-D19 -> 0 | I19: =IF(ISERROR(H19/ABS(D19)),"N/A",(H19/ABS(D19))) -> 0 | J19: -0.00191875753
A20: Group 2 Volumetric DVA Rider | B20: 477 | C20: =VLOOKUP($B$3,'Data Current Rates'!$A:$AO,MATCH('BI Template_EnergyUNM'!$A20,CurrentHeader,0),FALSE) -> -0.0002 | D20: -0.0954 | E20: =B4 -> 477 | F20: =VLOOKUP($B$3,'Data Proposed Rates'!$A:$AZ,MATCH('BI Template_EnergyUNM'!$A20,ProposedHeader,0),FALSE) -> -0.0002 | G20: -0.0954 | H20: 0 | I20: 0 | J20: -0.0009593787649
A21: Sub-Total: Distribution (excluding pass through) | D21: =SUM(INDIRECT("D15:D"&ROW()-1)) -> 45.7186 | G21: =SUM(INDIRECT("g15:g"&ROW()-1)) -> 46.2517 | H21: =G21-D21 -> 0.5331 | I21: 0.01166046204 | J21: 0.4651247256
A22: Line Losses on Cost of Power (based on two-tier RPP prices) | B22: =B8-B4 -> 43.884 | C22: =IF(B4>B7,C13,C12) -> 0.098 | D22: =B22*C22 -> 4.300632 | E22: 43.884 | F22: =IF(B4>B7,F13,F12) -> 0.098 | G22: =E22*F22 -> 4.300632 | H22: 0 | I22: 0 | J22: 0.04324879472
A23: Sub-Total: Distribution (based on two-tier RPP prices) | D23: =SUM(D21,D22:D22) -> 50.019232 | G23: =SUM(G21,G22:G22) -> 50.552332 | H23: 0.5331 | I23: 0.01065790055 | J23: 0.5083735203
A24: Retail Transmission Rate – Network Service Rate | B24: =B8 -> 520.884 | C24: =VLOOKUP($B$3,'Data Current Rates'!$A:$AO,MATCH('BI Template_EnergyUNM'!$A24,CurrentHeader,0),FALSE) -> 0.0068 | D24: =B24*C24 -> 3.5420112 | E24: 520.884 | F24: =VLOOKUP($B$3,'Data Proposed Rates'!$A:$AZ,MATCH('BI Template_EnergyUNM'!$A24,ProposedHeader,0),FALSE) -> 0.0068 | G24: =E24*F24 -> 3.5420112 | H24: =G24-D24 -> 0 | I24: 0 | J24: 0.03561981478
A25: Retail Transmission Rate – Line and Transformation Connection Service Rate | B25: =B8 -> 520.884 | C25: =VLOOKUP($B$3,'Data Current Rates'!$A:$AO,MATCH('BI Template_EnergyUNM'!$A25,CurrentHeader,0),FALSE) -> 0.0049 | D25: =B25*C25 -> 2.5523316 | E25: 520.884 | F25: =VLOOKUP($B$3,'Data Proposed Rates'!$A:$AZ,MATCH('BI Template_EnergyUNM'!$A25,ProposedHeader,0),FALSE) -> 0.0049 | G25: =E25*F25 -> 2.5523316 | H25: =G25-D25 -> 0 | I25: 0 | J25: 0.02566721948
A26: Sub-Total: Retail Transmission | D26: =SUM(D24:D25) -> 6.0943428 | G26: =SUM(G24:G25) -> 6.0943428 | H26: =G26-D26 -> 0 | I26: 0 | J26: 0.06128703426
A27: Sub-Total: Delivery (based on two-tier RPP prices) | D27: =D23+D26 -> 56.1135748 | G27: =G23+G26 -> 56.6466748 | H27: =G27-D27 -> 0.5331 | I27: 0.009500374943 | J27: 0.5696605546
A28: Wholesale Market Service Rate (WMS) - not including CBR | B28: =B8 -> 520.884 | C28: =VLOOKUP($A28,'Data Pass Through'!$A:$D,2,FALSE) -> 0.003 | D28: =B28*C28 -> 1.562652 | E28: =$B$8 -> 520.884 | F28: =VLOOKUP($A28,'Data Pass Through'!$A:$D,3,FALSE) -> 0.003 | G28: =E28*F28 -> 1.562652 | H28: =G28-D28 -> 0 | I28: 0 | J28: 0.01571462417
A29: Capacity Based Recovery (CBR) - Applicable for Class B Customers | B29: =B8 -> 520.884 | C29: =VLOOKUP($A29,'Data Pass Through'!$A:$D,2,FALSE) -> 0.0004 | D29: =B29*C29 -> 0.2083536 | E29: =$B$8 -> 520.884 | F29: =VLOOKUP($A29,'Data Pass Through'!$A:$D,3,FALSE) -> 0.0004 | G29: =E29*F29 -> 0.2083536 | H29: 0 | I29: 0 | J29: 0.002095283223
A30: Rural Rate Protection Charge | B30: =B8 -> 520.884 | C30: =VLOOKUP($A30,'Data Pass Through'!$A:$D,2,FALSE) -> 0.0005 | D30: 0.260442 | E30: 520.884 | F30: =VLOOKUP($A30,'Data Pass Through'!$A:$D,3,FALSE) -> 0.0005 | G30: 0.260442 | H30: 0 | I30: 0 | J30: 0.002619104028
A31: Standard Supply Service – Administration Charge (if applicable) | B31: 1 | C31: =VLOOKUP($A31,'Data Pass Through'!$A:$D,2,FALSE) -> 0.25 | D31: =B31*C31 -> 0.25 | E31: 1 | F31: =VLOOKUP($A31,'Data Pass Through'!$A:$D,3,FALSE) -> 0.25 | G31: 0.25 | H31: 0 | I31: 0 | J31: 0.002514095296
A32: Sub-Total: Regulatory | D32: =SUM(D28:D31) -> 2.2814476 | G32: =SUM(G28:G31) -> 2.2814476 | H32: 0 | I32: 0 | J32: 0.02294310672
A33: Total Electricty Charge on Two-Tier RPP | D33: =SUM(D14,D21,D22,D26,D32) -> 105.1410224 | G33: =SUM(G14,G21,G22,G26,G32) -> 105.6741224 | H33: 0.5331 | I33: 0.005070333043 | J33: 1.062699256
A34: HST | C34: 0.13 | D34: =D33*C34 -> 13.66833291 | F34: =C34 -> 0.13 | G34: =G33*F34 -> 13.73763591 | H34: 0.069303 | I34: 0.005070333043 | J34: 0.1381509033
A35: Total Electricity Charge on Two-Tier RPP (including HST) | D35: =SUM(D33:D34) -> 118.8093553 | G35: =SUM(G33:G34) -> 119.4117583 | H35: 0.602403 | I35: 0.005070333043 | J35: 1.200850159
A36: Ontario Electricity Rebate (OER) | C36: =IF(($B$4*12)<250000,VLOOKUP(A36,'Data Pass Through'!$A$4:$C$20,2,0),0) -> -0.189 | D36: =D33*C36 -> -19.87165323 | F36: =C36 -> -0.189 | G36: =G33*F36 -> -19.97240913 | H36: -0.1007559 | I36: -0.005070333043 | J36: -0.2008501594
A37: Total Amount on Two-Tier RPP | D37: =SUM(D35:D36) -> 98.93770208 | G37: =SUM(G35:G36) -> 99.43934918 | H37: 0.5016471 | I37: 0.005070333043 | J37: 1

Sheet BI Template_Demand (hidden)
A1: 2024 Bill Impacts (Average Consumption Level) - GSd
A3: Rate Class | B3: =RIGHT(A1,LEN(A1)-FIND("- ",A1,1)-1) -> GSd
A4: Monthly Consumption (kWh) | B4: =IF(COUNTIF(A1,"*Low*")>0,VLOOKUP(B3,'Data Billing Quantities'!$A:$Z,MATCH("Low kWh",'Data Billing Quantities'!4:4,0),FALSE),IF(COUNTIF(A1,"*Typical*")>0,VLOOKUP(B3,'Data Billing Quantities'!$A:$Z,MATCH("Typical kWh",'Data Billing Quantities'!4:4,0),FALSE),IF(COUNTIF(A1,"*Average*")>0,VLOOKUP(B3,'Data Billing Quantities'!$A:$Z,MATCH("Average kWh",'Data Billing Quantities'!4:4,0),FALSE),IF(COUNTIF(A1,"*High*")>0,VLOOKUP(B3,'Data Billing Quantities'!$A:$Z,MATCH("High kWh",'Data Billing Quantities'!4:4,0),FALSE),"error")))) -> 34334
A5: Peak (kW) | B5: =IF(COUNTIF(A1,"*Low*")>0,VLOOKUP(B3,'Data Billing Quantities'!$A:$Z,MATCH("Low kW",'Data Billing Quantities'!4:4,0),FALSE),IF(COUNTIF(A1,"*Typical*")>0,VLOOKUP(B3,'Data Billing Quantities'!$A:$Z,MATCH("Typical kW",'Data Billing Quantities'!4:4,0),FALSE),IF(COUNTIF(A1,"*Average*")>0,VLOOKUP(B3,'Data Billing Quantities'!$A:$Z,MATCH("Average kW",'Data Billing Quantities'!4:4,0),FALSE),IF(COUNTIF(A1,"*High*")>0,VLOOKUP(B3,'Data Billing Quantities'!$A:$Z,MATCH("High kW",'Data Billing Quantities'!4:4,0),FALSE),"error")))) -> 110
A6: Loss factor | B6: =VLOOKUP(B3,'Data Billing Quantities'!A:D,MATCH(A6,'Data Billing Quantities'!4:4,0),FALSE) -> 1.061
A7: Load factor | B7: =B4/(B5*730) -> 0.4275716065
A8: Monthly Consumption (kWh) - Uplifted | B8: =B4*B6 -> 36428.374
A9: Charge determinant | B9: =VLOOKUP(B3,'Data Billing Quantities'!A:D,MATCH(A9,'Data Billing Quantities'!4:4,0),FALSE) -> kW
B11: Volume | C11: Current Rate ($) | D11: Current Charge ($) | E11: Volume | F11: Proposed Rate ($) | G11: Proposed Charge ($) | H11: Change ($) | I11: Change (%) | J11: % of Total Bill
A12: Weighted Average Hourly Spot Price | B12: =B8 -> 36428.374 | C12: =VLOOKUP($A12,'Data Pass Through'!$A:$D,2,FALSE) -> 0.119 | D12: =B12*C12 -> 4334.976506 | E12: =B8 -> 36428.374 | F12: =VLOOKUP($A12,'Data Pass Through'!$A:$D,3,FALSE) -> 0.119 | G12: =E12*F12 -> 4334.976506 | H12: =G12-D12 -> 0 | I12: =IF(ISERROR(H12/ABS(D12)),"N/A",(H12/ABS(D12))) -> 0 | J12: =G12/$G$34 -> 0.5312893204
A13: Sub-Total: Energy (WAHSP) | D13: =SUM(D12:D12) -> 4334.976506 | G13: =SUM(G12:G12) -> 4334.976506 | H13: =G13-D13 -> 0 | I13: 0 | J13: 0.5312893204
A14: Service Charge | B14: 1 | C14: =VLOOKUP($B$3,'Data Current Rates'!$A:$AP,MATCH($A14,CurrentHeader,0),FALSE) -> 100.96 | D14: =B14*C14 -> 100.96 | E14: =B14 -> 1 | F14: =VLOOKUP($B$3,'Data Proposed Rates'!$A:$AZ,MATCH($A14,ProposedHeader,0),FALSE) -> 104.5 | G14: =E14*F14 -> 104.5 | H14: 3.54 | I14: 0.03506339144 | J14: 0.01280738982
A15: Fixed Base Rate Adjustment to Recover Past Tax Amounts | B15: 1 | C15: =VLOOKUP($B$3,'Data Current Rates'!$A:$AP,MATCH($A15,CurrentHeader,0),FALSE) -> 4.43 | D15: =B15*C15 -> 4.43 | E15: 1 | F15: =VLOOKUP($B$3,'Data Proposed Rates'!$A:$AZ,MATCH($A15,ProposedHeader,0),FALSE) -> 0 | G15: =E15*F15 -> 0 | H15: -4.43 | I15: -1 | J15: 0
A16: Distribution Volumetric Charge | B16: =IF($B$9="kWh",$B$4,$B$5) -> 110 | C16: =VLOOKUP($B$3,'Data Current Rates'!$A:$AP,MATCH($A16,CurrentHeader,0),FALSE) -> 18.9446 | D16: =B16*C16 -> 2083.906 | E16: =$B$5 -> 110 | F16: =VLOOKUP($B$3,'Data Proposed Rates'!$A:$AZ,MATCH($A16,ProposedHeader,0),FALSE) -> 19.8615 | G16: 2184.765 | H16: 100.859 | I16: =IF(ISERROR(H16/ABS(D16)),"N/A",(H16/ABS(D16))) -> 0.04839901608 | J16: 0.2677620768
A17: Volumetric Base Rate Adjustment to Recover Past Tax Amounts | B17: =IF($B$9="kWh",$B$4,$B$5) -> 110 | C17: =VLOOKUP($B$3,'Data Current Rates'!$A:$AP,MATCH($A17,CurrentHeader,0),FALSE) -> 0.8249 | D17: 90.739 | E17: =$B$5 -> 110 | F17: =VLOOKUP($B$3,'Data Proposed Rates'!$A:$AZ,MATCH($A17,ProposedHeader,0),FALSE) -> 0 | G17: 0 | H17: -90.739 | I17: =IF(ISERROR(H17/ABS(D17)),"N/A",(H17/ABS(D17))) -> -1 | J17: 0
A18: Group 1 Volumetric DVA Rider (General) | B18: 110 | C18: =VLOOKUP($B$3,'Data Current Rates'!$A:$AP,MATCH($A18,CurrentHeader,0),FALSE) -> -0.0519 | D18: =B18*C18 -> -5.709 | E18: 110 | F18: =VLOOKUP($B$3,'Data Proposed Rates'!$A:$AZ,MATCH($A18,ProposedHeader,0),FALSE) -> -0.0519 | G18: -5.709 | H18: 0 | I18: 0 | J18: -0.0006996879282
A19: Group 1 Volumetric Deferral/Variance Account Rider (Sub-Account RSVA Wholesale Market Service Charge & RSVA Power) | B19: 110 | C19: =VLOOKUP($B$3,'Data Current Rates'!$A:$AP,MATCH($A19,CurrentHeader,0),FALSE) -> -0.0726 | D19: -7.986 | E19: 110 | F19: =VLOOKUP($B$3,'Data Proposed Rates'!$A:$AZ,MATCH($A19,ProposedHeader,0),FALSE) -> -0.0726 | G19: -7.986 | H19: 0 | I19: 0 | J19: -0.0009787542117
A20: Group 1 Volumetric Deferral/Variance Account Rider (Sub-Account Global Adjustment) | B20: =B4 -> 34334 | C20: =VLOOKUP($B$3,'Data Current Rates'!$A:$AP,MATCH($A20,CurrentHeader,0),FALSE) -> -0.0007 | D20: -24.0338 | E20: =B4 -> 34334 | F20: =VLOOKUP($B$3,'Data Proposed Rates'!$A:$AZ,MATCH($A20,ProposedHeader,0),FALSE) -> -0.0007 | G20: -24.0338 | H20: 0 | I20: 0 | J20: -0.002945552589
A21: Group 2 Volumetric DVA Rider | B21: 110 | C21: =VLOOKUP($B$3,'Data Current Rates'!$A:$AP,MATCH($A21,CurrentHeader,0),FALSE) -> -0.0475 | D21: -5.225 | E21: =B5 -> 110 | F21: =VLOOKUP($B$3,'Data Proposed Rates'!$A:$AZ,MATCH($A21,ProposedHeader,0),FALSE) -> -0.0475 | G21: =E21*F21 -> -5.225 | H21: =G21-D21 -> 0 | I21: =IF(ISERROR(H21/ABS(D21)),"N/A",(H21/ABS(D21))) -> 0 | J21: -0.0006403694912
A22: Sub-Total: Distribution | D22: =SUM(INDIRECT("D14:D"&ROW()-1)) -> 2237.0812 | G22: =SUM(INDIRECT("g14:g"&ROW()-1)) -> 2246.3112 | H22: 9.23 | I22: 0.004125911925 | J22: 0.2753051024
A23: Retail Transmission Rate – Network Service Rate | B23: =IF($B$9="kWh",$B$4,$B$5) -> 110 | C23: =VLOOKUP($B$3,'Data Current Rates'!$A:$AP,MATCH($A23,CurrentHeader,0),FALSE) -> 2.5967 | D23: =B23*C23 -> 285.637 | E23: 110 | F23: =VLOOKUP($B$3,'Data Proposed Rates'!$A:$AZ,MATCH($A23,ProposedHeader,0),FALSE) -> 2.5967 | G23: =E23*F23 -> 285.637 | H23: 0 | I23: 0 | J23: 0.0350073149
A24: Retail Transmission Rate – Line and Transformation Connection Service Rate | B24: =IF($B$9="kWh",$B$4,$B$5) -> 110 | C24: =VLOOKUP($B$3,'Data Current Rates'!$A:$AP,MATCH($A24,CurrentHeader,0),FALSE) -> 1.922 | D24: =B24*C24 -> 211.42 | E24: 110 | F24: =VLOOKUP($B$3,'Data Proposed Rates'!$A:$AZ,MATCH($A24,ProposedHeader,0),FALSE) -> 1.922 | G24: =E24*F24 -> 211.42 | H24: 0 | I24: 0 | J24: 0.02591137183
A25: Sub-Total: Retail Transmission | D25: =SUM(D23:D24) -> 497.057 | G25: =SUM(G23:G24) -> 497.057 | H25: 0 | I25: 0 | J25: 0.06091868673
A26: Sub-Total: Delivery | D26: =D22+D25 -> 2734.1382 | G26: =G22+G25 -> 2743.3682 | H26: 9.23 | I26: 0.003375835208 | J26: 0.3362237891
A27: Wholesale Market Service Rate (WMS) - not including CBR | B27: =$B$8 -> 36428.374 | C27: =VLOOKUP($A27,'Data Pass Through'!$A:$D,2,FALSE) -> 0.003 | D27: =B27*C27 -> 109.285122 | E27: =$B$8 -> 36428.374 | F27: =VLOOKUP($A27,'Data Pass Through'!$A:$D,3,FALSE) -> 0.003 | G27: =E27*F27 -> 109.285122 | H27: 0 | I27: 0 | J27: 0.01339384841
A28: Capacity Based Recovery (CBR) - Applicable for Class B Customers | B28: =$B$8 -> 36428.374 | C28: =VLOOKUP($A28,'Data Pass Through'!$A:$D,2,FALSE) -> 0.0004 | D28: =B28*C28 -> 14.5713496 | E28: =$B$8 -> 36428.374 | F28: =VLOOKUP($A28,'Data Pass Through'!$A:$D,3,FALSE) -> 0.0004 | G28: =E28*F28 -> 14.5713496 | H28: =G28-D28 -> 0 | I28: 0 | J28: 0.001785846455
A29: Rural Rate Protection Charge | B29: =$B$8 -> 36428.374 | C29: =VLOOKUP($A29,'Data Pass Through'!$A:$D,2,FALSE) -> 0.0005 | D29: =B29*C29 -> 18.214187 | E29: =$B$8 -> 36428.374 | F29: =VLOOKUP($A29,'Data Pass Through'!$A:$D,3,FALSE) -> 0.0005 | G29: =E29*F29 -> 18.214187 | H29: =G29-D29 -> 0 | I29: 0 | J29: 0.002232308069
A30: Standard Supply Service – Administration Charge (if applicable) | B30: 1 | C30: =VLOOKUP($A30,'Data Pass Through'!$A:$D,2,FALSE) -> 0.25 | D30: =B30*C30 -> 0.25 | E30: 1 | F30: =VLOOKUP($A30,'Data Pass Through'!$A:$D,3,FALSE) -> 0.25 | G30: =E30*F30 -> 0.25 | H30: 0 | I30: 0 | J30: 3.063968857e-05
A31: Sub-Total: Regulatory | D31: =SUM(D27:D30) -> 142.3206586 | G31: =SUM(G27:G30) -> 142.3206586 | H31: 0 | I31: 0 | J31: 0.01744264263
A32: Total Electricity Charge on Two-Tier RPP (before HST) | D32: =SUM(D13,D22,D25,D31) -> 7211.435365 | G32: =SUM(G13,G22,G25,G31) -> 7220.665365 | H32: 9.23 | I32: 0.001279911631 | J32: 0.8849557522
A33: HST | C33: 0.13 | D33: =D32*C33 -> 937.4865974 | F33: =C33 -> 0.13 | G33: =G32*F33 -> 938.6864974 | H33: 1.1999 | I33: 0.001279911631 | J33: 0.1150442478
A34: Total Amount on WAHSP | D34: =SUM(D32:D33) -> 8148.921962 | G34: =SUM(G32:G33) -> 8159.351862 | H34: 10.4299 | I34: 0.001279911631 | J34: 1

Sheet BI_UR_Low
A1: 2024 Bill Impacts (Low Consumption Level) - UR
A3: Rate Class | B3: =RIGHT(A1,LEN(A1)-FIND("- ",A1,1)-1) -> UR
A4: Monthly Consumption (kWh) | B4: =IF(COUNTIF(A1,"*Low*")>0,VLOOKUP(B3,'Data Billing Quantities'!$A:$Z,MATCH("Low kWh",'Data Billing Quantities'!4:4,0),FALSE),IF(COUNTIF(A1,"*Typical*")>0,VLOOKUP(B3,'Data Billing Quantities'!$A:$Z,MATCH("Typical kWh",'Data Billing Quantities'!4:4,0),FALSE),IF(COUNTIF(A1,"*Average*")>0,VLOOKUP(B3,'Data Billing Quantities'!$A:$Z,MATCH("Average kWh",'Data Billing Quantities'!4:4,0),FALSE),IF(COUNTIF(A1,"*High*")>0,VLOOKUP(B3,'Data Billing Quantities'!$A:$Z,MATCH("High kWh",'Data Billing Quantities'!4:4,0),FALSE),"error")))) -> 340
A5: Peak (kW) | B5: =IF(COUNTIF(A1,"*Low*")>0,VLOOKUP(B3,'Data Billing Quantities'!$A:$Z,MATCH("Low kW",'Data Billing Quantities'!4:4,0),FALSE),IF(COUNTIF(A1,"*Typical*")>0,VLOOKUP(B3,'Data Billing Quantities'!$A:$Z,MATCH("Typical kW",'Data Billing Quantities'!4:4,0),FALSE),IF(COUNTIF(A1,"*Average*")>0,VLOOKUP(B3,'Data Billing Quantities'!$A:$Z,MATCH("Average kW",'Data Billing Quantities'!4:4,0),FALSE),IF(COUNTIF(A1,"*High*")>0,VLOOKUP(B3,'Data Billing Quantities'!$A:$Z,MATCH("High kW",'Data Billing Quantities'!4:4,0),FALSE),"error")))) -> 0
A6: Loss factor | B6: =VLOOKUP(B3,'Data Billing Quantities'!A:D,MATCH(A6,'Data Billing Quantities'!4:4,0),FALSE) -> 1.057
A7: Commodity Threshold | B7: =VLOOKUP(B3,'Data Billing Quantities'!A:D,MATCH(A7,'Data Billing Quantities'!4:4,0),FALSE) -> 600
A8: Monthly Consumption (kWh) - Uplifted | B8: =B4*B6 -> 359.38
A9: Charge determinant | B9: =VLOOKUP(B3,'Data Billing Quantities'!A:D,MATCH(A9,'Data Billing Quantities'!4:4,0),FALSE) -> kWh
B11: Volume | C11: Current Rate ($) | D11: Current Charge ($) | E11: Volume | F11: Proposed Rate ($) | G11: Proposed Charge ($) | H11: Change ($) | I11: Change (%) | J11: % of Total Bill on RPP | K11: % of Total Bill
A12: Energy First Tier | B12: =IF(B4>B7,B7,B4) -> 340 | C12: =VLOOKUP($A12,'Data Pass Through'!$A:$D,2,FALSE) -> 0.098 | D12: =B12*C12 -> 33.32 | E12: =B12 -> 340 | F12: =VLOOKUP($A12,'Data Pass Through'!$A:$D,3,FALSE) -> 0.098 | G12: =E12*F12 -> 33.32 | H12: =G12-D12 -> 0 | I12: =IF(ISERROR(H12/ABS(D12)),"N/A",(H12/ABS(D12))) -> 0 | J12: =G12/$G$47 -> 0.4283340954
A13: Energy Second Tier | B13: =IF(B4>B7,(B4)-B7,0) -> 0 | C13: =VLOOKUP($A13,'Data Pass Through'!$A:$D,2,FALSE) -> 0.115 | D13: =B13*C13 -> 0 | E13: =B13 -> 0 | F13: =VLOOKUP($A13,'Data Pass Through'!$A:$D,3,FALSE) -> 0.115 | G13: =E13*F13 -> 0 | H13: 0 | I13: N/A | J13: =G13/$G$47 -> 0
A14: Sub-Total: Energy (RPP Tiered) | D14: =SUM(D12:D13) -> 33.32 | G14: =SUM(G12:G13) -> 33.32 | H14: 0 | I14: 0 | J14: =G14/$G$47 -> 0.4283340954
A15: TOU-Off Peak | B15: =B$4*VLOOKUP($B$3,'Data Billing Quantities'!$A:$O,MATCH(BI_UR_Low!$A15,'Data Billing Quantities'!$4:$4,0),FALSE) -> 217.6 | C15: =VLOOKUP($A15,'Data Pass Through'!$A:$D,2,FALSE) -> 0.082 | D15: =B15*C15 -> 17.8432 | E15: 217.6 | F15: =VLOOKUP($A15,'Data Pass Through'!$A:$D,3,FALSE) -> 0.082 | G15: =E15*F15 -> 17.8432 | H15: 0 | I15: 0 | K15: =G15/$G$52 -> 0.2240970041
A16: TOU-Mid Peak | B16: =B$4*VLOOKUP($B$3,'Data Billing Quantities'!$A:$O,MATCH(BI_UR_Low!$A16,'Data Billing Quantities'!$4:$4,0),FALSE) -> 61.2 | C16: =VLOOKUP($A16,'Data Pass Through'!$A:$D,2,FALSE) -> 0.113 | D16: =B16*C16 -> 6.9156 | E16: 61.2 | F16: =VLOOKUP($A16,'Data Pass Through'!$A:$D,3,FALSE) -> 0.113 | G16: =E16*F16 -> 6.9156 | H16: 0 | I16: 0 | K16: 0.08685466967
A17: TOU-On Peak | B17: =B$4*VLOOKUP($B$3,'Data Billing Quantities'!$A:$O,MATCH(BI_UR_Low!$A17,'Data Billing Quantities'!$4:$4,0),FALSE) -> 61.2 | C17: =VLOOKUP($A17,'Data Pass Through'!$A:$D,2,FALSE) -> 0.17 | D17: =B17*C17 -> 10.404 | E17: 61.2 | F17: =VLOOKUP($A17,'Data Pass Through'!$A:$D,3,FALSE) -> 0.17 | G17: =E17*F17 -> 10.404 | H17: 0 | I17: 0 | K17: 0.1306663172
A18: Sub-Total: Energy (RPP TOU) | D18: =SUM(D15:D17) -> 35.1628 | G18: =SUM(G15:G17) -> 35.1628 | H18: 0 | I18: 0 | J18: =G18/$G$47 -> 0.4520235934 | K18: 0.441617991
A19: Service Charge | B19: 1 | C19: =VLOOKUP($B$3,'Data Current Rates'!$A:$AO,MATCH(BI_UR_Low!$A19,CurrentHeader,0),FALSE) -> 36.88 | D19: =B19*C19 -> 36.88 | E19: 1 | F19: =VLOOKUP($B$3,'Data Proposed Rates'!$A:$AZ,MATCH(BI_UR_Low!$A19,ProposedHeader,0),FALSE) -> 38.65 | G19: =E19*F19 -> 38.65 | H19: 1.77 | I19: 0.04799349241 | J19: 0.4968521245 | K19: 0.4854145675
A20: Fixed Base Rate Adjustment to Recover Past Tax Amounts | B20: 1 | C20: =VLOOKUP($B$3,'Data Current Rates'!$A:$AO,MATCH(BI_UR_Low!$A20,CurrentHeader,0),FALSE) -> 0.8 | D20: 0.8 | E20: 1 | F20: =VLOOKUP($B$3,'Data Proposed Rates'!$A:$AZ,MATCH(BI_UR_Low!$A20,ProposedHeader,0),FALSE) -> 0 | G20: 0 | H20: -0.8 | I20: -1 | J20: 0 | K20: 0
A21: Group 2 Fixed DVA Rider | B21: 1 | C21: =VLOOKUP($B$3,'Data Current Rates'!$A:$AO,MATCH(BI_UR_Low!$A21,CurrentHeader,0),FALSE) -> -0.08 | D21: -0.08 | E21: 1 | F21: =VLOOKUP($B$3,'Data Proposed Rates'!$A:$AZ,MATCH(BI_UR_Low!$A21,ProposedHeader,0),FALSE) -> -0.08 | G21: -0.08 | H21: 0 | I21: 0 | J21: -0.001028413194 | K21: -0.001004739079
A22: Distribution Volumetric Charge | B22: =IF($B$9="kWh",$B$4,$B$5) -> 340 | C22: =VLOOKUP($B$3,'Data Current Rates'!$A:$AO,MATCH(BI_UR_Low!$A22,CurrentHeader,0),FALSE) -> 0 | D22: 0 | E22: 340 | F22: =VLOOKUP($B$3,'Data Proposed Rates'!$A:$AZ,MATCH(BI_UR_Low!$A22,ProposedHeader,0),FALSE) -> 0 | G22: 0 | H22: 0 | I22: N/A | J22: 0 | K22: 0
A23: Volumetric Base Rate Adjustment to Recover Past Tax Amounts | B23: =IF($B$9="kWh",$B$4,$B$5) -> 340 | C23: =VLOOKUP($B$3,'Data Current Rates'!$A:$AO,MATCH(BI_UR_Low!$A23,CurrentHeader,0),FALSE) -> 0 | D23: 0 | E23: 340 | F23: =VLOOKUP($B$3,'Data Proposed Rates'!$A:$AZ,MATCH(BI_UR_Low!$A23,ProposedHeader,0),FALSE) -> 0 | G23: 0 | H23: 0 | I23: N/A | J23: 0 | K23: 0
A24: Group 1 Volumetric DVA Rider (General) | B24: 340 | C24: =VLOOKUP($B$3,'Data Current Rates'!$A:$AO,MATCH(BI_UR_Low!$A24,CurrentHeader,0),FALSE) -> -0.0004 | D24: -0.136 | E24: =B4 -> 340 | F24: =VLOOKUP($B$3,'Data Proposed Rates'!$A:$AZ,MATCH(BI_UR_Low!$A24,ProposedHeader,0),FALSE) -> -0.0004 | G24: -0.136 | H24: 0 | I24: 0 | J24: -0.00174830243 | K24: -0.001708056434
A25: Group 2 Volumetric DVA Rider | B25: 340 | C25: =VLOOKUP($B$3,'Data Current Rates'!$A:$AO,MATCH(BI_UR_Low!$A25,CurrentHeader,0),FALSE) -> 0 | D25: 0 | E25: =B4 -> 340 | F25: =VLOOKUP($B$3,'Data Proposed Rates'!$A:$AZ,MATCH(BI_UR_Low!$A25,ProposedHeader,0),FALSE) -> 0 | G25: 0 | H25: 0 | I25: N/A | J25: 0 | K25: 0
A26: Fair Hydro Plan - Distribution Rate Protection Savings* | D26: =IF(AND(B3<>"R1",B3<>"R2"),0,IF(VLOOKUP($A26,'Data Pass Through'!$A:$D,2,FALSE)=0,0,IF(SUM(D19:D20,D22:D23)<VLOOKUP($A26,'Data Pass Through'!$A:$D,2,FALSE),0,VLOOKUP($A26,'Data Pass Through'!$A:$D,2,FALSE)-SUM(D19:D20,D22:D23)))) -> 0 | G26: =IF(AND(B3<>"R1",B3<>"R2"),0,IF(VLOOKUP($A26,'Data Pass Through'!$A:$D,2,FALSE)=0,0,IF(SUM(G19:G20,G22:G23)<VLOOKUP($A26,'Data Pass Through'!$A:$D,2,FALSE),0,VLOOKUP($A26,'Data Pass Through'!$A:$D,2,FALSE)-SUM(G19:G20,G22:G23)))) -> 0 | H26: 0 | I26: N/A | J26: 0 | K26: 0
A27: Sub-Total: Distribution (excluding pass through) | D27: =SUM(INDIRECT("D19:D"&ROW()-1)) -> 37.464 | G27: =SUM(INDIRECT("g19:g"&ROW()-1)) -> 38.434 | H27: =G27-D27 -> 0.97 | I27: 0.02589152253 | J27: 0.4940754089 | K27: 0.482701772
A28: Smart Metering Entity Charge | B28: 1 | C28: =VLOOKUP($A28,'Data Pass Through'!$A:$D,2,FALSE) -> 0.57 | D28: =B28*C28 -> 0.57 | E28: 1 | F28: =VLOOKUP($A28,'Data Pass Through'!$A:$D,3,FALSE) -> 0.57 | G28: =E28*F28 -> 0.57 | H28: 0 | I28: 0 | J28: 0.007327444009 | K28: 0.007158765937
A29: Line Losses on Cost of Power (based on two-tier RPP prices) | B29: =B8-B4 -> 19.38 | C29: =IF(B4>B7,C13,C12) -> 0.098 | D29: =B29*C29 -> 1.89924 | E29: 19.38 | F29: =IF(B4>B7,F13,F12) -> 0.098 | G29: =E29*F29 -> 1.89924 | H29: 0 | I29: 0 | J29: 0.02441504344 | K29: 0.0238530081
A30: Line Losses on Cost of Power (based on TOU prices) | B30: =B8-B4 -> 19.38 | C30: =VLOOKUP($B$3,'Data Billing Quantities'!$A:$O,MATCH(BI_UR_Low!$A15,'Data Billing Quantities'!$4:$4,0),FALSE)*C15+VLOOKUP($B$3,'Data Billing Quantities'!$A:$O,MATCH(BI_UR_Low!$A16,'Data Billing Quantities'!$4:$4,0),FALSE)*C16+VLOOKUP($B$3,'Data Billing Quantities'!$A:$O,MATCH(BI_UR_Low!$A17,'Data Billing Quantities'!$4:$4,0),FALSE)*C17 -> 0.10342 | D30: =B30*C30 -> 2.0042796 | E30: 19.38 | F30: =VLOOKUP($B$3,'Data Billing Quantities'!$A:$O,MATCH(BI_UR_Low!$A15,'Data Billing Quantities'!$4:$4,0),FALSE)*F15+VLOOKUP($B$3,'Data Billing Quantities'!$A:$O,MATCH(BI_UR_Low!$A16,'Data Billing Quantities'!$4:$4,0),FALSE)*F16+VLOOKUP($B$3,'Data Billing Quantities'!$A:$O,MATCH(BI_UR_Low!$A17,'Data Billing Quantities'!$4:$4,0),FALSE)*F17 -> 0.10342 | G30: =E30*F30 -> 2.0042796 | H30: 0 | I30: 0 | J30: 0.02576534482 | K30: 0.02517222549
A31: Sub-Total: Distribution (based on two-tier RPP prices) | D31: =SUM(D27,D28:D29) -> 39.93324 | G31: =SUM(G27,G28:G29) -> 40.90324 | H31: 0.97 | I31: 0.02429054091 | J31: 0.5258178963 | K31: 0.513713546
A32: Sub-Total: Distribution (based on TOU prices) | D32: =SUM(D27,D28,D30) -> 40.0382796 | G32: =SUM(G27,G28,G30) -> 41.0082796 | H32: 0.97 | I32: 0.02422681518 | J32: 0.5271681977 | K32: 0.5150327634
A33: Retail Transmission Rate – Network Service Rate | B33: =B8 -> 359.38 | C33: =VLOOKUP($B$3,'Data Current Rates'!$A:$AO,MATCH(BI_UR_Low!$A33,CurrentHeader,0),FALSE) -> 0.0109 | D33: =B33*C33 -> 3.917242 | E33: 359.38 | F33: =VLOOKUP($B$3,'Data Proposed Rates'!$A:$AZ,MATCH(BI_UR_Low!$A33,ProposedHeader,0),FALSE) -> 0.0109 | G33: =E33*F33 -> 3.917242 | H33: =G33-D33 -> 0 | I33: 0 | J33: 0.05035679198 | K33: 0.04919757648
A34: Retail Transmission Rate – Line and Transformation Connection Service Rate | B34: =B8 -> 359.38 | C34: =VLOOKUP($B$3,'Data Current Rates'!$A:$AO,MATCH(BI_UR_Low!$A34,CurrentHeader,0),FALSE) -> 0.008 | D34: =B34*C34 -> 2.87504 | E34: 359.38 | F34: =VLOOKUP($B$3,'Data Proposed Rates'!$A:$AZ,MATCH(BI_UR_Low!$A34,ProposedHeader,0),FALSE) -> 0.008 | G34: =E34*F34 -> 2.87504 | H34: =G34-D34 -> 0 | I34: 0 | J34: 0.03695911338 | K34: 0.03610831302
A35: Sub-Total: Retail Transmission | D35: =SUM(D33:D34) -> 6.792282 | G35: =SUM(G33:G34) -> 6.792282 | H35: =G35-D35 -> 0 | I35: 0 | J35: 0.08731590535 | K35: 0.0853058895
A36: Sub-Total: Delivery (based on two-tier RPP prices) | D36: =D31+D35 -> 46.725522 | G36: =G31+G35 -> 47.695522 | H36: =G36-D36 -> 0.97 | I36: 0.02075953266 | J36: 0.6131338017 | K36: 0.5990194355
A37: Sub-Total: Delivery (based on TOU prices) | D37: =D32+D35 -> 46.8305616 | G37: =G32+G35 -> 47.8005616 | H37: =G37-D37 -> 0.97 | I37: 0.02071296963 | J37: 0.6144841031 | K37: 0.6003386529
A38: Wholesale Market Service Rate (WMS) - not including CBR | B38: =B8 -> 359.38 | C38: =VLOOKUP($A38,'Data Pass Through'!$A:$D,2,FALSE) -> 0.003 | D38: =B38*C38 -> 1.07814 | E38: =$B$8 -> 359.38 | F38: =VLOOKUP($A38,'Data Pass Through'!$A:$D,3,FALSE) -> 0.003 | G38: =E38*F38 -> 1.07814 | H38: 0 | I38: 0 | J38: 0.01385966752 | K38: 0.01354061738
A39: Capacity Based Recovery (CBR) - Applicable for Class B Customers | B39: =B8 -> 359.38 | C39: =VLOOKUP($A39,'Data Pass Through'!$A:$D,2,FALSE) -> 0.0004 | D39: =B39*C39 -> 0.143752 | E39: =$B$8 -> 359.38 | F39: =VLOOKUP($A39,'Data Pass Through'!$A:$D,3,FALSE) -> 0.0004 | G39: =E39*F39 -> 0.143752 | H39: 0 | I39: 0 | J39: 0.001847955669 | K39: 0.001805415651
A40: Rural Rate Protection Charge | B40: =B8 -> 359.38 | C40: =VLOOKUP($A40,'Data Pass Through'!$A:$D,2,FALSE) -> 0.0005 | D40: 0.17969 | E40: 359.38 | F40: =VLOOKUP($A40,'Data Pass Through'!$A:$D,3,FALSE) -> 0.0005 | G40: 0.17969 | H40: 0 | I40: 0 | J40: 0.002309944586 | K40: 0.002256769563
A41: Standard Supply Service – Administration Charge (if applicable) | B41: 1 | C41: =VLOOKUP($A41,'Data Pass Through'!$A:$D,2,FALSE) -> 0.25 | D41: =B41*C41 -> 0.25 | E41: 1 | F41: =VLOOKUP($A41,'Data Pass Through'!$A:$D,3,FALSE) -> 0.25 | G41: 0.25 | H41: 0 | I41: 0 | J41: 0.003213791232 | K41: 0.003139809621
A42: Sub-Total: Regulatory | D42: =SUM(D38:D41) -> 1.651582 | G42: =SUM(G38:G41) -> 1.651582 | H42: 0 | I42: 0 | J42: 0.021231359 | K42: 0.02074261222
A43: Total Electricty Charge on Two-Tier RPP | D43: =SUM(D14,D27,D28,D29,D35,D42) -> 81.697104 | G43: =SUM(G14,G27,G28,G29,G35,G42) -> 82.667104 | H43: 0.97 | I43: 0.01187312588 | J43: 1.062699256
A44: HST | C44: 0.13 | D44: =D43*C44 -> 10.62062352 | F44: =C44 -> 0.13 | G44: =G43*F44 -> 10.74672352 | H44: 0.1261 | I44: 0.01187312588 | J44: 0.1381509033
A45: Total Electricity Charge on Two-Tier RPP (including HST) | D45: =SUM(D43:D44) -> 92.31772752 | G45: =SUM(G43:G44) -> 93.41382752 | H45: 1.0961 | I45: 0.01187312588 | J45: 1.200850159
A46: Ontario Electricity Rebate (OER) | C46: =IF(($B$4*12)<250000,VLOOKUP(A46,'Data Pass Through'!$A$4:$C$20,2,0),0) -> -0.189 | D46: =D43*C46 -> -15.44075266 | F46: =C46 -> -0.189 | G46: =G43*F46 -> -15.62408266 | H46: -0.18333 | I46: -0.01187312588 | J46: -0.2008501594
A47: Total Amount on Two-Tier RPP | D47: =SUM(D45:D46) -> 76.87697486 | G47: =SUM(G45:G46) -> 77.78974486 | H47: 0.91277 | I47: 0.01187312588 | J47: 1
A48: Total Electricty Charge on TOU (before HST) | D48: =SUM(D18,D27,D28,D30,D35,D42) -> 83.6449436 | G48: =SUM(G18,G27,G28,G30,G35,G42) -> 84.6149436 | H48: 0.97 | I48: 0.01159663643 | K48: =G48/$G$52 -> 1.062699256
A49: HST | C49: 0.13 | D49: =D48*C49 -> 10.87384267 | F49: =C49 -> 0.13 | G49: =G48*F49 -> 10.99994267 | H49: 0.1261 | I49: 0.01159663643 | K49: =G49/$G$52 -> 0.1381509033
A50: Total Electricity Charge on TOU (including HST) | D50: =SUM(D48:D49) -> 94.51878627 | G50: =SUM(G48:G49) -> 95.61488627 | H50: 1.0961 | I50: 0.01159663643 | K50: =G50/$G$52 -> 1.200850159
A51: Ontario Electricity Rebate (OER) | C51: =IF(($B$4*12)<250000,VLOOKUP(A51,'Data Pass Through'!$A$4:$C$20,2,0),0) -> -0.189 | D51: =D48*C51 -> -15.80889434 | F51: =C51 -> -0.189 | G51: =G48*F51 -> -15.99222434 | H51: -0.18333 | I51: -0.01159663643 | K51: =G51/$G$52 -> -0.2008501594
A52: Total Amount on TOU | D52: =SUM(D50:D51) -> 78.70989193 | G52: =SUM(G50:G51) -> 79.62266193 | H52: 0.91277 | I52: 0.01159663643 | K52: =G52/$G$52 -> 1
A53: * Distribution rate protection applies to R1 and R2 customers

Sheet BI_UR_Typical
A1: 2024 Bill Impacts (Typical Consumption Level) - UR
A3: Rate Class | B3: =RIGHT(A1,LEN(A1)-FIND("- ",A1,1)-1) -> UR
A4: Monthly Consumption (kWh) | B4: =IF(COUNTIF(A1,"*Low*")>0,VLOOKUP(B3,'Data Billing Quantities'!$A:$Z,MATCH("Low kWh",'Data Billing Quantities'!4:4,0),FALSE),IF(COUNTIF(A1,"*Typical*")>0,VLOOKUP(B3,'Data Billing Quantities'!$A:$Z,MATCH("Typical kWh",'Data Billing Quantities'!4:4,0),FALSE),IF(COUNTIF(A1,"*Average*")>0,VLOOKUP(B3,'Data Billing Quantities'!$A:$Z,MATCH("Average kWh",'Data Billing Quantities'!4:4,0),FALSE),IF(COUNTIF(A1,"*High*")>0,VLOOKUP(B3,'Data Billing Quantities'!$A:$Z,MATCH("High kWh",'Data Billing Quantities'!4:4,0),FALSE),"error")))) -> 750
A5: Peak (kW) | B5: =IF(COUNTIF(A1,"*Low*")>0,VLOOKUP(B3,'Data Billing Quantities'!$A:$Z,MATCH("Low kW",'Data Billing Quantities'!4:4,0),FALSE),IF(COUNTIF(A1,"*Typical*")>0,VLOOKUP(B3,'Data Billing Quantities'!$A:$Z,MATCH("Typical kW",'Data Billing Quantities'!4:4,0),FALSE),IF(COUNTIF(A1,"*Average*")>0,VLOOKUP(B3,'Data Billing Quantities'!$A:$Z,MATCH("Average kW",'Data Billing Quantities'!4:4,0),FALSE),IF(COUNTIF(A1,"*High*")>0,VLOOKUP(B3,'Data Billing Quantities'!$A:$Z,MATCH("High kW",'Data Billing Quantities'!4:4,0),FALSE),"error")))) -> 0
A6: Loss factor | B6: =VLOOKUP(B3,'Data Billing Quantities'!A:D,MATCH(A6,'Data Billing Quantities'!4:4,0),FALSE) -> 1.057
A7: Commodity Threshold | B7: =VLOOKUP(B3,'Data Billing Quantities'!A:D,MATCH(A7,'Data Billing Quantities'!4:4,0),FALSE) -> 600
A8: Monthly Consumption (kWh) - Uplifted | B8: =B4*B6 -> 792.75
A9: Charge determinant | B9: =VLOOKUP(B3,'Data Billing Quantities'!A:D,MATCH(A9,'Data Billing Quantities'!4:4,0),FALSE) -> kWh
B11: Volume | C11: Current Rate ($) | D11: Current Charge ($) | E11: Volume | F11: Proposed Rate ($) | G11: Proposed Charge ($) | H11: Change ($) | I11: Change (%) | J11: % of Total Bill on RPP | K11: % of Total Bill
A12: Energy First Tier | B12: =IF(B4>B7,B7,B4) -> 600 | C12: =VLOOKUP($A12,'Data Pass Through'!$A:$D,2,FALSE) -> 0.098 | D12: =B12*C12 -> 58.8 | E12: =B12 -> 600 | F12: =VLOOKUP($A12,'Data Pass Through'!$A:$D,3,FALSE) -> 0.098 | G12: =E12*F12 -> 58.8 | H12: =G12-D12 -> 0 | I12: =IF(ISERROR(H12/ABS(D12)),"N/A",(H12/ABS(D12))) -> 0 | J12: =G12/$G$47 -> 0.4523730291
A13: Energy Second Tier | B13: =IF(B4>B7,(B4)-B7,0) -> 150 | C13: =VLOOKUP($A13,'Data Pass Through'!$A:$D,2,FALSE) -> 0.115 | D13: =B13*C13 -> 17.25 | E13: =B13 -> 150 | F13: =VLOOKUP($A13,'Data Pass Through'!$A:$D,3,FALSE) -> 0.115 | G13: =E13*F13 -> 17.25 | H13: 0 | I13: 0 | J13: =G13/$G$47 -> 0.1327114754
A14: Sub-Total: Energy (RPP Tiered) | D14: =SUM(D12:D13) -> 76.05 | G14: =SUM(G12:G13) -> 76.05 | H14: 0 | I14: 0 | J14: =G14/$G$47 -> 0.5850845044
A15: TOU-Off Peak | B15: =B$4*VLOOKUP($B$3,'Data Billing Quantities'!$A:$O,MATCH(BI_UR_Typical!$A15,'Data Billing Quantities'!$4:$4,0),FALSE) -> 480 | C15: =VLOOKUP($A15,'Data Pass Through'!$A:$D,2,FALSE) -> 0.082 | D15: =B15*C15 -> 39.36 | E15: 480 | F15: =VLOOKUP($A15,'Data Pass Through'!$A:$D,3,FALSE) -> 0.082 | G15: =E15*F15 -> 39.36 | H15: 0 | I15: 0 | K15: =G15/$G$52 -> 0.3005933933
A16: TOU-Mid Peak | B16: =B$4*VLOOKUP($B$3,'Data Billing Quantities'!$A:$O,MATCH(BI_UR_Typical!$A16,'Data Billing Quantities'!$4:$4,0),FALSE) -> 135 | C16: =VLOOKUP($A16,'Data Pass Through'!$A:$D,2,FALSE) -> 0.113 | D16: =B16*C16 -> 15.255 | E16: 135 | F16: =VLOOKUP($A16,'Data Pass Through'!$A:$D,3,FALSE) -> 0.113 | G16: =E16*F16 -> 15.255 | H16: 0 | I16: 0 | K16: 0.116502851
A17: TOU-On Peak | B17: =B$4*VLOOKUP($B$3,'Data Billing Quantities'!$A:$O,MATCH(BI_UR_Typical!$A17,'Data Billing Quantities'!$4:$4,0),FALSE) -> 135 | C17: =VLOOKUP($A17,'Data Pass Through'!$A:$D,2,FALSE) -> 0.17 | D17: =B17*C17 -> 22.95 | E17: 135 | F17: =VLOOKUP($A17,'Data Pass Through'!$A:$D,3,FALSE) -> 0.17 | G17: =E17*F17 -> 22.95 | H17: 0 | I17: 0 | K17: 0.1752697758
A18: Sub-Total: Energy (RPP TOU) | D18: =SUM(D15:D17) -> 77.565 | G18: =SUM(G15:G17) -> 77.565 | H18: 0 | I18: 0 | J18: =G18/$G$47 -> 0.596740034 | K18: 0.5923660202
A19: Service Charge | B19: 1 | C19: =VLOOKUP($B$3,'Data Current Rates'!$A:$AO,MATCH(BI_UR_Typical!$A19,CurrentHeader,0),FALSE) -> 36.88 | D19: =B19*C19 -> 36.88 | E19: 1 | F19: =VLOOKUP($B$3,'Data Proposed Rates'!$A:$AZ,MATCH(BI_UR_Typical!$A19,ProposedHeader,0),FALSE) -> 38.65 | G19: =E19*F19 -> 38.65 | H19: 1.77 | I19: 0.04799349241 | J19: 0.297350639 | K19: 0.295171104
A20: Fixed Base Rate Adjustment to Recover Past Tax Amounts | B20: 1 | C20: =VLOOKUP($B$3,'Data Current Rates'!$A:$AO,MATCH(BI_UR_Typical!$A20,CurrentHeader,0),FALSE) -> 0.8 | D20: 0.8 | E20: 1 | F20: =VLOOKUP($B$3,'Data Proposed Rates'!$A:$AZ,MATCH(BI_UR_Typical!$A20,ProposedHeader,0),FALSE) -> 0 | G20: 0 | H20: -0.8 | I20: -1 | J20: 0 | K20: 0
A21: Group 2 Fixed DVA Rider | B21: 1 | C21: =VLOOKUP($B$3,'Data Current Rates'!$A:$AO,MATCH(BI_UR_Typical!$A21,CurrentHeader,0),FALSE) -> -0.08 | D21: -0.08 | E21: 1 | F21: =VLOOKUP($B$3,'Data Proposed Rates'!$A:$AZ,MATCH(BI_UR_Typical!$A21,ProposedHeader,0),FALSE) -> -0.08 | G21: -0.08 | H21: 0 | I21: 0 | J21: -0.0006154735089 | K21: -0.0006109621816
A22: Distribution Volumetric Charge | B22: =IF($B$9="kWh",$B$4,$B$5) -> 750 | C22: =VLOOKUP($B$3,'Data Current Rates'!$A:$AO,MATCH(BI_UR_Typical!$A22,CurrentHeader,0),FALSE) -> 0 | D22: 0 | E22: 750 | F22: =VLOOKUP($B$3,'Data Proposed Rates'!$A:$AZ,MATCH(BI_UR_Typical!$A22,ProposedHeader,0),FALSE) -> 0 | G22: 0 | H22: 0 | I22: N/A | J22: 0 | K22: 0
A23: Volumetric Base Rate Adjustment to Recover Past Tax Amounts | B23: =IF($B$9="kWh",$B$4,$B$5) -> 750 | C23: =VLOOKUP($B$3,'Data Current Rates'!$A:$AO,MATCH(BI_UR_Typical!$A23,CurrentHeader,0),FALSE) -> 0 | D23: 0 | E23: 750 | F23: =VLOOKUP($B$3,'Data Proposed Rates'!$A:$AZ,MATCH(BI_UR_Typical!$A23,ProposedHeader,0),FALSE) -> 0 | G23: 0 | H23: 0 | I23: N/A | J23: 0 | K23: 0
A24: Group 1 Volumetric DVA Rider (General) | B24: 750 | C24: =VLOOKUP($B$3,'Data Current Rates'!$A:$AO,MATCH(BI_UR_Typical!$A24,CurrentHeader,0),FALSE) -> -0.0004 | D24: -0.3 | E24: =B4 -> 750 | F24: =VLOOKUP($B$3,'Data Proposed Rates'!$A:$AZ,MATCH(BI_UR_Typical!$A24,ProposedHeader,0),FALSE) -> -0.0004 | G24: -0.3 | H24: 0 | I24: 0 | J24: -0.002308025659 | K24: -0.002291108181
A25: Group 2 Volumetric DVA Rider | B25: 750 | C25: =VLOOKUP($B$3,'Data Current Rates'!$A:$AO,MATCH(BI_UR_Typical!$A25,CurrentHeader,0),FALSE) -> 0 | D25: 0 | E25: =B4 -> 750 | F25: =VLOOKUP($B$3,'Data Proposed Rates'!$A:$AZ,MATCH(BI_UR_Typical!$A25,ProposedHeader,0),FALSE) -> 0 | G25: 0 | H25: 0 | I25: N/A | J25: 0 | K25: 0
A26: Fair Hydro Plan - Distribution Rate Protection Savings* | D26: =IF(AND(B3<>"R1",B3<>"R2"),0,IF(VLOOKUP($A26,'Data Pass Through'!$A:$D,2,FALSE)=0,0,IF(SUM(D19:D20,D22:D23)<VLOOKUP($A26,'Data Pass Through'!$A:$D,2,FALSE),0,VLOOKUP($A26,'Data Pass Through'!$A:$D,2,FALSE)-SUM(D19:D20,D22:D23)))) -> 0 | G26: =IF(AND(B3<>"R1",B3<>"R2"),0,IF(VLOOKUP($A26,'Data Pass Through'!$A:$D,2,FALSE)=0,0,IF(SUM(G19:G20,G22:G23)<VLOOKUP($A26,'Data Pass Through'!$A:$D,2,FALSE),0,VLOOKUP($A26,'Data Pass Through'!$A:$D,2,FALSE)-SUM(G19:G20,G22:G23)))) -> 0 | H26: 0 | I26: N/A | J26: 0 | K26: 0
A27: Sub-Total: Distribution (excluding pass through) | D27: =SUM(INDIRECT("D19:D"&ROW()-1)) -> 37.3 | G27: =SUM(INDIRECT("g19:g"&ROW()-1)) -> 38.27 | H27: =G27-D27 -> 0.97 | I27: 0.02600536193 | J27: 0.2944271398 | K27: 0.2922690336
A28: Smart Metering Entity Charge | B28: 1 | C28: =VLOOKUP($A28,'Data Pass Through'!$A:$D,2,FALSE) -> 0.57 | D28: =B28*C28 -> 0.57 | E28: 1 | F28: =VLOOKUP($A28,'Data Pass Through'!$A:$D,3,FALSE) -> 0.57 | G28: =E28*F28 -> 0.57 | H28: 0 | I28: 0 | J28: 0.004385248751 | K28: 0.004353105544
A29: Line Losses on Cost of Power (based on two-tier RPP prices) | B29: =B8-B4 -> 42.75 | C29: =IF(B4>B7,C13,C12) -> 0.115 | D29: =B29*C29 -> 4.91625 | E29: 42.75 | F29: =IF(B4>B7,F13,F12) -> 0.115 | G29: =E29*F29 -> 4.91625 | H29: 0 | I29: 0 | J29: 0.03782277048 | K29: 0.03754553532
A30: Line Losses on Cost of Power (based on TOU prices) | B30: =B8-B4 -> 42.75 | C30: =VLOOKUP($B$3,'Data Billing Quantities'!$A:$O,MATCH(BI_UR_Typical!$A15,'Data Billing Quantities'!$4:$4,0),FALSE)*C15+VLOOKUP($B$3,'Data Billing Quantities'!$A:$O,MATCH(BI_UR_Typical!$A16,'Data Billing Quantities'!$4:$4,0),FALSE)*C16+VLOOKUP($B$3,'Data Billing Quantities'!$A:$O,MATCH(BI_UR_Typical!$A17,'Data Billing Quantities'!$4:$4,0),FALSE)*C17 -> 0.10342 | D30: =B30*C30 -> 4.421205 | E30: 42.75 | F30: =VLOOKUP($B$3,'Data Billing Quantities'!$A:$O,MATCH(BI_UR_Typical!$A15,'Data Billing Quantities'!$4:$4,0),FALSE)*F15+VLOOKUP($B$3,'Data Billing Quantities'!$A:$O,MATCH(BI_UR_Typical!$A16,'Data Billing Quantities'!$4:$4,0),FALSE)*F16+VLOOKUP($B$3,'Data Billing Quantities'!$A:$O,MATCH(BI_UR_Typical!$A17,'Data Billing Quantities'!$4:$4,0),FALSE)*F17 -> 0.10342 | G30: =E30*F30 -> 4.421205 | H30: 0 | I30: 0 | J30: 0.03401418194 | K30: 0.03376486315
A31: Sub-Total: Distribution (based on two-tier RPP prices) | D31: =SUM(D27,D28:D29) -> 42.78625 | G31: =SUM(G27,G28:G29) -> 43.75625 | H31: 0.97 | I31: 0.02267083467 | J31: 0.3366351591 | K31: 0.3341676745
A32: Sub-Total: Distribution (based on TOU prices) | D32: =SUM(D27,D28,D30) -> 42.291205 | G32: =SUM(G27,G28,G30) -> 43.261205 | H32: 0.97 | I32: 0.02293621097 | J32: 0.3328265705 | K32: 0.3303870023
A33: Retail Transmission Rate – Network Service Rate | B33: =B8 -> 792.75 | C33: =VLOOKUP($B$3,'Data Current Rates'!$A:$AO,MATCH(BI_UR_Typical!$A33,CurrentHeader,0),FALSE) -> 0.0109 | D33: =B33*C33 -> 8.640975 | E33: 792.75 | F33: =VLOOKUP($B$3,'Data Proposed Rates'!$A:$AZ,MATCH(BI_UR_Typical!$A33,ProposedHeader,0),FALSE) -> 0.0109 | G33: =E33*F33 -> 8.640975 | H33: =G33-D33 -> 0 | I33: 0 | J33: 0.06647864005 | K33: 0.06599136171
A34: Retail Transmission Rate – Line and Transformation Connection Service Rate | B34: =B8 -> 792.75 | C34: =VLOOKUP($B$3,'Data Current Rates'!$A:$AO,MATCH(BI_UR_Typical!$A34,CurrentHeader,0),FALSE) -> 0.008 | D34: =B34*C34 -> 6.342 | E34: 792.75 | F34: =VLOOKUP($B$3,'Data Proposed Rates'!$A:$AZ,MATCH(BI_UR_Typical!$A34,ProposedHeader,0),FALSE) -> 0.008 | G34: =E34*F34 -> 6.342 | H34: =G34-D34 -> 0 | I34: 0 | J34: 0.04879166242 | K34: 0.04843402695
A35: Sub-Total: Retail Transmission | D35: =SUM(D33:D34) -> 14.982975 | G35: =SUM(G33:G34) -> 14.982975 | H35: =G35-D35 -> 0 | I35: 0 | J35: 0.1152703025 | K35: 0.1144253887
A36: Sub-Total: Delivery (based on two-tier RPP prices) | D36: =D31+D35 -> 57.769225 | G36: =G31+G35 -> 58.739225 | H36: =G36-D36 -> 0.97 | I36: 0.01679094708 | J36: 0.4519054615 | K36: 0.4485930631
A37: Sub-Total: Delivery (based on TOU prices) | D37: =D32+D35 -> 57.27418 | G37: =G32+G35 -> 58.24418 | H37: =G37-D37 -> 0.97 | I37: 0.01693607835 | J37: 0.448096873 | K37: 0.444812391
A38: Wholesale Market Service Rate (WMS) - not including CBR | B38: =B8 -> 792.75 | C38: =VLOOKUP($A38,'Data Pass Through'!$A:$D,2,FALSE) -> 0.003 | D38: =B38*C38 -> 2.37825 | E38: =$B$8 -> 792.75 | F38: =VLOOKUP($A38,'Data Pass Through'!$A:$D,3,FALSE) -> 0.003 | G38: =E38*F38 -> 2.37825 | H38: 0 | I38: 0 | J38: 0.01829687341 | K38: 0.0181627601
A39: Capacity Based Recovery (CBR) - Applicable for Class B Customers | B39: =B8 -> 792.75 | C39: =VLOOKUP($A39,'Data Pass Through'!$A:$D,2,FALSE) -> 0.0004 | D39: =B39*C39 -> 0.3171 | E39: =$B$8 -> 792.75 | F39: =VLOOKUP($A39,'Data Pass Through'!$A:$D,3,FALSE) -> 0.0004 | G39: =E39*F39 -> 0.3171 | H39: 0 | I39: 0 | J39: 0.002439583121 | K39: 0.002421701347
A40: Rural Rate Protection Charge | B40: =B8 -> 792.75 | C40: =VLOOKUP($A40,'Data Pass Through'!$A:$D,2,FALSE) -> 0.0005 | D40: 0.396375 | E40: 792.75 | F40: =VLOOKUP($A40,'Data Pass Through'!$A:$D,3,FALSE) -> 0.0005 | G40: 0.396375 | H40: 0 | I40: 0 | J40: 0.003049478901 | K40: 0.003027126684
A41: Standard Supply Service – Administration Charge (if applicable) | B41: 1 | C41: =VLOOKUP($A41,'Data Pass Through'!$A:$D,2,FALSE) -> 0.25 | D41: =B41*C41 -> 0.25 | E41: 1 | F41: =VLOOKUP($A41,'Data Pass Through'!$A:$D,3,FALSE) -> 0.25 | G41: 0.25 | H41: 0 | I41: 0 | J41: 0.001923354715 | K41: 0.001909256817
A42: Sub-Total: Regulatory | D42: =SUM(D38:D41) -> 3.341725 | G42: =SUM(G38:G41) -> 3.341725 | H42: 0 | I42: 0 | J42: 0.02570929015 | K42: 0.02552084495
A43: Total Electricty Charge on Two-Tier RPP | D43: =SUM(D14,D27,D28,D29,D35,D42) -> 137.16095 | G43: =SUM(G14,G27,G28,G29,G35,G42) -> 138.13095 | H43: 0.97 | I43: 0.00707198368 | J43: 1.062699256
A44: HST | C44: 0.13 | D44: =D43*C44 -> 17.8309235 | F44: =C44 -> 0.13 | G44: =G43*F44 -> 17.9570235 | H44: 0.1261 | I44: 0.00707198368 | J44: 0.1381509033
A45: Total Electricity Charge on Two-Tier RPP (including HST) | D45: =SUM(D43:D44) -> 154.9918735 | G45: =SUM(G43:G44) -> 156.0879735 | H45: 1.0961 | I45: 0.00707198368 | J45: 1.200850159
A46: Ontario Electricity Rebate (OER) | C46: =IF(($B$4*12)<250000,VLOOKUP(A46,'Data Pass Through'!$A$4:$C$20,2,0),0) -> -0.189 | D46: =D43*C46 -> -25.92341955 | F46: =C46 -> -0.189 | G46: =G43*F46 -> -26.10674955 | H46: -0.18333 | I46: -0.00707198368 | J46: -0.2008501594
A47: Total Amount on Two-Tier RPP | D47: =SUM(D45:D46) -> 129.068454 | G47: =SUM(G45:G46) -> 129.981224 | H47: 0.91277 | I47: 0.00707198368 | J47: 1
A48: Total Electricty Charge on TOU (before HST) | D48: =SUM(D18,D27,D28,D30,D35,D42) -> 138.180905 | G48: =SUM(G18,G27,G28,G30,G35,G42) -> 139.150905 | H48: 0.97 | I48: 0.007019783233 | K48: =G48/$G$52 -> 1.062699256
A49: HST | C49: 0.13 | D49: =D48*C49 -> 17.96351765 | F49: =C49 -> 0.13 | G49: =G48*F49 -> 18.08961765 | H49: 0.1261 | I49: 0.007019783233 | K49: =G49/$G$52 -> 0.1381509033
A50: Total Electricity Charge on TOU (including HST) | D50: =SUM(D48:D49) -> 156.1444226 | G50: =SUM(G48:G49) -> 157.2405227 | H50: 1.0961 | I50: 0.007019783233 | K50: =G50/$G$52 -> 1.200850159
A51: Ontario Electricity Rebate (OER) | C51: =IF(($B$4*12)<250000,VLOOKUP(A51,'Data Pass Through'!$A$4:$C$20,2,0),0) -> -0.189 | D51: =D48*C51 -> -26.11619105 | F51: =C51 -> -0.189 | G51: =G48*F51 -> -26.29952104 | H51: -0.18333 | I51: -0.007019783233 | K51: =G51/$G$52 -> -0.2008501594
A52: Total Amount on TOU | D52: =SUM(D50:D51) -> 130.0282316 | G52: =SUM(G50:G51) -> 130.9410016 | H52: 0.91277 | I52: 0.007019783233 | K52: =G52/$G$52 -> 1
A53: * Distribution rate protection applies to R1 and R2 customers

Sheet BI_UR_Avg
A1: 2024 Bill Impacts (Average Consumption Level) - UR
A3: Rate Class | B3: =RIGHT(A1,LEN(A1)-FIND("- ",A1,1)-1) -> UR
A4: Monthly Consumption (kWh) | B4: =IF(COUNTIF(A1,"*Low*")>0,VLOOKUP(B3,'Data Billing Quantities'!$A:$Z,MATCH("Low kWh",'Data Billing Quantities'!4:4,0),FALSE),IF(COUNTIF(A1,"*Typical*")>0,VLOOKUP(B3,'Data Billing Quantities'!$A:$Z,MATCH("Typical kWh",'Data Billing Quantities'!4:4,0),FALSE),IF(COUNTIF(A1,"*Average*")>0,VLOOKUP(B3,'Data Billing Quantities'!$A:$Z,MATCH("Average kWh",'Data Billing Quantities'!4:4,0),FALSE),IF(COUNTIF(A1,"*High*")>0,VLOOKUP(B3,'Data Billing Quantities'!$A:$Z,MATCH("High kWh",'Data Billing Quantities'!4:4,0),FALSE),"error")))) -> 690
A5: Peak (kW) | B5: =IF(COUNTIF(A1,"*Low*")>0,VLOOKUP(B3,'Data Billing Quantities'!$A:$Z,MATCH("Low kW",'Data Billing Quantities'!4:4,0),FALSE),IF(COUNTIF(A1,"*Typical*")>0,VLOOKUP(B3,'Data Billing Quantities'!$A:$Z,MATCH("Typical kW",'Data Billing Quantities'!4:4,0),FALSE),IF(COUNTIF(A1,"*Average*")>0,VLOOKUP(B3,'Data Billing Quantities'!$A:$Z,MATCH("Average kW",'Data Billing Quantities'!4:4,0),FALSE),IF(COUNTIF(A1,"*High*")>0,VLOOKUP(B3,'Data Billing Quantities'!$A:$Z,MATCH("High kW",'Data Billing Quantities'!4:4,0),FALSE),"error")))) -> 0
A6: Loss factor | B6: =VLOOKUP(B3,'Data Billing Quantities'!A:D,MATCH(A6,'Data Billing Quantities'!4:4,0),FALSE) -> 1.057
A7: Commodity Threshold | B7: =VLOOKUP(B3,'Data Billing Quantities'!A:D,MATCH(A7,'Data Billing Quantities'!4:4,0),FALSE) -> 600
A8: Monthly Consumption (kWh) - Uplifted | B8: =B4*B6 -> 729.33
A9: Charge determinant | B9: =VLOOKUP(B3,'Data Billing Quantities'!A:D,MATCH(A9,'Data Billing Quantities'!4:4,0),FALSE) -> kWh
B11: Volume | C11: Current Rate ($) | D11: Current Charge ($) | E11: Volume | F11: Proposed Rate ($) | G11: Proposed Charge ($) | H11: Change ($) | I11: Change (%) | J11: % of Total Bill on RPP | K11: % of Total Bill
A12: Energy First Tier | B12: =IF(B4>B7,B7,B4) -> 600 | C12: =VLOOKUP($A12,'Data Pass Through'!$A:$D,2,FALSE) -> 0.098 | D12: =B12*C12 -> 58.8 | E12: =B12 -> 600 | F12: =VLOOKUP($A12,'Data Pass Through'!$A:$D,3,FALSE) -> 0.098 | G12: =E12*F12 -> 58.8 | H12: =G12-D12 -> 0 | I12: =IF(ISERROR(H12/ABS(D12)),"N/A",(H12/ABS(D12))) -> 0 | J12: =G12/$G$47 -> 0.4828373127
A13: Energy Second Tier | B13: =IF(B4>B7,(B4)-B7,0) -> 90 | C13: =VLOOKUP($A13,'Data Pass Through'!$A:$D,2,FALSE) -> 0.115 | D13: =B13*C13 -> 10.35 | E13: =B13 -> 90 | F13: =VLOOKUP($A13,'Data Pass Through'!$A:$D,3,FALSE) -> 0.115 | G13: =E13*F13 -> 10.35 | H13: 0 | I13: 0 | J13: =G13/$G$47 -> 0.08498922086
A14: Sub-Total: Energy (RPP Tiered) | D14: =SUM(D12:D13) -> 69.15 | G14: =SUM(G12:G13) -> 69.15 | H14: 0 | I14: 0 | J14: =G14/$G$47 -> 0.5678265336
A15: TOU-Off Peak | B15: =B$4*VLOOKUP($B$3,'Data Billing Quantities'!$A:$O,MATCH(BI_UR_Avg!$A15,'Data Billing Quantities'!$4:$4,0),FALSE) -> 441.6 | C15: =VLOOKUP($A15,'Data Pass Through'!$A:$D,2,FALSE) -> 0.082 | D15: =B15*C15 -> 36.2112 | E15: 441.6 | F15: =VLOOKUP($A15,'Data Pass Through'!$A:$D,3,FALSE) -> 0.082 | G15: =E15*F15 -> 36.2112 | H15: 0 | I15: 0 | K15: =G15/$G$52 -> 0.2933720038
A16: TOU-Mid Peak | B16: =B$4*VLOOKUP($B$3,'Data Billing Quantities'!$A:$O,MATCH(BI_UR_Avg!$A16,'Data Billing Quantities'!$4:$4,0),FALSE) -> 124.2 | C16: =VLOOKUP($A16,'Data Pass Through'!$A:$D,2,FALSE) -> 0.113 | D16: =B16*C16 -> 14.0346 | E16: 124.2 | F16: =VLOOKUP($A16,'Data Pass Through'!$A:$D,3,FALSE) -> 0.113 | G16: =E16*F16 -> 14.0346 | H16: 0 | I16: 0 | K16: 0.1137040121
A17: TOU-On Peak | B17: =B$4*VLOOKUP($B$3,'Data Billing Quantities'!$A:$O,MATCH(BI_UR_Avg!$A17,'Data Billing Quantities'!$4:$4,0),FALSE) -> 124.2 | C17: =VLOOKUP($A17,'Data Pass Through'!$A:$D,2,FALSE) -> 0.17 | D17: =B17*C17 -> 21.114 | E17: 124.2 | F17: =VLOOKUP($A17,'Data Pass Through'!$A:$D,3,FALSE) -> 0.17 | G17: =E17*F17 -> 21.114 | H17: 0 | I17: 0 | K17: 0.1710591333
A18: Sub-Total: Energy (RPP TOU) | D18: =SUM(D15:D17) -> 71.3598 | G18: =SUM(G15:G17) -> 71.3598 | H18: 0 | I18: 0 | J18: =G18/$G$47 -> 0.5859723481 | K18: 0.5781351493
A19: Service Charge | B19: 1 | C19: =VLOOKUP($B$3,'Data Current Rates'!$A:$AO,MATCH(BI_UR_Avg!$A19,CurrentHeader,0),FALSE) -> 36.88 | D19: =B19*C19 -> 36.88 | E19: 1 | F19: =VLOOKUP($B$3,'Data Proposed Rates'!$A:$AZ,MATCH(BI_UR_Avg!$A19,ProposedHeader,0),FALSE) -> 38.65 | G19: =E19*F19 -> 38.65 | H19: 1.77 | I19: 0.04799349241 | J19: 0.3173752064 | K19: 0.3131304112
A20: Fixed Base Rate Adjustment to Recover Past Tax Amounts | B20: 1 | C20: =VLOOKUP($B$3,'Data Current Rates'!$A:$AO,MATCH(BI_UR_Avg!$A20,CurrentHeader,0),FALSE) -> 0.8 | D20: 0.8 | E20: 1 | F20: =VLOOKUP($B$3,'Data Proposed Rates'!$A:$AZ,MATCH(BI_UR_Avg!$A20,ProposedHeader,0),FALSE) -> 0 | G20: 0 | H20: -0.8 | I20: -1 | J20: 0 | K20: 0
A21: Group 2 Fixed DVA Rider | B21: 1 | C21: =VLOOKUP($B$3,'Data Current Rates'!$A:$AO,MATCH(BI_UR_Avg!$A21,CurrentHeader,0),FALSE) -> -0.08 | D21: -0.08 | E21: 1 | F21: =VLOOKUP($B$3,'Data Proposed Rates'!$A:$AZ,MATCH(BI_UR_Avg!$A21,ProposedHeader,0),FALSE) -> -0.08 | G21: -0.08 | H21: 0 | I21: 0 | J21: -0.0006569215139 | K21: -0.0006481353919
A22: Distribution Volumetric Charge | B22: =IF($B$9="kWh",$B$4,$B$5) -> 690 | C22: =VLOOKUP($B$3,'Data Current Rates'!$A:$AO,MATCH(BI_UR_Avg!$A22,CurrentHeader,0),FALSE) -> 0 | D22: 0 | E22: 690 | F22: =VLOOKUP($B$3,'Data Proposed Rates'!$A:$AZ,MATCH(BI_UR_Avg!$A22,ProposedHeader,0),FALSE) -> 0 | G22: 0 | H22: 0 | I22: N/A | J22: 0 | K22: 0
A23: Volumetric Base Rate Adjustment to Recover Past Tax Amounts | B23: =IF($B$9="kWh",$B$4,$B$5) -> 690 | C23: =VLOOKUP($B$3,'Data Current Rates'!$A:$AO,MATCH(BI_UR_Avg!$A23,CurrentHeader,0),FALSE) -> 0 | D23: 0 | E23: 690 | F23: =VLOOKUP($B$3,'Data Proposed Rates'!$A:$AZ,MATCH(BI_UR_Avg!$A23,ProposedHeader,0),FALSE) -> 0 | G23: 0 | H23: 0 | I23: N/A | J23: 0 | K23: 0
A24: Group 1 Volumetric DVA Rider (General) | B24: 690 | C24: =VLOOKUP($B$3,'Data Current Rates'!$A:$AO,MATCH(BI_UR_Avg!$A24,CurrentHeader,0),FALSE) -> -0.0004 | D24: -0.276 | E24: =B4 -> 690 | F24: =VLOOKUP($B$3,'Data Proposed Rates'!$A:$AZ,MATCH(BI_UR_Avg!$A24,ProposedHeader,0),FALSE) -> -0.0004 | G24: -0.276 | H24: 0 | I24: 0 | J24: -0.002266379223 | K24: -0.002236067102
A25: Group 2 Volumetric DVA Rider | B25: 690 | C25: =VLOOKUP($B$3,'Data Current Rates'!$A:$AO,MATCH(BI_UR_Avg!$A25,CurrentHeader,0),FALSE) -> 0 | D25: 0 | E25: =B4 -> 690 | F25: =VLOOKUP($B$3,'Data Proposed Rates'!$A:$AZ,MATCH(BI_UR_Avg!$A25,ProposedHeader,0),FALSE) -> 0 | G25: 0 | H25: 0 | I25: N/A | J25: 0 | K25: 0
A26: Fair Hydro Plan - Distribution Rate Protection Savings* | D26: =IF(AND(B3<>"R1",B3<>"R2"),0,IF(VLOOKUP($A26,'Data Pass Through'!$A:$D,2,FALSE)=0,0,IF(SUM(D19:D20,D22:D23)<VLOOKUP($A26,'Data Pass Through'!$A:$D,2,FALSE),0,VLOOKUP($A26,'Data Pass Through'!$A:$D,2,FALSE)-SUM(D19:D20,D22:D23)))) -> 0 | G26: =IF(AND(B3<>"R1",B3<>"R2"),0,IF(VLOOKUP($A26,'Data Pass Through'!$A:$D,2,FALSE)=0,0,IF(SUM(G19:G20,G22:G23)<VLOOKUP($A26,'Data Pass Through'!$A:$D,2,FALSE),0,VLOOKUP($A26,'Data Pass Through'!$A:$D,2,FALSE)-SUM(G19:G20,G22:G23)))) -> 0 | H26: 0 | I26: N/A | J26: 0 | K26: 0
A27: Sub-Total: Distribution (excluding pass through) | D27: =SUM(INDIRECT("D19:D"&ROW()-1)) -> 37.324 | G27: =SUM(INDIRECT("g19:g"&ROW()-1)) -> 38.294 | H27: =G27-D27 -> 0.97 | I27: 0.02598864002 | J27: 0.3144519057 | K27: 0.3102462087
A28: Smart Metering Entity Charge | B28: 1 | C28: =VLOOKUP($A28,'Data Pass Through'!$A:$D,2,FALSE) -> 0.57 | D28: =B28*C28 -> 0.57 | E28: 1 | F28: =VLOOKUP($A28,'Data Pass Through'!$A:$D,3,FALSE) -> 0.57 | G28: =E28*F28 -> 0.57 | H28: 0 | I28: 0 | J28: 0.004680565787 | K28: 0.004617964668
A29: Line Losses on Cost of Power (based on two-tier RPP prices) | B29: =B8-B4 -> 39.33 | C29: =IF(B4>B7,C13,C12) -> 0.115 | D29: =B29*C29 -> 4.52295 | E29: 39.33 | F29: =IF(B4>B7,F13,F12) -> 0.115 | G29: =E29*F29 -> 4.52295 | H29: 0 | I29: 0 | J29: 0.03714028952 | K29: 0.03664354964
A30: Line Losses on Cost of Power (based on TOU prices) | B30: =B8-B4 -> 39.33 | C30: =VLOOKUP($B$3,'Data Billing Quantities'!$A:$O,MATCH(BI_UR_Avg!$A15,'Data Billing Quantities'!$4:$4,0),FALSE)*C15+VLOOKUP($B$3,'Data Billing Quantities'!$A:$O,MATCH(BI_UR_Avg!$A16,'Data Billing Quantities'!$4:$4,0),FALSE)*C16+VLOOKUP($B$3,'Data Billing Quantities'!$A:$O,MATCH(BI_UR_Avg!$A17,'Data Billing Quantities'!$4:$4,0),FALSE)*C17 -> 0.10342 | D30: =B30*C30 -> 4.0675086 | E30: 39.33 | F30: =VLOOKUP($B$3,'Data Billing Quantities'!$A:$O,MATCH(BI_UR_Avg!$A15,'Data Billing Quantities'!$4:$4,0),FALSE)*F15+VLOOKUP($B$3,'Data Billing Quantities'!$A:$O,MATCH(BI_UR_Avg!$A16,'Data Billing Quantities'!$4:$4,0),FALSE)*F16+VLOOKUP($B$3,'Data Billing Quantities'!$A:$O,MATCH(BI_UR_Avg!$A17,'Data Billing Quantities'!$4:$4,0),FALSE)*F17 -> 0.10342 | G30: =E30*F30 -> 4.0675086 | H30: 0 | I30: 0 | J30: 0.03340042384 | K30: 0.03295370351
A31: Sub-Total: Distribution (based on two-tier RPP prices) | D31: =SUM(D27,D28:D29) -> 42.41695 | G31: =SUM(G27,G28:G29) -> 43.38695 | H31: 0.97 | I31: 0.0228682166 | J31: 0.356272761 | K31: 0.351507723
A32: Sub-Total: Distribution (based on TOU prices) | D32: =SUM(D27,D28,D30) -> 41.9615086 | G32: =SUM(G27,G28,G30) -> 42.9315086 | H32: 0.97 | I32: 0.02311642342 | J32: 0.3525328953 | K32: 0.3478178769
A33: Retail Transmission Rate – Network Service Rate | B33: =B8 -> 729.33 | C33: =VLOOKUP($B$3,'Data Current Rates'!$A:$AO,MATCH(BI_UR_Avg!$A33,CurrentHeader,0),FALSE) -> 0.0109 | D33: =B33*C33 -> 7.949697 | E33: 729.33 | F33: =VLOOKUP($B$3,'Data Proposed Rates'!$A:$AZ,MATCH(BI_UR_Avg!$A33,ProposedHeader,0),FALSE) -> 0.0109 | G33: =E33*F33 -> 7.949697 | H33: =G33-D33 -> 0 | I33: 0 | J33: 0.06527908736 | K33: 0.06440599976
A34: Retail Transmission Rate – Line and Transformation Connection Service Rate | B34: =B8 -> 729.33 | C34: =VLOOKUP($B$3,'Data Current Rates'!$A:$AO,MATCH(BI_UR_Avg!$A34,CurrentHeader,0),FALSE) -> 0.008 | D34: =B34*C34 -> 5.83464 | E34: 729.33 | F34: =VLOOKUP($B$3,'Data Proposed Rates'!$A:$AZ,MATCH(BI_UR_Avg!$A34,ProposedHeader,0),FALSE) -> 0.008 | G34: =E34*F34 -> 5.83464 | H34: =G34-D34 -> 0 | I34: 0 | J34: 0.04791125677 | K34: 0.04727045854
A35: Sub-Total: Retail Transmission | D35: =SUM(D33:D34) -> 13.784337 | G35: =SUM(G33:G34) -> 13.784337 | H35: =G35-D35 -> 0 | I35: 0 | J35: 0.1131903441 | K35: 0.1116764583
A36: Sub-Total: Delivery (based on two-tier RPP prices) | D36: =D31+D35 -> 56.201287 | G36: =G31+G35 -> 57.171287 | H36: =G36-D36 -> 0.97 | I36: 0.01725939123 | J36: 0.4694631051 | K36: 0.4631841813
A37: Sub-Total: Delivery (based on TOU prices) | D37: =D32+D35 -> 55.7458456 | G37: =G32+G35 -> 56.7158456 | H37: =G37-D37 -> 0.97 | I37: 0.01740039979 | J37: 0.4657232394 | K37: 0.4594943352
A38: Wholesale Market Service Rate (WMS) - not including CBR | B38: =B8 -> 729.33 | C38: =VLOOKUP($A38,'Data Pass Through'!$A:$D,2,FALSE) -> 0.003 | D38: =B38*C38 -> 2.18799 | E38: =$B$8 -> 729.33 | F38: =VLOOKUP($A38,'Data Pass Through'!$A:$D,3,FALSE) -> 0.003 | G38: =E38*F38 -> 2.18799 | H38: 0 | I38: 0 | J38: 0.01796672129 | K38: 0.01772642195
A39: Capacity Based Recovery (CBR) - Applicable for Class B Customers | B39: =B8 -> 729.33 | C39: =VLOOKUP($A39,'Data Pass Through'!$A:$D,2,FALSE) -> 0.0004 | D39: =B39*C39 -> 0.291732 | E39: =$B$8 -> 729.33 | F39: =VLOOKUP($A39,'Data Pass Through'!$A:$D,3,FALSE) -> 0.0004 | G39: =E39*F39 -> 0.291732 | H39: 0 | I39: 0 | J39: 0.002395562839 | K39: 0.002363522927
A40: Rural Rate Protection Charge | B40: =B8 -> 729.33 | C40: =VLOOKUP($A40,'Data Pass Through'!$A:$D,2,FALSE) -> 0.0005 | D40: 0.364665 | E40: 729.33 | F40: =VLOOKUP($A40,'Data Pass Through'!$A:$D,3,FALSE) -> 0.0005 | G40: 0.364665 | H40: 0 | I40: 0 | J40: 0.002994453548 | K40: 0.002954403659
A41: Standard Supply Service – Administration Charge (if applicable) | B41: 1 | C41: =VLOOKUP($A41,'Data Pass Through'!$A:$D,2,FALSE) -> 0.25 | D41: =B41*C41 -> 0.25 | E41: 1 | F41: =VLOOKUP($A41,'Data Pass Through'!$A:$D,3,FALSE) -> 0.25 | G41: 0.25 | H41: 0 | I41: 0 | J41: 0.002052879731 | K41: 0.0020254231
A42: Sub-Total: Regulatory | D42: =SUM(D38:D41) -> 3.094387 | G42: =SUM(G38:G41) -> 3.094387 | H42: 0 | I42: 0 | J42: 0.02540961741 | K42: 0.02506977164
A43: Total Electricty Charge on Two-Tier RPP | D43: =SUM(D14,D27,D28,D29,D35,D42) -> 128.445674 | G43: =SUM(G14,G27,G28,G29,G35,G42) -> 129.415674 | H43: 0.97 | I43: 0.007551830823 | J43: 1.062699256
A44: HST | C44: 0.13 | D44: =D43*C44 -> 16.69793762 | F44: =C44 -> 0.13 | G44: =G43*F44 -> 16.82403762 | H44: 0.1261 | I44: 0.007551830823 | J44: 0.1381509033
A45: Total Electricity Charge on Two-Tier RPP (including HST) | D45: =SUM(D43:D44) -> 145.1436116 | G45: =SUM(G43:G44) -> 146.2397116 | H45: 1.0961 | I45: 0.007551830823 | J45: 1.200850159
A46: Ontario Electricity Rebate (OER) | C46: =IF(($B$4*12)<250000,VLOOKUP(A46,'Data Pass Through'!$A$4:$C$20,2,0),0) -> -0.189 | D46: =D43*C46 -> -24.27623239 | F46: =C46 -> -0.189 | G46: =G43*F46 -> -24.45956239 | H46: -0.18333 | I46: -0.007551830823 | J46: -0.2008501594
A47: Total Amount on Two-Tier RPP | D47: =SUM(D45:D46) -> 120.8673792 | G47: =SUM(G45:G46) -> 121.7801492 | H47: 0.91277 | I47: 0.007551830823 | J47: 1
A48: Total Electricty Charge on TOU (before HST) | D48: =SUM(D18,D27,D28,D30,D35,D42) -> 130.2000326 | G48: =SUM(G18,G27,G28,G30,G35,G42) -> 131.1700326 | H48: 0.97 | I48: 0.00745007494 | K48: =G48/$G$52 -> 1.062699256
A49: HST | C49: 0.13 | D49: =D48*C49 -> 16.92600424 | F49: =C49 -> 0.13 | G49: =G48*F49 -> 17.05210424 | H49: 0.1261 | I49: 0.00745007494 | K49: =G49/$G$52 -> 0.1381509033
A50: Total Electricity Charge on TOU (including HST) | D50: =SUM(D48:D49) -> 147.1260368 | G50: =SUM(G48:G49) -> 148.2221368 | H50: 1.0961 | I50: 0.00745007494 | K50: =G50/$G$52 -> 1.200850159
A51: Ontario Electricity Rebate (OER) | C51: =IF(($B$4*12)<250000,VLOOKUP(A51,'Data Pass Through'!$A$4:$C$20,2,0),0) -> -0.189 | D51: =D48*C51 -> -24.60780616 | F51: =C51 -> -0.189 | G51: =G48*F51 -> -24.79113616 | H51: -0.18333 | I51: -0.00745007494 | K51: =G51/$G$52 -> -0.2008501594
A52: Total Amount on TOU | D52: =SUM(D50:D51) -> 122.5182307 | G52: =SUM(G50:G51) -> 123.4310007 | H52: 0.91277 | I52: 0.00745007494 | K52: =G52/$G$52 -> 1
A53: * Distribution rate protection applies to R1 and R2 customers

Sheet BI_UR_High
A1: 2024 Bill Impacts (High Consumption Level) - UR
A3: Rate Class | B3: =RIGHT(A1,LEN(A1)-FIND("- ",A1,1)-1) -> UR
A4: Monthly Consumption (kWh) | B4: =IF(COUNTIF(A1,"*Low*")>0,VLOOKUP(B3,'Data Billing Quantities'!$A:$Z,MATCH("Low kWh",'Data Billing Quantities'!4:4,0),FALSE),IF(COUNTIF(A1,"*Typical*")>0,VLOOKUP(B3,'Data Billing Quantities'!$A:$Z,MATCH("Typical kWh",'Data Billing Quantities'!4:4,0),FALSE),IF(COUNTIF(A1,"*Average*")>0,VLOOKUP(B3,'Data Billing Quantities'!$A:$Z,MATCH("Average kWh",'Data Billing Quantities'!4:4,0),FALSE),IF(COUNTIF(A1,"*High*")>0,VLOOKUP(B3,'Data Billing Quantities'!$A:$Z,MATCH("High kWh",'Data Billing Quantities'!4:4,0),FALSE),"error")))) -> 1260
A5: Peak (kW) | B5: =IF(COUNTIF(A1,"*Low*")>0,VLOOKUP(B3,'Data Billing Quantities'!$A:$Z,MATCH("Low kW",'Data Billing Quantities'!4:4,0),FALSE),IF(COUNTIF(A1,"*Typical*")>0,VLOOKUP(B3,'Data Billing Quantities'!$A:$Z,MATCH("Typical kW",'Data Billing Quantities'!4:4,0),FALSE),IF(COUNTIF(A1,"*Average*")>0,VLOOKUP(B3,'Data Billing Quantities'!$A:$Z,MATCH("Average kW",'Data Billing Quantities'!4:4,0),FALSE),IF(COUNTIF(A1,"*High*")>0,VLOOKUP(B3,'Data Billing Quantities'!$A:$Z,MATCH("High kW",'Data Billing Quantities'!4:4,0),FALSE),"error")))) -> 0
A6: Loss factor | B6: =VLOOKUP(B3,'Data Billing Quantities'!A:D,MATCH(A6,'Data Billing Quantities'!4:4,0),FALSE) -> 1.057
A7: Commodity Threshold | B7: =VLOOKUP(B3,'Data Billing Quantities'!A:D,MATCH(A7,'Data Billing Quantities'!4:4,0),FALSE) -> 600
A8: Monthly Consumption (kWh) - Uplifted | B8: =B4*B6 -> 1331.82
A9: Charge determinant | B9: =VLOOKUP(B3,'Data Billing Quantities'!A:D,MATCH(A9,'Data Billing Quantities'!4:4,0),FALSE) -> kWh
B11: Volume | C11: Current Rate ($) | D11: Current Charge ($) | E11: Volume | F11: Proposed Rate ($) | G11: Proposed Charge ($) | H11: Change ($) | I11: Change (%) | J11: % of Total Bill on RPP | K11: % of Total Bill
A12: Energy First Tier | B12: =IF(B4>B7,B7,B4) -> 600 | C12: =VLOOKUP($A12,'Data Pass Through'!$A:$D,2,FALSE) -> 0.098 | D12: =B12*C12 -> 58.8 | E12: =B12 -> 600 | F12: =VLOOKUP($A12,'Data Pass Through'!$A:$D,3,FALSE) -> 0.098 | G12: =E12*F12 -> 58.8 | H12: =G12-D12 -> 0 | I12: =IF(ISERROR(H12/ABS(D12)),"N/A",(H12/ABS(D12))) -> 0 | J12: =G12/$G$47 -> 0.294455878
A13: Energy Second Tier | B13: =IF(B4>B7,(B4)-B7,0) -> 660 | C13: =VLOOKUP($A13,'Data Pass Through'!$A:$D,2,FALSE) -> 0.115 | D13: =B13*C13 -> 75.9 | E13: =B13 -> 660 | F13: =VLOOKUP($A13,'Data Pass Through'!$A:$D,3,FALSE) -> 0.115 | G13: =E13*F13 -> 75.9 | H13: 0 | I13: 0 | J13: =G13/$G$47 -> 0.3800884548
A14: Sub-Total: Energy (RPP Tiered) | D14: =SUM(D12:D13) -> 134.7 | G14: =SUM(G12:G13) -> 134.7 | H14: 0 | I14: 0 | J14: =G14/$G$47 -> 0.6745443328
A15: TOU-Off Peak | B15: =B$4*VLOOKUP($B$3,'Data Billing Quantities'!$A:$O,MATCH(BI_UR_High!$A15,'Data Billing Quantities'!$4:$4,0),FALSE) -> 806.4 | C15: =VLOOKUP($A15,'Data Pass Through'!$A:$D,2,FALSE) -> 0.082 | D15: =B15*C15 -> 66.1248 | E15: 806.4 | F15: =VLOOKUP($A15,'Data Pass Through'!$A:$D,3,FALSE) -> 0.082 | G15: =E15*F15 -> 66.1248 | H15: 0 | I15: 0 | K15: =G15/$G$52 -> 0.3394915019
A16: TOU-Mid Peak | B16: =B$4*VLOOKUP($B$3,'Data Billing Quantities'!$A:$O,MATCH(BI_UR_High!$A16,'Data Billing Quantities'!$4:$4,0),FALSE) -> 226.8 | C16: =VLOOKUP($A16,'Data Pass Through'!$A:$D,2,FALSE) -> 0.113 | D16: =B16*C16 -> 25.6284 | E16: 226.8 | F16: =VLOOKUP($A16,'Data Pass Through'!$A:$D,3,FALSE) -> 0.113 | G16: =E16*F16 -> 25.6284 | H16: 0 | I16: 0 | K16: 0.1315788329
A17: TOU-On Peak | B17: =B$4*VLOOKUP($B$3,'Data Billing Quantities'!$A:$O,MATCH(BI_UR_High!$A17,'Data Billing Quantities'!$4:$4,0),FALSE) -> 226.8 | C17: =VLOOKUP($A17,'Data Pass Through'!$A:$D,2,FALSE) -> 0.17 | D17: =B17*C17 -> 38.556 | E17: 226.8 | F17: =VLOOKUP($A17,'Data Pass Through'!$A:$D,3,FALSE) -> 0.17 | G17: =E17*F17 -> 38.556 | H17: 0 | I17: 0 | K17: 0.1979504565
A18: Sub-Total: Energy (RPP TOU) | D18: =SUM(D15:D17) -> 130.3092 | G18: =SUM(G15:G17) -> 130.3092 | H18: 0 | I18: 0 | J18: =G18/$G$47 -> 0.6525562908 | K18: 0.6690207913
A19: Service Charge | B19: 1 | C19: =VLOOKUP($B$3,'Data Current Rates'!$A:$AO,MATCH(BI_UR_High!$A19,CurrentHeader,0),FALSE) -> 36.88 | D19: =B19*C19 -> 36.88 | E19: 1 | F19: =VLOOKUP($B$3,'Data Proposed Rates'!$A:$AZ,MATCH(BI_UR_High!$A19,ProposedHeader,0),FALSE) -> 38.65 | G19: =E19*F19 -> 38.65 | H19: 1.77 | I19: 0.04799349241 | J19: 0.1935496545 | K19: 0.1984330622
A20: Fixed Base Rate Adjustment to Recover Past Tax Amounts | B20: 1 | C20: =VLOOKUP($B$3,'Data Current Rates'!$A:$AO,MATCH(BI_UR_High!$A20,CurrentHeader,0),FALSE) -> 0.8 | D20: 0.8 | E20: 1 | F20: =VLOOKUP($B$3,'Data Proposed Rates'!$A:$AZ,MATCH(BI_UR_High!$A20,ProposedHeader,0),FALSE) -> 0 | G20: 0 | H20: -0.8 | I20: -1 | J20: 0 | K20: 0
A21: Group 2 Fixed DVA Rider | B21: 1 | C21: =VLOOKUP($B$3,'Data Current Rates'!$A:$AO,MATCH(BI_UR_High!$A21,CurrentHeader,0),FALSE) -> -0.08 | D21: -0.08 | E21: 1 | F21: =VLOOKUP($B$3,'Data Proposed Rates'!$A:$AZ,MATCH(BI_UR_High!$A21,ProposedHeader,0),FALSE) -> -0.08 | G21: -0.08 | H21: 0 | I21: 0 | J21: -0.0004006202422 | K21: -0.0004107282011
A22: Distribution Volumetric Charge | B22: =IF($B$9="kWh",$B$4,$B$5) -> 1260 | C22: =VLOOKUP($B$3,'Data Current Rates'!$A:$AO,MATCH(BI_UR_High!$A22,CurrentHeader,0),FALSE) -> 0 | D22: 0 | E22: 1260 | F22: =VLOOKUP($B$3,'Data Proposed Rates'!$A:$AZ,MATCH(BI_UR_High!$A22,ProposedHeader,0),FALSE) -> 0 | G22: 0 | H22: 0 | I22: N/A | J22: 0 | K22: 0
A23: Volumetric Base Rate Adjustment to Recover Past Tax Amounts | B23: =IF($B$9="kWh",$B$4,$B$5) -> 1260 | C23: =VLOOKUP($B$3,'Data Current Rates'!$A:$AO,MATCH(BI_UR_High!$A23,CurrentHeader,0),FALSE) -> 0 | D23: 0 | E23: 1260 | F23: =VLOOKUP($B$3,'Data Proposed Rates'!$A:$AZ,MATCH(BI_UR_High!$A23,ProposedHeader,0),FALSE) -> 0 | G23: 0 | H23: 0 | I23: N/A | J23: 0 | K23: 0
A24: Group 1 Volumetric DVA Rider (General) | B24: 1260 | C24: =VLOOKUP($B$3,'Data Current Rates'!$A:$AO,MATCH(BI_UR_High!$A24,CurrentHeader,0),FALSE) -> -0.0004 | D24: -0.504 | E24: =B4 -> 1260 | F24: =VLOOKUP($B$3,'Data Proposed Rates'!$A:$AZ,MATCH(BI_UR_High!$A24,ProposedHeader,0),FALSE) -> -0.0004 | G24: -0.504 | H24: 0 | I24: 0 | J24: -0.002523907526 | K24: -0.002587587667
A25: Group 2 Volumetric DVA Rider | B25: 1260 | C25: =VLOOKUP($B$3,'Data Current Rates'!$A:$AO,MATCH(BI_UR_High!$A25,CurrentHeader,0),FALSE) -> 0 | D25: 0 | E25: =B4 -> 1260 | F25: =VLOOKUP($B$3,'Data Proposed Rates'!$A:$AZ,MATCH(BI_UR_High!$A25,ProposedHeader,0),FALSE) -> 0 | G25: 0 | H25: 0 | I25: N/A | J25: 0 | K25: 0
A26: Fair Hydro Plan - Distribution Rate Protection Savings* | D26: =IF(AND(B3<>"R1",B3<>"R2"),0,IF(VLOOKUP($A26,'Data Pass Through'!$A:$D,2,FALSE)=0,0,IF(SUM(D19:D20,D22:D23)<VLOOKUP($A26,'Data Pass Through'!$A:$D,2,FALSE),0,VLOOKUP($A26,'Data Pass Through'!$A:$D,2,FALSE)-SUM(D19:D20,D22:D23)))) -> 0 | G26: =IF(AND(B3<>"R1",B3<>"R2"),0,IF(VLOOKUP($A26,'Data Pass Through'!$A:$D,2,FALSE)=0,0,IF(SUM(G19:G20,G22:G23)<VLOOKUP($A26,'Data Pass Through'!$A:$D,2,FALSE),0,VLOOKUP($A26,'Data Pass Through'!$A:$D,2,FALSE)-SUM(G19:G20,G22:G23)))) -> 0 | H26: 0 | I26: N/A | J26: 0 | K26: 0
